Workbook

Sheet Contents
A1: 80 | M1: ESC USE ONLY
D2: ESSENTIAL SERVICES COMMISSION
D3: Water Price Review
D4: Financial Model Template
B7: Table of Contents | F7: Water Business: | H7: =+N24 -> Lower Murray Water - Urban | I7: =+O24 -> LMW-U
B8: Section & Sheet Titles | F8: Regulatory Period: | H8: 2018-19 to 2022-23 (Fourth) | N8: [Decision] | O8: [Month] | P8: [Year] | Q8: [Version]
F9: Model Name: | H9: =I7&"_Price Review Template_"&O9&P9&Q9 -> LMW-U_Price Review Template_Dec2016 - v1 | N9: Draft | O9: Dec | P9: 2016 | Q9: - v1 | R9: << Select
B10: a. | C10: =+KeyAssumptionsPriceControl_FO!B1 -> Key Assumptions Price Control | F10: Decision type: | H10: =+N9&" Decision" -> Draft Decision | N10: Draft | O10: Jan | P10: 2016 | Q10: - v1
B11: b. | C11: Expenditure Detail - Removed as it contained confidential information | N11: Final | O11: Feb | P11: 2017 | Q11: - v1.2
B12: c. | C12: =Opex_FO!B1 -> Operating Expenditure - Forecast | F12: Model Key: | O12: Mar | P12: 2018 | Q12: - v3
B13: d. | C13: =Opex_Breakdown!B1 -> Operating Expenditure - Breakdown | O13: Apr | P13: 2019 | Q13: - v3.1
B14: e. | C14: =+'Capex_FO input'!B1 -> Capital Expenditure - Forecast Input | G14: BLUE | H14: =+I7&" - DATA INPUT CELL" -> LMW-U - DATA INPUT CELL | O14: May | P14: 2020 | Q14: - v4
B15: f. | C15: =Capex_FO_AC!B1 -> Capital Expenditure - Asset Category Breakdown | O15: Jun | P15: 2021 | Q15: - v4.1
B16: g. | C16: =ExpSummary_FO!B1 -> Expenditure Summary | G16: YELLOW | H16: NOTES / INSTRUCTIONS | O16: Jul | Q16: - v5
B17: h. | C17: =RollForward_FO!B1 -> Rolled forward regulatory asset base (RAB) | O17: Aug | Q17: - v5.1
B18: i. | C18: =PrevPerAdj_FO!B1 -> Previous period adjustments | G18: GREY | H18: MODEL PARAMETERS / ASSUMPTIONS | O18: Sep | Q18: - v6
B19: j. | C19: =RevenuePriceCap_FO!C1 -> Revenue forecast (price caps) | O19: Oct | Q19: - v6.1
B20: k. | C20: Revenue forecast (tariff basket) | G20: WHITE | H20: FORMULA / HARDCODED VALUES | O20: Nov | Q20: - v7
B21: l. | C21: =NotPres_FO!B1 -> Non Prescribed Services | O21: Dec | Q21: - v7.1
B22: m. | C22: ='Finance&Tax_FO'!B1 -> Cash, debt and tax assumptions | G22: ORANGE | H22: FORMULA DIFFERENT TO ADJACENT CELL
B23: n. | C23: ='Rev&RAV_FO'!B1 -> Revenue requirement detail | N23: [Business]
B24: o. | C24: =Indicators_FO!B1 -> Financial indicators | G24: GREEN | H24: DATA FROM 2013 DECISION OR PERFORMANCE REPORT | N24: Lower Murray Water - Urban | O24: =+VLOOKUP(N24,N25:O42,2,FALSE) -> LMW-U
B25: p. | C25: =Outcomes!B1 -> Outcomes | N25: Barwon Water | O25: BW
B26: q. | C26: =GSL!B1 -> Guaranteed Service Levels (GSL) | G26: RED | H26: ERROR CHECK | N26: Central Highlands Water | O26: CHW
N27: City West Water | O27: CWW
N28: Coliban Water | O28: CW
N29: East Gippsland Water | O29: EGW
N30: Gippsland Water | O30: CGW
N31: Goulburn Valley Water | O31: GVW
N32: GWM Water | O32: GWMW | P32: diff model
N33: Lower Murray Water - Urban | O33: LMW-U | P33: diff model
N34: Lower Murray Water - Rural | O34: LMW-R
N35: North East Water | O35: NEW
N36: South East Water | O36: SEW
N37: South Gippsland Water | O37: SGW
N38: Southern Rural Water | O38: SRW | P38: diff model
N39: Wannon Water | O39: WNW
N40: Western Water | O40: WW
N41: Westernport Water | O41: WPW
N42: Yarra Valley Water | O42: YVW

Sheet KeyAssumptionsPriceControl_FO
A1: 80 | B1: Key Assumptions Price Control
B2: =+Contents!H7 -> Lower Murray Water - Urban
B3: Go to Table of Contents
L4: FIRST REG PERIOD | P4: SECOND REG PERIOD | U4: THIRD REG PERIOD | Z4: FOURTH REG PERIOD | AC4: FIFTH REG PERIOD
F6: Straight Line | K6: 2006 | L6: 2007 | M6: 2008 | N6: 2009 | O6: 2010 | P6: 2011 | Q6: 2012 | R6: 2013 | S6: 2014 | T6: 2015 | U6: 2016 | V6: 2017 | W6: 2018 | X6: 2019 | Y6: 2020 | Z6: 2021 | AA6: 2022 | AB6: 2023 | AC6: 2024 | AD6: 2025 | AE6: 2026 | AF6: 2027 | AG6: 2028
F7: Declining Balance | I7: 2003-04 | J7: 2004-05 | K7: =+CONCATENATE(K6-1,"-",RIGHT(K6,2)) -> 2005-06 | L7: =+CONCATENATE(L6-1,"-",RIGHT(L6,2)) -> 2006-07 | M7: 2007-08 | N7: 2008-09 | O7: 2009-10 | P7: 2010-11 | Q7: 2011-12 | R7: 2012-13 | S7: 2013-14 | T7: 2014-15 | U7: 2015-16 | V7: 2016-17 | W7: 2017-18 | X7: 2018-19 | Y7: 2019-20 | Z7: 2020-21 | AA7: 2021-22 | AB7: 2022-23 | AC7: 2023-24 | AD7: 2024-25 | AE7: 2025-26 | AF7: 2026-27 | AG7: 2027-28
E11: Inflation assumptions
W12: Estimate
F13: March quarter annual CPI | I13: 141.3 | J13: 144.1 | K13: 147.5 | L13: 151.9 | M13: 155.6 | N13: 162.2 | O13: 166.2 | P13: 171 | Q13: 176.7 | R13: 99.9 | S13: 102.4 | T13: 105.4 | U13: 106.8 | V13: 108.2 | W13: 110.5
F14: Inflation | J14: =+J13/I13-1 -> 0.01981599434 | K14: 0.02359472588 | L14: 0.02983050847 | M14: 0.02435813035 | N14: 0.04241645244 | O14: 0.02466091245 | P14: 0.02888086643 | Q14: 0.03333333333 | R14: 0.01584606678 | S14: =+IF(S13=0,$X$44,S13/R13-1) -> 0.02502502503 | T14: 0.029296875 | U14: 0.01328273245 | V14: 0.01310861423 | W14: 0.02125693161 | X14: 0.023 | Y14: 0.023 | Z14: 0.023 | AA14: 0.023 | AB14: 0.023 | AC14: 0.023 | AD14: 0.023 | AE14: 0.023 | AF14: 0.023 | AG14: 0.023
F15: Inflation factor | I15: 0.7871866295 | J15: 0.8027855153 | K15: 0.8217270195 | L15: 0.8462395543 | M15: 0.8668523677 | N15: 0.9036211699 | O15: 0.9259052925 | P15: 0.9526462396 | Q15: 0.9844011142 | R15: =+R13/$W$13 -> 0.9040723982 | S15: 0.9266968326 | T15: 0.9538461538 | U15: 0.9665158371 | V15: =+V13/$W$13 -> 0.9791855204 | W15: =+W13/$W$13 -> 1 | X15: =+W15*(1+X14) -> 1.023 | Y15: =+X15*(1+Y14) -> 1.046529 | Z15: 1.070599167 | AA15: 1.095222948 | AB15: 1.120413076 | AC15: 1.146182576 | AD15: 1.172544776 | AE15: 1.199513305 | AF15: 1.227102112 | AG15: 1.25532546
I16: CPI index re-referenced in 2012-13, shaded values have been hardcoded to lock in RAB value.
E21: Cost of debt - 10 year trailing average (Nominal)
V22: Estimate | W22: Estimate
E23: Cost of debt | L23: 0.06981666667 | M23: 0.07414 | N23: 0.0691525788 | O23: 0.07361870984 | P23: 0.07046784142 | Q23: 0.06308887941 | R23: 0.0526945046 | S23: 0.070525 | T23: 0.05360833333 | U23: 0.05270138413 | V23: 0.04908333333 | W23: 0.04908333333
E24: Re-financing weightings - average 10 yrs | L24: =1/10 -> 0.1 | M24: =1/10 -> 0.1 | N24: =1/10 -> 0.1 | O24: =1/10 -> 0.1 | P24: =1/10 -> 0.1 | Q24: 0.1 | R24: 0.1 | S24: 0.1 | T24: 0.1 | U24: 0.1 | V24: 0.1 | W24: 0.1 | X24: 0.1 | Y24: 0.1 | Z24: 0.1 | AA24: 0.1 | AB24: 0.1 | AC24: 0.1 | AD24: 0.1 | AE24: 0.1 | AF24: 0.1 | AG24: 0.1
E26: Cost of debt - 10 year trailing average | V26: =IF(U23<>"",SUMPRODUCT(L23:U23,L24:U24),"") -> 0.06498138982 | W26: =IF(V23<>"",SUMPRODUCT(M23:V23,M24:V24),"") -> 0.06290805649 | X26: =IF(W23<>"",SUMPRODUCT(N23:W23,N24:W24),"") -> 0.06040238982 | Y26: =IF(X23<>"",SUMPRODUCT(O23:X23,O24:X24),"") ->  | Z26: =IF(Y23<>"",SUMPRODUCT(P23:Y23,P24:Y24),"") -> 
E30: WACC assumptions (retained for historical purposes only) | U30: Regulatory Rate of Return (RRR) - Nominal
K32: 1st period | M32: 2nd period | O32: 3rd period | U32: Cost of Debt | X32: =+X26 -> 0.06040238982 | Y32: =+$X$32 -> 0.06040238982 | Z32: 0.06040238982 | AA32: 0.06040238982 | AB32: 0.06040238982 | AC32: 0.06040238982 | AD32: 0.06040238982 | AE32: 0.06040238982 | AF32: 0.06040238982 | AG32: 0.06040238982 | AI32: << Linked to Benchmark tax liability calculation (Rev&RAV_FO)
E33: Parameters
F34: Risk Free Rate (Real) | K34: =+HLOOKUP(Contents!$I$7&1,Determination_Lookup!$C$54:$BD$61,2,FALSE) -> 0.0267 | M34: =+HLOOKUP(Contents!$I$7&2,Determination_Lookup!$C$54:$BD$61,2,FALSE) -> 0.0323 | O34: =+HLOOKUP(Contents!$I$7&3,Determination_Lookup!$C$54:$BD$61,2,FALSE) -> 0.005959
F35: Debt Premium | K35: =+HLOOKUP(Contents!$I$7&1,Determination_Lookup!$C$54:$BD$61,3,FALSE) -> 0.0116 | M35: =+HLOOKUP(Contents!$I$7&2,Determination_Lookup!$C$54:$BD$61,3,FALSE) -> 0.0175 | O35: =+HLOOKUP(Contents!$I$7&3,Determination_Lookup!$C$54:$BD$61,3,FALSE) -> 0.0399
F36: Equity Premium | K36: =+HLOOKUP(Contents!$I$7&1,Determination_Lookup!$C$54:$BD$61,4,FALSE) -> 0.06 | M36: =+HLOOKUP(Contents!$I$7&2,Determination_Lookup!$C$54:$BD$61,4,FALSE) -> 0.06 | O36: =+HLOOKUP(Contents!$I$7&3,Determination_Lookup!$C$54:$BD$61,4,FALSE) -> 0.06 | U36: Regulatory Rate of Return (RRR) - Real
F37: Equity Beta | K37: =+HLOOKUP(Contents!$I$7&1,Determination_Lookup!$C$54:$BD$61,5,FALSE) -> 0.75 | M37: =+HLOOKUP(Contents!$I$7&2,Determination_Lookup!$C$54:$BD$61,5,FALSE) -> 0.65 | O37: =+HLOOKUP(Contents!$I$7&3,Determination_Lookup!$C$54:$BD$61,5,FALSE) -> 0.65
F38: Gearing (Debt/Assets) | K38: =+HLOOKUP(Contents!$I$7&1,Determination_Lookup!$C$54:$BD$61,6,FALSE) -> 0.6 | M38: =+HLOOKUP(Contents!$I$7&2,Determination_Lookup!$C$54:$BD$61,6,FALSE) -> 0.6 | O38: =+HLOOKUP(Contents!$I$7&3,Determination_Lookup!$C$54:$BD$61,6,FALSE) -> 0.6 | U38: Cost of Debt | X38: =(1+X32)/(1+X44)-1 -> 0.03656147587 | Y38: =+$X$38 -> 0.03656147587 | Z38: =+$X$38 -> 0.03656147587 | AA38: 0.03656147587 | AB38: 0.03656147587 | AC38: 0.03656147587 | AD38: 0.03656147587 | AE38: 0.03656147587 | AF38: 0.03656147587 | AG38: 0.03656147587
F39: Forecast Inflation | K39: =+HLOOKUP(Contents!$I$7&1,Determination_Lookup!$C$54:$BD$61,7,FALSE) -> 0.0255 | M39: =+HLOOKUP(Contents!$I$7&2,Determination_Lookup!$C$54:$BD$61,7,FALSE) -> 0.029 | O39: =+HLOOKUP(Contents!$I$7&3,Determination_Lookup!$C$54:$BD$61,7,FALSE) -> 0.0275
F40: Franking credit value | K40: =+HLOOKUP(Contents!$I$7&1,Determination_Lookup!$C$54:$BD$61,8,FALSE) -> 0.5 | M40: =+HLOOKUP(Contents!$I$7&2,Determination_Lookup!$C$54:$BD$61,8,FALSE) -> 0.5 | O40: =+HLOOKUP(Contents!$I$7&3,Determination_Lookup!$C$54:$BD$61,8,FALSE) -> 0.5 | U40: Return on Equity | X40: =IF(AG65<>0,(AG65/100),IF(AG63<>0,(AG63/100),(AG61/100))) -> 0.045 | Y40: =+$X$40 -> 0.045 | Z40: 0.045 | AA40: 0.045 | AB40: 0.045 | AC40: 0.045 | AD40: 0.045 | AE40: 0.045 | AF40: 0.045 | AG40: 0.045 | AI40: << Source: PREMO Assessment Matrix
E42: 'Vanilla' After Tax WACC (Real) | K42: =ROUND(((K34+K36*K37)*(1-K38))+((K34+K35)*K38),3) -> 0.052 | M42: =ROUND(((M34+M36*M37)*(1-M38))+((M34+M35)*M38),3) -> 0.058 | O42: =ROUND(((O34+O36*O37)*(1-O38))+((O34+O35)*O38),3) -> 0.045 | U42: RRR (real) | X42: =ROUND((X40*(1-X43)+X38*X43),3) -> 0.04 | Y42: 0.04 | Z42: 0.04 | AA42: 0.04 | AB42: 0.04 | AC42: 0.04 | AD42: 0.04 | AE42: 0.04 | AF42: 0.04 | AG42: 0.04
U43: Gearing | X43: 0.6 | Y43: =+X43 -> 0.6 | Z43: =+Y43 -> 0.6 | AA43: 0.6 | AB43: 0.6 | AC43: 0.6 | AD43: 0.6 | AE43: 0.6 | AF43: 0.6 | AG43: 0.6
U44: Forecast Inflation | X44: 0.023 | Y44: =+X44 -> 0.023 | Z44: 0.023 | AA44: 0.023 | AB44: 0.023 | AC44: 0.023 | AD44: 0.023 | AE44: 0.023 | AF44: 0.023 | AG44: 0.023
E46: Form of price control selected
E48: Price caps | I48: 1
U49: PREMO Graded Scoring System (for reference only) | AB49: PREMO Assessment Matrix (linked to Regulatory Rate of Return calculation above)
E50: Revenue cap / Hybrid Tariff Basket
V52: Water business | X52: ESC assessment | Z52: Difference | AD52: Water business self-assessment
V53: self-assessment | X53: of submission
AD54: Leading | AE54: Advanced | AF54: Standard | AG54: Basic
U55: Risk | V55: 2.5 | Z55: =IFERROR(IF(X55=0,"",X55-V55),"") ->  | AB55: ESC assessment of submission | AC55: Leading | AD55: 5.3
U56: Engagement | V56: 2.75 | Z56: =IFERROR(IF(X56=0,"",X56-V56),"") ->  | AC56: Advanced | AD56: 4.7 | AE56: 4.9
U57: Management | V57: 2.75 | Z57: =IFERROR(IF(X57=0,"",X57-V57),"") ->  | AC57: Standard | AD57: 4.1 | AE57: 4.3 | AF57: 4.5
U58: Outcomes | V58: 2.75 | Z58: =IFERROR(IF(X58=0,"",X58-V58),"") ->  | AC58: Basic | AF58: 3.9 | AG58: 4.1
U60: Total Score | V60: =SUM(V55:V58) -> 10.75 | X60: =SUM(X55:X58) -> 0 | Z60: =IFERROR(IF(X60=0,"",X60-V60),"") -> 
AB61: Water business self-assessment (Maximum allowable ROE) | AF61: Standard | AG61: =+VLOOKUP(AF61,$AF$72:$AG$76,2,FALSE) -> 4.5
AB63: ROE Override (Must be less than Maximum allowable ROE) | AG63: =+IF(AF63<=AG61,AF63,"CHECK") -> 0
U64: Rating | V64: =IF(V60<4,"",IF(AND(V60>=4,V60<=7.25),"Basic",IF(AND(V60>=7.5,V60<=11.25),"Standard",IF(AND(V60>=11.5,V60<=15.25),"Advanced",IF(AND(V60>=15.5,V60<=16),"Leading"))))) -> Standard | X64: =IF(X60<4,"",IF(AND(X60>=4,X60<=7.25),"Basic",IF(AND(X60>=7.5,X60<=11.25),"Standard",IF(AND(X60>=11.5,X60<=15.25),"Advanced",IF(AND(X60>=15.5,X60<=16),"Leading"))))) -> 
AB65: ESC assessment of submission | AG65: =IFERROR(IF(AF65=AF61,AG61,VLOOKUP(AF61&AF65,AF79:AG83,2,FALSE)),0) -> 0
AF67: Difference | AG67: =IFERROR(IF(AG65=0,"",AG65-AG61),"") -> 
U70: ESC USE ONLY
W71: [Select] | Y71: Rating | Z71: Aggregate score for overall PREMO rating | AF71: Business self assessment
W72: 1 | Y72: Leading | Z72: 15.5 to 16.0 | AF72: [Select]
W73: 1.25 | Y73: Advanced | Z73: 11.5 to 15.25 | AF73: Leading | AG73: =+AD55 -> 5.3
W74: 1.5 | Y74: Standard | Z74: 7.5 to 11.25 | AF74: Advanced | AG74: =+AE56 -> 4.9
W75: 1.75 | Y75: Basic | Z75: 4.0 to 7.25 | AF75: Standard | AG75: =+AF57 -> 4.5
W76: 2 | AF76: Basic | AG76: =+AG58 -> 4.1
W77: 2.25
W78: 2.5 | AF78: downgrading
W79: 2.75 | AF79: =AF54&AC58 -> StandardBasic | AG79: =+AF58 -> 3.9
W80: 3 | AF80: =+AE54&AC57 -> AdvancedStandard | AG80: =+AE57 -> 4.3
W81: 3.25 | AF81: =+AD54&AC56 -> LeadingAdvanced | AG81: =+AD56 -> 4.7
W82: 3.5 | AF82: =+AD54&AC57 -> LeadingStandard | AG82: =+AD57 -> 4.1
W83: 3.75 | AF83: =+AF61&"Basic" -> StandardBasic | AG83: CHECK
W84: 4

Sheet Opex_FO
B1: Operating Expenditure - Forecast
B2: =+Model_Name -> Lower Murray Water - Urban
B3: Go to Table of Contents
L4: FIRST REG PERIOD | P4: SECOND REG PERIOD | S4: THIRD REG PERIOD | X4: FOURTH REG PERIOD | AC4: FIFTH REG PERIOD
K5: 2006 | L5: 2007 | M5: 2008 | N5: 2009 | O5: 2010 | P5: 2011 | Q5: 2012 | R5: 2013 | S5: 2014 | T5: 2015 | U5: 2016 | V5: 2017 | W5: 2018 | X5: 2019 | Y5: 2020 | Z5: 2021 | AA5: 2022 | AB5: 2023 | AC5: 2024 | AD5: 2025 | AE5: 2026 | AF5: 2027 | AG5: 2028
B6: $m, 01/01/18 | K6: =+CONCATENATE(K5-1,"-",RIGHT(K5,2)) -> 2005-06 | L6: =+CONCATENATE(L5-1,"-",RIGHT(L5,2)) -> 2006-07 | M6: 2007-08 | N6: 2008-09 | O6: 2009-10 | P6: 2010-11 | Q6: 2011-12 | R6: 2012-13 | S6: 2013-14 | T6: 2014-15 | U6: 2015-16 | V6: 2016-17 | W6: 2017-18 | X6: 2018-19 | Y6: 2019-20 | Z6: 2020-21 | AA6: 2021-22 | AB6: 2022-23 | AC6: 2023-24 | AD6: 2024-25 | AE6: 2025-26 | AF6: 2026-27 | AG6: 2027-28
C9: Parameters | F9: 3rd period | H9: 4th period
D11: Cost efficiency improvement rate (% per annum) | F11: 0.01 | H11: =+SUM(X11:AB11)/5 -> 0.01 | X11: 0.01 | Y11: 0.01 | Z11: 0.01 | AA11: 0.01 | AB11: 0.01 | AC11: 0.01 | AD11: 0.01 | AE11: 0.01 | AF11: 0.01 | AG11: 0.01
D13: Customer growth forecast (% per annum) | F13: =AVERAGE(T13:W13) -> 0.01357988445 | H13: =+SUM(X13:AB13)/5 -> 0.0106 | T13: =IF(T15="","",T15/S15-1) -> 0.01108007735 | U13: =IF(U15="","",U15/T15-1) -> 0.009167627952 | V13: 0.02307183251 | W13: 0.011 | X13: 0.011 | Y13: 0.011 | Z13: 0.011 | AA13: 0.01 | AB13: 0.01 | AC13: 0.01 | AD13: 0.01 | AE13: 0.01 | AF13: 0.01 | AG13: 0.01
E14: Net baseline opex growth | F14: =IFERROR(F13-F11,"-") -> 0.003579884452 | H14: =IFERROR(H13-H11,"-") -> 0.0006
D15: Water customers (No.) - Residential & Non-Residential - [BED 1] | S15: =+Determination_Lookup!BF3 -> 32581 | T15: =+Determination_Lookup!BG3 -> 32942 | U15: =+Determination_Lookup!BH3 -> 33244 | V15: 34011 | W15: =+V$15*(1+W$13) -> 34385.121 | X15: =+W$15*(1+X$13) -> 34763.35733 | Y15: =+X$15*(1+Y$13) -> 35145.75426 | Z15: 35532.35756 | AA15: 35887.68113 | AB15: 36246.55795 | AC15: 36609.02352 | AD15: 36975.11376 | AE15: 37344.8649 | AF15: 37718.31355 | AG15: 38095.49668 | AI15: << Used as normalising metric for dashboard graphs
D17: Sewer customers (No.) - Residential & Non-Residential - [BED 2] | S17: =+Determination_Lookup!BJ3 -> 28084 | T17: =+Determination_Lookup!BK3 -> 28519 | U17: =+Determination_Lookup!BL3 -> 28691 | V17: 29486 | W17: =+V$17*(1+W$13) -> 29810.346 | X17: =+W$17*(1+X$13) -> 30138.25981 | Y17: =+X$17*(1+Y$13) -> 30469.78066 | Z17: 30804.94825 | AA17: 31112.99773 | AB17: 31424.12771 | AC17: 31738.36899 | AD17: 32055.75268 | AE17: 32376.3102 | AF17: 32700.07331 | AG17: 33027.07404 | AI17: << Used as normalising metric for dashboard graphs
D19: Total metered volume of water delivered to customers (ML) - [BED 10] | S19: =+Determination_Lookup!BB3 -> 16962 | T19: =+Determination_Lookup!BC3 -> 18228 | U19: =+Determination_Lookup!BD3 -> 19397 | V19: 17040.767 | W19: 18802.03482 | X19: 18978.73505 | Y19: 19157.35194 | Z19: 19337.90657 | AA19: 19504.05162 | AB19: 19671.83353 | AC19: 19841.1156 | AD19: 20012.06743 | AE19: 20184.70572 | AF19: 20359.04734 | AG19: 20535.10932 | AI19: << Used as normalising metric for dashboard graphs
D20: Residential, Non-Residential & Recycled (Residential & Non-Residential)
C24: Baseline Forecast
D26: Baseline year - total prescribed operating expenditure in 2016-17: | V26: =+Opex_Breakdown!V37 -> 24.16707841
D28: Less non-controllable expenditure items incurred in 2016-17:
E29: External bulk water charges (excl. temporary purchases) | V29: =+Opex_Breakdown!V29 -> 0.7277084323
E30: External temporary water purchases | V30: =+Opex_Breakdown!V30 -> 0 | X30: Comparison with approved 2016-17 total controllable opex
E31: Licence fees | V31: =+Opex_Breakdown!V31 -> 0.07966263632 | X31: per 2013 determination model
E32: Environment Contribution | V32: =+Opex_Breakdown!V32 -> 1.234698609
E33: Other non-controllable | V33: =+Opex_Breakdown!V33 -> 0
V34: =SUM(V29:V33) -> 2.042069678 | Y34: 2016-17 | Z34: Difference | AA34: %
D36: Baseline year - total controllable operating expenditure in 2016-17: | V36: =+V26-V34 -> 22.12500873 | Y36: =+Determination_Lookup!AX3 -> 19.17192099 | Z36: =+V52-Y36 -> 1.417196744 | AA36: =+Z36/Y36 -> 0.07392043522
D38: Adjustments for non-recurring expenditure items incurred in 2016-17 and any efficiency savings to be realised from 2016-17: | X38: ($, 2017-18)
D40: 1 | E40: BGA & Black Water event 2016-17 | V40: 1.12
D41: 2 | E41: Contractor/Consultant - Pricing Submission | V41: 0.135297
D42: 3 | E42: Contractor/Consultant - Master Plans Water & Sewer | V42: 0.280594
D43: 4 | E43: 0 | V43: 0
D44: 5 | E44: 0 | V44: 0
D45: 6 | E45: 0 | V45: 0
D46: 7 | E46: 0 | V46: 0
D47: 8 | E47: 0 | V47: 0
D48: 9 | E48: 0 | V48: 0
D49: 10 | E49: 0 | V49: 0
V50: =SUM(V40:V49) -> 1.535891
D52: Baseline controllable operating expenditure (2016-17) | V52: =+V36-V50 -> 20.58911773
D54: Adjusted Baseline controllable operating expenditure (Forecast) | W54: =+V52*(1+$W$13-$F$11) -> 20.60970685 | X54: =+$W$54*(1+X$13-X$11) -> 20.63031656 | Y54: =+X$54*(1+Y$13-Y$11) -> 20.65094687 | Z54: 20.67159782 | AA54: 20.67159782 | AB54: 20.67159782 | AC54: 20.67159782 | AD54: 20.67159782 | AE54: 20.67159782 | AF54: 20.67159782 | AG54: 20.67159782
C58: Operating expenditure - reconciliation
D61: Adjusted Baseline controllable operating expenditure (Forecast) | X61: =+X54 -> 20.63031656 | Y61: 20.65094687 | Z61: 20.67159782 | AA61: 20.67159782 | AB61: 20.67159782 | AC61: 20.67159782 | AD61: 20.67159782 | AE61: 20.67159782 | AF61: 20.67159782 | AG61: 20.67159782
H62: Controllable
D63: Forecast variations to baseline operating expenditure (above or below baseline) | H63: only
D65: 1 | E65: Admin - Labour & Oncost | H65: Urban Water & Sewer | X65: -0.01223840343 | Y65: 0.02521328337 | Z65: -0.04938215415 | AA65: -0.0833227191 | AB65: -0.07141266462 | AC65: -0.07141266462 | AD65: -0.07141266462 | AE65: -0.07141266462 | AF65: -0.07141266462 | AG65: -0.07141266462
D66: 2 | E66: Admin - Contractor/Consultant (After baseline adjustment) | H66: Urban Water & Sewer | X66: -0.07902419741 | Y66: -0.07928681411 | Z66: -0.09004969342 | AA66: 0.1328121644 | AB66: -0.06695124095 | AC66: -0.06695124095 | AD66: -0.06695124095 | AE66: -0.06695124095 | AF66: -0.06695124095 | AG66: -0.06695124095
D67: 3 | E67: Admin Other | H67: Urban Water & Sewer | X67: -0.3240194155 | Y67: -0.3558118605 | Z67: -0.3742187604 | AA67: -0.3873776173 | AB67: -0.3979134329 | AC67: -0.3979134329 | AD67: -0.3979134329 | AE67: -0.3979134329 | AF67: -0.3979134329 | AG67: -0.3979134329
D68: 4 | E68: Tech Services - Labour & Oncost | H68: Urban Water & Sewer | X68: -0.1711786189 | Y68: -0.1339290698 | Z68: -0.2195191617 | AA68: -0.2020711977 | AB68: -0.1603335711 | AC68: -0.1603335711 | AD68: -0.1603335711 | AE68: -0.1603335711 | AF68: -0.1603335711 | AG68: -0.1603335711
D69: 5 | E69: Tech Services - Contractor/Consultant (After baseline adjustment) | H69: Urban Water & Sewer | X69: -0.01473919765 | Y69: -0.01517768685 | Z69: -0.1171166145 | AA69: -0.06355598115 | AB69: -0.1749957871 | AC69: -0.1749957871 | AD69: -0.1749957871 | AE69: -0.1749957871 | AF69: -0.1749957871 | AG69: -0.1749957871
D70: 6 | E70: Tech Services - Other | H70: Urban Water & Sewer | X70: 0.01206774215 | Y70: 0.0114420099 | Z70: 0.01081565191 | AA70: 0.01018866756 | AB70: 0.009561056225 | AC70: 0.009561056225 | AD70: 0.009561056225 | AE70: 0.009561056225 | AF70: 0.009561056225 | AG70: 0.009561056225
D71: 7 | E71: IT - Labour & Oncosts | H71: Urban Water & Sewer | X71: 0.2427051351 | Y71: 0.2486036092 | Z71: 0.1045517338 | AA71: 0.1080505085 | AB71: 0.117523933 | AC71: 0.117523933 | AD71: 0.117523933 | AE71: 0.117523933 | AF71: 0.117523933 | AG71: 0.117523933
D72: 8 | E72: IT - Contractor/Consultant | H72: Urban Water & Sewer | X72: 0.3911500582 | Y72: 0.3908209383 | Z72: 0.3904914892 | AA72: 0.3901617107 | AB72: 0.3898316024 | AC72: 0.3898316024 | AD72: 0.3898316024 | AE72: 0.3898316024 | AF72: 0.3898316024 | AG72: 0.3898316024
D73: 9 | E73: IT - Software Licences | H73: Urban Water & Sewer | X73: -0.07704476179 | Y73: -0.07972498005 | Z73: -0.08240607853 | AA73: -0.08688805811 | AB73: -0.08777091967 | AC73: -0.08777091967 | AD73: -0.08777091967 | AE73: -0.08777091967 | AF73: -0.08777091967 | AG73: -0.08777091967
D74: 10 | E74: Infra - O&M Labour & Oncosts | H74: Urban Water & Sewer | X74: 0.1084704582 | Y74: -0.04833967018 | Z74: -0.0177072672 | AA74: -0.09517026087 | AB74: -0.0610470542 | AC74: -0.0610470542 | AD74: -0.0610470542 | AE74: -0.0610470542 | AF74: -0.0610470542 | AG74: -0.0610470542
D75: 11 | E75: Infra - O&M Contractor | H75: Urban Water & Sewer | X75: 0.2831990106 | Y75: -0.6404407904 | Z75: -0.6410812312 | AA75: -0.6417223125 | AB75: -0.6423640348 | AC75: -0.6423640348 | AD75: -0.6423640348 | AE75: -0.6423640348 | AF75: -0.6423640348 | AG75: -0.6423640348
D76: 12 | E76: Infra - O&M Electricity | H76: Urban Water & Sewer | X76: 0.399743215 | Y76: 0.2510900647 | Z76: 0.2878674798 | AA76: 0.3026521686 | AB76: 0.3702951216 | AC76: 0.3702951216 | AD76: 0.3702951216 | AE76: 0.3702951216 | AF76: 0.3702951216 | AG76: 0.3702951216
D77: 13 | E77: Infra - Other | H77: Urban Water & Sewer | X77: -0.04076327616 | Y77: 0.001373741572 | Z77: -0.2137090099 | AA77: -0.1682572292 | AB77: -0.04055203004 | AC77: -0.04055203004 | AD77: -0.04055203004 | AE77: -0.04055203004 | AF77: -0.04055203004 | AG77: -0.04055203004
D78: 14 | E78: Other | H78: Urban Water & Sewer | X78: 0.430776717 | Y78: 0.4303840027 | Z78: 0.4299908958 | AA78: 0.4502689935 | AB78: 0.4705673793 | AC78: 0.4721923793 | AD78: 0.4721923793 | AE78: 0.4721923793 | AF78: 0.4721923793 | AG78: 0.4721923793
D79: 15 | E79: 0 | H79: 0 | X79: 0 | Y79: 0 | Z79: 0 | AA79: 0 | AB79: 0 | AC79: 3.552713679e-15 | AD79: 3.552713679e-15 | AE79: 3.552713679e-15 | AF79: 3.552713679e-15 | AG79: 0
D81: Total changes required to baseline operating expenditure | X81: =SUM(X65:X80) -> 1.149104465 | Y81: 0.006216777826 | Z81: -0.5814727205 | AA81: -0.3342311625 | AB81: -0.3455616428 | AC81: -0.3439366428 | AD81: -0.3439366428 | AE81: -0.3439366428 | AF81: -0.3439366428 | AG81: -0.3439366428
W82: % Change in baseline opex per annum | X82: =IFERROR(X81/X61,"-") -> 0.05569979802 | Y82: =IFERROR(Y81/Y61,"-") -> 0.0003010408125 | Z82: -0.02812906509 | AA82: -0.01616861771 | AB82: -0.01671673597 | AC82: -0.01663812569 | AD82: -0.01663812569 | AE82: -0.01663812569 | AF82: -0.01663812569 | AG82: -0.01663812569
W83: % Change in baseline opex per reg period | AB83: =IFERROR(AVERAGE(X82:AB82),"-") -> -0.001002715985 | AG83: =IFERROR(AVERAGE(AC82:AG82),"-") -> -0.01663812569
D84: Total controllable operating expenditure | X84: =+X81+X61 -> 21.77942102 | Y84: 20.65716365 | Z84: 20.0901251 | AA84: 20.33736666 | AB84: 20.32603618 | AC84: 20.32766118 | AD84: 20.32766118 | AE84: 20.32766118 | AF84: 20.32766118 | AG84: 20.32766118
W85: Controllable Opex growth from baseline to 5th year | AB85: =IFERROR(AB84-V52,"-") -> -0.2630815548 | AC85: =IFERROR(AB84/V52-1,"-") -> -0.01277769928
D86: Non-controllable operating expenditure
D87: External bulk water charges (excl. temporary purchases) | X87: =+Opex_Breakdown!X29 -> 0.68 | Y87: =+Opex_Breakdown!Y29 -> 0.687 | Z87: =+Opex_Breakdown!Z29 -> 0.694 | AA87: =+Opex_Breakdown!AA29 -> 0.701 | AB87: =+Opex_Breakdown!AB29 -> 0.707 | AC87: =+Opex_Breakdown!AC29 -> 0.714 | AD87: =+Opex_Breakdown!AD29 -> 0.721 | AE87: =+Opex_Breakdown!AE29 -> 0.728 | AF87: =+Opex_Breakdown!AF29 -> 0.735 | AG87: =+Opex_Breakdown!AG29 -> 0.742
D88: External temporary water purchases | X88: =+Opex_Breakdown!X30 -> 0 | Y88: =+Opex_Breakdown!Y30 -> 0 | Z88: =+Opex_Breakdown!Z30 -> 0 | AA88: =+Opex_Breakdown!AA30 -> 0 | AB88: =+Opex_Breakdown!AB30 -> 0 | AC88: =+Opex_Breakdown!AC30 -> 0 | AD88: =+Opex_Breakdown!AD30 -> 0 | AE88: =+Opex_Breakdown!AE30 -> 0 | AF88: =+Opex_Breakdown!AF30 -> 0 | AG88: =+Opex_Breakdown!AG30 -> 0
D89: Licence fees | X89: =+Opex_Breakdown!X31 -> 0.076875 | Y89: =+Opex_Breakdown!Y31 -> 0.076875 | Z89: =+Opex_Breakdown!Z31 -> 0.076875 | AA89: =+Opex_Breakdown!AA31 -> 0.076875 | AB89: =+Opex_Breakdown!AB31 -> 0.076875 | AC89: =+Opex_Breakdown!AC31 -> 0.076875 | AD89: =+Opex_Breakdown!AD31 -> 0.076875 | AE89: =+Opex_Breakdown!AE31 -> 0.076875 | AF89: =+Opex_Breakdown!AF31 -> 0.076875 | AG89: =+Opex_Breakdown!AG31 -> 0.076875
D90: Environment Contribution | X90: =+Opex_Breakdown!X32 -> 1.765 | Y90: =+Opex_Breakdown!Y32 -> 1.765 | Z90: =+Opex_Breakdown!Z32 -> 1.765 | AA90: =+Opex_Breakdown!AA32 -> 1.765 | AB90: =+Opex_Breakdown!AB32 -> 1.765 | AC90: =+Opex_Breakdown!AC32 -> 1.765 | AD90: =+Opex_Breakdown!AD32 -> 1.765 | AE90: =+Opex_Breakdown!AE32 -> 1.765 | AF90: =+Opex_Breakdown!AF32 -> 1.765 | AG90: =+Opex_Breakdown!AG32 -> 1.765
D91: Other non-controllable | X91: =+Opex_Breakdown!X33 -> 0 | Y91: =+Opex_Breakdown!Y33 -> 0 | Z91: =+Opex_Breakdown!Z33 -> 0 | AA91: =+Opex_Breakdown!AA33 -> 0 | AB91: =+Opex_Breakdown!AB33 -> 0 | AC91: =+Opex_Breakdown!AC33 -> 0 | AD91: =+Opex_Breakdown!AD33 -> 0 | AE91: =+Opex_Breakdown!AE33 -> 0 | AF91: =+Opex_Breakdown!AF33 -> 0 | AG91: =+Opex_Breakdown!AG33 -> 0
D92: Total non-controllable operating expenditure | X92: =SUM(X87:X91) -> 2.521875 | Y92: 2.528875 | Z92: 2.535875 | AA92: 2.542875 | AB92: 2.548875 | AC92: 2.555875 | AD92: 2.562875 | AE92: 2.569875 | AF92: 2.576875 | AG92: 2.583875
W93: Non-controllable Opex growth from baseline to 5th year | AB93: =IFERROR(AB92-V34,"-") -> 0.5068053223 | AC93: =IFERROR(AB92/V34-1,"-") -> 0.2481821888
D95: Total prescribed operating expenditure | X95: =+X92+X84 -> 24.30129602 | Y95: 23.18603865 | Z95: 22.6260001 | AA95: 22.88024166 | AB95: 22.87491118 | AC95: 22.88353618 | AD95: 22.89053618 | AE95: 22.89753618 | AF95: 22.90453618 | AG95: =+AG92+AG84 -> 22.91153618
W96: Prescribed Opex growth from baseline to 5th year | AB96: =IFERROR(AB95-(V52+V34),"-") -> 0.2437237675 | AC96: =IFERROR((AB95/(V52+V34))-1,"-") -> 0.01076937604
W98: To reconcile to 'Opex_Breakdown' tab row 37 >> | X98: =+Opex_Breakdown!X37 -> 24.30129602 | Y98: =+Opex_Breakdown!Y37 -> 23.18603865 | Z98: =+Opex_Breakdown!Z37 -> 22.6260001 | AA98: =+Opex_Breakdown!AA37 -> 22.88024166 | AB98: =+Opex_Breakdown!AB37 -> 22.87491118 | AC98: =+Opex_Breakdown!AC37 -> 22.88353618 | AD98: =+Opex_Breakdown!AD37 -> 22.89053618 | AE98: =+Opex_Breakdown!AE37 -> 22.89753618 | AF98: =+Opex_Breakdown!AF37 -> 22.90453618 | AG98: =+Opex_Breakdown!AG37 -> 22.91153618
W99: Difference | X99: =+X98-X95 -> 0 | Y99: 0 | Z99: 0 | AA99: 0 | AB99: 0 | AC99: 0 | AD99: 0 | AE99: 0 | AF99: 0 | AG99: 0
W100: Test | X100: =+X98=X95 -> TRUE | Y100: TRUE | Z100: TRUE | AA100: TRUE | AB100: TRUE | AC100: TRUE | AD100: TRUE | AE100: TRUE | AF100: TRUE | AG100: TRUE
X139: =+X$160 -> 2018-19 | Y139: 2019-20 | Z139: 2020-21 | AA139: 2021-22 | AB139: 2022-23 | AC139: 2023-24 | AD139: 2024-25 | AE139: 2025-26 | AF139: 2026-27 | AG139: 2027-28
W140: Total controllable opex | X140: =+X84 -> 21.77942102 | Y140: 20.65716365 | Z140: 20.0901251 | AA140: 20.33736666 | AB140: 20.32603618 | AC140: 20.32766118 | AD140: 20.32766118 | AE140: 20.32766118 | AF140: 20.32766118 | AG140: 20.32766118
W141: Change - $ | Y141: =+Y140-X140 -> -1.122257371 | Z141: -0.5670385515 | AA141: 0.247241558 | AB141: -0.01133048025 | AC141: 0.001625 | AD141: 0 | AE141: 0 | AF141: 0 | AG141: 0
W142: Change - % | Y142: =IFERROR(Y141/X140,"") -> -0.05152833814 | Z142: -0.0274499714 | AA142: 0.01230662113 | AB142: -0.0005571262219 | AC142: 7.994672378e-05 | AD142: 0 | AE142: 0 | AF142: 0 | AG142: 0
X144: =+X$160 -> 2018-19 | Y144: 2019-20 | Z144: 2020-21 | AA144: 2021-22 | AB144: 2022-23 | AC144: 2023-24 | AD144: 2024-25 | AE144: 2025-26 | AF144: 2026-27 | AG144: 2027-28
W145: Total non-controllable opex | X145: =+X92 -> 2.521875 | Y145: 2.528875 | Z145: 2.535875 | AA145: 2.542875 | AB145: 2.548875 | AC145: 2.555875 | AD145: 2.562875 | AE145: 2.569875 | AF145: 2.576875 | AG145: 2.583875
W146: Change - $ | Y146: =+Y145-X145 -> 0.007 | Z146: 0.007 | AA146: 0.007 | AB146: 0.006 | AC146: 0.007 | AD146: 0.007 | AE146: 0.007 | AF146: 0.007 | AG146: 0.007
W147: Change - % | Y147: =IFERROR(Y146/X145,"") -> 0.002775712515 | Z147: 0.002768029262 | AA147: 0.002760388426 | AB147: 0.002359533992 | AC147: 0.002746309646 | AD147: 0.002738788086 | AE147: 0.002731307614 | AF147: 0.002723867892 | AG147: 0.002716468591
X149: =+X$160 -> 2018-19 | Y149: 2019-20 | Z149: 2020-21 | AA149: 2021-22 | AB149: 2022-23 | AC149: 2023-24 | AD149: 2024-25 | AE149: 2025-26 | AF149: 2026-27 | AG149: 2027-28
W150: Total prescribed opex | X150: =+X140+X145 -> 24.30129602 | Y150: 23.18603865 | Z150: 22.6260001 | AA150: 22.88024166 | AB150: 22.87491118 | AC150: 22.88353618 | AD150: 22.89053618 | AE150: 22.89753618 | AF150: 22.90453618 | AG150: 22.91153618
W151: Change - $ | Y151: =+Y150-X150 -> -1.115257371 | Z151: -0.5600385515 | AA151: 0.254241558 | AB151: -0.00533048025 | AC151: 0.008625 | AD151: 0.007 | AE151: 0.007 | AF151: 0.007 | AG151: 0.007
W152: Change - % | Y152: =IFERROR(Y151/X150,"") -> -0.04589291739 | Z152: -0.02415412826 | AA152: 0.01123669923 | AB152: -0.0002329730747 | AC152: 0.0003770506444 | AD152: 0.0003058967786 | AE152: 0.0003058032344 | AF152: 0.0003057097473 | AG152: 0.0003056163175
W155: Controllable vs. Non-controllable opex - % | X155: =+X$160 -> 2018-19 | Y155: 2019-20 | Z155: 2020-21 | AA155: 2021-22 | AB155: 2022-23 | AC155: 2023-24 | AD155: 2024-25 | AE155: 2025-26 | AF155: 2026-27 | AG155: 2027-28
W156: Controllable opex - % | X156: =+X84/X95 -> 0.8962246706 | Y156: 0.8909311315 | Z156: 0.8879220813 | AA156: 0.8888615322 | AB156: 0.8885733378 | AC156: 0.8883094387 | AD156: 0.8880377908 | AE156: 0.887766309 | AF156: 0.8874949931 | AG156: 0.8872238431
W157: Non-controllable opex - % | X157: =+X92/X95 -> 0.1037753294 | Y157: 0.1090688685 | Z157: 0.1120779187 | AA157: 0.1111384678 | AB157: 0.1114266622 | AC157: 0.1116905613 | AD157: 0.1119622092 | AE157: 0.112233691 | AF157: 0.1125050069 | AG157: 0.1127761569
X158: =SUM(X156:X157) -> 1 | Y158: 1 | Z158: 1 | AA158: 1 | AB158: 1 | AC158: 1 | AD158: 1 | AE158: 1 | AF158: 1 | AG158: 1
V160: =+V6 -> 2016-17 | W160: 2017-18 | X160: 2018-19 | Y160: 2019-20 | Z160: 2020-21 | AA160: 2021-22 | AB160: 2022-23 | AC160: 2023-24 | AD160: 2024-25 | AE160: 2025-26 | AF160: 2026-27 | AG160: 2027-28
U161: Third Reg period Opex | V161: =+V169-SUM(V162:V168) -> 22.12500873 | W161: =+W169-SUM(W162:W168) -> 20.42741384
U162: Adjusted baseline opex | X162: =+X61 -> 20.63031656 | Y162: 20.65094687 | Z162: 20.67159782 | AA162: 20.67159782 | AB162: 20.67159782 | AC162: 20.67159782 | AD162: 20.67159782 | AE162: 20.67159782 | AF162: 20.67159782 | AG162: 20.67159782
U163: Forecast variations to baseline operating expenditure | X163: =+X81 -> 1.149104465 | Y163: 0.006216777826 | Z163: -0.5814727205 | AA163: -0.3342311625 | AB163: -0.3455616428 | AC163: -0.3439366428 | AD163: -0.3439366428 | AE163: -0.3439366428 | AF163: -0.3439366428 | AG163: -0.3439366428
U164: Licence fees | V164: =+V193 -> 0.07966263632 | W164: =+W193 -> 0.076875 | X164: =+X89 -> 0.076875 | Y164: 0.076875 | Z164: 0.076875 | AA164: 0.076875 | AB164: 0.076875 | AC164: 0.076875 | AD164: 0.076875 | AE164: 0.076875 | AF164: 0.076875 | AG164: 0.076875
U165: Environment Contribution | V165: =+V194 -> 1.234698609 | W165: =+W194 -> 1.209 | X165: =+X90 -> 1.765 | Y165: 1.765 | Z165: 1.765 | AA165: 1.765 | AB165: 1.765 | AC165: 1.765 | AD165: 1.765 | AE165: 1.765 | AF165: 1.765 | AG165: 1.765
U166: External bulk water charges | V166: =+V191 -> 0.7277084323 | W166: =+W191 -> 0.72 | X166: =+X87 -> 0.68 | Y166: 0.687 | Z166: 0.694 | AA166: 0.701 | AB166: 0.707 | AC166: 0.714 | AD166: 0.721 | AE166: 0.728 | AF166: 0.735 | AG166: 0.742
U167: External temporary water purchases | V167: =+V192 -> 0 | W167: =+W192 -> 0 | X167: =+X88 -> 0 | Y167: 0 | Z167: 0 | AA167: 0 | AB167: 0 | AC167: 0 | AD167: 0 | AE167: 0 | AF167: 0 | AG167: 0
U168: Other non-controllable | V168: =+V195 -> 0 | W168: =+W195 -> 0 | X168: =+X91 -> 0 | Y168: 0 | Z168: 0 | AA168: 0 | AB168: 0 | AC168: 0 | AD168: 0 | AE168: 0 | AF168: 0 | AG168: 0
U169: Total prescribed opex | V169: =+Opex_Breakdown!V37 -> 24.16707841 | W169: =+Opex_Breakdown!W37 -> 22.43328884 | X169: =SUM(X162:X168) -> 24.30129602 | Y169: 23.18603865 | Z169: 22.6260001 | AA169: 22.88024166 | AB169: 22.87491118 | AC169: 22.88353618 | AD169: 22.89053618 | AE169: 22.89753618 | AF169: 22.90453618 | AG169: 22.91153618
X171: =+X$160 -> 2018-19 | Y171: 2019-20 | Z171: 2020-21 | AA171: 2021-22 | AB171: 2022-23 | AC171: 2023-24 | AD171: 2024-25 | AE171: 2025-26 | AF171: 2026-27 | AG171: 2027-28
W172: Adjusted baseline opex | X172: =+X162/X$169 -> 0.8489389429 | Y172: 0.8906630056 | Z172: 0.913621397 | AA172: 0.9034693833 | AB172: 0.9036799164 | AC172: 0.9033393117 | AD172: 0.9030630676 | AE172: 0.9027869925 | AF172: 0.902511086 | AG172: 0.9022353482
W173: Forecast variations to baseline operating expenditure | X173: =+X163/X$169 -> 0.04728572765 | Y173: 0.0002681259149 | Z173: -0.02569931574 | AA173: -0.01460785107 | AB173: -0.01510657856 | AC173: -0.01502987301 | AD173: -0.01502527683 | AE173: -0.01502068345 | AF173: -0.01501609289 | AG173: -0.01501150513
W174: Licence fees | X174: =+X164/X$169 -> 0.003163411529 | Y174: 0.003315572839 | Z174: 0.003397639868 | AA174: 0.003359885841 | AB174: 0.003360668787 | AC174: 0.003359402122 | AD174: 0.003358374806 | AE174: 0.003357348118 | AF174: 0.003356322058 | AG174: 0.003355296624
W175: Environment Contribution | X175: =+X165/X$169 -> 0.07262987119 | Y175: 0.07612339591 | Z175: 0.07800760152 | AA175: 0.07714079363 | AB175: 0.07715876954 | AC175: 0.07712968775 | AD175: 0.07710610124 | AE175: 0.07708252915 | AF175: 0.07705897147 | AG175: 0.07703542819
W176: External bulk water charges (excl. temporary purchases) | X176: =+X166/X$169 -> 0.02798204669 | Y176: 0.02962989971 | Z176: 0.03067267731 | AA176: 0.03063778829 | AB176: 0.03090722383 | AC176: 0.03120147142 | AD176: 0.03149773314 | AE176: 0.03179381372 | AF176: 0.03208971333 | AG176: 0.03238543213
W177: External temporary water purchases | X177: =+X167/X$169 -> 0 | Y177: 0 | Z177: 0 | AA177: 0 | AB177: 0 | AC177: 0 | AD177: 0 | AE177: 0 | AF177: 0 | AG177: 0
W178: Other non-controllable | X178: =+X168/X$169 -> 0 | Y178: 0 | Z178: 0 | AA178: 0 | AB178: 0 | AC178: 0 | AD178: 0 | AE178: 0 | AF178: 0 | AG178: 0
W179: Total prescribed opex | X179: =+X169/X$169 -> 1 | Y179: 1 | Z179: 1 | AA179: 1 | AB179: 1 | AC179: 1 | AD179: 1 | AE179: 1 | AF179: 1 | AG179: 1
X181: =+X$160 -> 2018-19 | Y181: 2019-20 | Z181: 2020-21 | AA181: 2021-22 | AB181: 2022-23 | AC181: 2023-24 | AD181: 2024-25 | AE181: 2025-26 | AF181: 2026-27 | AG181: 2027-28
W182: Water | X182: =+SUMIF($H$65:$H$80,$W182,X$65:X$80) -> 0 | Y182: 0 | Z182: 0 | AA182: 0 | AB182: 0 | AC182: 0 | AD182: 0 | AE182: 0 | AF182: 0 | AG182: 0
W183: Sewerage | X183: 0 | Y183: 0 | Z183: 0 | AA183: 0 | AB183: 0 | AC183: 0 | AD183: 0 | AE183: 0 | AF183: 0 | AG183: 0
W184: Recycled Water | X184: 0 | Y184: 0 | Z184: 0 | AA184: 0 | AB184: 0 | AC184: 0 | AD184: 0 | AE184: 0 | AF184: 0 | AG184: 0
W185: Rural water | X185: 0 | Y185: 0 | Z185: 0 | AA185: 0 | AB185: 0 | AC185: 0 | AD185: 0 | AE185: 0 | AF185: 0 | AG185: 0
W186: Bulk Water | X186: 0 | Y186: 0 | Z186: 0 | AA186: 0 | AB186: 0 | AC186: 0 | AD186: 0 | AE186: 0 | AF186: 0 | AG186: 0
W187: Forecast variations to baseline operating expenditure | X187: =SUM(X182:X186) -> 0 | Y187: 0 | Z187: 0 | AA187: 0 | AB187: 0 | AC187: 0 | AD187: 0 | AE187: 0 | AF187: 0 | AG187: 0
V190: =+V6 -> 2016-17 | W190: 2017-18 | X190: 2018-19 | Y190: 2019-20 | Z190: 2020-21 | AA190: 2021-22 | AB190: 2022-23 | AC190: 2023-24 | AD190: 2024-25 | AE190: 2025-26 | AF190: 2026-27 | AG190: 2027-28
U191: External bulk water charges (excl. temporary purchases) | V191: =+Opex_Breakdown!V29 -> 0.7277084323 | W191: =+Opex_Breakdown!W29 -> 0.72 | X191: =+X87 -> 0.68 | Y191: 0.687 | Z191: 0.694 | AA191: 0.701 | AB191: 0.707 | AC191: 0.714 | AD191: 0.721 | AE191: 0.728 | AF191: 0.735 | AG191: 0.742
U192: External temporary water purchases | V192: =+Opex_Breakdown!V30 -> 0 | W192: =+Opex_Breakdown!W30 -> 0 | X192: =+X88 -> 0 | Y192: 0 | Z192: 0 | AA192: 0 | AB192: 0 | AC192: 0 | AD192: 0 | AE192: 0 | AF192: 0 | AG192: 0
U193: Licence fees | V193: =+Opex_Breakdown!V31 -> 0.07966263632 | W193: =+Opex_Breakdown!W31 -> 0.076875 | X193: =+X89 -> 0.076875 | Y193: 0.076875 | Z193: 0.076875 | AA193: 0.076875 | AB193: 0.076875 | AC193: 0.076875 | AD193: 0.076875 | AE193: 0.076875 | AF193: 0.076875 | AG193: 0.076875
U194: Environment Contribution | V194: =+Opex_Breakdown!V32 -> 1.234698609 | W194: =+Opex_Breakdown!W32 -> 1.209 | X194: =+X90 -> 1.765 | Y194: 1.765 | Z194: 1.765 | AA194: 1.765 | AB194: 1.765 | AC194: 1.765 | AD194: 1.765 | AE194: 1.765 | AF194: 1.765 | AG194: 1.765
U195: Other non-controllable | V195: =+Opex_Breakdown!V33 -> 0 | W195: =+Opex_Breakdown!W33 -> 0 | X195: =+X91 -> 0 | Y195: 0 | Z195: 0 | AA195: 0 | AB195: 0 | AC195: 0 | AD195: 0 | AE195: 0 | AF195: 0 | AG195: 0
U196: Total Non-controllable operating expenditure | V196: =+Opex_Breakdown!V34 -> 2.042069678 | W196: =+Opex_Breakdown!W34 -> 2.005875 | X196: =SUM(X191:X195) -> 2.521875 | Y196: 2.528875 | Z196: 2.535875 | AA196: 2.542875 | AB196: 2.548875 | AC196: 2.555875 | AD196: 2.562875 | AE196: 2.569875 | AF196: 2.576875 | AG196: 2.583875
V198: ERROR CHECK | X198: =+X169=X95 -> TRUE | Y198: TRUE | Z198: TRUE | AA198: TRUE | AB198: TRUE | AC198: TRUE | AD198: TRUE | AE198: TRUE | AF198: TRUE | AG198: TRUE
X199: =+X187=X163 -> FALSE | Y199: FALSE | Z199: FALSE | AA199: FALSE | AB199: FALSE | AC199: FALSE | AD199: FALSE | AE199: FALSE | AF199: FALSE | AG199: FALSE
X200: =+X150=X169 -> TRUE | Y200: TRUE | Z200: TRUE | AA200: TRUE | AB200: TRUE | AC200: TRUE | AD200: TRUE | AE200: TRUE | AF200: TRUE | AG200: TRUE
X201: =+X196=X145 -> TRUE | Y201: TRUE | Z201: TRUE | AA201: TRUE | AB201: TRUE | AC201: TRUE | AD201: TRUE | AE201: TRUE | AF201: TRUE | AG201: TRUE

Sheet Opex_Breakdown
A1: 80 | B1: Operating Expenditure - Breakdown
B2: =+Contents!H7 -> Lower Murray Water - Urban
B3: Go to Table of Contents
L4: FIRST REG PERIOD | P4: SECOND REG PERIOD | U4: THIRD REG PERIOD | Z4: FOURTH REG PERIOD | AC4: FIFTH REG PERIOD
K6: 2006 | L6: 2007 | M6: 2008 | N6: 2009 | O6: 2010 | P6: 2011 | Q6: 2012 | R6: 2013 | S6: 2014 | T6: 2015 | U6: 2016 | V6: 2017 | W6: 2018 | X6: 2019 | Y6: 2020 | Z6: 2021 | AA6: 2022 | AB6: 2023 | AC6: 2024 | AD6: 2025 | AE6: 2026 | AF6: 2027 | AG6: 2028
B7: $m, 01/01/18 | K7: =+CONCATENATE(K6-1,"-",RIGHT(K6,2)) -> 2005-06 | L7: =+CONCATENATE(L6-1,"-",RIGHT(L6,2)) -> 2006-07 | M7: 2007-08 | N7: 2008-09 | O7: 2009-10 | P7: 2010-11 | Q7: 2011-12 | R7: 2012-13 | S7: 2013-14 | T7: 2014-15 | U7: 2015-16 | V7: 2016-17 | W7: 2017-18 | X7: =+CONCATENATE(X6-1,"-",RIGHT(X6,2)) -> 2018-19 | Y7: =+CONCATENATE(Y6-1,"-",RIGHT(Y6,2)) -> 2019-20 | Z7: =+CONCATENATE(Z6-1,"-",RIGHT(Z6,2)) -> 2020-21 | AA7: =+CONCATENATE(AA6-1,"-",RIGHT(AA6,2)) -> 2021-22 | AB7: =+CONCATENATE(AB6-1,"-",RIGHT(AB6,2)) -> 2022-23 | AC7: =+CONCATENATE(AC6-1,"-",RIGHT(AC6,2)) -> 2023-24 | AD7: 2024-25 | AE7: 2025-26 | AF7: 2026-27 | AG7: 2027-28
D10: Operating Expenditure Summary
E12: =C48 -> Water | K12: =+K57-K50-K54 -> 0 | L12: =+L57-L50-L54 -> 0 | M12: 0 | N12: 0 | O12: 0 | P12: 0 | Q12: =+Q57-Q50-Q54 -> 0 | R12: 11.49627685 | S12: 11.27837104 | T12: 11.73038967 | U12: 12.56789639 | V12: 13.81902974 | W12: 12.22227917 | X12: 13.43426338 | Y12: 12.44143457 | Z12: 12.2269905 | AA12: 12.36175611 | AB12: 12.4205441 | AC12: =+AC57-AC50-AC54 -> 12.4221691 | AD12: 12.4221691 | AE12: 12.4221691 | AF12: 12.4221691 | AG12: 12.4221691
E13: =C59 -> Sewerage | K13: =K68-K61-K65 -> 0 | L13: =L68-L61-L65 -> 0 | M13: 0 | N13: 0 | O13: 0 | P13: 0 | Q13: 0 | R13: 6.626388944 | S13: 6.63269152 | T13: 7.687124577 | U13: 8.136927995 | V13: 8.305978991 | W13: 8.20513467 | X13: 8.345157646 | Y13: 8.21572908 | Z13: 7.863134598 | AA13: 7.975610554 | AB13: 7.905492078 | AC13: =AC68-AC61-AC65 -> 7.905492078 | AD13: 7.905492078 | AE13: 7.905492078 | AF13: 7.905492078 | AG13: 7.905492078
E14: =C70 -> Recycled Water | K14: =K79-K72-K76 -> 0 | L14: =L79-L72-L76 -> 0 | M14: 0 | N14: 0 | O14: 0 | P14: 0 | Q14: 0 | R14: 0 | S14: 0 | T14: 0 | U14: 0 | V14: 0 | W14: 0 | X14: 0 | Y14: 0 | Z14: 0 | AA14: 0 | AB14: 0 | AC14: =AC79-AC72-AC76 -> 0 | AD14: 0 | AE14: 0 | AF14: 0 | AG14: 0
E15: =C81 -> Rural Water | K15: =K90-K83-K87 -> 0 | L15: =L90-L83-L87 -> 0 | M15: 0 | N15: 0 | O15: 0 | P15: 0 | Q15: 0 | R15: 0 | S15: 0 | T15: 0 | U15: 0 | V15: 0 | W15: 0 | X15: 0 | Y15: 0 | Z15: 0 | AA15: 0 | AB15: 0 | AC15: =AC90-AC83-AC87 -> 0 | AD15: 0 | AE15: 0 | AF15: 0 | AG15: 0
E16: Bulk Water | K16: =K100-K97 -> 0 | L16: =L100-L97 -> 0 | M16: 0 | N16: 0 | O16: 0 | P16: 0 | Q16: 0 | R16: 0 | S16: 0 | T16: 0 | U16: 0 | V16: 0 | W16: 0 | X16: 0 | Y16: 0 | Z16: 0 | AA16: 0 | AB16: 0 | AC16: =AC100-AC97 -> 0 | AD16: 0 | AE16: 0 | AF16: 0 | AG16: 0
E17: Total controllable operating expenditure | K17: =SUM(K12:K16) -> 0 | L17: 0 | M17: 0 | N17: 0 | O17: 0 | P17: 0 | Q17: 0 | R17: 18.12266579 | S17: 17.91106256 | T17: 19.41751425 | U17: 20.70482438 | V17: 22.12500873 | W17: 20.42741384 | X17: 21.77942102 | Y17: 20.65716365 | Z17: 20.0901251 | AA17: 20.33736666 | AB17: 20.32603618 | AC17: 20.32766118 | AD17: 20.32766118 | AE17: 20.32766118 | AF17: 20.32766118 | AG17: 20.32766118
V18: Controllable Opex for 3rd Reg Period | W18: =SUM(S17:W17) -> 100.5858238 | AA18: Controllable Opex for 4th Reg Period | AB18: =SUM(X17:AB17) -> 103.1901126
AA19: Controllable Opex growth from 3rd to 4th Reg Period | AB19: =IFERROR(AB18-W18,"-") -> 2.604288851 | AC19: =IFERROR(AB18/W18-1,"-") -> 0.02589121163
E20: Operations & Maintenance | K20: =K49+K60+K71+K82+K93 -> 0 | L20: 0 | M20: 0 | N20: 0 | O20: 0 | P20: 0 | Q20: 0 | R20: 11.91110617 | S20: 11.7445752 | T20: 12.96472341 | U20: 14.2241247 | V20: 14.96675968 | W20: 14.03707286 | X20: 15.5228975 | Y20: 14.4487332 | Z20: 14.05349254 | AA20: 14.10464234 | AB20: 14.28589644 | AC20: 14.28589644 | AD20: 14.28589644 | AE20: 14.28589644 | AF20: 14.28589644 | AG20: 14.28589644
E21: Treatment | K21: =K51+K62+K73+K84+K94 -> 0 | L21: 0 | M21: 0 | N21: 0 | O21: 0 | P21: 0 | Q21: 0 | R21: 1.296835621 | S21: 1.165059761 | T21: 1.374195487 | U21: 1.334297898 | V21: 1.373641881 | W21: 1.3262072 | X21: 1.19395275 | Y21: 1.13377993 | Z21: 1.05715263 | AA21: 1.07166218 | AB21: 1.06938294 | AC21: 1.06938294 | AD21: 1.06938294 | AE21: 1.06938294 | AF21: 1.06938294 | AG21: 1.06938294
E22: Customer Service and billing | K22: =K52+K63+K74+K85+K95 -> 0 | L22: 0 | M22: 0 | N22: 0 | O22: 0 | P22: 0 | Q22: 0 | R22: 0.9448616255 | S22: 1.083118101 | T22: 1.175404298 | U22: 1.29529248 | V22: 1.324748849 | W22: 1.191890363 | X22: 1.14815325 | Y22: 1.09573625 | Z22: 1.08383425 | AA22: 1.05281825 | AB22: 1.06395425 | AC22: 1.06395425 | AD22: 1.06395425 | AE22: 1.06395425 | AF22: 1.06395425 | AG22: 1.06395425
E23: GSL Payments | K23: =K53+K64+K75+K86+K96 -> 0 | L23: 0 | M23: 0 | N23: 0 | O23: 0 | P23: 0 | Q23: 0 | R23: 0 | S23: 0 | T23: 0 | U23: 0 | V23: 0 | W23: 0.003 | X23: 0.003 | Y23: 0.003 | Z23: 0.003 | AA23: 0.003 | AB23: 0.003 | AC23: 0.004625 | AD23: 0.004625 | AE23: 0.004625 | AF23: 0.004625 | AG23: 0.004625
E24: Corporate | K24: =K55+K66+K77+K88+K98 -> 0 | L24: 0 | M24: 0 | N24: 0 | O24: 0 | P24: 0 | Q24: 0 | R24: 3.969862382 | S24: 3.918309495 | T24: 3.90319106 | U24: 3.851109307 | V24: 4.459858319 | W24: 3.869243417 | X24: 3.911417524 | Y24: 3.975914273 | Z24: 3.892645681 | AA24: 4.105243889 | AB24: 3.903802549 | AC24: 3.903802549 | AD24: 3.903802549 | AE24: 3.903802549 | AF24: 3.903802549 | AG24: 3.903802549
E25: Other operating expenditure | K25: =K56+K67+K78+K89+K99 -> 0 | L25: 0 | M25: 0 | N25: 0 | O25: 0 | P25: 0 | Q25: 0 | R25: 0 | S25: 0 | T25: 0 | U25: 0 | V25: 0 | W25: 0 | X25: 0 | Y25: 0 | Z25: 0 | AA25: 0 | AB25: 0 | AC25: 0 | AD25: 0 | AE25: 0 | AF25: 0 | AG25: 0
E26: Total controllable operating expenditure | K26: =SUM(K20:K25) -> 0 | L26: =SUM(L20:L25) -> 0 | M26: 0 | N26: 0 | O26: 0 | P26: 0 | Q26: 0 | R26: 18.12266579 | S26: 17.91106256 | T26: 19.41751425 | U26: 20.70482438 | V26: 22.12500873 | W26: 20.42741384 | X26: 21.77942102 | Y26: 20.65716365 | Z26: 20.0901251 | AA26: 20.33736666 | AB26: 20.32603618 | AC26: 20.32766118 | AD26: 20.32766118 | AE26: 20.32766118 | AF26: 20.32766118 | AG26: 20.32766118
E29: External bulk water charges (excl. temporary purchases) | K29: =K50+K61+K72+K83 -> 0 | L29: 0 | M29: 0 | N29: 0 | O29: 0 | P29: 0 | Q29: 0 | R29: 0.8753463457 | S29: 0.7901972298 | T29: 0.7960383935 | U29: 0.8275108584 | V29: 0.7277084323 | W29: 0.72 | X29: =X50+X61+X72+X83 -> 0.68 | Y29: =Y50+Y61+Y72+Y83 -> 0.687 | Z29: 0.694 | AA29: 0.701 | AB29: 0.707 | AC29: 0.714 | AD29: 0.721 | AE29: 0.728 | AF29: 0.735 | AG29: 0.742
E30: External temporary water purchases | K30: =+K102 -> 0 | L30: 0 | M30: 0 | N30: 0 | O30: 0 | P30: 0 | Q30: 0 | R30: 0 | S30: 0 | T30: 0.04901209677 | U30: 0 | V30: 0 | W30: 0 | X30: 0 | Y30: 0 | Z30: 0 | AA30: 0 | AB30: 0 | AC30: 0 | AD30: 0 | AE30: 0 | AF30: 0 | AG30: 0
E31: Licence fees | K31: =+K109 -> 0 | L31: 0 | M31: 0 | N31: 0 | O31: 0 | P31: 0 | Q31: 0 | R31: 0.1156317959 | S31: 0.09497021777 | T31: 0.1107230706 | U31: 0.06741987818 | V31: 0.07966263632 | W31: 0.076875 | X31: 0.076875 | Y31: 0.076875 | Z31: 0.076875 | AA31: 0.076875 | AB31: 0.076875 | AC31: 0.076875 | AD31: 0.076875 | AE31: 0.076875 | AF31: 0.076875 | AG31: 0.076875
E32: Environment Contribution | K32: =K111 -> 0 | L32: 0 | M32: 0 | N32: 0 | O32: 0 | P32: 0 | Q32: 0 | R32: 1.082877878 | S32: 1.304633789 | T32: 1.2675 | U32: 1.250884831 | V32: 1.234698609 | W32: 1.209 | X32: 1.765 | Y32: 1.765 | Z32: 1.765 | AA32: 1.765 | AB32: 1.765 | AC32: 1.765 | AD32: 1.765 | AE32: 1.765 | AF32: 1.765 | AG32: 1.765
E33: Other non-controllable | K33: =+K124 -> 0 | L33: 0 | M33: 0 | N33: 0 | O33: 0 | P33: 0 | Q33: 0 | R33: 0 | S33: 0 | T33: 0 | U33: 0 | V33: 0 | W33: 0 | X33: 0 | Y33: 0 | Z33: 0 | AA33: 0 | AB33: 0 | AC33: 0 | AD33: 0 | AE33: 0 | AF33: 0 | AG33: =+AG124 -> 0
E34: Total non-controllable operating expenditure | K34: =SUM(K29:K33) -> 0 | L34: =SUM(L29:L33) -> 0 | M34: 0 | N34: 0 | O34: 0 | P34: 0 | Q34: 0 | R34: 2.073856019 | S34: 2.189801237 | T34: 2.223273561 | U34: 2.145815568 | V34: 2.042069678 | W34: 2.005875 | X34: 2.521875 | Y34: 2.528875 | Z34: 2.535875 | AA34: 2.542875 | AB34: 2.548875 | AC34: 2.555875 | AD34: 2.562875 | AE34: 2.569875 | AF34: 2.576875 | AG34: 2.583875
V35: Non-controllable Opex for 3rd Reg Period | W35: =SUM(S34:W34) -> 10.60683504 | AA35: Non-controllable Opex for 4th Reg Period | AB35: =SUM(X34:AB34) -> 12.678375
AA36: Non-controllable Opex growth from 3rd to 4th Reg Period | AB36: =IFERROR(AB35-W35,"-") -> 2.071539957 | AC36: =IFERROR(AB35/W35-1,"-") -> 0.1953023638
E37: Total prescribed operating expenditure | K37: =+K34+K17 -> 0 | L37: 0 | M37: 0 | N37: 0 | O37: 0 | P37: 0 | Q37: 0 | R37: 20.19652181 | S37: 20.10086379 | T37: 21.64078781 | U37: 22.85063995 | V37: 24.16707841 | W37: 22.43328884 | X37: 24.30129602 | Y37: 23.18603865 | Z37: 22.6260001 | AA37: 22.88024166 | AB37: 22.87491118 | AC37: 22.88353618 | AD37: 22.89053618 | AE37: 22.89753618 | AF37: 22.90453618 | AG37: 22.91153618
V38: Prescribed Opex for 3rd Reg Period | W38: =SUM(S37:W37) -> 111.1926588 | AA38: Prescribed Opex for 4th Reg Period | AB38: =SUM(X37:AB37) -> 115.8684876
AA39: Prescribed Opex growth from 3rd to 4th Reg Period | AB39: =IFERROR(AB38-W38,"-") -> 4.675828807 | AC39: =IFERROR(AB38/W38-1,"-") -> 0.04205159637
W40: To reconcile to 'Opex_FO' tab row 123>> | X40: =+Opex_FO!X95 -> 24.30129602 | Y40: =+Opex_FO!Y95 -> 23.18603865 | Z40: =+Opex_FO!Z95 -> 22.6260001 | AA40: =+Opex_FO!AA95 -> 22.88024166 | AB40: =+Opex_FO!AB95 -> 22.87491118 | AC40: =+Opex_FO!AC95 -> 22.88353618 | AD40: =+Opex_FO!AD95 -> 22.89053618 | AE40: =+Opex_FO!AE95 -> 22.89753618 | AF40: =+Opex_FO!AF95 -> 22.90453618 | AG40: =+Opex_FO!AG95 -> 22.91153618
W41: Difference | X41: =+X40-X37 -> 0 | Y41: 0 | Z41: 0 | AA41: 0 | AB41: 0 | AC41: 0 | AD41: 0 | AE41: 0 | AF41: 0 | AG41: 0
W42: Test | X42: =+X40=X37 -> TRUE | Y42: TRUE | Z42: TRUE | AA42: TRUE | AB42: TRUE | AC42: TRUE | AD42: TRUE | AE42: TRUE | AF42: TRUE | AG42: TRUE
B46: Total operating expenditure
C48: Water
D49: Operations & Maintenance | R49: 8.725043014 | S49: 8.428947318 | T49: 8.967678394 | U49: 9.661492443 | V49: 10.63470967 | W49: 9.4798185 | X49: 10.65205924 | Y49: 9.65393441 | Z49: 9.49136174 | AA49: 9.52790445 | AB49: 9.68865603 | AC49: 9.68865603 | AD49: 9.68865603 | AE49: 9.68865603 | AF49: 9.68865603 | AG49: 9.68865603
D50: External bulk charges (excl. temporary purchases) | R50: =+R131 -> 0.8753463457 | S50: =+S131 -> 0.7901972298 | T50: =+T131 -> 0.7960383935 | U50: 0.8275108584 | V50: 0.7277084323 | W50: 0.72 | X50: 0.68 | Y50: 0.687 | Z50: 0.694 | AA50: 0.701 | AB50: 0.707 | AC50: 0.714 | AD50: 0.721 | AE50: 0.728 | AF50: 0.735 | AG50: 0.742 | AH50: see reconciliation below
D51: Treatment | R51: 0 | S51: 0 | T51: 0 | U51: 0 | V51: 0 | W51: 0 | X51: 0 | Y51: 0 | Z51: 0 | AA51: 0 | AB51: 0 | AC51: 0 | AD51: 0 | AE51: 0 | AF51: 0 | AG51: 0
D52: Customer Service and billing | R52: 0.5590435904 | S52: 0.6331746688 | T52: 0.6803179185 | U52: 0.7466638024 | V52: 0.742684077 | W52: 0.6257360957 | X52: 0.614377255 | Y52: 0.585863255 | Z52: 0.579220255 | AA52: 0.562257255 | AB52: 0.568046255 | AC52: 0.568046255 | AD52: 0.568046255 | AE52: 0.568046255 | AF52: 0.568046255 | AG52: 0.568046255
D53: GSL Payments | R53: 0 | S53: 0 | T53: 0 | U53: 0 | V53: 0 | W53: 0 | X53: 0 | Y53: 0 | Z53: 0 | AA53: 0 | AB53: 0 | AC53: 0.001625 | AD53: 0.001625 | AE53: 0.001625 | AF53: 0.001625 | AG53: 0.001625
D54: Licence Fees | R54: 0.03238494678 | S54: 0.03874945801 | T54: 0.02788021673 | U54: 0.02519831757 | V54: 0.02804275536 | W54: 0.0264225 | X54: 0.0264225 | Y54: 0.0264225 | Z54: 0.0264225 | AA54: 0.0264225 | AB54: 0.0264225 | AC54: 0.0264225 | AD54: 0.0264225 | AE54: 0.0264225 | AF54: 0.0264225 | AG54: 0.0264225
D55: Corporate | R55: 2.212190246 | S55: 2.216249051 | T55: 2.082393362 | U55: 2.159740141 | V55: 2.441635998 | W55: 2.116724574 | X55: 2.167826883 | Y55: 2.201636907 | Z55: 2.156408508 | AA55: 2.2715944 | AB55: 2.163841816 | AC55: 2.163841816 | AD55: 2.163841816 | AE55: 2.163841816 | AF55: 2.163841816 | AG55: 2.163841816
D56: Other operating expenditure | R56: 0 | S56: 0 | T56: 0 | U56: 0 | V56: 0 | W56: 0 | X56: 0 | Y56: 0 | Z56: 0 | AA56: 0 | AB56: 0 | AC56: 0 | AD56: 0 | AE56: 0 | AF56: 0 | AG56: 0
C57: =+CONCATENATE("Total ",C48) -> Total Water | K57: =+SUM(K49:K56) -> 0 | L57: =+SUM(L49:L56) -> 0 | M57: 0 | N57: 0 | O57: 0 | P57: 0 | Q57: 0 | R57: 12.40400814 | S57: 12.10731773 | T57: 12.55430828 | U57: 13.42060556 | V57: 14.57478093 | W57: 12.96870167 | X57: 14.14068588 | Y57: 13.15485707 | Z57: 12.947413 | AA57: 13.08917861 | AB57: 13.1539666 | AC57: =+SUM(AC49:AC56) -> 13.1625916 | AD57: 13.1695916 | AE57: 13.1765916 | AF57: 13.1835916 | AG57: 13.1905916
C59: Sewerage
D60: =+D49 -> Operations & Maintenance | R60: 3.186063152 | S60: 3.315627883 | T60: 3.997045013 | U60: 4.562632253 | V60: 4.332050017 | W60: 4.55725436 | X60: 4.87083826 | Y60: 4.79479879 | Z60: 4.5621308 | AA60: 4.57673789 | AB60: 4.59724041 | AC60: 4.59724041 | AD60: 4.59724041 | AE60: 4.59724041 | AF60: 4.59724041 | AG60: 4.59724041
D61: =+D50 -> External bulk charges (excl. temporary purchases) | R61: =+R132 -> 0 | S61: =+S132 -> 0 | T61: =+T132 -> 0 | U61: 0 | V61: 0 | W61: 0 | X61: 0 | Y61: 0 | Z61: 0 | AA61: 0 | AB61: 0 | AC61: 0 | AD61: 0 | AE61: 0 | AF61: 0 | AG61: 0 | AH61: see reconciliation below
D62: Treatment | R62: 1.296835621 | S62: 1.165059761 | T62: 1.374195487 | U62: 1.334297898 | V62: 1.373641881 | W62: 1.3262072 | X62: 1.19395275 | Y62: 1.13377993 | Z62: 1.05715263 | AA62: 1.07166218 | AB62: 1.06938294 | AC62: 1.06938294 | AD62: 1.06938294 | AE62: 1.06938294 | AF62: 1.06938294 | AG62: 1.06938294
D63: Customer Service and billing | R63: 0.3858180351 | S63: 0.449943432 | T63: 0.4950863793 | U63: 0.5486286774 | V63: 0.5820647724 | W63: 0.5661542668 | X63: 0.533775995 | Y63: 0.509872995 | Z63: 0.504613995 | AA63: 0.490560995 | AB63: 0.495907995 | AC63: 0.495907995 | AD63: 0.495907995 | AE63: 0.495907995 | AF63: 0.495907995 | AG63: 0.495907995
D64: GSL Payments | R64: 0 | S64: 0 | T64: 0 | U64: 0 | V64: 0 | W64: 0.003 | X64: 0.003 | Y64: 0.003 | Z64: 0.003 | AA64: 0.003 | AB64: 0.003 | AC64: 0.003 | AD64: 0.003 | AE64: 0.003 | AF64: 0.003 | AG64: 0.003
D65: Licence Fees | R65: 0.08324684909 | S65: 0.05622075977 | T65: 0.08284285383 | U65: 0.04222156061 | V65: 0.05161988096 | W65: 0.0504525 | X65: 0.0504525 | Y65: 0.0504525 | Z65: 0.0504525 | AA65: 0.0504525 | AB65: 0.0504525 | AC65: 0.0504525 | AD65: 0.0504525 | AE65: 0.0504525 | AF65: 0.0504525 | AG65: 0.0504525
D66: Corporate | R66: 1.757672135 | S66: 1.702060444 | T66: 1.820797698 | U66: 1.691369167 | V66: 2.01822232 | W66: 1.752518843 | X66: 1.743590641 | Y66: 1.774277365 | Z66: 1.736237173 | AA66: 1.833649489 | AB66: 1.739960733 | AC66: 1.739960733 | AD66: 1.739960733 | AE66: 1.739960733 | AF66: 1.739960733 | AG66: 1.739960733
D67: Other operating expenditure | R67: 0 | S67: 0 | T67: 0 | U67: 0 | V67: 0 | W67: 0 | X67: 0 | Y67: 0 | Z67: 0 | AA67: 0 | AB67: 0 | AC67: 0 | AD67: 0 | AE67: 0 | AF67: 0 | AG67: 0
C68: =+CONCATENATE("Total ",C59) -> Total Sewerage | K68: =+SUM(K60:K67) -> 0 | L68: 0 | M68: 0 | N68: 0 | O68: 0 | P68: 0 | Q68: 0 | R68: 6.709635793 | S68: 6.68891228 | T68: 7.769967431 | U68: 8.179149556 | V68: 8.357598872 | W68: 8.25558717 | X68: 8.395610146 | Y68: 8.26618158 | Z68: 7.913587098 | AA68: 8.026063054 | AB68: 7.955944578 | AC68: =+SUM(AC60:AC67) -> 7.955944578 | AD68: 7.955944578 | AE68: 7.955944578 | AF68: 7.955944578 | AG68: 7.955944578
C70: Recycled Water
D71: =+D60 -> Operations & Maintenance | R71: 0 | S71: 0 | T71: 0 | U71: 0 | V71: 0 | W71: 0 | X71: 0 | Y71: 0 | Z71: 0 | AA71: 0 | AB71: 0 | AC71: 0 | AD71: 0 | AE71: 0 | AF71: 0 | AG71: 0
D72: =+D61 -> External bulk charges (excl. temporary purchases) | R72: =+R133 -> 0 | S72: =+S133 -> 0 | T72: =+T133 -> 0 | U72: 0 | V72: 0 | W72: 0 | X72: 0 | Y72: 0 | Z72: 0 | AA72: 0 | AB72: 0 | AC72: 0 | AD72: 0 | AE72: 0 | AF72: 0 | AG72: 0 | AH72: see reconciliation below
D73: Treatment | R73: 0 | S73: 0 | T73: 0 | U73: 0 | V73: 0 | W73: 0 | X73: 0 | Y73: 0 | Z73: 0 | AA73: 0 | AB73: 0 | AC73: 0 | AD73: 0 | AE73: 0 | AF73: 0 | AG73: 0
D74: Customer Service and billing | R74: 0 | S74: 0 | T74: 0 | U74: 0 | V74: 0 | W74: 0 | X74: 0 | Y74: 0 | Z74: 0 | AA74: 0 | AB74: 0 | AC74: 0 | AD74: 0 | AE74: 0 | AF74: 0 | AG74: 0
D75: GSL Payments | R75: 0 | S75: 0 | T75: 0 | U75: 0 | V75: 0 | W75: 0 | X75: 0 | Y75: 0 | Z75: 0 | AA75: 0 | AB75: 0 | AC75: 0 | AD75: 0 | AE75: 0 | AF75: 0 | AG75: 0
D76: Licence Fees | R76: 0 | S76: 0 | T76: 0 | U76: 0 | V76: 0 | W76: 0 | X76: 0 | Y76: 0 | Z76: 0 | AA76: 0 | AB76: 0 | AC76: 0 | AD76: 0 | AE76: 0 | AF76: 0 | AG76: 0
D77: Corporate | R77: 0 | S77: 0 | T77: 0 | U77: 0 | V77: 0 | W77: 0 | X77: 0 | Y77: 0 | Z77: 0 | AA77: 0 | AB77: 0 | AC77: 0 | AD77: 0 | AE77: 0 | AF77: 0 | AG77: 0
D78: Other operating expenditure | R78: 0 | S78: 0 | T78: 0 | U78: 0 | V78: 0 | W78: 0 | X78: 0 | Y78: 0 | Z78: 0 | AA78: 0 | AB78: 0 | AC78: 0 | AD78: 0 | AE78: 0 | AF78: 0 | AG78: 0
C79: =+CONCATENATE("Total ",C70) -> Total Recycled Water | K79: =+SUM(K71:K78) -> 0 | L79: =+SUM(L71:L78) -> 0 | M79: =+SUM(M71:M78) -> 0 | N79: =+SUM(N71:N78) -> 0 | O79: 0 | P79: 0 | Q79: 0 | R79: 0 | S79: 0 | T79: 0 | U79: 0 | V79: 0 | W79: 0 | X79: =+SUM(X71:X78) -> 0 | Y79: =+SUM(Y71:Y78) -> 0 | Z79: =+SUM(Z71:Z78) -> 0 | AA79: =+SUM(AA71:AA78) -> 0 | AB79: =+SUM(AB71:AB78) -> 0 | AC79: =+SUM(AC71:AC78) -> 0 | AD79: 0 | AE79: 0 | AF79: 0 | AG79: 0
C81: Rural Water
D82: =+D60 -> Operations & Maintenance | R82: 0 | S82: 0 | T82: 0 | U82: 0 | V82: 0 | W82: 0 | X82: 0 | Y82: 0 | Z82: 0 | AA82: 0 | AB82: 0 | AC82: 0 | AD82: 0 | AE82: 0 | AF82: 0 | AG82: 0
D83: =+D61 -> External bulk charges (excl. temporary purchases) | R83: =+R134 -> 0 | S83: =+S134 -> 0 | T83: =+T134 -> 0 | U83: 0 | V83: 0 | W83: 0 | X83: 0 | Y83: 0 | Z83: 0 | AA83: 0 | AB83: 0 | AC83: 0 | AD83: 0 | AE83: 0 | AF83: 0 | AG83: 0 | AH83: see reconciliation below
D84: Treatment | R84: 0 | S84: 0 | T84: 0 | U84: 0 | V84: 0 | W84: 0 | X84: 0 | Y84: 0 | Z84: 0 | AA84: 0 | AB84: 0 | AC84: 0 | AD84: 0 | AE84: 0 | AF84: 0 | AG84: 0
D85: Customer Service and billing | R85: 0 | S85: 0 | T85: 0 | U85: 0 | V85: 0 | W85: 0 | X85: 0 | Y85: 0 | Z85: 0 | AA85: 0 | AB85: 0 | AC85: 0 | AD85: 0 | AE85: 0 | AF85: 0 | AG85: 0
D86: GSL Payments | R86: 0 | S86: 0 | T86: 0 | U86: 0 | V86: 0 | W86: 0 | X86: 0 | Y86: 0 | Z86: 0 | AA86: 0 | AB86: 0 | AC86: 0 | AD86: 0 | AE86: 0 | AF86: 0 | AG86: 0
D87: Licence Fees | R87: 0 | S87: 0 | T87: 0 | U87: 0 | V87: 0 | W87: 0 | X87: 0 | Y87: 0 | Z87: 0 | AA87: 0 | AB87: 0 | AC87: 0 | AD87: 0 | AE87: 0 | AF87: 0 | AG87: 0
D88: Corporate | R88: 0 | S88: 0 | T88: 0 | U88: 0 | V88: 0 | W88: 0 | X88: 0 | Y88: 0 | Z88: 0 | AA88: 0 | AB88: 0 | AC88: 0 | AD88: 0 | AE88: 0 | AF88: 0 | AG88: 0
D89: Other operating expenditure | R89: 0 | S89: 0 | T89: 0 | U89: 0 | V89: 0 | W89: 0 | X89: 0 | Y89: 0 | Z89: 0 | AA89: 0 | AB89: 0 | AC89: 0 | AD89: 0 | AE89: 0 | AF89: 0 | AG89: 0
C90: =+CONCATENATE("Total ",C81) -> Total Rural Water | K90: =+SUM(K82:K89) -> 0 | L90: 0 | M90: 0 | N90: 0 | O90: 0 | P90: 0 | Q90: 0 | R90: 0 | S90: 0 | T90: 0 | U90: 0 | V90: 0 | W90: 0 | X90: =+SUM(X82:X89) -> 0 | Y90: =+SUM(Y82:Y89) -> 0 | Z90: =+SUM(Z82:Z89) -> 0 | AA90: =+SUM(AA82:AA89) -> 0 | AB90: =+SUM(AB82:AB89) -> 0 | AC90: =+SUM(AC82:AC89) -> 0 | AD90: 0 | AE90: 0 | AF90: 0 | AG90: 0
C92: Bulk Water
D93: Operations & Maintenance | R93: 0 | S93: 0 | T93: 0 | U93: 0 | V93: 0 | W93: 0 | X93: 0 | Y93: 0 | Z93: 0 | AA93: 0 | AB93: 0 | AC93: 0 | AD93: 0 | AE93: 0 | AF93: 0 | AG93: 0
D94: Treatment | R94: 0 | S94: 0 | T94: 0 | U94: 0 | V94: 0 | W94: 0 | X94: 0 | Y94: 0 | Z94: 0 | AA94: 0 | AB94: 0 | AC94: 0 | AD94: 0 | AE94: 0 | AF94: 0 | AG94: 0
D95: Customer Service and billing | R95: 0 | S95: 0 | T95: 0 | U95: 0 | V95: 0 | W95: 0 | X95: 0 | Y95: 0 | Z95: 0 | AA95: 0 | AB95: 0 | AC95: 0 | AD95: 0 | AE95: 0 | AF95: 0 | AG95: 0
D96: GSL Payments | R96: 0 | S96: 0 | T96: 0 | U96: 0 | V96: 0 | W96: 0 | X96: 0 | Y96: 0 | Z96: 0 | AA96: 0 | AB96: 0 | AC96: 0 | AD96: 0 | AE96: 0 | AF96: 0 | AG96: 0
D97: Licence Fees | R97: 0 | S97: 0 | T97: 0 | U97: 0 | V97: 0 | W97: 0 | X97: 0 | Y97: 0 | Z97: 0 | AA97: 0 | AB97: 0 | AC97: 0 | AD97: 0 | AE97: 0 | AF97: 0 | AG97: 0
D98: Corporate | R98: 0 | S98: 0 | T98: 0 | U98: 0 | V98: 0 | W98: 0 | X98: 0 | Y98: 0 | Z98: 0 | AA98: 0 | AB98: 0 | AC98: 0 | AD98: 0 | AE98: 0 | AF98: 0 | AG98: 0
D99: Other operating expenditure | R99: 0 | S99: 0 | T99: 0 | U99: 0 | V99: 0 | W99: 0 | X99: 0 | Y99: 0 | Z99: 0 | AA99: 0 | AB99: 0 | AC99: 0 | AD99: 0 | AE99: 0 | AF99: 0 | AG99: 0
C100: Total Bulk water | K100: =+SUM(K93:K99) -> 0 | L100: 0 | M100: 0 | N100: 0 | O100: 0 | P100: 0 | Q100: 0 | R100: 0 | S100: 0 | T100: 0 | U100: 0 | V100: 0 | W100: 0 | X100: 0 | Y100: 0 | Z100: 0 | AA100: 0 | AB100: 0 | AC100: =+SUM(AC93:AC99) -> 0 | AD100: 0 | AE100: 0 | AF100: 0 | AG100: 0
C102: External temporary water purchases | R102: 0 | S102: 0 | T102: 0.04901209677 | U102: 0 | V102: 0 | W102: 0 | X102: 0 | Y102: 0 | Z102: 0 | AA102: 0 | AB102: 0 | AC102: 0 | AD102: 0 | AE102: 0 | AF102: 0 | AG102: 0
C105: Licence fees
D106: Essential Services Commission | R106: 0.02919730218 | S106: 0.04098427734 | T106: 0.02098412298 | U106: 0.01566446138 | V106: 0.02056709335 | W106: 0.018375 | X106: 0.018375 | Y106: 0.018375 | Z106: 0.018375 | AA106: 0.018375 | AB106: 0.018375 | AC106: 0.018375 | AD106: 0.018375 | AE106: 0.018375 | AF106: 0.018375 | AG106: 0.018375
D107: Department of Human Services | R107: 0.0166184036 | S107: 0.01661816406 | T107: 0.01654879032 | U107: 0.01673950843 | V107: 0.01693652495 | W107: 0.0165 | X107: 0.0165 | Y107: 0.0165 | Z107: 0.0165 | AA107: 0.0165 | AB107: 0.0165 | AC107: 0.0165 | AD107: 0.0165 | AE107: 0.0165 | AF107: 0.0165 | AG107: 0.0165
D108: Environment Protection Authority | R108: 0.06981609009 | S108: 0.03736777637 | T108: 0.07319015726 | U108: 0.03501590838 | V108: 0.04215901802 | W108: 0.042 | X108: 0.042 | Y108: 0.042 | Z108: 0.042 | AA108: 0.042 | AB108: 0.042 | AC108: 0.042 | AD108: 0.042 | AE108: 0.042 | AF108: 0.042 | AG108: 0.042
C109: =+CONCATENATE("Total ",C105) -> Total Licence fees | K109: =+SUM(K106:K108) -> 0 | L109: =+SUM(L106:L108) -> 0 | M109: 0 | N109: 0 | O109: 0 | P109: 0 | Q109: 0 | R109: 0.1156317959 | S109: 0.09497021777 | T109: 0.1107230706 | U109: 0.06741987818 | V109: 0.07966263632 | W109: 0.076875 | X109: =+SUM(X106:X108) -> 0.076875 | Y109: =+SUM(Y106:Y108) -> 0.076875 | Z109: =+SUM(Z106:Z108) -> 0.076875 | AA109: =+SUM(AA106:AA108) -> 0.076875 | AB109: =+SUM(AB106:AB108) -> 0.076875 | AC109: =+SUM(AC106:AC108) -> 0.076875 | AD109: 0.076875 | AE109: 0.076875 | AF109: 0.076875 | AG109: 0.076875
C111: Environment Contribution | R111: 1.082877878 | S111: 1.304633789 | T111: 1.2675 | U111: 1.250884831 | V111: 1.234698609 | W111: 1.209 | X111: 1.765 | Y111: 1.765 | Z111: 1.765 | AA111: 1.765 | AB111: 1.765 | AC111: 1.765 | AD111: 1.765 | AE111: 1.765 | AF111: 1.765 | AG111: 1.765
C113: Other non-controllable
D114: [Non-controllable 1] | R114: 0 | S114: 0 | T114: 0 | U114: 0 | V114: 0 | W114: 0 | X114: 0 | Y114: 0 | Z114: 0 | AA114: 0 | AB114: 0 | AC114: 0 | AD114: 0 | AE114: 0 | AF114: 0 | AG114: 0
D115: [Non-controllable 2] | R115: 0 | S115: 0 | T115: 0 | U115: 0 | V115: 0 | W115: 0 | X115: 0 | Y115: 0 | Z115: 0 | AA115: 0 | AB115: 0 | AC115: 0 | AD115: 0 | AE115: 0 | AF115: 0 | AG115: 0
D116: [Non-controllable 3] | R116: 0 | S116: 0 | T116: 0 | U116: 0 | V116: 0 | W116: 0 | X116: 0 | Y116: 0 | Z116: 0 | AA116: 0 | AB116: 0 | AC116: 0 | AD116: 0 | AE116: 0 | AF116: 0 | AG116: 0
D117: [Non-controllable 4] | R117: 0 | S117: 0 | T117: 0 | U117: 0 | V117: 0 | W117: 0 | X117: 0 | Y117: 0 | Z117: 0 | AA117: 0 | AB117: 0 | AC117: 0 | AD117: 0 | AE117: 0 | AF117: 0 | AG117: 0
D118: [Non-controllable 5] | R118: 0 | S118: 0 | T118: 0 | U118: 0 | V118: 0 | W118: 0 | X118: 0 | Y118: 0 | Z118: 0 | AA118: 0 | AB118: 0 | AC118: 0 | AD118: 0 | AE118: 0 | AF118: 0 | AG118: 0
D119: [Non-controllable 6] | R119: 0 | S119: 0 | T119: 0 | U119: 0 | V119: 0 | W119: 0 | X119: 0 | Y119: 0 | Z119: 0 | AA119: 0 | AB119: 0 | AC119: 0 | AD119: 0 | AE119: 0 | AF119: 0 | AG119: 0
D120: [Non-controllable 7] | R120: 0 | S120: 0 | T120: 0 | U120: 0 | V120: 0 | W120: 0 | X120: 0 | Y120: 0 | Z120: 0 | AA120: 0 | AB120: 0 | AC120: 0 | AD120: 0 | AE120: 0 | AF120: 0 | AG120: 0
D121: [Non-controllable 8] | R121: 0 | S121: 0 | T121: 0 | U121: 0 | V121: 0 | W121: 0 | X121: 0 | Y121: 0 | Z121: 0 | AA121: 0 | AB121: 0 | AC121: 0 | AD121: 0 | AE121: 0 | AF121: 0 | AG121: 0
D122: [Non-controllable 9] | R122: 0 | S122: 0 | T122: 0 | U122: 0 | V122: 0 | W122: 0 | X122: 0 | Y122: 0 | Z122: 0 | AA122: 0 | AB122: 0 | AC122: 0 | AD122: 0 | AE122: 0 | AF122: 0 | AG122: 0
D123: [Non-controllable 10] | R123: 0 | S123: 0 | T123: 0 | U123: 0 | V123: 0 | W123: 0 | X123: 0 | Y123: 0 | Z123: 0 | AA123: 0 | AB123: 0 | AC123: 0 | AD123: 0 | AE123: 0 | AF123: 0 | AG123: 0
K124: =SUM(K114:K123) -> 0 | L124: 0 | M124: 0 | N124: 0 | O124: 0 | P124: 0 | Q124: 0 | R124: 0 | S124: 0 | T124: 0 | U124: 0 | V124: 0 | W124: 0 | X124: 0 | Y124: 0 | Z124: 0 | AA124: 0 | AB124: 0 | AC124: 0 | AD124: 0 | AE124: 0 | AF124: 0 | AG124: 0
C127: External bulk charges (excl. temporary purchases)
C128: Reconciliation
C130: Service | R130: =+R7 -> 2012-13 | S130: 2013-14 | T130: 2014-15 | U130: 2015-16 | V130: 2016-17 | W130: 2017-18 | X130: 2018-19 | Y130: 2019-20 | Z130: 2020-21 | AA130: 2021-22 | AB130: 2022-23 | AC130: 2023-24 | AD130: 2024-25 | AE130: 2025-26 | AF130: 2026-27 | AG130: 2027-28
D131: Water | R131: =+SUMIF($I$138:$I$179,$D$131,R$138:R$179) -> 0.8753463457 | S131: 0.7901972298 | T131: 0.7960383935 | U131: 0.8275108584 | V131: 0.7277084323 | W131: 0.72 | X131: 0.68 | Y131: 0.687 | Z131: 0.694 | AA131: 0.701 | AB131: 0.707 | AC131: 0.714 | AD131: 0.721 | AE131: 0.728 | AF131: 0.735 | AG131: 0.742
D132: Sewerage | R132: =+SUMIF($I$138:$I$179,$D$132,R$138:R$179) -> 0 | S132: 0 | T132: 0 | U132: 0 | V132: 0 | W132: 0 | X132: 0 | Y132: 0 | Z132: 0 | AA132: 0 | AB132: 0 | AC132: 0 | AD132: 0 | AE132: 0 | AF132: 0 | AG132: 0
D133: Recycled Water | R133: =+SUMIF($I$138:$I$179,$D$133,R$138:R$179) -> 0 | S133: 0 | T133: 0 | U133: 0 | V133: 0 | W133: 0 | X133: 0 | Y133: 0 | Z133: 0 | AA133: 0 | AB133: 0 | AC133: 0 | AD133: 0 | AE133: 0 | AF133: 0 | AG133: 0
D134: Rural Water | R134: =+SUMIF($I$138:$I$179,$D$134,R$138:R$179) -> 0 | S134: 0 | T134: 0 | U134: 0 | V134: 0 | W134: 0 | X134: 0 | Y134: 0 | Z134: 0 | AA134: 0 | AB134: 0 | AC134: 0 | AD134: 0 | AE134: 0 | AF134: 0 | AG134: 0
C135: Total External Bulk Charges | R135: =SUM(R131:R134) -> 0.8753463457 | S135: =SUM(S131:S134) -> 0.7901972298 | T135: =SUM(T131:T134) -> 0.7960383935 | U135: 0.8275108584 | V135: 0.7277084323 | W135: 0.72 | X135: 0.68 | Y135: 0.687 | Z135: 0.694 | AA135: 0.701 | AB135: 0.707 | AC135: 0.714 | AD135: 0.721 | AE135: 0.728 | AF135: 0.735 | AG135: 0.742
C137: Description | H137: Source | I137: Service | J137: Price
B138: 1 | C138: Water external purchases | H138: Goulburn-Murray Water | I138: Water | J138: Variable | R138: 0.8753463457 | S138: 0.7901972298 | T138: 0.7960383935 | U138: 0.8275108584 | V138: 0.7277084323 | W138: 0.72 | X138: 0.68 | Y138: 0.687 | Z138: 0.694 | AA138: 0.701 | AB138: 0.707 | AC138: 0.714 | AD138: 0.721 | AE138: 0.728 | AF138: 0.735 | AG138: 0.742 | AJ138: ESC USE ONLY
B139: 2 | C139: 0 | H139: [Source] | I139: [Service] | J139: [Price] | R139: 0 | S139: 0 | T139: 0 | U139: 0 | V139: 0 | W139: 0 | X139: 0 | Y139: 0 | Z139: 0 | AA139: 0 | AB139: 0 | AC139: 0 | AD139: 0 | AE139: 0 | AF139: 0 | AG139: 0
B140: 3 | C140: 0 | H140: [Source] | I140: [Service] | J140: [Price] | R140: 0 | S140: 0 | T140: 0 | U140: 0 | V140: 0 | W140: 0 | X140: 0 | Y140: 0 | Z140: 0 | AA140: 0 | AB140: 0 | AC140: 0 | AD140: 0 | AE140: 0 | AF140: 0 | AG140: 0 | AJ140: [Service]
B141: 4 | C141: 0 | H141: [Source] | I141: [Service] | J141: [Price] | R141: 0 | S141: 0 | T141: 0 | U141: 0 | V141: 0 | W141: 0 | X141: 0 | Y141: 0 | Z141: 0 | AA141: 0 | AB141: 0 | AC141: 0 | AD141: 0 | AE141: 0 | AF141: 0 | AG141: 0 | AJ141: Water
B142: 5 | C142: 0 | H142: [Source] | I142: [Service] | J142: [Price] | R142: 0 | S142: 0 | T142: 0 | U142: 0 | V142: 0 | W142: 0 | X142: 0 | Y142: 0 | Z142: 0 | AA142: 0 | AB142: 0 | AC142: 0 | AD142: 0 | AE142: 0 | AF142: 0 | AG142: 0 | AJ142: Sewerage
B143: 6 | C143: 0 | H143: [Source] | I143: [Service] | J143: [Price] | R143: 0 | S143: 0 | T143: 0 | U143: 0 | V143: 0 | W143: 0 | X143: 0 | Y143: 0 | Z143: 0 | AA143: 0 | AB143: 0 | AC143: 0 | AD143: 0 | AE143: 0 | AF143: 0 | AG143: 0 | AJ143: Recycled Water
B144: 7 | H144: [Source] | I144: [Service] | J144: [Price] | R144: 0 | S144: 0 | T144: 0 | U144: 0 | V144: 0 | W144: 0 | X144: 0 | Y144: 0 | Z144: 0 | AA144: 0 | AB144: 0 | AC144: 0 | AD144: 0 | AE144: 0 | AF144: 0 | AG144: 0 | AJ144: Rural Water
B145: 8 | H145: [Source] | I145: [Service] | J145: [Price]
B146: 9 | H146: [Source] | I146: [Service] | J146: [Price] | AJ146: [Source]
B147: 10 | H147: [Source] | I147: [Service] | J147: [Price] | AJ147: Melbourne Water
B148: 11 | H148: [Source] | I148: [Service] | J148: [Price] | AJ148: Goulburn-Murray Water
B149: 12 | H149: [Source] | I149: [Service] | J149: [Price] | AJ149: Other Sources
B150: 13 | H150: [Source] | I150: [Service] | J150: [Price]
B151: 14 | H151: [Source] | I151: [Service] | J151: [Price]
B152: 15 | H152: [Source] | I152: [Service] | J152: [Price]
B153: 16 | H153: [Source] | I153: [Service] | J153: [Price]
B154: 17 | H154: [Source] | I154: [Service] | J154: [Price]
B155: 18 | H155: [Source] | I155: [Service] | J155: [Price]
B156: 19 | H156: [Source] | I156: [Service] | J156: [Price]
B157: 20 | H157: [Source] | I157: [Service] | J157: [Price]
B158: 21 | H158: [Source] | I158: [Service] | J158: [Price]
B159: 22 | H159: [Source] | I159: [Service] | J159: [Price]
B160: 23 | H160: [Source] | I160: [Service] | J160: [Price]
B161: 24 | H161: [Source] | I161: [Service] | J161: [Price]
B162: 25 | H162: [Source] | I162: [Service] | J162: [Price]
B163: 26 | H163: [Source] | I163: [Service] | J163: [Price]
B164: 27 | H164: [Source] | I164: [Service] | J164: [Price]
B165: 28 | H165: [Source] | I165: [Service] | J165: [Price]
B166: 29 | H166: [Source] | I166: [Service] | J166: [Price]
B167: 30 | H167: [Source] | I167: [Service] | J167: [Price]
B168: 31 | H168: [Source] | I168: [Service] | J168: [Price]
B169: 32 | H169: [Source] | I169: [Service] | J169: [Price]
B170: 33 | H170: [Source] | I170: [Service] | J170: [Price]
B171: 34 | H171: [Source] | I171: [Service] | J171: [Price]
B172: 35 | H172: [Source] | I172: [Service] | J172: [Price]
B173: 36 | H173: [Source] | I173: [Service] | J173: [Price]
B174: 37 | H174: [Source] | I174: [Service] | J174: [Price]
B175: 38 | H175: [Source] | I175: [Service] | J175: [Price]
B176: 39 | H176: [Source] | I176: [Service] | J176: [Price]
B177: 40 | H177: [Source] | I177: [Service] | J177: [Price]

Sheet Capex_FO input
B1: Capital Expenditure - Forecast Input
B2: =+Contents!H7 -> Lower Murray Water - Urban
B3: Go to Table of Contents
C7: Input Summary | F7: FOURTH REG PERIOD | K7: FIFTH REG PERIOD
D9: =+O39 -> 2018-19 | E9: 2019-20 | F9: 2020-21 | G9: 2021-22 | H9: 2022-23 | I9: 2023-24 | J9: 2024-25 | K9: 2025-26 | L9: 2026-27 | M9: 2027-28 | P9: 4th Reg Period | S9: 5th Reg Period
C10: By Cost Driver | P10: Total | Q10: % of Total | S10: Total | T10: % of Total
C11: Net capital expenditure - Renewals | D11: =+SUMIF($F$42:$F$1049,"Renewals",AV$42:AV$1049) -> 11.77055 | E11: 7.238875 | F11: 7.368325 | G11: 5.9691 | H11: 6.349675 | I11: 9.991375 | J11: 6.986375 | K11: 7.011375 | L11: 6.576375 | M11: 5.526375 | P11: =SUM(D11:H11) -> 38.696525 | Q11: =IFERROR(P11/$P$16,"-") -> 0.534212885 | S11: =SUM(I11:M11) -> 36.091875 | T11: =IFERROR(S11/$S$16,"-") -> 0.3422916654
C12: Net capital expenditure - Growth | D12: =+SUMIF($F$42:$F$1049,"Growth",AV$42:AV$1049) -> 4.175 | E12: 3.245 | F12: 5.495 | G12: 0.695 | H12: 0.305 | I12: 8.845 | J12: 18.345 | K12: 3.095 | L12: 3.095 | M12: 2.495 | P12: =SUM(D12:H12) -> 13.915 | Q12: =IFERROR(P12/$P$16,"-") -> 0.1920992207 | S12: =SUM(I12:M12) -> 35.875 | T12: =IFERROR(S12/$S$16,"-") -> 0.340234845
C13: Net capital expenditure - Improvements / Compliance | D13: =+SUMIF($F$42:$F$1049,"Improvements / Compliance",AV$42:AV$1049) -> 4.48 | E13: 1.1 | F13: 1.26 | G13: 4.36 | H13: 4.85 | I13: 1.08 | J13: 4.43 | K13: 20.73 | L13: 2.38 | M13: 1.08 | P13: 16.05 | Q13: 0.2215733016 | S13: 29.7 | T13: 0.2816717741
C14: Government Contributions | D14: =+Z41 -> 0 | E14: =+AA41 -> 0 | F14: 0 | G14: 0 | H14: 0 | I14: 0 | J14: 0 | K14: 0 | L14: 0 | M14: 0 | P14: 0 | Q14: 0 | S14: 0 | T14: 0
C15: Customer Contributions | D15: =+AK41 -> 0.755 | E15: =+AL41 -> 0.755 | F15: 0.755 | G15: 0.755 | H15: 0.755 | I15: 0.755 | J15: 0.755 | K15: 0.755 | L15: 0.755 | M15: 0.755 | P15: 3.775 | Q15: 0.05211459274 | S15: 3.775 | T15: 0.0358017154
C16: Total prescribed capex | D16: =SUM(D11:D15) -> 21.18055 | E16: 12.338875 | F16: 14.878325 | G16: 11.7791 | H16: 12.259675 | I16: 20.671375 | J16: 30.516375 | K16: 31.591375 | L16: 12.806375 | M16: 9.856375 | P16: 72.436525 | Q16: 1 | S16: 105.441875 | T16: 1
C18: By Capital Type
C19: Top 10 Major Projects | D19: =+SUMIF($H$42:$H$1049,$C$19,O$42:O$1049) -> 9.98 | E19: 3.68 | F19: 6.98 | G19: 5.06 | H19: 4.4 | I19: 1.08 | J19: 1.08 | K19: 1.08 | L19: 1.08 | M19: 1.08 | P19: =SUM(D19:H19) -> 30.1 | Q19: =IFERROR(P19/$P$23,"-") -> 0.4155362229 | S19: =SUM(I19:M19) -> 5.4 | T19: =IFERROR(S19/$S$23,"-") -> 0.05121304984
C20: Significant projects | D20: =+SUMIF($H$42:$H$1049,$C$20,O$42:O$1049) -> 5.825 | E20: 3.99 | F20: 3.89 | G20: 2.63 | H20: 2.76 | I20: 15.065 | J20: 24.86 | K20: 25.885 | L20: 7.05 | M20: 4.05 | P20: =SUM(D20:H20) -> 19.095 | Q20: =IFERROR(P20/$P$23,"-") -> 0.2636101055 | S20: =SUM(I20:M20) -> 76.91 | T20: =IFERROR(S20/$S$23,"-") -> 0.7294066043
C21: Capital Programs / Allocation | D21: =+SUMIF($H$42:$H$1049,$C$21,O$42:O$1049) -> 3.09 | E21: 2.915 | F21: 2.615 | G21: 2.845 | H21: 3.245 | I21: 3.35 | J21: 3.4 | K21: 3.45 | L21: 3.5 | M21: 3.55 | P21: 14.71 | Q21: 0.2030743468 | S21: 17.25 | T21: 0.1635972426
C22: Other Capital expenditure | D22: =+SUMIF($H$42:$H$1049,$C$22,O$42:O$1049) -> 2.28555 | E22: 1.753875 | F22: 1.393325 | G22: 1.2441 | H22: 1.854675 | I22: 1.176375 | J22: 1.176375 | K22: 1.176375 | L22: 1.176375 | M22: 1.176375 | P22: 8.531525 | Q22: 0.1177793247 | S22: 5.881875 | T22: 0.05578310325
C23: Total prescribed capex | D23: =SUM(D19:D22) -> 21.18055 | E23: =SUM(E19:E22) -> 12.338875 | F23: 14.878325 | G23: 11.7791 | H23: 12.259675 | I23: 20.671375 | J23: 30.516375 | K23: 31.591375 | L23: 12.806375 | M23: 9.856375 | P23: 72.436525 | Q23: 1 | S23: 105.441875 | T23: 1
C25: Difference | D25: =+D23-D16 -> 0 | E25: =+E23-E16 -> 0 | F25: 0 | G25: 0 | H25: 0 | I25: 0 | J25: 0 | K25: 0 | L25: 0 | M25: 0
C26: Test | D26: =+D23=D16 -> TRUE | E26: TRUE | F26: TRUE | G26: TRUE | H26: TRUE | I26: TRUE | J26: TRUE | K26: TRUE | L26: TRUE | M26: TRUE
C29: Total prescribed capex | D29: =+D23 -> 21.18055 | E29: =+E23 -> 12.338875 | F29: 14.878325 | G29: 11.7791 | H29: 12.259675 | I29: 20.671375 | J29: 30.516375 | K29: 31.591375 | L29: 12.806375 | M29: 9.856375
C32: Regulatory Depreciation | D32: =+BG41 -> 0.2872327083 | E32: =+BH41 -> 0.8670492882 | F32: 1.392164115 | G32: 1.801745885 | H32: 2.323905017 | I32: 2.739824705 | J32: 2.994601059 | K32: 3.500145747 | L32: 3.947112378 | M32: 4.111273177
B35: $m, 01/01/18
O36: Gross capital expenditure | Z36: Government contributions | AK36: Customer contributions | AV36: Net capital expenditure | BG36: Regulatory Depreciation | BR36: Accumulated capex | CC36: Gross capital expenditure | CN36: Tax Depreciation
O37: $m, 01/01/18 | Z37: $m, 01/01/18 | AK37: $m, 01/01/18 | AV37: $m, 01/01/18 | BG37: $m, 01/01/18 | BR37: $m, 01/01/18 | CC37: Nominal,$ | CN37: Nominal,$
O39: 2018-19 | P39: 2019-20 | Q39: 2020-21 | R39: 2021-22 | S39: 2022-23 | T39: 2023-24 | U39: 2024-25 | V39: 2025-26 | W39: 2026-27 | X39: 2027-28 | Z39: 2018-19 | AA39: 2019-20 | AB39: 2020-21 | AC39: 2021-22 | AD39: 2022-23 | AE39: 2023-24 | AF39: 2024-25 | AG39: 2025-26 | AH39: 2026-27 | AI39: 2027-28 | AK39: 2018-19 | AL39: 2019-20 | AM39: 2020-21 | AN39: 2021-22 | AO39: 2022-23 | AP39: 2023-24 | AQ39: 2024-25 | AR39: 2025-26 | AS39: 2026-27 | AT39: 2027-28 | AV39: 2018-19 | AW39: 2019-20 | AX39: 2020-21 | AY39: 2021-22 | AZ39: 2022-23 | BA39: 2023-24 | BB39: 2024-25 | BC39: 2025-26 | BD39: 2026-27 | BE39: 2027-28 | BG39: 2018-19 | BH39: 2019-20 | BI39: 2020-21 | BJ39: 2021-22 | BK39: 2022-23 | BL39: 2023-24 | BM39: 2024-25 | BN39: 2025-26 | BO39: 2026-27 | BP39: 2027-28 | BR39: 2018-19 | BS39: 2019-20 | BT39: 2020-21 | BU39: 2021-22 | BV39: 2022-23 | BW39: 2023-24 | BX39: 2024-25 | BY39: 2025-26 | BZ39: 2026-27 | CA39: 2027-28 | CC39: 2018-19 | CD39: 2019-20 | CE39: 2020-21 | CF39: 2021-22 | CG39: 2022-23 | CH39: 2023-24 | CI39: 2024-25 | CJ39: 2025-26 | CK39: 2026-27 | CL39: 2027-28 | CN39: 2018-19 | CO39: 2019-20 | CP39: 2020-21 | CQ39: 2021-22 | CR39: 2022-23 | CS39: 2023-24 | CT39: 2024-25 | CU39: 2025-26 | CV39: 2026-27 | CW39: 2027-28
BG40: 1 | BH40: 2 | BI40: 3 | BJ40: 4 | BK40: 5 | BL40: 6 | BM40: 7 | BN40: 8 | BO40: 9 | BP40: 10 | CN40: 1 | CO40: 2 | CP40: 3 | CQ40: 4 | CR40: 5 | CS40: 6 | CT40: 7 | CU40: 8 | CV40: 9 | CW40: 10
C41: Project/program Name | E41: Service | F41: Major cost driver | G41: Asset category | H41: Capital type | J41: Depreciation Method | K41: Year asset operational | L41: Asset life (Regulatory) | M41: Asset life (Tax) | O41: =SUM(O42:O1049) -> 21.18055 | P41: 12.338875 | Q41: 14.878325 | R41: 11.7791 | S41: 12.259675 | T41: 20.671375 | U41: 30.516375 | V41: 31.591375 | W41: 12.806375 | X41: 9.856375 | Z41: =SUM(Z42:Z1049) -> 0 | AA41: 0 | AB41: 0 | AC41: 0 | AD41: 0 | AE41: 0 | AF41: 0 | AG41: 0 | AH41: 0 | AI41: 0 | AK41: =SUM(AK42:AK1049) -> 0.755 | AL41: 0.755 | AM41: 0.755 | AN41: 0.755 | AO41: 0.755 | AP41: 0.755 | AQ41: 0.755 | AR41: 0.755 | AS41: 0.755 | AT41: 0.755 | AV41: =SUM(AV42:AV1049) -> 20.42555 | AW41: 11.583875 | AX41: 14.123325 | AY41: 11.0241 | AZ41: 11.504675 | BA41: 19.916375 | BB41: 29.761375 | BC41: 30.836375 | BD41: 12.051375 | BE41: 9.101375 | BG41: =SUM(BG42:BG1049) -> 0.2872327083 | BH41: 0.8670492882 | BI41: 1.392164115 | BJ41: 1.801745885 | BK41: 2.323905017 | BL41: 2.739824705 | BM41: 2.994601059 | BN41: 3.500145747 | BO41: 3.947112378 | BP41: 4.111273177 | BR41: =SUM(BR42:BR1049) -> 13.73055 | BS41: 14.063875 | BT41: 14.188325 | BU41: 7.7441 | BV41: 17.984675 | BW41: 13.441375 | BX41: 32.886375 | BY41: 31.786375 | BZ41: 13.401375 | CA41: 11.101375 | CC41: =SUM(CC42:CC1049) -> 21.66770265 | CD41: 12.91299051 | CE41: 15.92872235 | CF41: 12.90074062 | CG41: 13.73590017 | CH41: 23.69316985 | CI41: 35.78181608 | CJ41: 37.89427465 | CK41: 15.7147298 | CL41: 12.37295848 | CN41: =SUM(CN42:CN1049) -> 0.7047968091 | CO41: 1.916013907 | CP41: 2.694944371 | CQ41: 3.693177748 | CR41: 4.424703797 | CS41: 5.18000754 | CT41: 6.374105921 | CU41: 7.952691539 | CV41: 9.097583501 | CW41: 9.531814953
C42: Purchase of Water | D42: 0 | E42: Water | F42: Improvements / Compliance | G42: Corporate | H42: Top 10 Major Projects | J42: Straight line | K42: Ongoing | L42: 80 | M42: 22.22222222 | O42: 1.08 | P42: 1.08 | Q42: 1.08 | R42: 1.08 | S42: 1.08 | T42: 1.08 | U42: 1.08 | V42: 1.08 | W42: 1.08 | X42: 1.08 | AV42: =+O42-Z42-AK42 -> 1.08 | AW42: =+P42-AA42-AL42 -> 1.08 | AX42: 1.08 | AY42: 1.08 | AZ42: 1.08 | BA42: 1.08 | BB42: 1.08 | BC42: 1.08 | BD42: 1.08 | BE42: 1.08 | BG42: =IF($L42=0,0, IF($L42<=0.5,BR42, IF($J42="straight line", IF((LEFT(BG$39,4)*1)-INT($L42)<LEFT($BG$39,4)*1,0,((OFFSET(BR42,0,-INT($L42+0.5),1,1))/$L42)*(IF($L42-INT($L42)>0.5,$L42-0.5-INT($L42),IF($L42-INT($L42)<=0.5,$L42-0.5-INT($L42)+1,0)))) +BR42/$L42*0.5, IF($J42="Declining Balance",-$BG$38,0)))) -> 0.00675 | BH42: =IF($L42=0,0, IF($L42<=0.5,BS42, IF(AND($J42="straight line",$L42<1.51),(BR42-((BR42/$L42)*0.5))+BS42/$L42*0.5, IF($J42="straight line", IF((LEFT(BH$39,4)*1)-INT($L42)<LEFT($BG$39,4)*1,0,((OFFSET(BS42,0,-INT($L42+0.5),1,1))/$L42)*(IF($L42-INT($L42)>0.5,$L42-0.5-INT($L42),IF($L42-INT($L42)<=0.5,$L42-0.5-INT($L42)+1,0)))) +BS42/$L42*0.5 +SUM(OFFSET(BS42,0,MAX(-INT($L42+(0.5-(10^-12))),-BH$40)+1,1,MIN(INT($L42+(0.5-(10^-12))),BH$40)-1))*1/$L42, IF($J42="Declining Balance",-$BG$38,0))))) -> 0.02025 | BI42: =IF($L42=0,0, IF($L42<=0.5,BT42, IF(AND($J42="straight line",$L42<1.51),(BS42-((BS42/$L42)*0.5))+BT42/$L42*0.5, IF($J42="straight line", IF((LEFT(BI$39,4)*1)-INT($L42)<LEFT($BG$39,4)*1,0,((OFFSET(BT42,0,-INT($L42+0.5),1,1))/$L42)*(IF($L42-INT($L42)>0.5,$L42-0.5-INT($L42),IF($L42-INT($L42)<=0.5,$L42-0.5-INT($L42)+1,0)))) +BT42/$L42*0.5 +SUM(OFFSET(BT42,0,MAX(-INT($L42+(0.5-(10^-12))),-BI$40)+1,1,MIN(INT($L42+(0.5-(10^-12))),BI$40)-1))*1/$L42, IF($J42="Declining Balance",-$BG$38,0))))) -> 0.03375 | BJ42: 0.04725 | BK42: 0.06075 | BL42: 0.07425 | BM42: 0.08775 | BN42: 0.10125 | BO42: 0.11475 | BP42: 0.12825 | BR42: =+IF($K42="Ongoing",AV42,IF(RIGHT($K42,2)=RIGHT(BR$39,2),SUM($AV42:AV42),0)+IF(RIGHT(BR$39,2)>RIGHT($K42,2),AV42,0)) -> 1.08 | BS42: =+IF($K42="Ongoing",AW42,IF(RIGHT($K42,2)=RIGHT(BS$39,2),SUM($AV42:AW42),0)+IF(RIGHT(BS$39,2)>RIGHT($K42,2),AW42,0)) -> 1.08 | BT42: =+IF($K42="Ongoing",AX42,IF(RIGHT($K42,2)=RIGHT(BT$39,2),SUM($AV42:AX42),0)+IF(RIGHT(BT$39,2)>RIGHT($K42,2),AX42,0)) -> 1.08 | BU42: =+IF($K42="Ongoing",AY42,IF(RIGHT($K42,2)=RIGHT(BU$39,2),SUM($AV42:AY42),0)+IF(RIGHT(BU$39,2)>RIGHT($K42,2),AY42,0)) -> 1.08 | BV42: =+IF($K42="Ongoing",AZ42,IF(RIGHT($K42,2)=RIGHT(BV$39,2),SUM($AV42:AZ42),0)+IF(RIGHT(BV$39,2)>RIGHT($K42,2),AZ42,0)) -> 1.08 | BW42: =+IF($K42="Ongoing",BA42,IF(RIGHT($K42,2)=RIGHT(BW$39,2),SUM($AV42:BA42),0)+IF(RIGHT(BW$39,2)>RIGHT($K42,2),BA42,0)) -> 1.08 | BX42: =+IF($K42="Ongoing",BB42,IF(RIGHT($K42,2)=RIGHT(BX$39,2),SUM($AV42:BB42),0)+IF(RIGHT(BX$39,2)>RIGHT($K42,2),BB42,0)) -> 1.08 | BY42: =+IF($K42="Ongoing",BC42,IF(RIGHT($K42,2)=RIGHT(BY$39,2),SUM($AV42:BC42),0)+IF(RIGHT(BY$39,2)>RIGHT($K42,2),BC42,0)) -> 1.08 | BZ42: =+IF($K42="Ongoing",BD42,IF(RIGHT($K42,2)=RIGHT(BZ$39,2),SUM($AV42:BD42),0)+IF(RIGHT(BZ$39,2)>RIGHT($K42,2),BD42,0)) -> 1.08 | CA42: =+IF($K42="Ongoing",BE42,IF(RIGHT($K42,2)=RIGHT(CA$39,2),SUM($AV42:BE42),0)+IF(RIGHT(CA$39,2)>RIGHT($K42,2),BE42,0)) -> 1.08 | CC42: =+O42*KeyAssumptionsPriceControl_FO!X$15 -> 1.10484 | CD42: =+P42*KeyAssumptionsPriceControl_FO!Y$15 -> 1.13025132 | CE42: =+Q42*KeyAssumptionsPriceControl_FO!Z$15 -> 1.1562471 | CF42: =+R42*KeyAssumptionsPriceControl_FO!AA$15 -> 1.182840784 | CG42: =+S42*KeyAssumptionsPriceControl_FO!AB$15 -> 1.210046122 | CH42: =+T42*KeyAssumptionsPriceControl_FO!AC$15 -> 1.237877182 | CI42: =+U42*KeyAssumptionsPriceControl_FO!AD$15 -> 1.266348358 | CJ42: =+V42*KeyAssumptionsPriceControl_FO!AE$15 -> 1.29547437 | CK42: =+W42*KeyAssumptionsPriceControl_FO!AF$15 -> 1.32527028 | CL42: =+X42*KeyAssumptionsPriceControl_FO!AG$15 -> 1.355751497 | CN42: =IF($M42=0,0, IF($M42<=0.5,CC42, IF($J42="straight line", IF((LEFT(CN$39,4)*1)-INT($M42)<LEFT($CN$39,4)*1,0,((OFFSET(CC42,0,-INT($M42+0.5),1,1))/$M42)*(IF($M42-INT($M42)>0.5,$M42-0.5-INT($M42),IF($M42-INT($M42)<=0.5,$M42-0.5-INT($M42)+1,0)))) +CC42/$M42*0.5, IF($J42="Declining Balance",-$CN$38,0)))) -> 0.0248589 | CO42: =IF($M42=0,0, IF($M42<=0.5,CD42, IF(AND($J42="straight line",$M42<1.51),(CC42-((CC42/$M42)*0.5))+CD42/$M42*0.5, IF($J42="straight line", IF((LEFT(CO$39,4)*1)-INT($M42)<LEFT($CN$39,4)*1,0,((OFFSET(CD42,0,-INT($M42+0.5),1,1))/$M42)*(IF($M42-INT($M42)>0.5,$M42-0.5-INT($M42),IF($M42-INT($M42)<=0.5,$M42-0.5-INT($M42)+1,0)))) +CD42/$M42*0.5 +SUM(OFFSET(CD42,0,MAX(-INT($M42+(0.5-(10^-12))),-CO$40)+1,1,MIN(INT($M42+(0.5-(10^-12))),CO$40)-1))*1/$M42, IF($J42="Declining Balance",-$CN$38,0))))) -> 0.0751484547 | CP42: =IF($M42=0,0, IF($M42<=0.5,CE42, IF(AND($J42="straight line",$M42<1.51),(CD42-((CD42/$M42)*0.5))+CE42/$M42*0.5, IF($J42="straight line", IF((LEFT(CP$39,4)*1)-INT($M42)<LEFT($CN$39,4)*1,0,((OFFSET(CE42,0,-INT($M42+0.5),1,1))/$M42)*(IF($M42-INT($M42)>0.5,$M42-0.5-INT($M42),IF($M42-INT($M42)<=0.5,$M42-0.5-INT($M42)+1,0)))) +CE42/$M42*0.5 +SUM(OFFSET(CE42,0,MAX(-INT($M42+(0.5-(10^-12))),-CP$40)+1,1,MIN(INT($M42+(0.5-(10^-12))),CP$40)-1))*1/$M42, IF($J42="Declining Balance",-$CN$38,0))))) -> 0.1265946692 | CQ42: 0.1792241465 | CR42: 0.2330641019 | CS42: 0.2881423763 | CT42: 0.3444874509 | CU42: 0.4021284623 | CV42: 0.4610952169 | CW42: 0.5214182069
C43: ALL SITES - UV Treatment Plants | D43: 0 | E43: Water | F43: Improvements / Compliance | G43: Treatment | H43: Top 10 Major Projects | J43: Straight line | K43: 2022-23 | L43: 45 | M43: 22.22222222 | O43: 3.4 | P43: 0 | Q43: 0 | R43: 3.28 | S43: 3.32 | T43: 0 | U43: 0 | V43: 0 | W43: 0 | X43: 0 | AV43: =+O43-Z43-AK43 -> 3.4 | AW43: 0 | AX43: 0 | AY43: 3.28 | AZ43: 3.32 | BA43: 0 | BB43: 0 | BC43: 0 | BD43: 0 | BE43: 0 | BG43: =IF($L43=0,0, IF($L43<=0.5,BR43, IF($J43="straight line", IF((LEFT(BG$39,4)*1)-INT($L43)<LEFT($BG$39,4)*1,0,((OFFSET(BR43,0,-INT($L43+0.5),1,1))/$L43)*(IF($L43-INT($L43)>0.5,$L43-0.5-INT($L43),IF($L43-INT($L43)<=0.5,$L43-0.5-INT($L43)+1,0)))) +BR43/$L43*0.5, IF($J43="Declining Balance",-$BG$38,0)))) -> 0 | BH43: =IF($L43=0,0, IF($L43<=0.5,BS43, IF(AND($J43="straight line",$L43<1.51),(BR43-((BR43/$L43)*0.5))+BS43/$L43*0.5, IF($J43="straight line", IF((LEFT(BH$39,4)*1)-INT($L43)<LEFT($BG$39,4)*1,0,((OFFSET(BS43,0,-INT($L43+0.5),1,1))/$L43)*(IF($L43-INT($L43)>0.5,$L43-0.5-INT($L43),IF($L43-INT($L43)<=0.5,$L43-0.5-INT($L43)+1,0)))) +BS43/$L43*0.5 +SUM(OFFSET(BS43,0,MAX(-INT($L43+(0.5-(10^-12))),-BH$40)+1,1,MIN(INT($L43+(0.5-(10^-12))),BH$40)-1))*1/$L43, IF($J43="Declining Balance",-$BG$38,0))))) -> 0 | BI43: 0 | BJ43: 0 | BK43: 0.1111111111 | BL43: 0.2222222222 | BM43: 0.2222222222 | BN43: 0.2222222222 | BO43: 0.2222222222 | BP43: 0.2222222222 | BR43: =+IF($K43="Ongoing",AV43,IF(RIGHT($K43,2)=RIGHT(BR$39,2),SUM($AV43:AV43),0)+IF(RIGHT(BR$39,2)>RIGHT($K43,2),AV43,0)) -> 0 | BS43: =+IF($K43="Ongoing",AW43,IF(RIGHT($K43,2)=RIGHT(BS$39,2),SUM($AV43:AW43),0)+IF(RIGHT(BS$39,2)>RIGHT($K43,2),AW43,0)) -> 0 | BT43: =+IF($K43="Ongoing",AX43,IF(RIGHT($K43,2)=RIGHT(BT$39,2),SUM($AV43:AX43),0)+IF(RIGHT(BT$39,2)>RIGHT($K43,2),AX43,0)) -> 0 | BU43: =+IF($K43="Ongoing",AY43,IF(RIGHT($K43,2)=RIGHT(BU$39,2),SUM($AV43:AY43),0)+IF(RIGHT(BU$39,2)>RIGHT($K43,2),AY43,0)) -> 0 | BV43: =+IF($K43="Ongoing",AZ43,IF(RIGHT($K43,2)=RIGHT(BV$39,2),SUM($AV43:AZ43),0)+IF(RIGHT(BV$39,2)>RIGHT($K43,2),AZ43,0)) -> 10 | BW43: =+IF($K43="Ongoing",BA43,IF(RIGHT($K43,2)=RIGHT(BW$39,2),SUM($AV43:BA43),0)+IF(RIGHT(BW$39,2)>RIGHT($K43,2),BA43,0)) -> 0 | BX43: =+IF($K43="Ongoing",BB43,IF(RIGHT($K43,2)=RIGHT(BX$39,2),SUM($AV43:BB43),0)+IF(RIGHT(BX$39,2)>RIGHT($K43,2),BB43,0)) -> 0 | BY43: =+IF($K43="Ongoing",BC43,IF(RIGHT($K43,2)=RIGHT(BY$39,2),SUM($AV43:BC43),0)+IF(RIGHT(BY$39,2)>RIGHT($K43,2),BC43,0)) -> 0 | BZ43: =+IF($K43="Ongoing",BD43,IF(RIGHT($K43,2)=RIGHT(BZ$39,2),SUM($AV43:BD43),0)+IF(RIGHT(BZ$39,2)>RIGHT($K43,2),BD43,0)) -> 0 | CA43: =+IF($K43="Ongoing",BE43,IF(RIGHT($K43,2)=RIGHT(CA$39,2),SUM($AV43:BE43),0)+IF(RIGHT(CA$39,2)>RIGHT($K43,2),BE43,0)) -> 0 | CC43: =+O43*KeyAssumptionsPriceControl_FO!X$15 -> 3.4782 | CD43: =+P43*KeyAssumptionsPriceControl_FO!Y$15 -> 0 | CE43: =+Q43*KeyAssumptionsPriceControl_FO!Z$15 -> 0 | CF43: =+R43*KeyAssumptionsPriceControl_FO!AA$15 -> 3.592331269 | CG43: =+S43*KeyAssumptionsPriceControl_FO!AB$15 -> 3.719771411 | CH43: =+T43*KeyAssumptionsPriceControl_FO!AC$15 -> 0 | CI43: =+U43*KeyAssumptionsPriceControl_FO!AD$15 -> 0 | CJ43: =+V43*KeyAssumptionsPriceControl_FO!AE$15 -> 0 | CK43: =+W43*KeyAssumptionsPriceControl_FO!AF$15 -> 0 | CL43: =+X43*KeyAssumptionsPriceControl_FO!AG$15 -> 0 | CN43: =IF($M43=0,0, IF($M43<=0.5,CC43, IF($J43="straight line", IF((LEFT(CN$39,4)*1)-INT($M43)<LEFT($CN$39,4)*1,0,((OFFSET(CC43,0,-INT($M43+0.5),1,1))/$M43)*(IF($M43-INT($M43)>0.5,$M43-0.5-INT($M43),IF($M43-INT($M43)<=0.5,$M43-0.5-INT($M43)+1,0)))) +CC43/$M43*0.5, IF($J43="Declining Balance",-$CN$38,0)))) -> 0.0782595 | CO43: =IF($M43=0,0, IF($M43<=0.5,CD43, IF(AND($J43="straight line",$M43<1.51),(CC43-((CC43/$M43)*0.5))+CD43/$M43*0.5, IF($J43="straight line", IF((LEFT(CO$39,4)*1)-INT($M43)<LEFT($CN$39,4)*1,0,((OFFSET(CD43,0,-INT($M43+0.5),1,1))/$M43)*(IF($M43-INT($M43)>0.5,$M43-0.5-INT($M43),IF($M43-INT($M43)<=0.5,$M43-0.5-INT($M43)+1,0)))) +CD43/$M43*0.5 +SUM(OFFSET(CD43,0,MAX(-INT($M43+(0.5-(10^-12))),-CO$40)+1,1,MIN(INT($M43+(0.5-(10^-12))),CO$40)-1))*1/$M43, IF($J43="Declining Balance",-$CN$38,0))))) -> 0.156519 | CP43: 0.156519 | CQ43: 0.2373464536 | CR43: 0.4018687639 | CS43: 0.4855636206 | CT43: 0.4855636206 | CU43: 0.4855636206 | CV43: 0.4855636206 | CW43: 0.4855636206
C44: KER - Kerang Replace Treated Water Pump Station | D44: 0 | E44: Water | F44: Renewals | G44: Treatment | H44: Top 10 Major Projects | J44: Straight line | K44: 2018-19 | L44: 80 | M44: 22.22222222 | O44: 0.75 | P44: 0 | Q44: 0 | R44: 0 | S44: 0 | T44: 0 | U44: 0 | V44: 0 | W44: 0 | X44: 0 | AV44: 0.75 | AW44: 0 | AX44: 0 | AY44: 0 | AZ44: 0 | BA44: 0 | BB44: 0 | BC44: 0 | BD44: 0 | BE44: 0 | BG44: 0.0046875 | BH44: 0.009375 | BI44: 0.009375 | BJ44: 0.009375 | BK44: 0.009375 | BL44: 0.009375 | BM44: 0.009375 | BN44: 0.009375 | BO44: 0.009375 | BP44: 0.009375 | BR44: =+IF($K44="Ongoing",AV44,IF(RIGHT($K44,2)=RIGHT(BR$39,2),SUM($AV44:AV44),0)+IF(RIGHT(BR$39,2)>RIGHT($K44,2),AV44,0)) -> 0.75 | BS44: =+IF($K44="Ongoing",AW44,IF(RIGHT($K44,2)=RIGHT(BS$39,2),SUM($AV44:AW44),0)+IF(RIGHT(BS$39,2)>RIGHT($K44,2),AW44,0)) -> 0 | BT44: =+IF($K44="Ongoing",AX44,IF(RIGHT($K44,2)=RIGHT(BT$39,2),SUM($AV44:AX44),0)+IF(RIGHT(BT$39,2)>RIGHT($K44,2),AX44,0)) -> 0 | BU44: =+IF($K44="Ongoing",AY44,IF(RIGHT($K44,2)=RIGHT(BU$39,2),SUM($AV44:AY44),0)+IF(RIGHT(BU$39,2)>RIGHT($K44,2),AY44,0)) -> 0 | BV44: =+IF($K44="Ongoing",AZ44,IF(RIGHT($K44,2)=RIGHT(BV$39,2),SUM($AV44:AZ44),0)+IF(RIGHT(BV$39,2)>RIGHT($K44,2),AZ44,0)) -> 0 | BW44: =+IF($K44="Ongoing",BA44,IF(RIGHT($K44,2)=RIGHT(BW$39,2),SUM($AV44:BA44),0)+IF(RIGHT(BW$39,2)>RIGHT($K44,2),BA44,0)) -> 0 | BX44: =+IF($K44="Ongoing",BB44,IF(RIGHT($K44,2)=RIGHT(BX$39,2),SUM($AV44:BB44),0)+IF(RIGHT(BX$39,2)>RIGHT($K44,2),BB44,0)) -> 0 | BY44: =+IF($K44="Ongoing",BC44,IF(RIGHT($K44,2)=RIGHT(BY$39,2),SUM($AV44:BC44),0)+IF(RIGHT(BY$39,2)>RIGHT($K44,2),BC44,0)) -> 0 | BZ44: =+IF($K44="Ongoing",BD44,IF(RIGHT($K44,2)=RIGHT(BZ$39,2),SUM($AV44:BD44),0)+IF(RIGHT(BZ$39,2)>RIGHT($K44,2),BD44,0)) -> 0 | CA44: =+IF($K44="Ongoing",BE44,IF(RIGHT($K44,2)=RIGHT(CA$39,2),SUM($AV44:BE44),0)+IF(RIGHT(CA$39,2)>RIGHT($K44,2),BE44,0)) -> 0 | CC44: =+O44*KeyAssumptionsPriceControl_FO!X$15 -> 0.76725 | CD44: =+P44*KeyAssumptionsPriceControl_FO!Y$15 -> 0 | CE44: =+Q44*KeyAssumptionsPriceControl_FO!Z$15 -> 0 | CF44: =+R44*KeyAssumptionsPriceControl_FO!AA$15 -> 0 | CG44: =+S44*KeyAssumptionsPriceControl_FO!AB$15 -> 0 | CH44: =+T44*KeyAssumptionsPriceControl_FO!AC$15 -> 0 | CI44: =+U44*KeyAssumptionsPriceControl_FO!AD$15 -> 0 | CJ44: =+V44*KeyAssumptionsPriceControl_FO!AE$15 -> 0 | CK44: =+W44*KeyAssumptionsPriceControl_FO!AF$15 -> 0 | CL44: =+X44*KeyAssumptionsPriceControl_FO!AG$15 -> 0 | CN44: 0.017263125 | CO44: 0.03452625 | CP44: 0.03452625 | CQ44: 0.03452625 | CR44: 0.03452625 | CS44: 0.03452625 | CT44: 0.03452625 | CU44: 0.03452625 | CV44: 0.03452625 | CW44: 0.03452625
C45: S/H DN450 Truck Main Arnoldt/Stratbroke (1,245 m) | D45: 0 | E45: Water | F45: Growth | G45: Treatment | H45: Top 10 Major Projects | J45: Straight line | K45: 2020-21 | L45: 45 | M45: 22.22222222 | O45: 0 | P45: 0 | Q45: 0.8 | R45: 0 | S45: 0 | T45: 0 | U45: 0 | V45: 0 | W45: 0 | X45: 0 | AV45: 0 | AW45: 0 | AX45: 0.8 | AY45: 0 | AZ45: 0 | BA45: 0 | BB45: 0 | BC45: 0 | BD45: 0 | BE45: 0 | BG45: 0 | BH45: 0 | BI45: 0.008888888889 | BJ45: 0.01777777778 | BK45: 0.01777777778 | BL45: 0.01777777778 | BM45: 0.01777777778 | BN45: 0.01777777778 | BO45: 0.01777777778 | BP45: 0.01777777778 | BR45: =+IF($K45="Ongoing",AV45,IF(RIGHT($K45,2)=RIGHT(BR$39,2),SUM($AV45:AV45),0)+IF(RIGHT(BR$39,2)>RIGHT($K45,2),AV45,0)) -> 0 | BS45: =+IF($K45="Ongoing",AW45,IF(RIGHT($K45,2)=RIGHT(BS$39,2),SUM($AV45:AW45),0)+IF(RIGHT(BS$39,2)>RIGHT($K45,2),AW45,0)) -> 0 | BT45: =+IF($K45="Ongoing",AX45,IF(RIGHT($K45,2)=RIGHT(BT$39,2),SUM($AV45:AX45),0)+IF(RIGHT(BT$39,2)>RIGHT($K45,2),AX45,0)) -> 0.8 | BU45: =+IF($K45="Ongoing",AY45,IF(RIGHT($K45,2)=RIGHT(BU$39,2),SUM($AV45:AY45),0)+IF(RIGHT(BU$39,2)>RIGHT($K45,2),AY45,0)) -> 0 | BV45: =+IF($K45="Ongoing",AZ45,IF(RIGHT($K45,2)=RIGHT(BV$39,2),SUM($AV45:AZ45),0)+IF(RIGHT(BV$39,2)>RIGHT($K45,2),AZ45,0)) -> 0 | BW45: =+IF($K45="Ongoing",BA45,IF(RIGHT($K45,2)=RIGHT(BW$39,2),SUM($AV45:BA45),0)+IF(RIGHT(BW$39,2)>RIGHT($K45,2),BA45,0)) -> 0 | BX45: =+IF($K45="Ongoing",BB45,IF(RIGHT($K45,2)=RIGHT(BX$39,2),SUM($AV45:BB45),0)+IF(RIGHT(BX$39,2)>RIGHT($K45,2),BB45,0)) -> 0 | BY45: =+IF($K45="Ongoing",BC45,IF(RIGHT($K45,2)=RIGHT(BY$39,2),SUM($AV45:BC45),0)+IF(RIGHT(BY$39,2)>RIGHT($K45,2),BC45,0)) -> 0 | BZ45: =+IF($K45="Ongoing",BD45,IF(RIGHT($K45,2)=RIGHT(BZ$39,2),SUM($AV45:BD45),0)+IF(RIGHT(BZ$39,2)>RIGHT($K45,2),BD45,0)) -> 0 | CA45: =+IF($K45="Ongoing",BE45,IF(RIGHT($K45,2)=RIGHT(CA$39,2),SUM($AV45:BE45),0)+IF(RIGHT(CA$39,2)>RIGHT($K45,2),BE45,0)) -> 0 | CC45: =+O45*KeyAssumptionsPriceControl_FO!X$15 -> 0 | CD45: =+P45*KeyAssumptionsPriceControl_FO!Y$15 -> 0 | CE45: =+Q45*KeyAssumptionsPriceControl_FO!Z$15 -> 0.8564793336 | CF45: =+R45*KeyAssumptionsPriceControl_FO!AA$15 -> 0 | CG45: =+S45*KeyAssumptionsPriceControl_FO!AB$15 -> 0 | CH45: =+T45*KeyAssumptionsPriceControl_FO!AC$15 -> 0 | CI45: =+U45*KeyAssumptionsPriceControl_FO!AD$15 -> 0 | CJ45: =+V45*KeyAssumptionsPriceControl_FO!AE$15 -> 0 | CK45: =+W45*KeyAssumptionsPriceControl_FO!AF$15 -> 0 | CL45: =+X45*KeyAssumptionsPriceControl_FO!AG$15 -> 0 | CN45: 0 | CO45: 0 | CP45: 0.01927078501 | CQ45: 0.03854157001 | CR45: 0.03854157001 | CS45: 0.03854157001 | CT45: 0.03854157001 | CU45: 0.03854157001 | CV45: 0.03854157001 | CW45: 0.03854157001
C46: SH North WTP 6 ML Ground Level Storage | D46: 0 | E46: Water | F46: Growth | G46: Pipelines/network | H46: Top 10 Major Projects | J46: Straight line | K46: 2020-21 | L46: 80 | M46: 22.22222222 | O46: 0 | P46: 0 | Q46: 3.1 | R46: 0 | S46: 0 | T46: 0 | U46: 0 | V46: 0 | W46: 0 | X46: 0 | AV46: 0 | AW46: 0 | AX46: 3.1 | AY46: 0 | AZ46: 0 | BA46: 0 | BB46: 0 | BC46: 0 | BD46: 0 | BE46: 0 | BG46: 0 | BH46: 0 | BI46: 0.019375 | BJ46: 0.03875 | BK46: 0.03875 | BL46: 0.03875 | BM46: 0.03875 | BN46: 0.03875 | BO46: 0.03875 | BP46: 0.03875 | BR46: =+IF($K46="Ongoing",AV46,IF(RIGHT($K46,2)=RIGHT(BR$39,2),SUM($AV46:AV46),0)+IF(RIGHT(BR$39,2)>RIGHT($K46,2),AV46,0)) -> 0 | BS46: =+IF($K46="Ongoing",AW46,IF(RIGHT($K46,2)=RIGHT(BS$39,2),SUM($AV46:AW46),0)+IF(RIGHT(BS$39,2)>RIGHT($K46,2),AW46,0)) -> 0 | BT46: =+IF($K46="Ongoing",AX46,IF(RIGHT($K46,2)=RIGHT(BT$39,2),SUM($AV46:AX46),0)+IF(RIGHT(BT$39,2)>RIGHT($K46,2),AX46,0)) -> 3.1 | BU46: =+IF($K46="Ongoing",AY46,IF(RIGHT($K46,2)=RIGHT(BU$39,2),SUM($AV46:AY46),0)+IF(RIGHT(BU$39,2)>RIGHT($K46,2),AY46,0)) -> 0 | BV46: =+IF($K46="Ongoing",AZ46,IF(RIGHT($K46,2)=RIGHT(BV$39,2),SUM($AV46:AZ46),0)+IF(RIGHT(BV$39,2)>RIGHT($K46,2),AZ46,0)) -> 0 | BW46: =+IF($K46="Ongoing",BA46,IF(RIGHT($K46,2)=RIGHT(BW$39,2),SUM($AV46:BA46),0)+IF(RIGHT(BW$39,2)>RIGHT($K46,2),BA46,0)) -> 0 | BX46: =+IF($K46="Ongoing",BB46,IF(RIGHT($K46,2)=RIGHT(BX$39,2),SUM($AV46:BB46),0)+IF(RIGHT(BX$39,2)>RIGHT($K46,2),BB46,0)) -> 0 | BY46: =+IF($K46="Ongoing",BC46,IF(RIGHT($K46,2)=RIGHT(BY$39,2),SUM($AV46:BC46),0)+IF(RIGHT(BY$39,2)>RIGHT($K46,2),BC46,0)) -> 0 | BZ46: =+IF($K46="Ongoing",BD46,IF(RIGHT($K46,2)=RIGHT(BZ$39,2),SUM($AV46:BD46),0)+IF(RIGHT(BZ$39,2)>RIGHT($K46,2),BD46,0)) -> 0 | CA46: =+IF($K46="Ongoing",BE46,IF(RIGHT($K46,2)=RIGHT(CA$39,2),SUM($AV46:BE46),0)+IF(RIGHT(CA$39,2)>RIGHT($K46,2),BE46,0)) -> 0 | CC46: =+O46*KeyAssumptionsPriceControl_FO!X$15 -> 0 | CD46: =+P46*KeyAssumptionsPriceControl_FO!Y$15 -> 0 | CE46: =+Q46*KeyAssumptionsPriceControl_FO!Z$15 -> 3.318857418 | CF46: =+R46*KeyAssumptionsPriceControl_FO!AA$15 -> 0 | CG46: =+S46*KeyAssumptionsPriceControl_FO!AB$15 -> 0 | CH46: =+T46*KeyAssumptionsPriceControl_FO!AC$15 -> 0 | CI46: =+U46*KeyAssumptionsPriceControl_FO!AD$15 -> 0 | CJ46: =+V46*KeyAssumptionsPriceControl_FO!AE$15 -> 0 | CK46: =+W46*KeyAssumptionsPriceControl_FO!AF$15 -> 0 | CL46: =+X46*KeyAssumptionsPriceControl_FO!AG$15 -> 0 | CN46: 0 | CO46: 0 | CP46: 0.0746742919 | CQ46: 0.1493485838 | CR46: 0.1493485838 | CS46: 0.1493485838 | CT46: 0.1493485838 | CU46: 0.1493485838 | CV46: 0.1493485838 | CW46: 0.1493485838
C47: SH - North WTP Treated Water Pump Station (Stage 1) | D47: 0 | E47: Water | F47: Growth | G47: Pipelines/network | H47: Top 10 Major Projects | J47: Straight line | K47: 2020-21 | L47: 80 | M47: 22.22222222 | O47: 0 | P47: 0 | Q47: 1.6 | R47: 0 | S47: 0 | T47: 0 | U47: 0 | V47: 0 | W47: 0 | X47: 0 | AV47: 0 | AW47: 0 | AX47: 1.6 | AY47: 0 | AZ47: 0 | BA47: 0 | BB47: 0 | BC47: 0 | BD47: 0 | BE47: 0 | BG47: 0 | BH47: 0 | BI47: 0.01 | BJ47: 0.02 | BK47: 0.02 | BL47: 0.02 | BM47: 0.02 | BN47: 0.02 | BO47: 0.02 | BP47: 0.02 | BR47: =+IF($K47="Ongoing",AV47,IF(RIGHT($K47,2)=RIGHT(BR$39,2),SUM($AV47:AV47),0)+IF(RIGHT(BR$39,2)>RIGHT($K47,2),AV47,0)) -> 0 | BS47: =+IF($K47="Ongoing",AW47,IF(RIGHT($K47,2)=RIGHT(BS$39,2),SUM($AV47:AW47),0)+IF(RIGHT(BS$39,2)>RIGHT($K47,2),AW47,0)) -> 0 | BT47: =+IF($K47="Ongoing",AX47,IF(RIGHT($K47,2)=RIGHT(BT$39,2),SUM($AV47:AX47),0)+IF(RIGHT(BT$39,2)>RIGHT($K47,2),AX47,0)) -> 1.6 | BU47: =+IF($K47="Ongoing",AY47,IF(RIGHT($K47,2)=RIGHT(BU$39,2),SUM($AV47:AY47),0)+IF(RIGHT(BU$39,2)>RIGHT($K47,2),AY47,0)) -> 0 | BV47: =+IF($K47="Ongoing",AZ47,IF(RIGHT($K47,2)=RIGHT(BV$39,2),SUM($AV47:AZ47),0)+IF(RIGHT(BV$39,2)>RIGHT($K47,2),AZ47,0)) -> 0 | BW47: =+IF($K47="Ongoing",BA47,IF(RIGHT($K47,2)=RIGHT(BW$39,2),SUM($AV47:BA47),0)+IF(RIGHT(BW$39,2)>RIGHT($K47,2),BA47,0)) -> 0 | BX47: =+IF($K47="Ongoing",BB47,IF(RIGHT($K47,2)=RIGHT(BX$39,2),SUM($AV47:BB47),0)+IF(RIGHT(BX$39,2)>RIGHT($K47,2),BB47,0)) -> 0 | BY47: =+IF($K47="Ongoing",BC47,IF(RIGHT($K47,2)=RIGHT(BY$39,2),SUM($AV47:BC47),0)+IF(RIGHT(BY$39,2)>RIGHT($K47,2),BC47,0)) -> 0 | BZ47: =+IF($K47="Ongoing",BD47,IF(RIGHT($K47,2)=RIGHT(BZ$39,2),SUM($AV47:BD47),0)+IF(RIGHT(BZ$39,2)>RIGHT($K47,2),BD47,0)) -> 0 | CA47: =+IF($K47="Ongoing",BE47,IF(RIGHT($K47,2)=RIGHT(CA$39,2),SUM($AV47:BE47),0)+IF(RIGHT(CA$39,2)>RIGHT($K47,2),BE47,0)) -> 0 | CC47: =+O47*KeyAssumptionsPriceControl_FO!X$15 -> 0 | CD47: =+P47*KeyAssumptionsPriceControl_FO!Y$15 -> 0 | CE47: =+Q47*KeyAssumptionsPriceControl_FO!Z$15 -> 1.712958667 | CF47: =+R47*KeyAssumptionsPriceControl_FO!AA$15 -> 0 | CG47: =+S47*KeyAssumptionsPriceControl_FO!AB$15 -> 0 | CH47: =+T47*KeyAssumptionsPriceControl_FO!AC$15 -> 0 | CI47: =+U47*KeyAssumptionsPriceControl_FO!AD$15 -> 0 | CJ47: =+V47*KeyAssumptionsPriceControl_FO!AE$15 -> 0 | CK47: =+W47*KeyAssumptionsPriceControl_FO!AF$15 -> 0 | CL47: =+X47*KeyAssumptionsPriceControl_FO!AG$15 -> 0 | CN47: 0 | CO47: 0 | CP47: 0.03854157001 | CQ47: 0.07708314002 | CR47: 0.07708314002 | CS47: 0.07708314002 | CT47: 0.07708314002 | CU47: 0.07708314002 | CV47: 0.07708314002 | CW47: 0.07708314002
C48: KLG - WWTP Construct 400 ML Wet Weather Storage No 1 | D48: 0 | E48: Sewerage | F48: Growth | G48: Treatment | H48: Top 10 Major Projects | J48: Straight line | K48: 2019-20 | L48: 45 | M48: 22.22222222 | O48: 2 | P48: 2.5 | Q48: 0 | R48: 0 | S48: 0 | T48: 0 | U48: 0 | V48: 0 | W48: 0 | X48: 0 | AV48: 2 | AW48: 2.5 | AX48: 0 | AY48: 0 | AZ48: 0 | BA48: 0 | BB48: 0 | BC48: 0 | BD48: 0 | BE48: 0 | BG48: 0 | BH48: 0.05 | BI48: 0.1 | BJ48: 0.1 | BK48: 0.1 | BL48: 0.1 | BM48: 0.1 | BN48: 0.1 | BO48: 0.1 | BP48: 0.1 | BR48: =+IF($K48="Ongoing",AV48,IF(RIGHT($K48,2)=RIGHT(BR$39,2),SUM($AV48:AV48),0)+IF(RIGHT(BR$39,2)>RIGHT($K48,2),AV48,0)) -> 0 | BS48: =+IF($K48="Ongoing",AW48,IF(RIGHT($K48,2)=RIGHT(BS$39,2),SUM($AV48:AW48),0)+IF(RIGHT(BS$39,2)>RIGHT($K48,2),AW48,0)) -> 4.5 | BT48: =+IF($K48="Ongoing",AX48,IF(RIGHT($K48,2)=RIGHT(BT$39,2),SUM($AV48:AX48),0)+IF(RIGHT(BT$39,2)>RIGHT($K48,2),AX48,0)) -> 0 | BU48: =+IF($K48="Ongoing",AY48,IF(RIGHT($K48,2)=RIGHT(BU$39,2),SUM($AV48:AY48),0)+IF(RIGHT(BU$39,2)>RIGHT($K48,2),AY48,0)) -> 0 | BV48: =+IF($K48="Ongoing",AZ48,IF(RIGHT($K48,2)=RIGHT(BV$39,2),SUM($AV48:AZ48),0)+IF(RIGHT(BV$39,2)>RIGHT($K48,2),AZ48,0)) -> 0 | BW48: =+IF($K48="Ongoing",BA48,IF(RIGHT($K48,2)=RIGHT(BW$39,2),SUM($AV48:BA48),0)+IF(RIGHT(BW$39,2)>RIGHT($K48,2),BA48,0)) -> 0 | BX48: =+IF($K48="Ongoing",BB48,IF(RIGHT($K48,2)=RIGHT(BX$39,2),SUM($AV48:BB48),0)+IF(RIGHT(BX$39,2)>RIGHT($K48,2),BB48,0)) -> 0 | BY48: =+IF($K48="Ongoing",BC48,IF(RIGHT($K48,2)=RIGHT(BY$39,2),SUM($AV48:BC48),0)+IF(RIGHT(BY$39,2)>RIGHT($K48,2),BC48,0)) -> 0 | BZ48: =+IF($K48="Ongoing",BD48,IF(RIGHT($K48,2)=RIGHT(BZ$39,2),SUM($AV48:BD48),0)+IF(RIGHT(BZ$39,2)>RIGHT($K48,2),BD48,0)) -> 0 | CA48: =+IF($K48="Ongoing",BE48,IF(RIGHT($K48,2)=RIGHT(CA$39,2),SUM($AV48:BE48),0)+IF(RIGHT(CA$39,2)>RIGHT($K48,2),BE48,0)) -> 0 | CC48: =+O48*KeyAssumptionsPriceControl_FO!X$15 -> 2.046 | CD48: =+P48*KeyAssumptionsPriceControl_FO!Y$15 -> 2.6163225 | CE48: =+Q48*KeyAssumptionsPriceControl_FO!Z$15 -> 0 | CF48: =+R48*KeyAssumptionsPriceControl_FO!AA$15 -> 0 | CG48: =+S48*KeyAssumptionsPriceControl_FO!AB$15 -> 0 | CH48: =+T48*KeyAssumptionsPriceControl_FO!AC$15 -> 0 | CI48: =+U48*KeyAssumptionsPriceControl_FO!AD$15 -> 0 | CJ48: =+V48*KeyAssumptionsPriceControl_FO!AE$15 -> 0 | CK48: =+W48*KeyAssumptionsPriceControl_FO!AF$15 -> 0 | CL48: =+X48*KeyAssumptionsPriceControl_FO!AG$15 -> 0 | CN48: 0.046035 | CO48: 0.1509372562 | CP48: 0.2098045125 | CQ48: 0.2098045125 | CR48: 0.2098045125 | CS48: 0.2098045125 | CT48: 0.2098045125 | CU48: 0.2098045125 | CV48: 0.2098045125 | CW48: 0.2098045125
C49: KLG - WWTP Upgrade to ClearSCADA | D49: 0 | E49: Sewerage | F49: Renewals | G49: Treatment | H49: Top 10 Major Projects | J49: Straight line | K49: 2021-22 | L49: 45 | M49: 22.22222222 | O49: 0 | P49: 0.1 | Q49: 0.4 | R49: 0.7 | S49: 0 | T49: 0 | U49: 0 | V49: 0 | W49: 0 | X49: 0 | AV49: 0 | AW49: 0.1 | AX49: 0.4 | AY49: 0.7 | AZ49: 0 | BA49: 0 | BB49: 0 | BC49: 0 | BD49: 0 | BE49: 0 | BG49: 0 | BH49: 0 | BI49: 0 | BJ49: 0.01333333333 | BK49: 0.02666666667 | BL49: 0.02666666667 | BM49: 0.02666666667 | BN49: 0.02666666667 | BO49: 0.02666666667 | BP49: 0.02666666667 | BR49: =+IF($K49="Ongoing",AV49,IF(RIGHT($K49,2)=RIGHT(BR$39,2),SUM($AV49:AV49),0)+IF(RIGHT(BR$39,2)>RIGHT($K49,2),AV49,0)) -> 0 | BS49: =+IF($K49="Ongoing",AW49,IF(RIGHT($K49,2)=RIGHT(BS$39,2),SUM($AV49:AW49),0)+IF(RIGHT(BS$39,2)>RIGHT($K49,2),AW49,0)) -> 0 | BT49: =+IF($K49="Ongoing",AX49,IF(RIGHT($K49,2)=RIGHT(BT$39,2),SUM($AV49:AX49),0)+IF(RIGHT(BT$39,2)>RIGHT($K49,2),AX49,0)) -> 0 | BU49: =+IF($K49="Ongoing",AY49,IF(RIGHT($K49,2)=RIGHT(BU$39,2),SUM($AV49:AY49),0)+IF(RIGHT(BU$39,2)>RIGHT($K49,2),AY49,0)) -> 1.2 | BV49: =+IF($K49="Ongoing",AZ49,IF(RIGHT($K49,2)=RIGHT(BV$39,2),SUM($AV49:AZ49),0)+IF(RIGHT(BV$39,2)>RIGHT($K49,2),AZ49,0)) -> 0 | BW49: =+IF($K49="Ongoing",BA49,IF(RIGHT($K49,2)=RIGHT(BW$39,2),SUM($AV49:BA49),0)+IF(RIGHT(BW$39,2)>RIGHT($K49,2),BA49,0)) -> 0 | BX49: =+IF($K49="Ongoing",BB49,IF(RIGHT($K49,2)=RIGHT(BX$39,2),SUM($AV49:BB49),0)+IF(RIGHT(BX$39,2)>RIGHT($K49,2),BB49,0)) -> 0 | BY49: =+IF($K49="Ongoing",BC49,IF(RIGHT($K49,2)=RIGHT(BY$39,2),SUM($AV49:BC49),0)+IF(RIGHT(BY$39,2)>RIGHT($K49,2),BC49,0)) -> 0 | BZ49: =+IF($K49="Ongoing",BD49,IF(RIGHT($K49,2)=RIGHT(BZ$39,2),SUM($AV49:BD49),0)+IF(RIGHT(BZ$39,2)>RIGHT($K49,2),BD49,0)) -> 0 | CA49: =+IF($K49="Ongoing",BE49,IF(RIGHT($K49,2)=RIGHT(CA$39,2),SUM($AV49:BE49),0)+IF(RIGHT(CA$39,2)>RIGHT($K49,2),BE49,0)) -> 0 | CC49: =+O49*KeyAssumptionsPriceControl_FO!X$15 -> 0 | CD49: =+P49*KeyAssumptionsPriceControl_FO!Y$15 -> 0.1046529 | CE49: =+Q49*KeyAssumptionsPriceControl_FO!Z$15 -> 0.4282396668 | CF49: =+R49*KeyAssumptionsPriceControl_FO!AA$15 -> 0.7666560635 | CG49: =+S49*KeyAssumptionsPriceControl_FO!AB$15 -> 0 | CH49: =+T49*KeyAssumptionsPriceControl_FO!AC$15 -> 0 | CI49: =+U49*KeyAssumptionsPriceControl_FO!AD$15 -> 0 | CJ49: =+V49*KeyAssumptionsPriceControl_FO!AE$15 -> 0 | CK49: =+W49*KeyAssumptionsPriceControl_FO!AF$15 -> 0 | CL49: =+X49*KeyAssumptionsPriceControl_FO!AG$15 -> 0 | CN49: 0 | CO49: 0.00235469025 | CP49: 0.014344773 | CQ49: 0.04122992693 | CR49: 0.05847968836 | CS49: 0.05847968836 | CT49: 0.05847968836 | CU49: 0.05847968836 | CV49: 0.05847968836 | CW49: 0.05847968836
C50: MER WWTP Divert to Koorlong | D50: 0 | E50: Sewerage | F50: Growth | G50: Pipelines/network | H50: Top 10 Major Projects | J50: Straight line | K50: 2018-19 | L50: 45 | M50: 22.22222222 | O50: 0.95 | P50: 0 | Q50: 0 | R50: 0 | S50: 0 | T50: 0 | U50: 0 | V50: 0 | W50: 0 | X50: 0 | AV50: 0.95 | AW50: 0 | AX50: 0 | AY50: 0 | AZ50: 0 | BA50: 0 | BB50: 0 | BC50: 0 | BD50: 0 | BE50: 0 | BG50: 0.01055555556 | BH50: 0.02111111111 | BI50: 0.02111111111 | BJ50: 0.02111111111 | BK50: 0.02111111111 | BL50: 0.02111111111 | BM50: 0.02111111111 | BN50: 0.02111111111 | BO50: 0.02111111111 | BP50: 0.02111111111 | BR50: =+IF($K50="Ongoing",AV50,IF(RIGHT($K50,2)=RIGHT(BR$39,2),SUM($AV50:AV50),0)+IF(RIGHT(BR$39,2)>RIGHT($K50,2),AV50,0)) -> 0.95 | BS50: =+IF($K50="Ongoing",AW50,IF(RIGHT($K50,2)=RIGHT(BS$39,2),SUM($AV50:AW50),0)+IF(RIGHT(BS$39,2)>RIGHT($K50,2),AW50,0)) -> 0 | BT50: =+IF($K50="Ongoing",AX50,IF(RIGHT($K50,2)=RIGHT(BT$39,2),SUM($AV50:AX50),0)+IF(RIGHT(BT$39,2)>RIGHT($K50,2),AX50,0)) -> 0 | BU50: =+IF($K50="Ongoing",AY50,IF(RIGHT($K50,2)=RIGHT(BU$39,2),SUM($AV50:AY50),0)+IF(RIGHT(BU$39,2)>RIGHT($K50,2),AY50,0)) -> 0 | BV50: =+IF($K50="Ongoing",AZ50,IF(RIGHT($K50,2)=RIGHT(BV$39,2),SUM($AV50:AZ50),0)+IF(RIGHT(BV$39,2)>RIGHT($K50,2),AZ50,0)) -> 0 | BW50: =+IF($K50="Ongoing",BA50,IF(RIGHT($K50,2)=RIGHT(BW$39,2),SUM($AV50:BA50),0)+IF(RIGHT(BW$39,2)>RIGHT($K50,2),BA50,0)) -> 0 | BX50: =+IF($K50="Ongoing",BB50,IF(RIGHT($K50,2)=RIGHT(BX$39,2),SUM($AV50:BB50),0)+IF(RIGHT(BX$39,2)>RIGHT($K50,2),BB50,0)) -> 0 | BY50: =+IF($K50="Ongoing",BC50,IF(RIGHT($K50,2)=RIGHT(BY$39,2),SUM($AV50:BC50),0)+IF(RIGHT(BY$39,2)>RIGHT($K50,2),BC50,0)) -> 0 | BZ50: =+IF($K50="Ongoing",BD50,IF(RIGHT($K50,2)=RIGHT(BZ$39,2),SUM($AV50:BD50),0)+IF(RIGHT(BZ$39,2)>RIGHT($K50,2),BD50,0)) -> 0 | CA50: =+IF($K50="Ongoing",BE50,IF(RIGHT($K50,2)=RIGHT(CA$39,2),SUM($AV50:BE50),0)+IF(RIGHT(CA$39,2)>RIGHT($K50,2),BE50,0)) -> 0 | CC50: =+O50*KeyAssumptionsPriceControl_FO!X$15 -> 0.97185 | CD50: =+P50*KeyAssumptionsPriceControl_FO!Y$15 -> 0 | CE50: =+Q50*KeyAssumptionsPriceControl_FO!Z$15 -> 0 | CF50: =+R50*KeyAssumptionsPriceControl_FO!AA$15 -> 0 | CG50: =+S50*KeyAssumptionsPriceControl_FO!AB$15 -> 0 | CH50: =+T50*KeyAssumptionsPriceControl_FO!AC$15 -> 0 | CI50: =+U50*KeyAssumptionsPriceControl_FO!AD$15 -> 0 | CJ50: =+V50*KeyAssumptionsPriceControl_FO!AE$15 -> 0 | CK50: =+W50*KeyAssumptionsPriceControl_FO!AF$15 -> 0 | CL50: =+X50*KeyAssumptionsPriceControl_FO!AG$15 -> 0 | CN50: 0.021866625 | CO50: 0.04373325 | CP50: 0.04373325 | CQ50: 0.04373325 | CR50: 0.04373325 | CS50: 0.04373325 | CT50: 0.04373325 | CU50: 0.04373325 | CV50: 0.04373325 | CW50: 0.04373325
C51: S/H - Replace WWTP Rising Main Stage 2 | D51: 0 | E51: Sewerage | F51: Renewals | G51: Pipelines/network | H51: Top 10 Major Projects | J51: Straight line | K51: 2018-19 | L51: 45 | M51: 22.22222222 | O51: 1.8 | P51: 0 | Q51: 0 | R51: 0 | S51: 0 | T51: 0 | U51: 0 | V51: 0 | W51: 0 | X51: 0 | AV51: 1.8 | AW51: 0 | AX51: 0 | AY51: 0 | AZ51: 0 | BA51: 0 | BB51: 0 | BC51: 0 | BD51: 0 | BE51: 0 | BG51: 0.02 | BH51: 0.04 | BI51: 0.04 | BJ51: 0.04 | BK51: 0.04 | BL51: 0.04 | BM51: 0.04 | BN51: 0.04 | BO51: 0.04 | BP51: 0.04 | BR51: =+IF($K51="Ongoing",AV51,IF(RIGHT($K51,2)=RIGHT(BR$39,2),SUM($AV51:AV51),0)+IF(RIGHT(BR$39,2)>RIGHT($K51,2),AV51,0)) -> 1.8 | BS51: =+IF($K51="Ongoing",AW51,IF(RIGHT($K51,2)=RIGHT(BS$39,2),SUM($AV51:AW51),0)+IF(RIGHT(BS$39,2)>RIGHT($K51,2),AW51,0)) -> 0 | BT51: =+IF($K51="Ongoing",AX51,IF(RIGHT($K51,2)=RIGHT(BT$39,2),SUM($AV51:AX51),0)+IF(RIGHT(BT$39,2)>RIGHT($K51,2),AX51,0)) -> 0 | BU51: =+IF($K51="Ongoing",AY51,IF(RIGHT($K51,2)=RIGHT(BU$39,2),SUM($AV51:AY51),0)+IF(RIGHT(BU$39,2)>RIGHT($K51,2),AY51,0)) -> 0 | BV51: =+IF($K51="Ongoing",AZ51,IF(RIGHT($K51,2)=RIGHT(BV$39,2),SUM($AV51:AZ51),0)+IF(RIGHT(BV$39,2)>RIGHT($K51,2),AZ51,0)) -> 0 | BW51: =+IF($K51="Ongoing",BA51,IF(RIGHT($K51,2)=RIGHT(BW$39,2),SUM($AV51:BA51),0)+IF(RIGHT(BW$39,2)>RIGHT($K51,2),BA51,0)) -> 0 | BX51: =+IF($K51="Ongoing",BB51,IF(RIGHT($K51,2)=RIGHT(BX$39,2),SUM($AV51:BB51),0)+IF(RIGHT(BX$39,2)>RIGHT($K51,2),BB51,0)) -> 0 | BY51: =+IF($K51="Ongoing",BC51,IF(RIGHT($K51,2)=RIGHT(BY$39,2),SUM($AV51:BC51),0)+IF(RIGHT(BY$39,2)>RIGHT($K51,2),BC51,0)) -> 0 | BZ51: =+IF($K51="Ongoing",BD51,IF(RIGHT($K51,2)=RIGHT(BZ$39,2),SUM($AV51:BD51),0)+IF(RIGHT(BZ$39,2)>RIGHT($K51,2),BD51,0)) -> 0 | CA51: =+IF($K51="Ongoing",BE51,IF(RIGHT($K51,2)=RIGHT(CA$39,2),SUM($AV51:BE51),0)+IF(RIGHT(CA$39,2)>RIGHT($K51,2),BE51,0)) -> 0 | CC51: =+O51*KeyAssumptionsPriceControl_FO!X$15 -> 1.8414 | CD51: =+P51*KeyAssumptionsPriceControl_FO!Y$15 -> 0 | CE51: =+Q51*KeyAssumptionsPriceControl_FO!Z$15 -> 0 | CF51: =+R51*KeyAssumptionsPriceControl_FO!AA$15 -> 0 | CG51: =+S51*KeyAssumptionsPriceControl_FO!AB$15 -> 0 | CH51: =+T51*KeyAssumptionsPriceControl_FO!AC$15 -> 0 | CI51: =+U51*KeyAssumptionsPriceControl_FO!AD$15 -> 0 | CJ51: =+V51*KeyAssumptionsPriceControl_FO!AE$15 -> 0 | CK51: =+W51*KeyAssumptionsPriceControl_FO!AF$15 -> 0 | CL51: =+X51*KeyAssumptionsPriceControl_FO!AG$15 -> 0 | CN51: 0.0414315 | CO51: 0.082863 | CP51: 0.082863 | CQ51: 0.082863 | CR51: 0.082863 | CS51: 0.082863 | CT51: 0.082863 | CU51: 0.082863 | CV51: 0.082863 | CW51: 0.082863
C53: ALL SITES Land Development | D53: 0 | E53: Water | F53: Growth | G53: Pipelines/network | H53: Capital programs / Allocation | J53: Straight line | K53: Ongoing | L53: 45 | M53: 22.22222222 | O53: 0.25 | P53: 0.25 | Q53: 0.25 | R53: 0.25 | S53: 0.25 | T53: 0.25 | U53: 0.25 | V53: 0.25 | W53: 0.25 | X53: 0.25 | AV53: 0.25 | AW53: 0.25 | AX53: 0.25 | AY53: 0.25 | AZ53: 0.25 | BA53: 0.25 | BB53: 0.25 | BC53: 0.25 | BD53: 0.25 | BE53: 0.25 | BG53: 0.002777777778 | BH53: 0.008333333333 | BI53: 0.01388888889 | BJ53: 0.01944444444 | BK53: 0.025 | BL53: 0.03055555556 | BM53: 0.03611111111 | BN53: 0.04166666667 | BO53: 0.04722222222 | BP53: 0.05277777778 | BR53: =+IF($K53="Ongoing",AV53,IF(RIGHT($K53,2)=RIGHT(BR$39,2),SUM($AV53:AV53),0)+IF(RIGHT(BR$39,2)>RIGHT($K53,2),AV53,0)) -> 0.25 | BS53: =+IF($K53="Ongoing",AW53,IF(RIGHT($K53,2)=RIGHT(BS$39,2),SUM($AV53:AW53),0)+IF(RIGHT(BS$39,2)>RIGHT($K53,2),AW53,0)) -> 0.25 | BT53: =+IF($K53="Ongoing",AX53,IF(RIGHT($K53,2)=RIGHT(BT$39,2),SUM($AV53:AX53),0)+IF(RIGHT(BT$39,2)>RIGHT($K53,2),AX53,0)) -> 0.25 | BU53: =+IF($K53="Ongoing",AY53,IF(RIGHT($K53,2)=RIGHT(BU$39,2),SUM($AV53:AY53),0)+IF(RIGHT(BU$39,2)>RIGHT($K53,2),AY53,0)) -> 0.25 | BV53: =+IF($K53="Ongoing",AZ53,IF(RIGHT($K53,2)=RIGHT(BV$39,2),SUM($AV53:AZ53),0)+IF(RIGHT(BV$39,2)>RIGHT($K53,2),AZ53,0)) -> 0.25 | BW53: =+IF($K53="Ongoing",BA53,IF(RIGHT($K53,2)=RIGHT(BW$39,2),SUM($AV53:BA53),0)+IF(RIGHT(BW$39,2)>RIGHT($K53,2),BA53,0)) -> 0.25 | BX53: =+IF($K53="Ongoing",BB53,IF(RIGHT($K53,2)=RIGHT(BX$39,2),SUM($AV53:BB53),0)+IF(RIGHT(BX$39,2)>RIGHT($K53,2),BB53,0)) -> 0.25 | BY53: =+IF($K53="Ongoing",BC53,IF(RIGHT($K53,2)=RIGHT(BY$39,2),SUM($AV53:BC53),0)+IF(RIGHT(BY$39,2)>RIGHT($K53,2),BC53,0)) -> 0.25 | BZ53: =+IF($K53="Ongoing",BD53,IF(RIGHT($K53,2)=RIGHT(BZ$39,2),SUM($AV53:BD53),0)+IF(RIGHT(BZ$39,2)>RIGHT($K53,2),BD53,0)) -> 0.25 | CA53: =+IF($K53="Ongoing",BE53,IF(RIGHT($K53,2)=RIGHT(CA$39,2),SUM($AV53:BE53),0)+IF(RIGHT(CA$39,2)>RIGHT($K53,2),BE53,0)) -> 0.25 | CC53: =+O53*KeyAssumptionsPriceControl_FO!X$15 -> 0.25575 | CD53: =+P53*KeyAssumptionsPriceControl_FO!Y$15 -> 0.26163225 | CE53: =+Q53*KeyAssumptionsPriceControl_FO!Z$15 -> 0.2676497917 | CF53: =+R53*KeyAssumptionsPriceControl_FO!AA$15 -> 0.273805737 | CG53: =+S53*KeyAssumptionsPriceControl_FO!AB$15 -> 0.2801032689 | CH53: =+T53*KeyAssumptionsPriceControl_FO!AC$15 -> 0.2865456441 | CI53: =+U53*KeyAssumptionsPriceControl_FO!AD$15 -> 0.2931361939 | CJ53: =+V53*KeyAssumptionsPriceControl_FO!AE$15 -> 0.2998783264 | CK53: =+W53*KeyAssumptionsPriceControl_FO!AF$15 -> 0.3067755279 | CL53: =+X53*KeyAssumptionsPriceControl_FO!AG$15 -> 0.313831365 | CN53: 0.005754375 | CO53: 0.01739547563 | CP53: 0.02930432156 | CQ53: 0.04148707096 | CR53: 0.05395002359 | CS53: 0.06669962414 | CT53: 0.07974246549 | CU53: 0.0930852922 | CV53: 0.1067350039 | CW53: 0.120698659
C54: ALL SITES Minor Capital Works - Replacement | D54: 0 | E54: Water | F54: Renewals | G54: Treatment | H54: Capital programs / Allocation | J54: Straight line | K54: Ongoing | L54: 45 | M54: 22.22222222 | O54: 0.39 | P54: 0.31 | Q54: 0.27 | R54: 0.27 | S54: 0.27 | T54: 0.25 | U54: 0.25 | V54: 0.25 | W54: 0.25 | X54: 0.25 | AV54: 0.39 | AW54: 0.31 | AX54: 0.27 | AY54: 0.27 | AZ54: 0.27 | BA54: 0.25 | BB54: 0.25 | BC54: 0.25 | BD54: 0.25 | BE54: 0.25 | BG54: 0.004333333333 | BH54: 0.01211111111 | BI54: 0.01855555556 | BJ54: 0.02455555556 | BK54: 0.03055555556 | BL54: 0.03633333333 | BM54: 0.04188888889 | BN54: 0.04744444444 | BO54: 0.053 | BP54: 0.05855555556 | BR54: =+IF($K54="Ongoing",AV54,IF(RIGHT($K54,2)=RIGHT(BR$39,2),SUM($AV54:AV54),0)+IF(RIGHT(BR$39,2)>RIGHT($K54,2),AV54,0)) -> 0.39 | BS54: =+IF($K54="Ongoing",AW54,IF(RIGHT($K54,2)=RIGHT(BS$39,2),SUM($AV54:AW54),0)+IF(RIGHT(BS$39,2)>RIGHT($K54,2),AW54,0)) -> 0.31 | BT54: =+IF($K54="Ongoing",AX54,IF(RIGHT($K54,2)=RIGHT(BT$39,2),SUM($AV54:AX54),0)+IF(RIGHT(BT$39,2)>RIGHT($K54,2),AX54,0)) -> 0.27 | BU54: =+IF($K54="Ongoing",AY54,IF(RIGHT($K54,2)=RIGHT(BU$39,2),SUM($AV54:AY54),0)+IF(RIGHT(BU$39,2)>RIGHT($K54,2),AY54,0)) -> 0.27 | BV54: =+IF($K54="Ongoing",AZ54,IF(RIGHT($K54,2)=RIGHT(BV$39,2),SUM($AV54:AZ54),0)+IF(RIGHT(BV$39,2)>RIGHT($K54,2),AZ54,0)) -> 0.27 | BW54: =+IF($K54="Ongoing",BA54,IF(RIGHT($K54,2)=RIGHT(BW$39,2),SUM($AV54:BA54),0)+IF(RIGHT(BW$39,2)>RIGHT($K54,2),BA54,0)) -> 0.25 | BX54: =+IF($K54="Ongoing",BB54,IF(RIGHT($K54,2)=RIGHT(BX$39,2),SUM($AV54:BB54),0)+IF(RIGHT(BX$39,2)>RIGHT($K54,2),BB54,0)) -> 0.25 | BY54: =+IF($K54="Ongoing",BC54,IF(RIGHT($K54,2)=RIGHT(BY$39,2),SUM($AV54:BC54),0)+IF(RIGHT(BY$39,2)>RIGHT($K54,2),BC54,0)) -> 0.25 | BZ54: =+IF($K54="Ongoing",BD54,IF(RIGHT($K54,2)=RIGHT(BZ$39,2),SUM($AV54:BD54),0)+IF(RIGHT(BZ$39,2)>RIGHT($K54,2),BD54,0)) -> 0.25 | CA54: =+IF($K54="Ongoing",BE54,IF(RIGHT($K54,2)=RIGHT(CA$39,2),SUM($AV54:BE54),0)+IF(RIGHT(CA$39,2)>RIGHT($K54,2),BE54,0)) -> 0.25 | CC54: =+O54*KeyAssumptionsPriceControl_FO!X$15 -> 0.39897 | CD54: =+P54*KeyAssumptionsPriceControl_FO!Y$15 -> 0.32442399 | CE54: =+Q54*KeyAssumptionsPriceControl_FO!Z$15 -> 0.2890617751 | CF54: =+R54*KeyAssumptionsPriceControl_FO!AA$15 -> 0.2957101959 | CG54: =+S54*KeyAssumptionsPriceControl_FO!AB$15 -> 0.3025115304 | CH54: =+T54*KeyAssumptionsPriceControl_FO!AC$15 -> 0.2865456441 | CI54: =+U54*KeyAssumptionsPriceControl_FO!AD$15 -> 0.2931361939 | CJ54: =+V54*KeyAssumptionsPriceControl_FO!AE$15 -> 0.2998783264 | CK54: =+W54*KeyAssumptionsPriceControl_FO!AF$15 -> 0.3067755279 | CL54: =+X54*KeyAssumptionsPriceControl_FO!AG$15 -> 0.313831365 | CN54: 0.008976825 | CO54: 0.02525318978 | CP54: 0.03905661949 | CQ54: 0.05221398884 | CR54: 0.06567397768 | CS54: 0.07892776411 | CT54: 0.09197060546 | CU54: 0.1053134322 | CV54: 0.1189631439 | CW54: 0.132926799
C55: ALL SITES Minor Capital Works - New | D55: 0 | E55: Water | F55: Growth | G55: Treatment | H55: Capital programs / Allocation | J55: Straight line | K55: Ongoing | L55: 45 | M55: 22.22222222 | O55: 0.35 | P55: 0.25 | Q55: 0.25 | R55: 0.25 | S55: 0.25 | T55: 0.25 | U55: 0.25 | V55: 0.25 | W55: 0.25 | X55: 0.25 | AV55: 0.35 | AW55: 0.25 | AX55: 0.25 | AY55: 0.25 | AZ55: 0.25 | BA55: 0.25 | BB55: 0.25 | BC55: 0.25 | BD55: 0.25 | BE55: 0.25 | BG55: 0.003888888889 | BH55: 0.01055555556 | BI55: 0.01611111111 | BJ55: 0.02166666667 | BK55: 0.02722222222 | BL55: 0.03277777778 | BM55: 0.03833333333 | BN55: 0.04388888889 | BO55: 0.04944444444 | BP55: 0.055 | BR55: =+IF($K55="Ongoing",AV55,IF(RIGHT($K55,2)=RIGHT(BR$39,2),SUM($AV55:AV55),0)+IF(RIGHT(BR$39,2)>RIGHT($K55,2),AV55,0)) -> 0.35 | BS55: =+IF($K55="Ongoing",AW55,IF(RIGHT($K55,2)=RIGHT(BS$39,2),SUM($AV55:AW55),0)+IF(RIGHT(BS$39,2)>RIGHT($K55,2),AW55,0)) -> 0.25 | BT55: =+IF($K55="Ongoing",AX55,IF(RIGHT($K55,2)=RIGHT(BT$39,2),SUM($AV55:AX55),0)+IF(RIGHT(BT$39,2)>RIGHT($K55,2),AX55,0)) -> 0.25 | BU55: =+IF($K55="Ongoing",AY55,IF(RIGHT($K55,2)=RIGHT(BU$39,2),SUM($AV55:AY55),0)+IF(RIGHT(BU$39,2)>RIGHT($K55,2),AY55,0)) -> 0.25 | BV55: =+IF($K55="Ongoing",AZ55,IF(RIGHT($K55,2)=RIGHT(BV$39,2),SUM($AV55:AZ55),0)+IF(RIGHT(BV$39,2)>RIGHT($K55,2),AZ55,0)) -> 0.25 | BW55: =+IF($K55="Ongoing",BA55,IF(RIGHT($K55,2)=RIGHT(BW$39,2),SUM($AV55:BA55),0)+IF(RIGHT(BW$39,2)>RIGHT($K55,2),BA55,0)) -> 0.25 | BX55: =+IF($K55="Ongoing",BB55,IF(RIGHT($K55,2)=RIGHT(BX$39,2),SUM($AV55:BB55),0)+IF(RIGHT(BX$39,2)>RIGHT($K55,2),BB55,0)) -> 0.25 | BY55: =+IF($K55="Ongoing",BC55,IF(RIGHT($K55,2)=RIGHT(BY$39,2),SUM($AV55:BC55),0)+IF(RIGHT(BY$39,2)>RIGHT($K55,2),BC55,0)) -> 0.25 | BZ55: =+IF($K55="Ongoing",BD55,IF(RIGHT($K55,2)=RIGHT(BZ$39,2),SUM($AV55:BD55),0)+IF(RIGHT(BZ$39,2)>RIGHT($K55,2),BD55,0)) -> 0.25 | CA55: =+IF($K55="Ongoing",BE55,IF(RIGHT($K55,2)=RIGHT(CA$39,2),SUM($AV55:BE55),0)+IF(RIGHT(CA$39,2)>RIGHT($K55,2),BE55,0)) -> 0.25 | CC55: =+O55*KeyAssumptionsPriceControl_FO!X$15 -> 0.35805 | CD55: =+P55*KeyAssumptionsPriceControl_FO!Y$15 -> 0.26163225 | CE55: =+Q55*KeyAssumptionsPriceControl_FO!Z$15 -> 0.2676497917 | CF55: =+R55*KeyAssumptionsPriceControl_FO!AA$15 -> 0.273805737 | CG55: =+S55*KeyAssumptionsPriceControl_FO!AB$15 -> 0.2801032689 | CH55: =+T55*KeyAssumptionsPriceControl_FO!AC$15 -> 0.2865456441 | CI55: =+U55*KeyAssumptionsPriceControl_FO!AD$15 -> 0.2931361939 | CJ55: =+V55*KeyAssumptionsPriceControl_FO!AE$15 -> 0.2998783264 | CK55: =+W55*KeyAssumptionsPriceControl_FO!AF$15 -> 0.3067755279 | CL55: =+X55*KeyAssumptionsPriceControl_FO!AG$15 -> 0.313831365 | CN55: 0.008056125 | CO55: 0.02199897562 | CP55: 0.03390782156 | CQ55: 0.04609057096 | CR55: 0.05855352359 | CS55: 0.07130312414 | CT55: 0.08434596549 | CU55: 0.0976887922 | CV55: 0.1113385039 | CW55: 0.125302159
C56: ALL SITES Main Replacement | D56: 0 | E56: Water | F56: Renewals | G56: Pipelines/network | H56: Capital programs / Allocation | J56: Straight line | K56: Ongoing | L56: 45 | M56: 22.22222222 | O56: 0.65 | P56: 0.85 | Q56: 0.67 | R56: 0.9 | S56: 1.3 | T56: 1.35 | U56: 1.4 | V56: 1.45 | W56: 1.5 | X56: 1.55 | AV56: 0.65 | AW56: 0.85 | AX56: 0.67 | AY56: 0.9 | AZ56: 1.3 | BA56: 1.35 | BB56: 1.4 | BC56: 1.45 | BD56: 1.5 | BE56: 1.55 | BG56: 0.007222222222 | BH56: 0.02388888889 | BI56: 0.04077777778 | BJ56: 0.05822222222 | BK56: 0.08266666667 | BL56: 0.1121111111 | BM56: 0.1426666667 | BN56: 0.1743333333 | BO56: 0.2071111111 | BP56: 0.241 | BR56: =+IF($K56="Ongoing",AV56,IF(RIGHT($K56,2)=RIGHT(BR$39,2),SUM($AV56:AV56),0)+IF(RIGHT(BR$39,2)>RIGHT($K56,2),AV56,0)) -> 0.65 | BS56: =+IF($K56="Ongoing",AW56,IF(RIGHT($K56,2)=RIGHT(BS$39,2),SUM($AV56:AW56),0)+IF(RIGHT(BS$39,2)>RIGHT($K56,2),AW56,0)) -> 0.85 | BT56: =+IF($K56="Ongoing",AX56,IF(RIGHT($K56,2)=RIGHT(BT$39,2),SUM($AV56:AX56),0)+IF(RIGHT(BT$39,2)>RIGHT($K56,2),AX56,0)) -> 0.67 | BU56: =+IF($K56="Ongoing",AY56,IF(RIGHT($K56,2)=RIGHT(BU$39,2),SUM($AV56:AY56),0)+IF(RIGHT(BU$39,2)>RIGHT($K56,2),AY56,0)) -> 0.9 | BV56: =+IF($K56="Ongoing",AZ56,IF(RIGHT($K56,2)=RIGHT(BV$39,2),SUM($AV56:AZ56),0)+IF(RIGHT(BV$39,2)>RIGHT($K56,2),AZ56,0)) -> 1.3 | BW56: =+IF($K56="Ongoing",BA56,IF(RIGHT($K56,2)=RIGHT(BW$39,2),SUM($AV56:BA56),0)+IF(RIGHT(BW$39,2)>RIGHT($K56,2),BA56,0)) -> 1.35 | BX56: =+IF($K56="Ongoing",BB56,IF(RIGHT($K56,2)=RIGHT(BX$39,2),SUM($AV56:BB56),0)+IF(RIGHT(BX$39,2)>RIGHT($K56,2),BB56,0)) -> 1.4 | BY56: =+IF($K56="Ongoing",BC56,IF(RIGHT($K56,2)=RIGHT(BY$39,2),SUM($AV56:BC56),0)+IF(RIGHT(BY$39,2)>RIGHT($K56,2),BC56,0)) -> 1.45 | BZ56: =+IF($K56="Ongoing",BD56,IF(RIGHT($K56,2)=RIGHT(BZ$39,2),SUM($AV56:BD56),0)+IF(RIGHT(BZ$39,2)>RIGHT($K56,2),BD56,0)) -> 1.5 | CA56: =+IF($K56="Ongoing",BE56,IF(RIGHT($K56,2)=RIGHT(CA$39,2),SUM($AV56:BE56),0)+IF(RIGHT(CA$39,2)>RIGHT($K56,2),BE56,0)) -> 1.55 | CC56: =+O56*KeyAssumptionsPriceControl_FO!X$15 -> 0.66495 | CD56: =+P56*KeyAssumptionsPriceControl_FO!Y$15 -> 0.88954965 | CE56: =+Q56*KeyAssumptionsPriceControl_FO!Z$15 -> 0.7173014419 | CF56: =+R56*KeyAssumptionsPriceControl_FO!AA$15 -> 0.9857006531 | CG56: =+S56*KeyAssumptionsPriceControl_FO!AB$15 -> 1.456536998 | CH56: =+T56*KeyAssumptionsPriceControl_FO!AC$15 -> 1.547346478 | CI56: =+U56*KeyAssumptionsPriceControl_FO!AD$15 -> 1.641562686 | CJ56: =+V56*KeyAssumptionsPriceControl_FO!AE$15 -> 1.739294293 | CK56: =+W56*KeyAssumptionsPriceControl_FO!AF$15 -> 1.840653167 | CL56: =+X56*KeyAssumptionsPriceControl_FO!AG$15 -> 1.945754463 | CN56: 0.014961375 | CO56: 0.04993761713 | CP56: 0.08609176669 | CQ56: 0.1244093138 | CR56: 0.179359661 | CS56: 0.2469470392 | CT56: 0.3186974954 | CU56: 0.3947667774 | CV56: 0.4753155953 | CW56: 0.560509767
C57: All Water AC Main Replacement Program | D57: 0 | E57: Water | F57: Renewals | G57: Pipelines/network | H57: Capital programs / Allocation | J57: Straight line | K57: 0 | L57: 45 | M57: 22.22222222 | O57: 0 | P57: 0 | Q57: 0 | R57: 0 | S57: 0 | T57: 0 | U57: 0 | V57: 0 | W57: 0 | X57: 0 | AV57: 0 | AW57: 0 | AX57: 0 | AY57: 0 | AZ57: 0 | BA57: 0 | BB57: 0 | BC57: 0 | BD57: 0 | BE57: 0 | BG57: 0 | BH57: 0 | BI57: 0 | BJ57: 0 | BK57: 0 | BL57: 0 | BM57: 0 | BN57: 0 | BO57: 0 | BP57: 0 | BR57: =+IF($K57="Ongoing",AV57,IF(RIGHT($K57,2)=RIGHT(BR$39,2),SUM($AV57:AV57),0)+IF(RIGHT(BR$39,2)>RIGHT($K57,2),AV57,0)) -> 0 | BS57: =+IF($K57="Ongoing",AW57,IF(RIGHT($K57,2)=RIGHT(BS$39,2),SUM($AV57:AW57),0)+IF(RIGHT(BS$39,2)>RIGHT($K57,2),AW57,0)) -> 0 | BT57: =+IF($K57="Ongoing",AX57,IF(RIGHT($K57,2)=RIGHT(BT$39,2),SUM($AV57:AX57),0)+IF(RIGHT(BT$39,2)>RIGHT($K57,2),AX57,0)) -> 0 | BU57: =+IF($K57="Ongoing",AY57,IF(RIGHT($K57,2)=RIGHT(BU$39,2),SUM($AV57:AY57),0)+IF(RIGHT(BU$39,2)>RIGHT($K57,2),AY57,0)) -> 0 | BV57: =+IF($K57="Ongoing",AZ57,IF(RIGHT($K57,2)=RIGHT(BV$39,2),SUM($AV57:AZ57),0)+IF(RIGHT(BV$39,2)>RIGHT($K57,2),AZ57,0)) -> 0 | BW57: =+IF($K57="Ongoing",BA57,IF(RIGHT($K57,2)=RIGHT(BW$39,2),SUM($AV57:BA57),0)+IF(RIGHT(BW$39,2)>RIGHT($K57,2),BA57,0)) -> 0 | BX57: =+IF($K57="Ongoing",BB57,IF(RIGHT($K57,2)=RIGHT(BX$39,2),SUM($AV57:BB57),0)+IF(RIGHT(BX$39,2)>RIGHT($K57,2),BB57,0)) -> 0 | BY57: =+IF($K57="Ongoing",BC57,IF(RIGHT($K57,2)=RIGHT(BY$39,2),SUM($AV57:BC57),0)+IF(RIGHT(BY$39,2)>RIGHT($K57,2),BC57,0)) -> 0 | BZ57: =+IF($K57="Ongoing",BD57,IF(RIGHT($K57,2)=RIGHT(BZ$39,2),SUM($AV57:BD57),0)+IF(RIGHT(BZ$39,2)>RIGHT($K57,2),BD57,0)) -> 0 | CA57: =+IF($K57="Ongoing",BE57,IF(RIGHT($K57,2)=RIGHT(CA$39,2),SUM($AV57:BE57),0)+IF(RIGHT(CA$39,2)>RIGHT($K57,2),BE57,0)) -> 0 | CC57: =+O57*KeyAssumptionsPriceControl_FO!X$15 -> 0 | CD57: =+P57*KeyAssumptionsPriceControl_FO!Y$15 -> 0 | CE57: =+Q57*KeyAssumptionsPriceControl_FO!Z$15 -> 0 | CF57: =+R57*KeyAssumptionsPriceControl_FO!AA$15 -> 0 | CG57: =+S57*KeyAssumptionsPriceControl_FO!AB$15 -> 0 | CH57: =+T57*KeyAssumptionsPriceControl_FO!AC$15 -> 0 | CI57: =+U57*KeyAssumptionsPriceControl_FO!AD$15 -> 0 | CJ57: =+V57*KeyAssumptionsPriceControl_FO!AE$15 -> 0 | CK57: =+W57*KeyAssumptionsPriceControl_FO!AF$15 -> 0 | CL57: =+X57*KeyAssumptionsPriceControl_FO!AG$15 -> 0 | CN57: 0 | CO57: 0 | CP57: 0 | CQ57: 0 | CR57: 0 | CS57: 0 | CT57: 0 | CU57: 0 | CV57: 0 | CW57: 0
C58: [Capex Item - Significant Project / Capital Program / Other Capex] | D58: 0 | E58: [Service] | F58: [Major Cost Driver] | G58: [Asset category] | H58: [Capital type] | J58: Straight line | K58: [Year finalised?] | AV58: 0 | AW58: 0 | AX58: 0 | AY58: 0 | AZ58: 0 | BA58: 0 | BB58: 0 | BC58: 0 | BD58: 0 | BE58: 0 | BG58: 0 | BH58: 0 | BI58: 0 | BJ58: 0 | BK58: 0 | BL58: 0 | BM58: 0 | BN58: 0 | BO58: 0 | BP58: 0 | BR58: =+IF($K58="Ongoing",AV58,IF(RIGHT($K58,2)=RIGHT(BR$39,2),SUM($AV58:AV58),0)+IF(RIGHT(BR$39,2)>RIGHT($K58,2),AV58,0)) -> 0 | BS58: =+IF($K58="Ongoing",AW58,IF(RIGHT($K58,2)=RIGHT(BS$39,2),SUM($AV58:AW58),0)+IF(RIGHT(BS$39,2)>RIGHT($K58,2),AW58,0)) -> 0 | BT58: =+IF($K58="Ongoing",AX58,IF(RIGHT($K58,2)=RIGHT(BT$39,2),SUM($AV58:AX58),0)+IF(RIGHT(BT$39,2)>RIGHT($K58,2),AX58,0)) -> 0 | BU58: =+IF($K58="Ongoing",AY58,IF(RIGHT($K58,2)=RIGHT(BU$39,2),SUM($AV58:AY58),0)+IF(RIGHT(BU$39,2)>RIGHT($K58,2),AY58,0)) -> 0 | BV58: =+IF($K58="Ongoing",AZ58,IF(RIGHT($K58,2)=RIGHT(BV$39,2),SUM($AV58:AZ58),0)+IF(RIGHT(BV$39,2)>RIGHT($K58,2),AZ58,0)) -> 0 | BW58: =+IF($K58="Ongoing",BA58,IF(RIGHT($K58,2)=RIGHT(BW$39,2),SUM($AV58:BA58),0)+IF(RIGHT(BW$39,2)>RIGHT($K58,2),BA58,0)) -> 0 | BX58: =+IF($K58="Ongoing",BB58,IF(RIGHT($K58,2)=RIGHT(BX$39,2),SUM($AV58:BB58),0)+IF(RIGHT(BX$39,2)>RIGHT($K58,2),BB58,0)) -> 0 | BY58: =+IF($K58="Ongoing",BC58,IF(RIGHT($K58,2)=RIGHT(BY$39,2),SUM($AV58:BC58),0)+IF(RIGHT(BY$39,2)>RIGHT($K58,2),BC58,0)) -> 0 | BZ58: =+IF($K58="Ongoing",BD58,IF(RIGHT($K58,2)=RIGHT(BZ$39,2),SUM($AV58:BD58),0)+IF(RIGHT(BZ$39,2)>RIGHT($K58,2),BD58,0)) -> 0 | CA58: =+IF($K58="Ongoing",BE58,IF(RIGHT($K58,2)=RIGHT(CA$39,2),SUM($AV58:BE58),0)+IF(RIGHT(CA$39,2)>RIGHT($K58,2),BE58,0)) -> 0 | CC58: =+O58*KeyAssumptionsPriceControl_FO!X$15 -> 0 | CD58: =+P58*KeyAssumptionsPriceControl_FO!Y$15 -> 0 | CE58: =+Q58*KeyAssumptionsPriceControl_FO!Z$15 -> 0 | CF58: =+R58*KeyAssumptionsPriceControl_FO!AA$15 -> 0 | CG58: =+S58*KeyAssumptionsPriceControl_FO!AB$15 -> 0 | CH58: =+T58*KeyAssumptionsPriceControl_FO!AC$15 -> 0 | CI58: =+U58*KeyAssumptionsPriceControl_FO!AD$15 -> 0 | CJ58: =+V58*KeyAssumptionsPriceControl_FO!AE$15 -> 0 | CK58: =+W58*KeyAssumptionsPriceControl_FO!AF$15 -> 0 | CL58: =+X58*KeyAssumptionsPriceControl_FO!AG$15 -> 0 | CN58: 0 | CO58: 0 | CP58: 0 | CQ58: 0 | CR58: 0 | CS58: 0 | CT58: 0 | CU58: 0 | CV58: 0 | CW58: 0
C59: ALL SITES Asset Performance & Condition Monitoring Equipment | D59: 0 | E59: Sewerage | F59: Renewals | G59: Pipelines/network | H59: Capital programs / Allocation | I59: 0 | J59: Straight line | K59: Ongoing | L59: 45 | M59: 22.22222222 | O59: 0.25 | P59: 0.25 | Q59: 0.1 | R59: 0.1 | S59: 0.1 | T59: 0.1 | U59: 0.1 | V59: 0.1 | W59: 0.1 | X59: 0.1 | AV59: 0.25 | AW59: 0.25 | AX59: 0.1 | AY59: 0.1 | AZ59: 0.1 | BA59: 0.1 | BB59: 0.1 | BC59: 0.1 | BD59: 0.1 | BE59: 0.1 | BG59: 0.002777777778 | BH59: 0.008333333333 | BI59: 0.01222222222 | BJ59: 0.01444444444 | BK59: 0.01666666667 | BL59: 0.01888888889 | BM59: 0.02111111111 | BN59: 0.02333333333 | BO59: 0.02555555556 | BP59: 0.02777777778 | BR59: =+IF($K59="Ongoing",AV59,IF(RIGHT($K59,2)=RIGHT(BR$39,2),SUM($AV59:AV59),0)+IF(RIGHT(BR$39,2)>RIGHT($K59,2),AV59,0)) -> 0.25 | BS59: =+IF($K59="Ongoing",AW59,IF(RIGHT($K59,2)=RIGHT(BS$39,2),SUM($AV59:AW59),0)+IF(RIGHT(BS$39,2)>RIGHT($K59,2),AW59,0)) -> 0.25 | BT59: =+IF($K59="Ongoing",AX59,IF(RIGHT($K59,2)=RIGHT(BT$39,2),SUM($AV59:AX59),0)+IF(RIGHT(BT$39,2)>RIGHT($K59,2),AX59,0)) -> 0.1 | BU59: =+IF($K59="Ongoing",AY59,IF(RIGHT($K59,2)=RIGHT(BU$39,2),SUM($AV59:AY59),0)+IF(RIGHT(BU$39,2)>RIGHT($K59,2),AY59,0)) -> 0.1 | BV59: =+IF($K59="Ongoing",AZ59,IF(RIGHT($K59,2)=RIGHT(BV$39,2),SUM($AV59:AZ59),0)+IF(RIGHT(BV$39,2)>RIGHT($K59,2),AZ59,0)) -> 0.1 | BW59: =+IF($K59="Ongoing",BA59,IF(RIGHT($K59,2)=RIGHT(BW$39,2),SUM($AV59:BA59),0)+IF(RIGHT(BW$39,2)>RIGHT($K59,2),BA59,0)) -> 0.1 | BX59: =+IF($K59="Ongoing",BB59,IF(RIGHT($K59,2)=RIGHT(BX$39,2),SUM($AV59:BB59),0)+IF(RIGHT(BX$39,2)>RIGHT($K59,2),BB59,0)) -> 0.1 | BY59: =+IF($K59="Ongoing",BC59,IF(RIGHT($K59,2)=RIGHT(BY$39,2),SUM($AV59:BC59),0)+IF(RIGHT(BY$39,2)>RIGHT($K59,2),BC59,0)) -> 0.1 | BZ59: =+IF($K59="Ongoing",BD59,IF(RIGHT($K59,2)=RIGHT(BZ$39,2),SUM($AV59:BD59),0)+IF(RIGHT(BZ$39,2)>RIGHT($K59,2),BD59,0)) -> 0.1 | CA59: =+IF($K59="Ongoing",BE59,IF(RIGHT($K59,2)=RIGHT(CA$39,2),SUM($AV59:BE59),0)+IF(RIGHT(CA$39,2)>RIGHT($K59,2),BE59,0)) -> 0.1 | CC59: =+O59*KeyAssumptionsPriceControl_FO!X$15 -> 0.25575 | CD59: =+P59*KeyAssumptionsPriceControl_FO!Y$15 -> 0.26163225 | CE59: =+Q59*KeyAssumptionsPriceControl_FO!Z$15 -> 0.1070599167 | CF59: =+R59*KeyAssumptionsPriceControl_FO!AA$15 -> 0.1095222948 | CG59: =+S59*KeyAssumptionsPriceControl_FO!AB$15 -> 0.1120413076 | CH59: =+T59*KeyAssumptionsPriceControl_FO!AC$15 -> 0.1146182576 | CI59: =+U59*KeyAssumptionsPriceControl_FO!AD$15 -> 0.1172544776 | CJ59: =+V59*KeyAssumptionsPriceControl_FO!AE$15 -> 0.1199513305 | CK59: =+W59*KeyAssumptionsPriceControl_FO!AF$15 -> 0.1227102112 | CL59: =+X59*KeyAssumptionsPriceControl_FO!AG$15 -> 0.125532546 | CN59: 0.005754375 | CO59: 0.01739547563 | CP59: 0.02569104938 | CQ59: 0.03056414913 | CR59: 0.03554933019 | CS59: 0.0406491704 | CT59: 0.04586630695 | CU59: 0.05120343763 | CV59: 0.05666332232 | CW59: 0.06224878435
C60: Minor Capital Works - Replacement | D60: 0 | E60: Sewerage | F60: Renewals | G60: Treatment | H60: Capital programs / Allocation | I60: 0 | J60: Straight line | K60: Ongoing | L60: 45 | M60: 22.22222222 | O60: 0.525 | P60: 0.4 | Q60: 0.4 | R60: 0.35 | S60: 0.35 | T60: 0.35 | U60: 0.35 | V60: 0.35 | W60: 0.35 | X60: 0.35 | AV60: 0.525 | AW60: 0.4 | AX60: 0.4 | AY60: 0.35 | AZ60: 0.35 | BA60: 0.35 | BB60: 0.35 | BC60: 0.35 | BD60: 0.35 | BE60: 0.35 | BG60: 0.005833333333 | BH60: 0.01611111111 | BI60: 0.025 | BJ60: 0.03333333333 | BK60: 0.04111111111 | BL60: 0.04888888889 | BM60: 0.05666666667 | BN60: 0.06444444444 | BO60: 0.07222222222 | BP60: 0.08 | BR60: =+IF($K60="Ongoing",AV60,IF(RIGHT($K60,2)=RIGHT(BR$39,2),SUM($AV60:AV60),0)+IF(RIGHT(BR$39,2)>RIGHT($K60,2),AV60,0)) -> 0.525 | BS60: =+IF($K60="Ongoing",AW60,IF(RIGHT($K60,2)=RIGHT(BS$39,2),SUM($AV60:AW60),0)+IF(RIGHT(BS$39,2)>RIGHT($K60,2),AW60,0)) -> 0.4 | BT60: =+IF($K60="Ongoing",AX60,IF(RIGHT($K60,2)=RIGHT(BT$39,2),SUM($AV60:AX60),0)+IF(RIGHT(BT$39,2)>RIGHT($K60,2),AX60,0)) -> 0.4 | BU60: =+IF($K60="Ongoing",AY60,IF(RIGHT($K60,2)=RIGHT(BU$39,2),SUM($AV60:AY60),0)+IF(RIGHT(BU$39,2)>RIGHT($K60,2),AY60,0)) -> 0.35 | BV60: =+IF($K60="Ongoing",AZ60,IF(RIGHT($K60,2)=RIGHT(BV$39,2),SUM($AV60:AZ60),0)+IF(RIGHT(BV$39,2)>RIGHT($K60,2),AZ60,0)) -> 0.35 | BW60: =+IF($K60="Ongoing",BA60,IF(RIGHT($K60,2)=RIGHT(BW$39,2),SUM($AV60:BA60),0)+IF(RIGHT(BW$39,2)>RIGHT($K60,2),BA60,0)) -> 0.35 | BX60: =+IF($K60="Ongoing",BB60,IF(RIGHT($K60,2)=RIGHT(BX$39,2),SUM($AV60:BB60),0)+IF(RIGHT(BX$39,2)>RIGHT($K60,2),BB60,0)) -> 0.35 | BY60: =+IF($K60="Ongoing",BC60,IF(RIGHT($K60,2)=RIGHT(BY$39,2),SUM($AV60:BC60),0)+IF(RIGHT(BY$39,2)>RIGHT($K60,2),BC60,0)) -> 0.35 | BZ60: =+IF($K60="Ongoing",BD60,IF(RIGHT($K60,2)=RIGHT(BZ$39,2),SUM($AV60:BD60),0)+IF(RIGHT(BZ$39,2)>RIGHT($K60,2),BD60,0)) -> 0.35 | CA60: =+IF($K60="Ongoing",BE60,IF(RIGHT($K60,2)=RIGHT(CA$39,2),SUM($AV60:BE60),0)+IF(RIGHT(CA$39,2)>RIGHT($K60,2),BE60,0)) -> 0.35 | CC60: =+O60*KeyAssumptionsPriceControl_FO!X$15 -> 0.537075 | CD60: =+P60*KeyAssumptionsPriceControl_FO!Y$15 -> 0.4186116 | CE60: =+Q60*KeyAssumptionsPriceControl_FO!Z$15 -> 0.4282396668 | CF60: =+R60*KeyAssumptionsPriceControl_FO!AA$15 -> 0.3833280317 | CG60: =+S60*KeyAssumptionsPriceControl_FO!AB$15 -> 0.3921445765 | CH60: =+T60*KeyAssumptionsPriceControl_FO!AC$15 -> 0.4011639017 | CI60: =+U60*KeyAssumptionsPriceControl_FO!AD$15 -> 0.4103906715 | CJ60: =+V60*KeyAssumptionsPriceControl_FO!AE$15 -> 0.4198296569 | CK60: =+W60*KeyAssumptionsPriceControl_FO!AF$15 -> 0.429485739 | CL60: =+X60*KeyAssumptionsPriceControl_FO!AG$15 -> 0.439363911 | CN60: 0.0120841875 | CO60: 0.033587136 | CP60: 0.0526412895 | CQ60: 0.07090156272 | CR60: 0.08834969641 | CS60: 0.1061991372 | CT60: 0.1244591151 | CU60: 0.1431390725 | CV60: 0.1622486689 | CW60: 0.181797786
C61: Minor Capital Works - New | D61: 0 | E61: Sewerage | F61: Renewals | G61: Treatment | H61: Capital programs / Allocation | I61: 0 | J61: Straight line | K61: Ongoing | L61: 45 | M61: 22.22222222 | O61: 0.25 | P61: 0.25 | Q61: 0.25 | R61: 0.25 | S61: 0.25 | T61: 0.25 | U61: 0.25 | V61: 0.25 | W61: 0.25 | X61: 0.25 | AV61: 0.25 | AW61: 0.25 | AX61: 0.25 | AY61: 0.25 | AZ61: 0.25 | BA61: 0.25 | BB61: 0.25 | BC61: 0.25 | BD61: 0.25 | BE61: 0.25 | BG61: 0.002777777778 | BH61: 0.008333333333 | BI61: 0.01388888889 | BJ61: 0.01944444444 | BK61: 0.025 | BL61: 0.03055555556 | BM61: 0.03611111111 | BN61: 0.04166666667 | BO61: 0.04722222222 | BP61: 0.05277777778 | BR61: =+IF($K61="Ongoing",AV61,IF(RIGHT($K61,2)=RIGHT(BR$39,2),SUM($AV61:AV61),0)+IF(RIGHT(BR$39,2)>RIGHT($K61,2),AV61,0)) -> 0.25 | BS61: =+IF($K61="Ongoing",AW61,IF(RIGHT($K61,2)=RIGHT(BS$39,2),SUM($AV61:AW61),0)+IF(RIGHT(BS$39,2)>RIGHT($K61,2),AW61,0)) -> 0.25 | BT61: =+IF($K61="Ongoing",AX61,IF(RIGHT($K61,2)=RIGHT(BT$39,2),SUM($AV61:AX61),0)+IF(RIGHT(BT$39,2)>RIGHT($K61,2),AX61,0)) -> 0.25 | BU61: =+IF($K61="Ongoing",AY61,IF(RIGHT($K61,2)=RIGHT(BU$39,2),SUM($AV61:AY61),0)+IF(RIGHT(BU$39,2)>RIGHT($K61,2),AY61,0)) -> 0.25 | BV61: =+IF($K61="Ongoing",AZ61,IF(RIGHT($K61,2)=RIGHT(BV$39,2),SUM($AV61:AZ61),0)+IF(RIGHT(BV$39,2)>RIGHT($K61,2),AZ61,0)) -> 0.25 | BW61: =+IF($K61="Ongoing",BA61,IF(RIGHT($K61,2)=RIGHT(BW$39,2),SUM($AV61:BA61),0)+IF(RIGHT(BW$39,2)>RIGHT($K61,2),BA61,0)) -> 0.25 | BX61: =+IF($K61="Ongoing",BB61,IF(RIGHT($K61,2)=RIGHT(BX$39,2),SUM($AV61:BB61),0)+IF(RIGHT(BX$39,2)>RIGHT($K61,2),BB61,0)) -> 0.25 | BY61: =+IF($K61="Ongoing",BC61,IF(RIGHT($K61,2)=RIGHT(BY$39,2),SUM($AV61:BC61),0)+IF(RIGHT(BY$39,2)>RIGHT($K61,2),BC61,0)) -> 0.25 | BZ61: =+IF($K61="Ongoing",BD61,IF(RIGHT($K61,2)=RIGHT(BZ$39,2),SUM($AV61:BD61),0)+IF(RIGHT(BZ$39,2)>RIGHT($K61,2),BD61,0)) -> 0.25 | CA61: =+IF($K61="Ongoing",BE61,IF(RIGHT($K61,2)=RIGHT(CA$39,2),SUM($AV61:BE61),0)+IF(RIGHT(CA$39,2)>RIGHT($K61,2),BE61,0)) -> 0.25 | CC61: =+O61*KeyAssumptionsPriceControl_FO!X$15 -> 0.25575 | CD61: =+P61*KeyAssumptionsPriceControl_FO!Y$15 -> 0.26163225 | CE61: =+Q61*KeyAssumptionsPriceControl_FO!Z$15 -> 0.2676497917 | CF61: =+R61*KeyAssumptionsPriceControl_FO!AA$15 -> 0.273805737 | CG61: =+S61*KeyAssumptionsPriceControl_FO!AB$15 -> 0.2801032689 | CH61: =+T61*KeyAssumptionsPriceControl_FO!AC$15 -> 0.2865456441 | CI61: =+U61*KeyAssumptionsPriceControl_FO!AD$15 -> 0.2931361939 | CJ61: =+V61*KeyAssumptionsPriceControl_FO!AE$15 -> 0.2998783264 | CK61: =+W61*KeyAssumptionsPriceControl_FO!AF$15 -> 0.3067755279 | CL61: =+X61*KeyAssumptionsPriceControl_FO!AG$15 -> 0.313831365 | CN61: 0.005754375 | CO61: 0.01739547563 | CP61: 0.02930432156 | CQ61: 0.04148707096 | CR61: 0.05395002359 | CS61: 0.06669962414 | CT61: 0.07974246549 | CU61: 0.0930852922 | CV61: 0.1067350039 | CW61: 0.120698659
C62: Land Development | D62: 0 | E62: Sewerage | F62: Growth | G62: Pipelines/network | H62: Capital programs / Allocation | I62: 0 | J62: Straight line | K62: Ongoing | L62: 45 | M62: 22.22222222 | O62: 0.25 | P62: 0.25 | Q62: 0.25 | R62: 0.25 | S62: 0.25 | T62: 0.25 | U62: 0.25 | V62: 0.25 | W62: 0.25 | X62: 0.25 | AV62: 0.25 | AW62: 0.25 | AX62: 0.25 | AY62: 0.25 | AZ62: 0.25 | BA62: 0.25 | BB62: 0.25 | BC62: 0.25 | BD62: 0.25 | BE62: 0.25 | BG62: 0.002777777778 | BH62: 0.008333333333 | BI62: 0.01388888889 | BJ62: 0.01944444444 | BK62: 0.025 | BL62: 0.03055555556 | BM62: 0.03611111111 | BN62: 0.04166666667 | BO62: 0.04722222222 | BP62: 0.05277777778 | BR62: =+IF($K62="Ongoing",AV62,IF(RIGHT($K62,2)=RIGHT(BR$39,2),SUM($AV62:AV62),0)+IF(RIGHT(BR$39,2)>RIGHT($K62,2),AV62,0)) -> 0.25 | BS62: =+IF($K62="Ongoing",AW62,IF(RIGHT($K62,2)=RIGHT(BS$39,2),SUM($AV62:AW62),0)+IF(RIGHT(BS$39,2)>RIGHT($K62,2),AW62,0)) -> 0.25 | BT62: =+IF($K62="Ongoing",AX62,IF(RIGHT($K62,2)=RIGHT(BT$39,2),SUM($AV62:AX62),0)+IF(RIGHT(BT$39,2)>RIGHT($K62,2),AX62,0)) -> 0.25 | BU62: =+IF($K62="Ongoing",AY62,IF(RIGHT($K62,2)=RIGHT(BU$39,2),SUM($AV62:AY62),0)+IF(RIGHT(BU$39,2)>RIGHT($K62,2),AY62,0)) -> 0.25 | BV62: =+IF($K62="Ongoing",AZ62,IF(RIGHT($K62,2)=RIGHT(BV$39,2),SUM($AV62:AZ62),0)+IF(RIGHT(BV$39,2)>RIGHT($K62,2),AZ62,0)) -> 0.25 | BW62: =+IF($K62="Ongoing",BA62,IF(RIGHT($K62,2)=RIGHT(BW$39,2),SUM($AV62:BA62),0)+IF(RIGHT(BW$39,2)>RIGHT($K62,2),BA62,0)) -> 0.25 | BX62: =+IF($K62="Ongoing",BB62,IF(RIGHT($K62,2)=RIGHT(BX$39,2),SUM($AV62:BB62),0)+IF(RIGHT(BX$39,2)>RIGHT($K62,2),BB62,0)) -> 0.25 | BY62: =+IF($K62="Ongoing",BC62,IF(RIGHT($K62,2)=RIGHT(BY$39,2),SUM($AV62:BC62),0)+IF(RIGHT(BY$39,2)>RIGHT($K62,2),BC62,0)) -> 0.25 | BZ62: =+IF($K62="Ongoing",BD62,IF(RIGHT($K62,2)=RIGHT(BZ$39,2),SUM($AV62:BD62),0)+IF(RIGHT(BZ$39,2)>RIGHT($K62,2),BD62,0)) -> 0.25 | CA62: =+IF($K62="Ongoing",BE62,IF(RIGHT($K62,2)=RIGHT(CA$39,2),SUM($AV62:BE62),0)+IF(RIGHT(CA$39,2)>RIGHT($K62,2),BE62,0)) -> 0.25 | CC62: =+O62*KeyAssumptionsPriceControl_FO!X$15 -> 0.25575 | CD62: =+P62*KeyAssumptionsPriceControl_FO!Y$15 -> 0.26163225 | CE62: =+Q62*KeyAssumptionsPriceControl_FO!Z$15 -> 0.2676497917 | CF62: =+R62*KeyAssumptionsPriceControl_FO!AA$15 -> 0.273805737 | CG62: =+S62*KeyAssumptionsPriceControl_FO!AB$15 -> 0.2801032689 | CH62: =+T62*KeyAssumptionsPriceControl_FO!AC$15 -> 0.2865456441 | CI62: =+U62*KeyAssumptionsPriceControl_FO!AD$15 -> 0.2931361939 | CJ62: =+V62*KeyAssumptionsPriceControl_FO!AE$15 -> 0.2998783264 | CK62: =+W62*KeyAssumptionsPriceControl_FO!AF$15 -> 0.3067755279 | CL62: =+X62*KeyAssumptionsPriceControl_FO!AG$15 -> 0.313831365 | CN62: 0.005754375 | CO62: 0.01739547563 | CP62: 0.02930432156 | CQ62: 0.04148707096 | CR62: 0.05395002359 | CS62: 0.06669962414 | CT62: 0.07974246549 | CU62: 0.0930852922 | CV62: 0.1067350039 | CW62: 0.120698659
C63: ALL SITES Sewerage Pump Replacement Program | D63: 0 | E63: Sewerage | F63: Renewals | G63: Pipelines/network | H63: Capital programs / Allocation | I63: 0 | J63: Straight line | K63: Ongoing | L63: 45 | M63: 22.22222222 | O63: 0.125 | P63: 0.075 | Q63: 0.125 | R63: 0.175 | S63: 0.125 | T63: 0.125 | U63: 0.125 | V63: 0.125 | W63: 0.125 | X63: 0.125 | AV63: 0.125 | AW63: 0.075 | AX63: 0.125 | AY63: 0.175 | AZ63: 0.125 | BA63: 0.125 | BB63: 0.125 | BC63: 0.125 | BD63: 0.125 | BE63: 0.125 | BG63: 0.001388888889 | BH63: 0.003611111111 | BI63: 0.005833333333 | BJ63: 0.009166666667 | BK63: 0.0125 | BL63: 0.01527777778 | BM63: 0.01805555556 | BN63: 0.02083333333 | BO63: 0.02361111111 | BP63: 0.02638888889 | BR63: =+IF($K63="Ongoing",AV63,IF(RIGHT($K63,2)=RIGHT(BR$39,2),SUM($AV63:AV63),0)+IF(RIGHT(BR$39,2)>RIGHT($K63,2),AV63,0)) -> 0.125 | BS63: =+IF($K63="Ongoing",AW63,IF(RIGHT($K63,2)=RIGHT(BS$39,2),SUM($AV63:AW63),0)+IF(RIGHT(BS$39,2)>RIGHT($K63,2),AW63,0)) -> 0.075 | BT63: =+IF($K63="Ongoing",AX63,IF(RIGHT($K63,2)=RIGHT(BT$39,2),SUM($AV63:AX63),0)+IF(RIGHT(BT$39,2)>RIGHT($K63,2),AX63,0)) -> 0.125 | BU63: =+IF($K63="Ongoing",AY63,IF(RIGHT($K63,2)=RIGHT(BU$39,2),SUM($AV63:AY63),0)+IF(RIGHT(BU$39,2)>RIGHT($K63,2),AY63,0)) -> 0.175 | BV63: =+IF($K63="Ongoing",AZ63,IF(RIGHT($K63,2)=RIGHT(BV$39,2),SUM($AV63:AZ63),0)+IF(RIGHT(BV$39,2)>RIGHT($K63,2),AZ63,0)) -> 0.125 | BW63: =+IF($K63="Ongoing",BA63,IF(RIGHT($K63,2)=RIGHT(BW$39,2),SUM($AV63:BA63),0)+IF(RIGHT(BW$39,2)>RIGHT($K63,2),BA63,0)) -> 0.125 | BX63: =+IF($K63="Ongoing",BB63,IF(RIGHT($K63,2)=RIGHT(BX$39,2),SUM($AV63:BB63),0)+IF(RIGHT(BX$39,2)>RIGHT($K63,2),BB63,0)) -> 0.125 | BY63: =+IF($K63="Ongoing",BC63,IF(RIGHT($K63,2)=RIGHT(BY$39,2),SUM($AV63:BC63),0)+IF(RIGHT(BY$39,2)>RIGHT($K63,2),BC63,0)) -> 0.125 | BZ63: =+IF($K63="Ongoing",BD63,IF(RIGHT($K63,2)=RIGHT(BZ$39,2),SUM($AV63:BD63),0)+IF(RIGHT(BZ$39,2)>RIGHT($K63,2),BD63,0)) -> 0.125 | CA63: =+IF($K63="Ongoing",BE63,IF(RIGHT($K63,2)=RIGHT(CA$39,2),SUM($AV63:BE63),0)+IF(RIGHT(CA$39,2)>RIGHT($K63,2),BE63,0)) -> 0.125 | CC63: =+O63*KeyAssumptionsPriceControl_FO!X$15 -> 0.127875 | CD63: =+P63*KeyAssumptionsPriceControl_FO!Y$15 -> 0.078489675 | CE63: =+Q63*KeyAssumptionsPriceControl_FO!Z$15 -> 0.1338248959 | CF63: =+R63*KeyAssumptionsPriceControl_FO!AA$15 -> 0.1916640159 | CG63: =+S63*KeyAssumptionsPriceControl_FO!AB$15 -> 0.1400516345 | CH63: =+T63*KeyAssumptionsPriceControl_FO!AC$15 -> 0.143272822 | CI63: =+U63*KeyAssumptionsPriceControl_FO!AD$15 -> 0.146568097 | CJ63: =+V63*KeyAssumptionsPriceControl_FO!AE$15 -> 0.1499391632 | CK63: =+W63*KeyAssumptionsPriceControl_FO!AF$15 -> 0.1533877639 | CL63: =+X63*KeyAssumptionsPriceControl_FO!AG$15 -> 0.1569156825 | CN63: 0.0028771875 | CO63: 0.007520392687 | CP63: 0.01229747053 | CQ63: 0.01962097105 | CR63: 0.02708457318 | CS63: 0.03345937345 | CT63: 0.03998079413 | CU63: 0.04665220748 | CV63: 0.05347706334 | CW63: 0.06045889089
C64: ALL SITES SPS Switchboard Replacement/Upgrade Program | D64: 0 | E64: Sewerage | F64: Renewals | G64: Pipelines/network | H64: Capital programs / Allocation | J64: Straight line | K64: Ongoing | L64: 45 | M64: 22.22222222 | O64: 0.05 | P64: 0.03 | Q64: 0.05 | R64: 0.05 | S64: 0.1 | T64: 0.175 | U64: 0.175 | V64: 0.175 | W64: 0.175 | X64: 0.175 | AV64: 0.05 | AW64: 0.03 | AX64: 0.05 | AY64: 0.05 | AZ64: 0.1 | BA64: 0.175 | BB64: 0.175 | BC64: 0.175 | BD64: 0.175 | BE64: 0.175 | BG64: 0.0005555555556 | BH64: 0.001444444444 | BI64: 0.002333333333 | BJ64: 0.003444444444 | BK64: 0.005111111111 | BL64: 0.008166666667 | BM64: 0.01205555556 | BN64: 0.01594444444 | BO64: 0.01983333333 | BP64: 0.02372222222 | BR64: =+IF($K64="Ongoing",AV64,IF(RIGHT($K64,2)=RIGHT(BR$39,2),SUM($AV64:AV64),0)+IF(RIGHT(BR$39,2)>RIGHT($K64,2),AV64,0)) -> 0.05 | BS64: =+IF($K64="Ongoing",AW64,IF(RIGHT($K64,2)=RIGHT(BS$39,2),SUM($AV64:AW64),0)+IF(RIGHT(BS$39,2)>RIGHT($K64,2),AW64,0)) -> 0.03 | BT64: =+IF($K64="Ongoing",AX64,IF(RIGHT($K64,2)=RIGHT(BT$39,2),SUM($AV64:AX64),0)+IF(RIGHT(BT$39,2)>RIGHT($K64,2),AX64,0)) -> 0.05 | BU64: =+IF($K64="Ongoing",AY64,IF(RIGHT($K64,2)=RIGHT(BU$39,2),SUM($AV64:AY64),0)+IF(RIGHT(BU$39,2)>RIGHT($K64,2),AY64,0)) -> 0.05 | BV64: =+IF($K64="Ongoing",AZ64,IF(RIGHT($K64,2)=RIGHT(BV$39,2),SUM($AV64:AZ64),0)+IF(RIGHT(BV$39,2)>RIGHT($K64,2),AZ64,0)) -> 0.1 | BW64: =+IF($K64="Ongoing",BA64,IF(RIGHT($K64,2)=RIGHT(BW$39,2),SUM($AV64:BA64),0)+IF(RIGHT(BW$39,2)>RIGHT($K64,2),BA64,0)) -> 0.175 | BX64: =+IF($K64="Ongoing",BB64,IF(RIGHT($K64,2)=RIGHT(BX$39,2),SUM($AV64:BB64),0)+IF(RIGHT(BX$39,2)>RIGHT($K64,2),BB64,0)) -> 0.175 | BY64: =+IF($K64="Ongoing",BC64,IF(RIGHT($K64,2)=RIGHT(BY$39,2),SUM($AV64:BC64),0)+IF(RIGHT(BY$39,2)>RIGHT($K64,2),BC64,0)) -> 0.175 | BZ64: =+IF($K64="Ongoing",BD64,IF(RIGHT($K64,2)=RIGHT(BZ$39,2),SUM($AV64:BD64),0)+IF(RIGHT(BZ$39,2)>RIGHT($K64,2),BD64,0)) -> 0.175 | CA64: =+IF($K64="Ongoing",BE64,IF(RIGHT($K64,2)=RIGHT(CA$39,2),SUM($AV64:BE64),0)+IF(RIGHT(CA$39,2)>RIGHT($K64,2),BE64,0)) -> 0.175 | CC64: =+O64*KeyAssumptionsPriceControl_FO!X$15 -> 0.05115 | CD64: =+P64*KeyAssumptionsPriceControl_FO!Y$15 -> 0.03139587 | CE64: =+Q64*KeyAssumptionsPriceControl_FO!Z$15 -> 0.05352995835 | CF64: =+R64*KeyAssumptionsPriceControl_FO!AA$15 -> 0.05476114739 | CG64: =+S64*KeyAssumptionsPriceControl_FO!AB$15 -> 0.1120413076 | CH64: =+T64*KeyAssumptionsPriceControl_FO!AC$15 -> 0.2005819509 | CI64: =+U64*KeyAssumptionsPriceControl_FO!AD$15 -> 0.2051953357 | CJ64: =+V64*KeyAssumptionsPriceControl_FO!AE$15 -> 0.2099148285 | CK64: =+W64*KeyAssumptionsPriceControl_FO!AF$15 -> 0.2147428695 | CL64: =+X64*KeyAssumptionsPriceControl_FO!AG$15 -> 0.2196819555 | CN64: 0.001150875 | CO64: 0.003008157075 | CP64: 0.004918988213 | CQ64: 0.007355538092 | CR64: 0.01110859333 | CS64: 0.01814261664 | CT64: 0.02727260559 | CU64: 0.03661258429 | CV64: 0.04616738249 | CW64: 0.05594194105
C65: MDA - Mildura Waster Water Treatment Plant Repair Carousel | D65: 0 | E65: Sewerage | F65: Renewals | G65: Pipelines/network | H65: Capital programs / Allocation | I65: 0 | J65: Straight line | K65: 0 | L65: 45 | M65: 22.22222222 | O65: 0 | P65: 0 | Q65: 0 | R65: 0 | S65: 0 | T65: 0 | U65: 0 | V65: 0 | W65: 0 | X65: 0 | AV65: 0 | AW65: 0 | AX65: 0 | AY65: 0 | AZ65: 0 | BA65: 0 | BB65: 0 | BC65: 0 | BD65: 0 | BE65: 0 | BG65: 0 | BH65: 0 | BI65: 0 | BJ65: 0 | BK65: 0 | BL65: 0 | BM65: 0 | BN65: 0 | BO65: 0 | BP65: 0 | BR65: =+IF($K65="Ongoing",AV65,IF(RIGHT($K65,2)=RIGHT(BR$39,2),SUM($AV65:AV65),0)+IF(RIGHT(BR$39,2)>RIGHT($K65,2),AV65,0)) -> 0 | BS65: =+IF($K65="Ongoing",AW65,IF(RIGHT($K65,2)=RIGHT(BS$39,2),SUM($AV65:AW65),0)+IF(RIGHT(BS$39,2)>RIGHT($K65,2),AW65,0)) -> 0 | BT65: =+IF($K65="Ongoing",AX65,IF(RIGHT($K65,2)=RIGHT(BT$39,2),SUM($AV65:AX65),0)+IF(RIGHT(BT$39,2)>RIGHT($K65,2),AX65,0)) -> 0 | BU65: =+IF($K65="Ongoing",AY65,IF(RIGHT($K65,2)=RIGHT(BU$39,2),SUM($AV65:AY65),0)+IF(RIGHT(BU$39,2)>RIGHT($K65,2),AY65,0)) -> 0 | BV65: =+IF($K65="Ongoing",AZ65,IF(RIGHT($K65,2)=RIGHT(BV$39,2),SUM($AV65:AZ65),0)+IF(RIGHT(BV$39,2)>RIGHT($K65,2),AZ65,0)) -> 0 | BW65: =+IF($K65="Ongoing",BA65,IF(RIGHT($K65,2)=RIGHT(BW$39,2),SUM($AV65:BA65),0)+IF(RIGHT(BW$39,2)>RIGHT($K65,2),BA65,0)) -> 0 | BX65: =+IF($K65="Ongoing",BB65,IF(RIGHT($K65,2)=RIGHT(BX$39,2),SUM($AV65:BB65),0)+IF(RIGHT(BX$39,2)>RIGHT($K65,2),BB65,0)) -> 0 | BY65: =+IF($K65="Ongoing",BC65,IF(RIGHT($K65,2)=RIGHT(BY$39,2),SUM($AV65:BC65),0)+IF(RIGHT(BY$39,2)>RIGHT($K65,2),BC65,0)) -> 0 | BZ65: =+IF($K65="Ongoing",BD65,IF(RIGHT($K65,2)=RIGHT(BZ$39,2),SUM($AV65:BD65),0)+IF(RIGHT(BZ$39,2)>RIGHT($K65,2),BD65,0)) -> 0 | CA65: =+IF($K65="Ongoing",BE65,IF(RIGHT($K65,2)=RIGHT(CA$39,2),SUM($AV65:BE65),0)+IF(RIGHT(CA$39,2)>RIGHT($K65,2),BE65,0)) -> 0 | CC65: =+O65*KeyAssumptionsPriceControl_FO!X$15 -> 0 | CD65: =+P65*KeyAssumptionsPriceControl_FO!Y$15 -> 0 | CE65: =+Q65*KeyAssumptionsPriceControl_FO!Z$15 -> 0 | CF65: =+R65*KeyAssumptionsPriceControl_FO!AA$15 -> 0 | CG65: =+S65*KeyAssumptionsPriceControl_FO!AB$15 -> 0 | CH65: =+T65*KeyAssumptionsPriceControl_FO!AC$15 -> 0 | CI65: =+U65*KeyAssumptionsPriceControl_FO!AD$15 -> 0 | CJ65: =+V65*KeyAssumptionsPriceControl_FO!AE$15 -> 0 | CK65: =+W65*KeyAssumptionsPriceControl_FO!AF$15 -> 0 | CL65: =+X65*KeyAssumptionsPriceControl_FO!AG$15 -> 0 | CN65: 0 | CO65: 0 | CP65: 0 | CQ65: 0 | CR65: 0 | CS65: 0 | CT65: 0 | CU65: 0 | CV65: 0 | CW65: 0
C66: [Capex Item - Significant Project / Capital Program / Other Capex] | AV66: 0 | AW66: 0 | AX66: 0 | AY66: 0 | AZ66: 0 | BA66: 0 | BB66: 0 | BC66: 0 | BD66: 0 | BE66: 0 | BG66: 0 | BH66: 0 | BI66: 0 | BJ66: 0 | BK66: 0 | BL66: 0 | BM66: 0 | BN66: 0 | BO66: 0 | BP66: 0 | BR66: =+IF($K66="Ongoing",AV66,IF(RIGHT($K66,2)=RIGHT(BR$39,2),SUM($AV66:AV66),0)+IF(RIGHT(BR$39,2)>RIGHT($K66,2),AV66,0)) -> 0 | BS66: =+IF($K66="Ongoing",AW66,IF(RIGHT($K66,2)=RIGHT(BS$39,2),SUM($AV66:AW66),0)+IF(RIGHT(BS$39,2)>RIGHT($K66,2),AW66,0)) -> 0 | BT66: =+IF($K66="Ongoing",AX66,IF(RIGHT($K66,2)=RIGHT(BT$39,2),SUM($AV66:AX66),0)+IF(RIGHT(BT$39,2)>RIGHT($K66,2),AX66,0)) -> 0 | BU66: =+IF($K66="Ongoing",AY66,IF(RIGHT($K66,2)=RIGHT(BU$39,2),SUM($AV66:AY66),0)+IF(RIGHT(BU$39,2)>RIGHT($K66,2),AY66,0)) -> 0 | BV66: =+IF($K66="Ongoing",AZ66,IF(RIGHT($K66,2)=RIGHT(BV$39,2),SUM($AV66:AZ66),0)+IF(RIGHT(BV$39,2)>RIGHT($K66,2),AZ66,0)) -> 0 | BW66: =+IF($K66="Ongoing",BA66,IF(RIGHT($K66,2)=RIGHT(BW$39,2),SUM($AV66:BA66),0)+IF(RIGHT(BW$39,2)>RIGHT($K66,2),BA66,0)) -> 0 | BX66: =+IF($K66="Ongoing",BB66,IF(RIGHT($K66,2)=RIGHT(BX$39,2),SUM($AV66:BB66),0)+IF(RIGHT(BX$39,2)>RIGHT($K66,2),BB66,0)) -> 0 | BY66: =+IF($K66="Ongoing",BC66,IF(RIGHT($K66,2)=RIGHT(BY$39,2),SUM($AV66:BC66),0)+IF(RIGHT(BY$39,2)>RIGHT($K66,2),BC66,0)) -> 0 | BZ66: =+IF($K66="Ongoing",BD66,IF(RIGHT($K66,2)=RIGHT(BZ$39,2),SUM($AV66:BD66),0)+IF(RIGHT(BZ$39,2)>RIGHT($K66,2),BD66,0)) -> 0 | CA66: =+IF($K66="Ongoing",BE66,IF(RIGHT($K66,2)=RIGHT(CA$39,2),SUM($AV66:BE66),0)+IF(RIGHT(CA$39,2)>RIGHT($K66,2),BE66,0)) -> 0 | CC66: =+O66*KeyAssumptionsPriceControl_FO!X$15 -> 0 | CD66: =+P66*KeyAssumptionsPriceControl_FO!Y$15 -> 0 | CE66: =+Q66*KeyAssumptionsPriceControl_FO!Z$15 -> 0 | CF66: =+R66*KeyAssumptionsPriceControl_FO!AA$15 -> 0 | CG66: =+S66*KeyAssumptionsPriceControl_FO!AB$15 -> 0 | CH66: =+T66*KeyAssumptionsPriceControl_FO!AC$15 -> 0 | CI66: =+U66*KeyAssumptionsPriceControl_FO!AD$15 -> 0 | CJ66: =+V66*KeyAssumptionsPriceControl_FO!AE$15 -> 0 | CK66: =+W66*KeyAssumptionsPriceControl_FO!AF$15 -> 0 | CL66: =+X66*KeyAssumptionsPriceControl_FO!AG$15 -> 0 | CN66: 0 | CO66: 0 | CP66: 0 | CQ66: 0 | CR66: 0 | CS66: 0 | CT66: 0 | CU66: 0 | CV66: 0 | CW66: 0
C67: MDA - Replace/Refurb Rocla Rising Main 600 MDA WTP to Elevated Storage | D67: 0 | E67: Water | F67: Growth | G67: Pipelines/network | H67: Significant Projects | I67: 0 | J67: Straight line | K67: 2023-24 | L67: 45 | M67: 22.22222222 | O67: 0 | P67: 0 | Q67: 0 | R67: 0 | S67: 0 | T67: 1.5 | U67: 0 | V67: 0 | W67: 0 | X67: 0 | AV67: 0 | AW67: 0 | AX67: 0 | AY67: 0 | AZ67: 0 | BA67: 1.5 | BB67: 0 | BC67: 0 | BD67: 0 | BE67: 0 | BG67: 0 | BH67: 0 | BI67: 0 | BJ67: 0 | BK67: 0 | BL67: 0.01666666667 | BM67: 0.03333333333 | BN67: 0.03333333333 | BO67: 0.03333333333 | BP67: 0.03333333333 | BR67: =+IF($K67="Ongoing",AV67,IF(RIGHT($K67,2)=RIGHT(BR$39,2),SUM($AV67:AV67),0)+IF(RIGHT(BR$39,2)>RIGHT($K67,2),AV67,0)) -> 0 | BS67: =+IF($K67="Ongoing",AW67,IF(RIGHT($K67,2)=RIGHT(BS$39,2),SUM($AV67:AW67),0)+IF(RIGHT(BS$39,2)>RIGHT($K67,2),AW67,0)) -> 0 | BT67: =+IF($K67="Ongoing",AX67,IF(RIGHT($K67,2)=RIGHT(BT$39,2),SUM($AV67:AX67),0)+IF(RIGHT(BT$39,2)>RIGHT($K67,2),AX67,0)) -> 0 | BU67: =+IF($K67="Ongoing",AY67,IF(RIGHT($K67,2)=RIGHT(BU$39,2),SUM($AV67:AY67),0)+IF(RIGHT(BU$39,2)>RIGHT($K67,2),AY67,0)) -> 0 | BV67: =+IF($K67="Ongoing",AZ67,IF(RIGHT($K67,2)=RIGHT(BV$39,2),SUM($AV67:AZ67),0)+IF(RIGHT(BV$39,2)>RIGHT($K67,2),AZ67,0)) -> 0 | BW67: =+IF($K67="Ongoing",BA67,IF(RIGHT($K67,2)=RIGHT(BW$39,2),SUM($AV67:BA67),0)+IF(RIGHT(BW$39,2)>RIGHT($K67,2),BA67,0)) -> 1.5 | BX67: =+IF($K67="Ongoing",BB67,IF(RIGHT($K67,2)=RIGHT(BX$39,2),SUM($AV67:BB67),0)+IF(RIGHT(BX$39,2)>RIGHT($K67,2),BB67,0)) -> 0 | BY67: =+IF($K67="Ongoing",BC67,IF(RIGHT($K67,2)=RIGHT(BY$39,2),SUM($AV67:BC67),0)+IF(RIGHT(BY$39,2)>RIGHT($K67,2),BC67,0)) -> 0 | BZ67: =+IF($K67="Ongoing",BD67,IF(RIGHT($K67,2)=RIGHT(BZ$39,2),SUM($AV67:BD67),0)+IF(RIGHT(BZ$39,2)>RIGHT($K67,2),BD67,0)) -> 0 | CA67: =+IF($K67="Ongoing",BE67,IF(RIGHT($K67,2)=RIGHT(CA$39,2),SUM($AV67:BE67),0)+IF(RIGHT(CA$39,2)>RIGHT($K67,2),BE67,0)) -> 0 | CC67: =+O67*KeyAssumptionsPriceControl_FO!X$15 -> 0 | CD67: =+P67*KeyAssumptionsPriceControl_FO!Y$15 -> 0 | CE67: =+Q67*KeyAssumptionsPriceControl_FO!Z$15 -> 0 | CF67: =+R67*KeyAssumptionsPriceControl_FO!AA$15 -> 0 | CG67: =+S67*KeyAssumptionsPriceControl_FO!AB$15 -> 0 | CH67: =+T67*KeyAssumptionsPriceControl_FO!AC$15 -> 1.719273865 | CI67: =+U67*KeyAssumptionsPriceControl_FO!AD$15 -> 0 | CJ67: =+V67*KeyAssumptionsPriceControl_FO!AE$15 -> 0 | CK67: =+W67*KeyAssumptionsPriceControl_FO!AF$15 -> 0 | CL67: =+X67*KeyAssumptionsPriceControl_FO!AG$15 -> 0 | CN67: 0 | CO67: 0 | CP67: 0 | CQ67: 0 | CR67: 0 | CS67: 0.03868366195 | CT67: 0.07736732391 | CU67: 0.07736732391 | CV67: 0.07736732391 | CW67: 0.07736732391
C68: MDA ME DN225 Merbein River Ave - Reily St to Charles Rd (1,560 m) | D68: 0 | E68: Water | F68: Renewals | G68: Pipelines/network | H68: Significant Projects | I68: 0 | J68: Straight line | K68: 2020-21 | L68: 45 | M68: 22.22222222 | O68: 0 | P68: 0 | Q68: 1.36 | R68: 0 | S68: 0 | T68: 0 | U68: 0 | V68: 0 | W68: 0 | X68: 0 | AV68: 0 | AW68: 0 | AX68: 1.36 | AY68: 0 | AZ68: 0 | BA68: 0 | BB68: 0 | BC68: 0 | BD68: 0 | BE68: 0 | BG68: 0 | BH68: 0 | BI68: 0.01511111111 | BJ68: 0.03022222222 | BK68: 0.03022222222 | BL68: 0.03022222222 | BM68: 0.03022222222 | BN68: 0.03022222222 | BO68: 0.03022222222 | BP68: 0.03022222222 | BR68: =+IF($K68="Ongoing",AV68,IF(RIGHT($K68,2)=RIGHT(BR$39,2),SUM($AV68:AV68),0)+IF(RIGHT(BR$39,2)>RIGHT($K68,2),AV68,0)) -> 0 | BS68: =+IF($K68="Ongoing",AW68,IF(RIGHT($K68,2)=RIGHT(BS$39,2),SUM($AV68:AW68),0)+IF(RIGHT(BS$39,2)>RIGHT($K68,2),AW68,0)) -> 0 | BT68: =+IF($K68="Ongoing",AX68,IF(RIGHT($K68,2)=RIGHT(BT$39,2),SUM($AV68:AX68),0)+IF(RIGHT(BT$39,2)>RIGHT($K68,2),AX68,0)) -> 1.36 | BU68: =+IF($K68="Ongoing",AY68,IF(RIGHT($K68,2)=RIGHT(BU$39,2),SUM($AV68:AY68),0)+IF(RIGHT(BU$39,2)>RIGHT($K68,2),AY68,0)) -> 0 | BV68: =+IF($K68="Ongoing",AZ68,IF(RIGHT($K68,2)=RIGHT(BV$39,2),SUM($AV68:AZ68),0)+IF(RIGHT(BV$39,2)>RIGHT($K68,2),AZ68,0)) -> 0 | BW68: =+IF($K68="Ongoing",BA68,IF(RIGHT($K68,2)=RIGHT(BW$39,2),SUM($AV68:BA68),0)+IF(RIGHT(BW$39,2)>RIGHT($K68,2),BA68,0)) -> 0 | BX68: =+IF($K68="Ongoing",BB68,IF(RIGHT($K68,2)=RIGHT(BX$39,2),SUM($AV68:BB68),0)+IF(RIGHT(BX$39,2)>RIGHT($K68,2),BB68,0)) -> 0 | BY68: =+IF($K68="Ongoing",BC68,IF(RIGHT($K68,2)=RIGHT(BY$39,2),SUM($AV68:BC68),0)+IF(RIGHT(BY$39,2)>RIGHT($K68,2),BC68,0)) -> 0 | BZ68: =+IF($K68="Ongoing",BD68,IF(RIGHT($K68,2)=RIGHT(BZ$39,2),SUM($AV68:BD68),0)+IF(RIGHT(BZ$39,2)>RIGHT($K68,2),BD68,0)) -> 0 | CA68: =+IF($K68="Ongoing",BE68,IF(RIGHT($K68,2)=RIGHT(CA$39,2),SUM($AV68:BE68),0)+IF(RIGHT(CA$39,2)>RIGHT($K68,2),BE68,0)) -> 0 | CC68: =+O68*KeyAssumptionsPriceControl_FO!X$15 -> 0 | CD68: =+P68*KeyAssumptionsPriceControl_FO!Y$15 -> 0 | CE68: =+Q68*KeyAssumptionsPriceControl_FO!Z$15 -> 1.456014867 | CF68: =+R68*KeyAssumptionsPriceControl_FO!AA$15 -> 0 | CG68: =+S68*KeyAssumptionsPriceControl_FO!AB$15 -> 0 | CH68: =+T68*KeyAssumptionsPriceControl_FO!AC$15 -> 0 | CI68: =+U68*KeyAssumptionsPriceControl_FO!AD$15 -> 0 | CJ68: =+V68*KeyAssumptionsPriceControl_FO!AE$15 -> 0 | CK68: =+W68*KeyAssumptionsPriceControl_FO!AF$15 -> 0 | CL68: =+X68*KeyAssumptionsPriceControl_FO!AG$15 -> 0 | CN68: 0 | CO68: 0 | CP68: 0.03276033451 | CQ68: 0.06552066902 | CR68: 0.06552066902 | CS68: 0.06552066902 | CT68: 0.06552066902 | CU68: 0.06552066902 | CV68: 0.06552066902 | CW68: 0.06552066902
C69: LB - Lake Boga Trunk Main Replacement Stage 2 | D69: 0 | E69: Water | F69: Renewals | G69: Treatment | H69: Significant Projects | I69: 0 | J69: Straight line | K69: 2026-27 | L69: 45 | M69: 22.22222222 | O69: 0 | P69: 0 | Q69: 0 | R69: 0 | S69: 0 | T69: 0 | U69: 0 | V69: 0.8 | W69: 1.15 | X69: 0 | AV69: 0 | AW69: 0 | AX69: 0 | AY69: 0 | AZ69: 0 | BA69: 0 | BB69: 0 | BC69: 0.8 | BD69: 1.15 | BE69: 0 | BG69: 0 | BH69: 0 | BI69: 0 | BJ69: 0 | BK69: 0 | BL69: 0 | BM69: 0 | BN69: 0 | BO69: 0.02166666667 | BP69: 0.04333333333 | BR69: =+IF($K69="Ongoing",AV69,IF(RIGHT($K69,2)=RIGHT(BR$39,2),SUM($AV69:AV69),0)+IF(RIGHT(BR$39,2)>RIGHT($K69,2),AV69,0)) -> 0 | BS69: =+IF($K69="Ongoing",AW69,IF(RIGHT($K69,2)=RIGHT(BS$39,2),SUM($AV69:AW69),0)+IF(RIGHT(BS$39,2)>RIGHT($K69,2),AW69,0)) -> 0 | BT69: =+IF($K69="Ongoing",AX69,IF(RIGHT($K69,2)=RIGHT(BT$39,2),SUM($AV69:AX69),0)+IF(RIGHT(BT$39,2)>RIGHT($K69,2),AX69,0)) -> 0 | BU69: =+IF($K69="Ongoing",AY69,IF(RIGHT($K69,2)=RIGHT(BU$39,2),SUM($AV69:AY69),0)+IF(RIGHT(BU$39,2)>RIGHT($K69,2),AY69,0)) -> 0 | BV69: =+IF($K69="Ongoing",AZ69,IF(RIGHT($K69,2)=RIGHT(BV$39,2),SUM($AV69:AZ69),0)+IF(RIGHT(BV$39,2)>RIGHT($K69,2),AZ69,0)) -> 0 | BW69: =+IF($K69="Ongoing",BA69,IF(RIGHT($K69,2)=RIGHT(BW$39,2),SUM($AV69:BA69),0)+IF(RIGHT(BW$39,2)>RIGHT($K69,2),BA69,0)) -> 0 | BX69: =+IF($K69="Ongoing",BB69,IF(RIGHT($K69,2)=RIGHT(BX$39,2),SUM($AV69:BB69),0)+IF(RIGHT(BX$39,2)>RIGHT($K69,2),BB69,0)) -> 0 | BY69: =+IF($K69="Ongoing",BC69,IF(RIGHT($K69,2)=RIGHT(BY$39,2),SUM($AV69:BC69),0)+IF(RIGHT(BY$39,2)>RIGHT($K69,2),BC69,0)) -> 0 | BZ69: =+IF($K69="Ongoing",BD69,IF(RIGHT($K69,2)=RIGHT(BZ$39,2),SUM($AV69:BD69),0)+IF(RIGHT(BZ$39,2)>RIGHT($K69,2),BD69,0)) -> 1.95 | CA69: =+IF($K69="Ongoing",BE69,IF(RIGHT($K69,2)=RIGHT(CA$39,2),SUM($AV69:BE69),0)+IF(RIGHT(CA$39,2)>RIGHT($K69,2),BE69,0)) -> 0 | CC69: =+O69*KeyAssumptionsPriceControl_FO!X$15 -> 0 | CD69: =+P69*KeyAssumptionsPriceControl_FO!Y$15 -> 0 | CE69: =+Q69*KeyAssumptionsPriceControl_FO!Z$15 -> 0 | CF69: =+R69*KeyAssumptionsPriceControl_FO!AA$15 -> 0 | CG69: =+S69*KeyAssumptionsPriceControl_FO!AB$15 -> 0 | CH69: =+T69*KeyAssumptionsPriceControl_FO!AC$15 -> 0 | CI69: =+U69*KeyAssumptionsPriceControl_FO!AD$15 -> 0 | CJ69: =+V69*KeyAssumptionsPriceControl_FO!AE$15 -> 0.9596106444 | CK69: =+W69*KeyAssumptionsPriceControl_FO!AF$15 -> 1.411167428 | CL69: =+X69*KeyAssumptionsPriceControl_FO!AG$15 -> 0 | CN69: 0 | CO69: 0 | CP69: 0 | CQ69: 0 | CR69: 0 | CS69: 0 | CT69: 0 | CU69: 0.0215912395 | CV69: 0.07493374613 | CW69: 0.1066850133
C70: MDA DN150 Cowra Ave Cureton (5th St) - 11th St (680m) Stage 1 | D70: 0 | E70: Water | F70: Renewals | G70: Pipelines/network | H70: Significant Projects | J70: Straight line | K70: 2024-25 | L70: 45 | M70: 22.22222222 | O70: 0 | P70: 0 | Q70: 0 | R70: 0 | S70: 0 | T70: 0 | U70: 0.235 | V70: 0 | W70: 0 | X70: 0 | AV70: 0 | AW70: 0 | AX70: 0 | AY70: 0 | AZ70: 0 | BA70: 0 | BB70: 0.235 | BC70: 0 | BD70: 0 | BE70: 0 | BG70: 0 | BH70: 0 | BI70: 0 | BJ70: 0 | BK70: 0 | BL70: 0 | BM70: 0.002611111111 | BN70: 0.005222222222 | BO70: 0.005222222222 | BP70: 0.005222222222 | BR70: =+IF($K70="Ongoing",AV70,IF(RIGHT($K70,2)=RIGHT(BR$39,2),SUM($AV70:AV70),0)+IF(RIGHT(BR$39,2)>RIGHT($K70,2),AV70,0)) -> 0 | BS70: =+IF($K70="Ongoing",AW70,IF(RIGHT($K70,2)=RIGHT(BS$39,2),SUM($AV70:AW70),0)+IF(RIGHT(BS$39,2)>RIGHT($K70,2),AW70,0)) -> 0 | BT70: =+IF($K70="Ongoing",AX70,IF(RIGHT($K70,2)=RIGHT(BT$39,2),SUM($AV70:AX70),0)+IF(RIGHT(BT$39,2)>RIGHT($K70,2),AX70,0)) -> 0 | BU70: =+IF($K70="Ongoing",AY70,IF(RIGHT($K70,2)=RIGHT(BU$39,2),SUM($AV70:AY70),0)+IF(RIGHT(BU$39,2)>RIGHT($K70,2),AY70,0)) -> 0 | BV70: =+IF($K70="Ongoing",AZ70,IF(RIGHT($K70,2)=RIGHT(BV$39,2),SUM($AV70:AZ70),0)+IF(RIGHT(BV$39,2)>RIGHT($K70,2),AZ70,0)) -> 0 | BW70: =+IF($K70="Ongoing",BA70,IF(RIGHT($K70,2)=RIGHT(BW$39,2),SUM($AV70:BA70),0)+IF(RIGHT(BW$39,2)>RIGHT($K70,2),BA70,0)) -> 0 | BX70: =+IF($K70="Ongoing",BB70,IF(RIGHT($K70,2)=RIGHT(BX$39,2),SUM($AV70:BB70),0)+IF(RIGHT(BX$39,2)>RIGHT($K70,2),BB70,0)) -> 0.235 | BY70: =+IF($K70="Ongoing",BC70,IF(RIGHT($K70,2)=RIGHT(BY$39,2),SUM($AV70:BC70),0)+IF(RIGHT(BY$39,2)>RIGHT($K70,2),BC70,0)) -> 0 | BZ70: =+IF($K70="Ongoing",BD70,IF(RIGHT($K70,2)=RIGHT(BZ$39,2),SUM($AV70:BD70),0)+IF(RIGHT(BZ$39,2)>RIGHT($K70,2),BD70,0)) -> 0 | CA70: =+IF($K70="Ongoing",BE70,IF(RIGHT($K70,2)=RIGHT(CA$39,2),SUM($AV70:BE70),0)+IF(RIGHT(CA$39,2)>RIGHT($K70,2),BE70,0)) -> 0 | CC70: =+O70*KeyAssumptionsPriceControl_FO!X$15 -> 0 | CD70: =+P70*KeyAssumptionsPriceControl_FO!Y$15 -> 0 | CE70: =+Q70*KeyAssumptionsPriceControl_FO!Z$15 -> 0 | CF70: =+R70*KeyAssumptionsPriceControl_FO!AA$15 -> 0 | CG70: =+S70*KeyAssumptionsPriceControl_FO!AB$15 -> 0 | CH70: =+T70*KeyAssumptionsPriceControl_FO!AC$15 -> 0 | CI70: =+U70*KeyAssumptionsPriceControl_FO!AD$15 -> 0.2755480223 | CJ70: =+V70*KeyAssumptionsPriceControl_FO!AE$15 -> 0 | CK70: =+W70*KeyAssumptionsPriceControl_FO!AF$15 -> 0 | CL70: =+X70*KeyAssumptionsPriceControl_FO!AG$15 -> 0 | CN70: 0 | CO70: 0 | CP70: 0 | CQ70: 0 | CR70: 0 | CS70: 0 | CT70: 0.006199830501 | CU70: 0.012399661 | CV70: 0.012399661 | CW70: 0.012399661
C71: MDA DN225 Nichols Point 5th St & Karadoc Ave to 11th St (1,345 m) | D71: 0 | E71: Water | F71: Renewals | G71: Pipelines/network | H71: Significant Projects | J71: Straight line | K71: 2025-26 | L71: 45 | M71: 22.22222222 | O71: 0 | P71: 0 | Q71: 0 | R71: 0 | S71: 0 | T71: 0 | U71: 0 | V71: 0.885 | W71: 0 | X71: 0 | AV71: 0 | AW71: 0 | AX71: 0 | AY71: 0 | AZ71: 0 | BA71: 0 | BB71: 0 | BC71: 0.885 | BD71: 0 | BE71: 0 | BG71: 0 | BH71: 0 | BI71: 0 | BJ71: 0 | BK71: 0 | BL71: 0 | BM71: 0 | BN71: 0.009833333333 | BO71: 0.01966666667 | BP71: 0.01966666667 | BR71: =+IF($K71="Ongoing",AV71,IF(RIGHT($K71,2)=RIGHT(BR$39,2),SUM($AV71:AV71),0)+IF(RIGHT(BR$39,2)>RIGHT($K71,2),AV71,0)) -> 0 | BS71: =+IF($K71="Ongoing",AW71,IF(RIGHT($K71,2)=RIGHT(BS$39,2),SUM($AV71:AW71),0)+IF(RIGHT(BS$39,2)>RIGHT($K71,2),AW71,0)) -> 0 | BT71: =+IF($K71="Ongoing",AX71,IF(RIGHT($K71,2)=RIGHT(BT$39,2),SUM($AV71:AX71),0)+IF(RIGHT(BT$39,2)>RIGHT($K71,2),AX71,0)) -> 0 | BU71: =+IF($K71="Ongoing",AY71,IF(RIGHT($K71,2)=RIGHT(BU$39,2),SUM($AV71:AY71),0)+IF(RIGHT(BU$39,2)>RIGHT($K71,2),AY71,0)) -> 0 | BV71: =+IF($K71="Ongoing",AZ71,IF(RIGHT($K71,2)=RIGHT(BV$39,2),SUM($AV71:AZ71),0)+IF(RIGHT(BV$39,2)>RIGHT($K71,2),AZ71,0)) -> 0 | BW71: =+IF($K71="Ongoing",BA71,IF(RIGHT($K71,2)=RIGHT(BW$39,2),SUM($AV71:BA71),0)+IF(RIGHT(BW$39,2)>RIGHT($K71,2),BA71,0)) -> 0 | BX71: =+IF($K71="Ongoing",BB71,IF(RIGHT($K71,2)=RIGHT(BX$39,2),SUM($AV71:BB71),0)+IF(RIGHT(BX$39,2)>RIGHT($K71,2),BB71,0)) -> 0 | BY71: =+IF($K71="Ongoing",BC71,IF(RIGHT($K71,2)=RIGHT(BY$39,2),SUM($AV71:BC71),0)+IF(RIGHT(BY$39,2)>RIGHT($K71,2),BC71,0)) -> 0.885 | BZ71: =+IF($K71="Ongoing",BD71,IF(RIGHT($K71,2)=RIGHT(BZ$39,2),SUM($AV71:BD71),0)+IF(RIGHT(BZ$39,2)>RIGHT($K71,2),BD71,0)) -> 0 | CA71: =+IF($K71="Ongoing",BE71,IF(RIGHT($K71,2)=RIGHT(CA$39,2),SUM($AV71:BE71),0)+IF(RIGHT(CA$39,2)>RIGHT($K71,2),BE71,0)) -> 0 | CC71: =+O71*KeyAssumptionsPriceControl_FO!X$15 -> 0 | CD71: =+P71*KeyAssumptionsPriceControl_FO!Y$15 -> 0 | CE71: =+Q71*KeyAssumptionsPriceControl_FO!Z$15 -> 0 | CF71: =+R71*KeyAssumptionsPriceControl_FO!AA$15 -> 0 | CG71: =+S71*KeyAssumptionsPriceControl_FO!AB$15 -> 0 | CH71: =+T71*KeyAssumptionsPriceControl_FO!AC$15 -> 0 | CI71: =+U71*KeyAssumptionsPriceControl_FO!AD$15 -> 0 | CJ71: =+V71*KeyAssumptionsPriceControl_FO!AE$15 -> 1.061569275 | CK71: =+W71*KeyAssumptionsPriceControl_FO!AF$15 -> 0 | CL71: =+X71*KeyAssumptionsPriceControl_FO!AG$15 -> 0 | CN71: 0 | CO71: 0 | CP71: 0 | CQ71: 0 | CR71: 0 | CS71: 0 | CT71: 0 | CU71: 0.0238853087 | CV71: 0.04777061739 | CW71: 0.04777061739
C72: MDA ME DN225 PVC along Koorlong Ave between Fourteenth & Fifteenth St. Growth | D72: 0 | E72: Water | F72: Growth | G72: Headworks | H72: Significant Projects | J72: Straight line | K72: 2012-13 | L72: 45 | M72: 22.22222222 | O72: 0 | P72: 0 | Q72: 0 | R72: 0 | S72: 0 | T72: 0 | U72: 0 | V72: 0 | W72: 0 | X72: 0 | AV72: 0 | AW72: 0 | AX72: 0 | AY72: 0 | AZ72: 0 | BA72: 0 | BB72: 0 | BC72: 0 | BD72: 0 | BE72: 0 | BG72: 0 | BH72: 0 | BI72: 0 | BJ72: 0 | BK72: 0 | BL72: 0 | BM72: 0 | BN72: 0 | BO72: 0 | BP72: 0 | BR72: =+IF($K72="Ongoing",AV72,IF(RIGHT($K72,2)=RIGHT(BR$39,2),SUM($AV72:AV72),0)+IF(RIGHT(BR$39,2)>RIGHT($K72,2),AV72,0)) -> 0 | BS72: =+IF($K72="Ongoing",AW72,IF(RIGHT($K72,2)=RIGHT(BS$39,2),SUM($AV72:AW72),0)+IF(RIGHT(BS$39,2)>RIGHT($K72,2),AW72,0)) -> 0 | BT72: =+IF($K72="Ongoing",AX72,IF(RIGHT($K72,2)=RIGHT(BT$39,2),SUM($AV72:AX72),0)+IF(RIGHT(BT$39,2)>RIGHT($K72,2),AX72,0)) -> 0 | BU72: =+IF($K72="Ongoing",AY72,IF(RIGHT($K72,2)=RIGHT(BU$39,2),SUM($AV72:AY72),0)+IF(RIGHT(BU$39,2)>RIGHT($K72,2),AY72,0)) -> 0 | BV72: =+IF($K72="Ongoing",AZ72,IF(RIGHT($K72,2)=RIGHT(BV$39,2),SUM($AV72:AZ72),0)+IF(RIGHT(BV$39,2)>RIGHT($K72,2),AZ72,0)) -> 0 | BW72: =+IF($K72="Ongoing",BA72,IF(RIGHT($K72,2)=RIGHT(BW$39,2),SUM($AV72:BA72),0)+IF(RIGHT(BW$39,2)>RIGHT($K72,2),BA72,0)) -> 0 | BX72: =+IF($K72="Ongoing",BB72,IF(RIGHT($K72,2)=RIGHT(BX$39,2),SUM($AV72:BB72),0)+IF(RIGHT(BX$39,2)>RIGHT($K72,2),BB72,0)) -> 0 | BY72: =+IF($K72="Ongoing",BC72,IF(RIGHT($K72,2)=RIGHT(BY$39,2),SUM($AV72:BC72),0)+IF(RIGHT(BY$39,2)>RIGHT($K72,2),BC72,0)) -> 0 | BZ72: =+IF($K72="Ongoing",BD72,IF(RIGHT($K72,2)=RIGHT(BZ$39,2),SUM($AV72:BD72),0)+IF(RIGHT(BZ$39,2)>RIGHT($K72,2),BD72,0)) -> 0 | CA72: =+IF($K72="Ongoing",BE72,IF(RIGHT($K72,2)=RIGHT(CA$39,2),SUM($AV72:BE72),0)+IF(RIGHT(CA$39,2)>RIGHT($K72,2),BE72,0)) -> 0 | CC72: =+O72*KeyAssumptionsPriceControl_FO!X$15 -> 0 | CD72: =+P72*KeyAssumptionsPriceControl_FO!Y$15 -> 0 | CE72: =+Q72*KeyAssumptionsPriceControl_FO!Z$15 -> 0 | CF72: =+R72*KeyAssumptionsPriceControl_FO!AA$15 -> 0 | CG72: =+S72*KeyAssumptionsPriceControl_FO!AB$15 -> 0 | CH72: =+T72*KeyAssumptionsPriceControl_FO!AC$15 -> 0 | CI72: =+U72*KeyAssumptionsPriceControl_FO!AD$15 -> 0 | CJ72: =+V72*KeyAssumptionsPriceControl_FO!AE$15 -> 0 | CK72: =+W72*KeyAssumptionsPriceControl_FO!AF$15 -> 0 | CL72: =+X72*KeyAssumptionsPriceControl_FO!AG$15 -> 0 | CN72: 0 | CO72: 0 | CP72: 0 | CQ72: 0 | CR72: 0 | CS72: 0 | CT72: 0 | CU72: 0 | CV72: 0 | CW72: 0
C73: Mystic Park Water Supply Scheme | D73: 0 | E73: Water | F73: Renewals | G73: Treatment | H73: Significant Projects | J73: Straight line | K73: 2010-11 | L73: 45 | M73: 22.22222222 | O73: 0 | P73: 0 | Q73: 0 | R73: 0 | S73: 0 | T73: 0 | U73: 0 | V73: 0 | W73: 0 | X73: 0 | AV73: 0 | AW73: 0 | AX73: 0 | AY73: 0 | AZ73: 0 | BA73: 0 | BB73: 0 | BC73: 0 | BD73: 0 | BE73: 0 | BG73: 0 | BH73: 0 | BI73: 0 | BJ73: 0 | BK73: 0 | BL73: 0 | BM73: 0 | BN73: 0 | BO73: 0 | BP73: 0 | BR73: =+IF($K73="Ongoing",AV73,IF(RIGHT($K73,2)=RIGHT(BR$39,2),SUM($AV73:AV73),0)+IF(RIGHT(BR$39,2)>RIGHT($K73,2),AV73,0)) -> 0 | BS73: =+IF($K73="Ongoing",AW73,IF(RIGHT($K73,2)=RIGHT(BS$39,2),SUM($AV73:AW73),0)+IF(RIGHT(BS$39,2)>RIGHT($K73,2),AW73,0)) -> 0 | BT73: =+IF($K73="Ongoing",AX73,IF(RIGHT($K73,2)=RIGHT(BT$39,2),SUM($AV73:AX73),0)+IF(RIGHT(BT$39,2)>RIGHT($K73,2),AX73,0)) -> 0 | BU73: =+IF($K73="Ongoing",AY73,IF(RIGHT($K73,2)=RIGHT(BU$39,2),SUM($AV73:AY73),0)+IF(RIGHT(BU$39,2)>RIGHT($K73,2),AY73,0)) -> 0 | BV73: =+IF($K73="Ongoing",AZ73,IF(RIGHT($K73,2)=RIGHT(BV$39,2),SUM($AV73:AZ73),0)+IF(RIGHT(BV$39,2)>RIGHT($K73,2),AZ73,0)) -> 0 | BW73: =+IF($K73="Ongoing",BA73,IF(RIGHT($K73,2)=RIGHT(BW$39,2),SUM($AV73:BA73),0)+IF(RIGHT(BW$39,2)>RIGHT($K73,2),BA73,0)) -> 0 | BX73: =+IF($K73="Ongoing",BB73,IF(RIGHT($K73,2)=RIGHT(BX$39,2),SUM($AV73:BB73),0)+IF(RIGHT(BX$39,2)>RIGHT($K73,2),BB73,0)) -> 0 | BY73: =+IF($K73="Ongoing",BC73,IF(RIGHT($K73,2)=RIGHT(BY$39,2),SUM($AV73:BC73),0)+IF(RIGHT(BY$39,2)>RIGHT($K73,2),BC73,0)) -> 0 | BZ73: =+IF($K73="Ongoing",BD73,IF(RIGHT($K73,2)=RIGHT(BZ$39,2),SUM($AV73:BD73),0)+IF(RIGHT(BZ$39,2)>RIGHT($K73,2),BD73,0)) -> 0 | CA73: =+IF($K73="Ongoing",BE73,IF(RIGHT($K73,2)=RIGHT(CA$39,2),SUM($AV73:BE73),0)+IF(RIGHT(CA$39,2)>RIGHT($K73,2),BE73,0)) -> 0 | CC73: =+O73*KeyAssumptionsPriceControl_FO!X$15 -> 0 | CD73: =+P73*KeyAssumptionsPriceControl_FO!Y$15 -> 0 | CE73: =+Q73*KeyAssumptionsPriceControl_FO!Z$15 -> 0 | CF73: =+R73*KeyAssumptionsPriceControl_FO!AA$15 -> 0 | CG73: =+S73*KeyAssumptionsPriceControl_FO!AB$15 -> 0 | CH73: =+T73*KeyAssumptionsPriceControl_FO!AC$15 -> 0 | CI73: =+U73*KeyAssumptionsPriceControl_FO!AD$15 -> 0 | CJ73: =+V73*KeyAssumptionsPriceControl_FO!AE$15 -> 0 | CK73: =+W73*KeyAssumptionsPriceControl_FO!AF$15 -> 0 | CL73: =+X73*KeyAssumptionsPriceControl_FO!AG$15 -> 0 | CN73: 0 | CO73: 0 | CP73: 0 | CQ73: 0 | CR73: 0 | CS73: 0 | CT73: 0 | CU73: 0 | CV73: 0 | CW73: 0
C74: PIA - Replace Main from WTP to Town (Mallee Hwy) | D74: 0 | E74: Water | F74: Renewals | G74: Pipelines/network | H74: Significant Projects | J74: Straight line | K74: 2018-19 | L74: 45 | M74: 22.22222222 | O74: 0.3 | P74: 0 | Q74: 0 | R74: 0 | S74: 0 | T74: 0 | U74: 0 | V74: 0 | W74: 0 | X74: 0 | AV74: 0.3 | AW74: 0 | AX74: 0 | AY74: 0 | AZ74: 0 | BA74: 0 | BB74: 0 | BC74: 0 | BD74: 0 | BE74: 0 | BG74: 0.003333333333 | BH74: 0.006666666667 | BI74: 0.006666666667 | BJ74: 0.006666666667 | BK74: 0.006666666667 | BL74: 0.006666666667 | BM74: 0.006666666667 | BN74: 0.006666666667 | BO74: 0.006666666667 | BP74: 0.006666666667 | BR74: =+IF($K74="Ongoing",AV74,IF(RIGHT($K74,2)=RIGHT(BR$39,2),SUM($AV74:AV74),0)+IF(RIGHT(BR$39,2)>RIGHT($K74,2),AV74,0)) -> 0.3 | BS74: =+IF($K74="Ongoing",AW74,IF(RIGHT($K74,2)=RIGHT(BS$39,2),SUM($AV74:AW74),0)+IF(RIGHT(BS$39,2)>RIGHT($K74,2),AW74,0)) -> 0 | BT74: =+IF($K74="Ongoing",AX74,IF(RIGHT($K74,2)=RIGHT(BT$39,2),SUM($AV74:AX74),0)+IF(RIGHT(BT$39,2)>RIGHT($K74,2),AX74,0)) -> 0 | BU74: =+IF($K74="Ongoing",AY74,IF(RIGHT($K74,2)=RIGHT(BU$39,2),SUM($AV74:AY74),0)+IF(RIGHT(BU$39,2)>RIGHT($K74,2),AY74,0)) -> 0 | BV74: =+IF($K74="Ongoing",AZ74,IF(RIGHT($K74,2)=RIGHT(BV$39,2),SUM($AV74:AZ74),0)+IF(RIGHT(BV$39,2)>RIGHT($K74,2),AZ74,0)) -> 0 | BW74: =+IF($K74="Ongoing",BA74,IF(RIGHT($K74,2)=RIGHT(BW$39,2),SUM($AV74:BA74),0)+IF(RIGHT(BW$39,2)>RIGHT($K74,2),BA74,0)) -> 0 | BX74: =+IF($K74="Ongoing",BB74,IF(RIGHT($K74,2)=RIGHT(BX$39,2),SUM($AV74:BB74),0)+IF(RIGHT(BX$39,2)>RIGHT($K74,2),BB74,0)) -> 0 | BY74: =+IF($K74="Ongoing",BC74,IF(RIGHT($K74,2)=RIGHT(BY$39,2),SUM($AV74:BC74),0)+IF(RIGHT(BY$39,2)>RIGHT($K74,2),BC74,0)) -> 0 | BZ74: =+IF($K74="Ongoing",BD74,IF(RIGHT($K74,2)=RIGHT(BZ$39,2),SUM($AV74:BD74),0)+IF(RIGHT(BZ$39,2)>RIGHT($K74,2),BD74,0)) -> 0 | CA74: =+IF($K74="Ongoing",BE74,IF(RIGHT($K74,2)=RIGHT(CA$39,2),SUM($AV74:BE74),0)+IF(RIGHT(CA$39,2)>RIGHT($K74,2),BE74,0)) -> 0 | CC74: =+O74*KeyAssumptionsPriceControl_FO!X$15 -> 0.3069 | CD74: =+P74*KeyAssumptionsPriceControl_FO!Y$15 -> 0 | CE74: =+Q74*KeyAssumptionsPriceControl_FO!Z$15 -> 0 | CF74: =+R74*KeyAssumptionsPriceControl_FO!AA$15 -> 0 | CG74: =+S74*KeyAssumptionsPriceControl_FO!AB$15 -> 0 | CH74: =+T74*KeyAssumptionsPriceControl_FO!AC$15 -> 0 | CI74: =+U74*KeyAssumptionsPriceControl_FO!AD$15 -> 0 | CJ74: =+V74*KeyAssumptionsPriceControl_FO!AE$15 -> 0 | CK74: =+W74*KeyAssumptionsPriceControl_FO!AF$15 -> 0 | CL74: =+X74*KeyAssumptionsPriceControl_FO!AG$15 -> 0 | CN74: 0.00690525 | CO74: 0.0138105 | CP74: 0.0138105 | CQ74: 0.0138105 | CR74: 0.0138105 | CS74: 0.0138105 | CT74: 0.0138105 | CU74: 0.0138105 | CV74: 0.0138105 | CW74: 0.0138105
C75: LB - Lake Boga Trunk Main Replacement Stage 1 | D75: 0 | E75: Water | F75: Renewals | G75: Treatment | H75: Significant Projects | J75: Straight line | K75: 2021-22 | L75: 45 | M75: 22.22222222 | O75: 0 | P75: 0 | Q75: 0 | R75: 0.33 | S75: 0 | T75: 0 | U75: 0 | V75: 0 | W75: 0 | X75: 0 | AV75: 0 | AW75: 0 | AX75: 0 | AY75: 0.33 | AZ75: 0 | BA75: 0 | BB75: 0 | BC75: 0 | BD75: 0 | BE75: 0 | BG75: 0 | BH75: 0 | BI75: 0 | BJ75: 0.003666666667 | BK75: 0.007333333333 | BL75: 0.007333333333 | BM75: 0.007333333333 | BN75: 0.007333333333 | BO75: 0.007333333333 | BP75: 0.007333333333 | BR75: =+IF($K75="Ongoing",AV75,IF(RIGHT($K75,2)=RIGHT(BR$39,2),SUM($AV75:AV75),0)+IF(RIGHT(BR$39,2)>RIGHT($K75,2),AV75,0)) -> 0 | BS75: =+IF($K75="Ongoing",AW75,IF(RIGHT($K75,2)=RIGHT(BS$39,2),SUM($AV75:AW75),0)+IF(RIGHT(BS$39,2)>RIGHT($K75,2),AW75,0)) -> 0 | BT75: =+IF($K75="Ongoing",AX75,IF(RIGHT($K75,2)=RIGHT(BT$39,2),SUM($AV75:AX75),0)+IF(RIGHT(BT$39,2)>RIGHT($K75,2),AX75,0)) -> 0 | BU75: =+IF($K75="Ongoing",AY75,IF(RIGHT($K75,2)=RIGHT(BU$39,2),SUM($AV75:AY75),0)+IF(RIGHT(BU$39,2)>RIGHT($K75,2),AY75,0)) -> 0.33 | BV75: =+IF($K75="Ongoing",AZ75,IF(RIGHT($K75,2)=RIGHT(BV$39,2),SUM($AV75:AZ75),0)+IF(RIGHT(BV$39,2)>RIGHT($K75,2),AZ75,0)) -> 0 | BW75: =+IF($K75="Ongoing",BA75,IF(RIGHT($K75,2)=RIGHT(BW$39,2),SUM($AV75:BA75),0)+IF(RIGHT(BW$39,2)>RIGHT($K75,2),BA75,0)) -> 0 | BX75: =+IF($K75="Ongoing",BB75,IF(RIGHT($K75,2)=RIGHT(BX$39,2),SUM($AV75:BB75),0)+IF(RIGHT(BX$39,2)>RIGHT($K75,2),BB75,0)) -> 0 | BY75: =+IF($K75="Ongoing",BC75,IF(RIGHT($K75,2)=RIGHT(BY$39,2),SUM($AV75:BC75),0)+IF(RIGHT(BY$39,2)>RIGHT($K75,2),BC75,0)) -> 0 | BZ75: =+IF($K75="Ongoing",BD75,IF(RIGHT($K75,2)=RIGHT(BZ$39,2),SUM($AV75:BD75),0)+IF(RIGHT(BZ$39,2)>RIGHT($K75,2),BD75,0)) -> 0 | CA75: =+IF($K75="Ongoing",BE75,IF(RIGHT($K75,2)=RIGHT(CA$39,2),SUM($AV75:BE75),0)+IF(RIGHT(CA$39,2)>RIGHT($K75,2),BE75,0)) -> 0 | CC75: =+O75*KeyAssumptionsPriceControl_FO!X$15 -> 0 | CD75: =+P75*KeyAssumptionsPriceControl_FO!Y$15 -> 0 | CE75: =+Q75*KeyAssumptionsPriceControl_FO!Z$15 -> 0 | CF75: =+R75*KeyAssumptionsPriceControl_FO!AA$15 -> 0.3614235728 | CG75: =+S75*KeyAssumptionsPriceControl_FO!AB$15 -> 0 | CH75: =+T75*KeyAssumptionsPriceControl_FO!AC$15 -> 0 | CI75: =+U75*KeyAssumptionsPriceControl_FO!AD$15 -> 0 | CJ75: =+V75*KeyAssumptionsPriceControl_FO!AE$15 -> 0 | CK75: =+W75*KeyAssumptionsPriceControl_FO!AF$15 -> 0 | CL75: =+X75*KeyAssumptionsPriceControl_FO!AG$15 -> 0 | CN75: 0 | CO75: 0 | CP75: 0 | CQ75: 0.008132030388 | CR75: 0.01626406078 | CS75: 0.01626406078 | CT75: 0.01626406078 | CU75: 0.01626406078 | CV75: 0.01626406078 | CW75: 0.01626406078
C76: MDA DN225 Ontario 16th - 17th (675m) | D76: 0 | E76: Water | F76: Renewals | G76: Pipelines/network | H76: Significant Projects | I76: 0 | J76: Straight line | K76: 2023-24 | L76: 45 | M76: 22.22222222 | O76: 0 | P76: 0 | Q76: 0 | R76: 0 | S76: 0 | T76: 1.14 | U76: 0 | V76: 0 | W76: 0 | X76: 0 | AV76: 0 | AW76: 0 | AX76: 0 | AY76: 0 | AZ76: 0 | BA76: 1.14 | BB76: 0 | BC76: 0 | BD76: 0 | BE76: 0 | BG76: 0 | BH76: 0 | BI76: 0 | BJ76: 0 | BK76: 0 | BL76: 0.01266666667 | BM76: 0.02533333333 | BN76: 0.02533333333 | BO76: 0.02533333333 | BP76: 0.02533333333 | BR76: =+IF($K76="Ongoing",AV76,IF(RIGHT($K76,2)=RIGHT(BR$39,2),SUM($AV76:AV76),0)+IF(RIGHT(BR$39,2)>RIGHT($K76,2),AV76,0)) -> 0 | BS76: =+IF($K76="Ongoing",AW76,IF(RIGHT($K76,2)=RIGHT(BS$39,2),SUM($AV76:AW76),0)+IF(RIGHT(BS$39,2)>RIGHT($K76,2),AW76,0)) -> 0 | BT76: =+IF($K76="Ongoing",AX76,IF(RIGHT($K76,2)=RIGHT(BT$39,2),SUM($AV76:AX76),0)+IF(RIGHT(BT$39,2)>RIGHT($K76,2),AX76,0)) -> 0 | BU76: =+IF($K76="Ongoing",AY76,IF(RIGHT($K76,2)=RIGHT(BU$39,2),SUM($AV76:AY76),0)+IF(RIGHT(BU$39,2)>RIGHT($K76,2),AY76,0)) -> 0 | BV76: =+IF($K76="Ongoing",AZ76,IF(RIGHT($K76,2)=RIGHT(BV$39,2),SUM($AV76:AZ76),0)+IF(RIGHT(BV$39,2)>RIGHT($K76,2),AZ76,0)) -> 0 | BW76: =+IF($K76="Ongoing",BA76,IF(RIGHT($K76,2)=RIGHT(BW$39,2),SUM($AV76:BA76),0)+IF(RIGHT(BW$39,2)>RIGHT($K76,2),BA76,0)) -> 1.14 | BX76: =+IF($K76="Ongoing",BB76,IF(RIGHT($K76,2)=RIGHT(BX$39,2),SUM($AV76:BB76),0)+IF(RIGHT(BX$39,2)>RIGHT($K76,2),BB76,0)) -> 0 | BY76: =+IF($K76="Ongoing",BC76,IF(RIGHT($K76,2)=RIGHT(BY$39,2),SUM($AV76:BC76),0)+IF(RIGHT(BY$39,2)>RIGHT($K76,2),BC76,0)) -> 0 | BZ76: =+IF($K76="Ongoing",BD76,IF(RIGHT($K76,2)=RIGHT(BZ$39,2),SUM($AV76:BD76),0)+IF(RIGHT(BZ$39,2)>RIGHT($K76,2),BD76,0)) -> 0 | CA76: =+IF($K76="Ongoing",BE76,IF(RIGHT($K76,2)=RIGHT(CA$39,2),SUM($AV76:BE76),0)+IF(RIGHT(CA$39,2)>RIGHT($K76,2),BE76,0)) -> 0 | CC76: =+O76*KeyAssumptionsPriceControl_FO!X$15 -> 0 | CD76: =+P76*KeyAssumptionsPriceControl_FO!Y$15 -> 0 | CE76: =+Q76*KeyAssumptionsPriceControl_FO!Z$15 -> 0 | CF76: =+R76*KeyAssumptionsPriceControl_FO!AA$15 -> 0 | CG76: =+S76*KeyAssumptionsPriceControl_FO!AB$15 -> 0 | CH76: =+T76*KeyAssumptionsPriceControl_FO!AC$15 -> 1.306648137 | CI76: =+U76*KeyAssumptionsPriceControl_FO!AD$15 -> 0 | CJ76: =+V76*KeyAssumptionsPriceControl_FO!AE$15 -> 0 | CK76: =+W76*KeyAssumptionsPriceControl_FO!AF$15 -> 0 | CL76: =+X76*KeyAssumptionsPriceControl_FO!AG$15 -> 0 | CN76: 0 | CO76: 0 | CP76: 0 | CQ76: 0 | CR76: 0 | CS76: 0.02939958308 | CT76: 0.05879916617 | CU76: 0.05879916617 | CV76: 0.05879916617 | CW76: 0.05879916617
C77: RC - Reticulation Upgrades to Facilitate Increased Pressure | D77: 0 | E77: Water | F77: Growth | G77: Pipelines/network | H77: Significant Projects | J77: Straight line | K77: 2024-25 | L77: 45 | M77: 22.22222222 | O77: 0 | P77: 0 | Q77: 0 | R77: 0 | S77: 0 | T77: 0.35 | U77: 0.35 | V77: 0 | W77: 0 | X77: 0 | AV77: 0 | AW77: 0 | AX77: 0 | AY77: 0 | AZ77: 0 | BA77: 0.35 | BB77: 0.35 | BC77: 0 | BD77: 0 | BE77: 0 | BG77: 0 | BH77: 0 | BI77: 0 | BJ77: 0 | BK77: 0 | BL77: 0 | BM77: 0.007777777778 | BN77: 0.01555555556 | BO77: 0.01555555556 | BP77: 0.01555555556 | BR77: =+IF($K77="Ongoing",AV77,IF(RIGHT($K77,2)=RIGHT(BR$39,2),SUM($AV77:AV77),0)+IF(RIGHT(BR$39,2)>RIGHT($K77,2),AV77,0)) -> 0 | BS77: =+IF($K77="Ongoing",AW77,IF(RIGHT($K77,2)=RIGHT(BS$39,2),SUM($AV77:AW77),0)+IF(RIGHT(BS$39,2)>RIGHT($K77,2),AW77,0)) -> 0 | BT77: =+IF($K77="Ongoing",AX77,IF(RIGHT($K77,2)=RIGHT(BT$39,2),SUM($AV77:AX77),0)+IF(RIGHT(BT$39,2)>RIGHT($K77,2),AX77,0)) -> 0 | BU77: =+IF($K77="Ongoing",AY77,IF(RIGHT($K77,2)=RIGHT(BU$39,2),SUM($AV77:AY77),0)+IF(RIGHT(BU$39,2)>RIGHT($K77,2),AY77,0)) -> 0 | BV77: =+IF($K77="Ongoing",AZ77,IF(RIGHT($K77,2)=RIGHT(BV$39,2),SUM($AV77:AZ77),0)+IF(RIGHT(BV$39,2)>RIGHT($K77,2),AZ77,0)) -> 0 | BW77: =+IF($K77="Ongoing",BA77,IF(RIGHT($K77,2)=RIGHT(BW$39,2),SUM($AV77:BA77),0)+IF(RIGHT(BW$39,2)>RIGHT($K77,2),BA77,0)) -> 0 | BX77: =+IF($K77="Ongoing",BB77,IF(RIGHT($K77,2)=RIGHT(BX$39,2),SUM($AV77:BB77),0)+IF(RIGHT(BX$39,2)>RIGHT($K77,2),BB77,0)) -> 0.7 | BY77: =+IF($K77="Ongoing",BC77,IF(RIGHT($K77,2)=RIGHT(BY$39,2),SUM($AV77:BC77),0)+IF(RIGHT(BY$39,2)>RIGHT($K77,2),BC77,0)) -> 0 | BZ77: =+IF($K77="Ongoing",BD77,IF(RIGHT($K77,2)=RIGHT(BZ$39,2),SUM($AV77:BD77),0)+IF(RIGHT(BZ$39,2)>RIGHT($K77,2),BD77,0)) -> 0 | CA77: =+IF($K77="Ongoing",BE77,IF(RIGHT($K77,2)=RIGHT(CA$39,2),SUM($AV77:BE77),0)+IF(RIGHT(CA$39,2)>RIGHT($K77,2),BE77,0)) -> 0 | CC77: =+O77*KeyAssumptionsPriceControl_FO!X$15 -> 0 | CD77: =+P77*KeyAssumptionsPriceControl_FO!Y$15 -> 0 | CE77: =+Q77*KeyAssumptionsPriceControl_FO!Z$15 -> 0 | CF77: =+R77*KeyAssumptionsPriceControl_FO!AA$15 -> 0 | CG77: =+S77*KeyAssumptionsPriceControl_FO!AB$15 -> 0 | CH77: =+T77*KeyAssumptionsPriceControl_FO!AC$15 -> 0.4011639017 | CI77: =+U77*KeyAssumptionsPriceControl_FO!AD$15 -> 0.4103906715 | CJ77: =+V77*KeyAssumptionsPriceControl_FO!AE$15 -> 0 | CK77: =+W77*KeyAssumptionsPriceControl_FO!AF$15 -> 0 | CL77: =+X77*KeyAssumptionsPriceControl_FO!AG$15 -> 0 | CN77: 0 | CO77: 0 | CP77: 0 | CQ77: 0 | CR77: 0 | CS77: 0.009026187789 | CT77: 0.02728616569 | CU77: 0.03651995579 | CV77: 0.03651995579 | CW77: 0.03651995579
C78: RC - Red Cliffs Truck Mains to New Standpipe Storage | D78: 0 | E78: Water | F78: Improvements / Compliance | G78: Pipelines/network | H78: Significant Projects | J78: Straight line | K78: 2025-26 | L78: 45 | M78: 22.22222222 | O78: 0 | P78: 0 | Q78: 0 | R78: 0 | S78: 0 | T78: 0 | U78: 3.35 | V78: 3.35 | W78: 0 | X78: 0 | AV78: 0 | AW78: 0 | AX78: 0 | AY78: 0 | AZ78: 0 | BA78: 0 | BB78: 3.35 | BC78: 3.35 | BD78: 0 | BE78: 0 | BG78: 0 | BH78: 0 | BI78: 0 | BJ78: 0 | BK78: 0 | BL78: 0 | BM78: 0 | BN78: 0.07444444444 | BO78: 0.1488888889 | BP78: 0.1488888889 | BR78: =+IF($K78="Ongoing",AV78,IF(RIGHT($K78,2)=RIGHT(BR$39,2),SUM($AV78:AV78),0)+IF(RIGHT(BR$39,2)>RIGHT($K78,2),AV78,0)) -> 0 | BS78: =+IF($K78="Ongoing",AW78,IF(RIGHT($K78,2)=RIGHT(BS$39,2),SUM($AV78:AW78),0)+IF(RIGHT(BS$39,2)>RIGHT($K78,2),AW78,0)) -> 0 | BT78: =+IF($K78="Ongoing",AX78,IF(RIGHT($K78,2)=RIGHT(BT$39,2),SUM($AV78:AX78),0)+IF(RIGHT(BT$39,2)>RIGHT($K78,2),AX78,0)) -> 0 | BU78: =+IF($K78="Ongoing",AY78,IF(RIGHT($K78,2)=RIGHT(BU$39,2),SUM($AV78:AY78),0)+IF(RIGHT(BU$39,2)>RIGHT($K78,2),AY78,0)) -> 0 | BV78: =+IF($K78="Ongoing",AZ78,IF(RIGHT($K78,2)=RIGHT(BV$39,2),SUM($AV78:AZ78),0)+IF(RIGHT(BV$39,2)>RIGHT($K78,2),AZ78,0)) -> 0 | BW78: =+IF($K78="Ongoing",BA78,IF(RIGHT($K78,2)=RIGHT(BW$39,2),SUM($AV78:BA78),0)+IF(RIGHT(BW$39,2)>RIGHT($K78,2),BA78,0)) -> 0 | BX78: =+IF($K78="Ongoing",BB78,IF(RIGHT($K78,2)=RIGHT(BX$39,2),SUM($AV78:BB78),0)+IF(RIGHT(BX$39,2)>RIGHT($K78,2),BB78,0)) -> 0 | BY78: =+IF($K78="Ongoing",BC78,IF(RIGHT($K78,2)=RIGHT(BY$39,2),SUM($AV78:BC78),0)+IF(RIGHT(BY$39,2)>RIGHT($K78,2),BC78,0)) -> 6.7 | BZ78: =+IF($K78="Ongoing",BD78,IF(RIGHT($K78,2)=RIGHT(BZ$39,2),SUM($AV78:BD78),0)+IF(RIGHT(BZ$39,2)>RIGHT($K78,2),BD78,0)) -> 0 | CA78: =+IF($K78="Ongoing",BE78,IF(RIGHT($K78,2)=RIGHT(CA$39,2),SUM($AV78:BE78),0)+IF(RIGHT(CA$39,2)>RIGHT($K78,2),BE78,0)) -> 0 | CC78: =+O78*KeyAssumptionsPriceControl_FO!X$15 -> 0 | CD78: =+P78*KeyAssumptionsPriceControl_FO!Y$15 -> 0 | CE78: =+Q78*KeyAssumptionsPriceControl_FO!Z$15 -> 0 | CF78: =+R78*KeyAssumptionsPriceControl_FO!AA$15 -> 0 | CG78: =+S78*KeyAssumptionsPriceControl_FO!AB$15 -> 0 | CH78: =+T78*KeyAssumptionsPriceControl_FO!AC$15 -> 0 | CI78: =+U78*KeyAssumptionsPriceControl_FO!AD$15 -> 3.928024998 | CJ78: =+V78*KeyAssumptionsPriceControl_FO!AE$15 -> 4.018369573 | CK78: =+W78*KeyAssumptionsPriceControl_FO!AF$15 -> 0 | CL78: =+X78*KeyAssumptionsPriceControl_FO!AG$15 -> 0 | CN78: 0 | CO78: 0 | CP78: 0 | CQ78: 0 | CR78: 0 | CS78: 0 | CT78: 0.08838056246 | CU78: 0.2671744403 | CV78: 0.3575877557 | CW78: 0.3575877557
C79: S/H Raw Water Main 450mm Cathodic Protection | D79: 0 | E79: Water | F79: Renewals | G79: Pipelines/network | H79: Significant Projects | J79: Straight line | K79: 2013-14 | L79: 45 | M79: 22.22222222 | O79: 0 | P79: 0 | Q79: 0 | R79: 0 | S79: 0 | T79: 0 | U79: 0 | V79: 0 | W79: 0 | X79: 0 | AV79: 0 | AW79: 0 | AX79: 0 | AY79: 0 | AZ79: 0 | BA79: 0 | BB79: 0 | BC79: 0 | BD79: 0 | BE79: 0 | BG79: 0 | BH79: 0 | BI79: 0 | BJ79: 0 | BK79: 0 | BL79: 0 | BM79: 0 | BN79: 0 | BO79: 0 | BP79: 0 | BR79: =+IF($K79="Ongoing",AV79,IF(RIGHT($K79,2)=RIGHT(BR$39,2),SUM($AV79:AV79),0)+IF(RIGHT(BR$39,2)>RIGHT($K79,2),AV79,0)) -> 0 | BS79: =+IF($K79="Ongoing",AW79,IF(RIGHT($K79,2)=RIGHT(BS$39,2),SUM($AV79:AW79),0)+IF(RIGHT(BS$39,2)>RIGHT($K79,2),AW79,0)) -> 0 | BT79: =+IF($K79="Ongoing",AX79,IF(RIGHT($K79,2)=RIGHT(BT$39,2),SUM($AV79:AX79),0)+IF(RIGHT(BT$39,2)>RIGHT($K79,2),AX79,0)) -> 0 | BU79: =+IF($K79="Ongoing",AY79,IF(RIGHT($K79,2)=RIGHT(BU$39,2),SUM($AV79:AY79),0)+IF(RIGHT(BU$39,2)>RIGHT($K79,2),AY79,0)) -> 0 | BV79: =+IF($K79="Ongoing",AZ79,IF(RIGHT($K79,2)=RIGHT(BV$39,2),SUM($AV79:AZ79),0)+IF(RIGHT(BV$39,2)>RIGHT($K79,2),AZ79,0)) -> 0 | BW79: =+IF($K79="Ongoing",BA79,IF(RIGHT($K79,2)=RIGHT(BW$39,2),SUM($AV79:BA79),0)+IF(RIGHT(BW$39,2)>RIGHT($K79,2),BA79,0)) -> 0 | BX79: =+IF($K79="Ongoing",BB79,IF(RIGHT($K79,2)=RIGHT(BX$39,2),SUM($AV79:BB79),0)+IF(RIGHT(BX$39,2)>RIGHT($K79,2),BB79,0)) -> 0 | BY79: =+IF($K79="Ongoing",BC79,IF(RIGHT($K79,2)=RIGHT(BY$39,2),SUM($AV79:BC79),0)+IF(RIGHT(BY$39,2)>RIGHT($K79,2),BC79,0)) -> 0 | BZ79: =+IF($K79="Ongoing",BD79,IF(RIGHT($K79,2)=RIGHT(BZ$39,2),SUM($AV79:BD79),0)+IF(RIGHT(BZ$39,2)>RIGHT($K79,2),BD79,0)) -> 0 | CA79: =+IF($K79="Ongoing",BE79,IF(RIGHT($K79,2)=RIGHT(CA$39,2),SUM($AV79:BE79),0)+IF(RIGHT(CA$39,2)>RIGHT($K79,2),BE79,0)) -> 0 | CC79: =+O79*KeyAssumptionsPriceControl_FO!X$15 -> 0 | CD79: =+P79*KeyAssumptionsPriceControl_FO!Y$15 -> 0 | CE79: =+Q79*KeyAssumptionsPriceControl_FO!Z$15 -> 0 | CF79: =+R79*KeyAssumptionsPriceControl_FO!AA$15 -> 0 | CG79: =+S79*KeyAssumptionsPriceControl_FO!AB$15 -> 0 | CH79: =+T79*KeyAssumptionsPriceControl_FO!AC$15 -> 0 | CI79: =+U79*KeyAssumptionsPriceControl_FO!AD$15 -> 0 | CJ79: =+V79*KeyAssumptionsPriceControl_FO!AE$15 -> 0 | CK79: =+W79*KeyAssumptionsPriceControl_FO!AF$15 -> 0 | CL79: =+X79*KeyAssumptionsPriceControl_FO!AG$15 -> 0 | CN79: 0 | CO79: 0 | CP79: 0 | CQ79: 0 | CR79: 0 | CS79: 0 | CT79: 0 | CU79: 0 | CV79: 0 | CW79: 0
C80: S/H DN450 Truck Main Karinie/Murlong (1,310m) | D80: 0 | E80: Water | F80: Growth | G80: Treatment | H80: Significant Projects | J80: Straight line | K80: 2025-26 | L80: 45 | M80: 22.22222222 | O80: 0 | P80: 0 | Q80: 0 | R80: 0 | S80: 0 | T80: 0 | U80: 0 | V80: 1.2 | W80: 0 | X80: 0 | AV80: 0 | AW80: 0 | AX80: 0 | AY80: 0 | AZ80: 0 | BA80: 0 | BB80: 0 | BC80: 1.2 | BD80: 0 | BE80: 0 | BG80: 0 | BH80: 0 | BI80: 0 | BJ80: 0 | BK80: 0 | BL80: 0 | BM80: 0 | BN80: 0.01333333333 | BO80: 0.02666666667 | BP80: 0.02666666667 | BR80: =+IF($K80="Ongoing",AV80,IF(RIGHT($K80,2)=RIGHT(BR$39,2),SUM($AV80:AV80),0)+IF(RIGHT(BR$39,2)>RIGHT($K80,2),AV80,0)) -> 0 | BS80: =+IF($K80="Ongoing",AW80,IF(RIGHT($K80,2)=RIGHT(BS$39,2),SUM($AV80:AW80),0)+IF(RIGHT(BS$39,2)>RIGHT($K80,2),AW80,0)) -> 0 | BT80: =+IF($K80="Ongoing",AX80,IF(RIGHT($K80,2)=RIGHT(BT$39,2),SUM($AV80:AX80),0)+IF(RIGHT(BT$39,2)>RIGHT($K80,2),AX80,0)) -> 0 | BU80: =+IF($K80="Ongoing",AY80,IF(RIGHT($K80,2)=RIGHT(BU$39,2),SUM($AV80:AY80),0)+IF(RIGHT(BU$39,2)>RIGHT($K80,2),AY80,0)) -> 0 | BV80: =+IF($K80="Ongoing",AZ80,IF(RIGHT($K80,2)=RIGHT(BV$39,2),SUM($AV80:AZ80),0)+IF(RIGHT(BV$39,2)>RIGHT($K80,2),AZ80,0)) -> 0 | BW80: =+IF($K80="Ongoing",BA80,IF(RIGHT($K80,2)=RIGHT(BW$39,2),SUM($AV80:BA80),0)+IF(RIGHT(BW$39,2)>RIGHT($K80,2),BA80,0)) -> 0 | BX80: =+IF($K80="Ongoing",BB80,IF(RIGHT($K80,2)=RIGHT(BX$39,2),SUM($AV80:BB80),0)+IF(RIGHT(BX$39,2)>RIGHT($K80,2),BB80,0)) -> 0 | BY80: =+IF($K80="Ongoing",BC80,IF(RIGHT($K80,2)=RIGHT(BY$39,2),SUM($AV80:BC80),0)+IF(RIGHT(BY$39,2)>RIGHT($K80,2),BC80,0)) -> 1.2 | BZ80: =+IF($K80="Ongoing",BD80,IF(RIGHT($K80,2)=RIGHT(BZ$39,2),SUM($AV80:BD80),0)+IF(RIGHT(BZ$39,2)>RIGHT($K80,2),BD80,0)) -> 0 | CA80: =+IF($K80="Ongoing",BE80,IF(RIGHT($K80,2)=RIGHT(CA$39,2),SUM($AV80:BE80),0)+IF(RIGHT(CA$39,2)>RIGHT($K80,2),BE80,0)) -> 0 | CC80: =+O80*KeyAssumptionsPriceControl_FO!X$15 -> 0 | CD80: =+P80*KeyAssumptionsPriceControl_FO!Y$15 -> 0 | CE80: =+Q80*KeyAssumptionsPriceControl_FO!Z$15 -> 0 | CF80: =+R80*KeyAssumptionsPriceControl_FO!AA$15 -> 0 | CG80: =+S80*KeyAssumptionsPriceControl_FO!AB$15 -> 0 | CH80: =+T80*KeyAssumptionsPriceControl_FO!AC$15 -> 0 | CI80: =+U80*KeyAssumptionsPriceControl_FO!AD$15 -> 0 | CJ80: =+V80*KeyAssumptionsPriceControl_FO!AE$15 -> 1.439415967 | CK80: =+W80*KeyAssumptionsPriceControl_FO!AF$15 -> 0 | CL80: =+X80*KeyAssumptionsPriceControl_FO!AG$15 -> 0 | CN80: 0 | CO80: 0 | CP80: 0 | CQ80: 0 | CR80: 0 | CS80: 0 | CT80: 0 | CU80: 0.03238685925 | CV80: 0.0647737185 | CW80: 0.0647737185
C81: [Capex Item - Significant Project / Capital Program / Other Capex] | AV81: 0 | AW81: 0 | AX81: 0 | AY81: 0 | AZ81: 0 | BA81: 0 | BB81: 0 | BC81: 0 | BD81: 0 | BE81: 0 | BG81: 0 | BH81: 0 | BI81: 0 | BJ81: 0 | BK81: 0 | BL81: 0 | BM81: 0 | BN81: 0 | BO81: 0 | BP81: 0 | BR81: =+IF($K81="Ongoing",AV81,IF(RIGHT($K81,2)=RIGHT(BR$39,2),SUM($AV81:AV81),0)+IF(RIGHT(BR$39,2)>RIGHT($K81,2),AV81,0)) -> 0 | BS81: =+IF($K81="Ongoing",AW81,IF(RIGHT($K81,2)=RIGHT(BS$39,2),SUM($AV81:AW81),0)+IF(RIGHT(BS$39,2)>RIGHT($K81,2),AW81,0)) -> 0 | BT81: =+IF($K81="Ongoing",AX81,IF(RIGHT($K81,2)=RIGHT(BT$39,2),SUM($AV81:AX81),0)+IF(RIGHT(BT$39,2)>RIGHT($K81,2),AX81,0)) -> 0 | BU81: =+IF($K81="Ongoing",AY81,IF(RIGHT($K81,2)=RIGHT(BU$39,2),SUM($AV81:AY81),0)+IF(RIGHT(BU$39,2)>RIGHT($K81,2),AY81,0)) -> 0 | BV81: =+IF($K81="Ongoing",AZ81,IF(RIGHT($K81,2)=RIGHT(BV$39,2),SUM($AV81:AZ81),0)+IF(RIGHT(BV$39,2)>RIGHT($K81,2),AZ81,0)) -> 0 | BW81: =+IF($K81="Ongoing",BA81,IF(RIGHT($K81,2)=RIGHT(BW$39,2),SUM($AV81:BA81),0)+IF(RIGHT(BW$39,2)>RIGHT($K81,2),BA81,0)) -> 0 | BX81: =+IF($K81="Ongoing",BB81,IF(RIGHT($K81,2)=RIGHT(BX$39,2),SUM($AV81:BB81),0)+IF(RIGHT(BX$39,2)>RIGHT($K81,2),BB81,0)) -> 0 | BY81: =+IF($K81="Ongoing",BC81,IF(RIGHT($K81,2)=RIGHT(BY$39,2),SUM($AV81:BC81),0)+IF(RIGHT(BY$39,2)>RIGHT($K81,2),BC81,0)) -> 0 | BZ81: =+IF($K81="Ongoing",BD81,IF(RIGHT($K81,2)=RIGHT(BZ$39,2),SUM($AV81:BD81),0)+IF(RIGHT(BZ$39,2)>RIGHT($K81,2),BD81,0)) -> 0 | CA81: =+IF($K81="Ongoing",BE81,IF(RIGHT($K81,2)=RIGHT(CA$39,2),SUM($AV81:BE81),0)+IF(RIGHT(CA$39,2)>RIGHT($K81,2),BE81,0)) -> 0 | CC81: =+O81*KeyAssumptionsPriceControl_FO!X$15 -> 0 | CD81: =+P81*KeyAssumptionsPriceControl_FO!Y$15 -> 0 | CE81: =+Q81*KeyAssumptionsPriceControl_FO!Z$15 -> 0 | CF81: =+R81*KeyAssumptionsPriceControl_FO!AA$15 -> 0 | CG81: =+S81*KeyAssumptionsPriceControl_FO!AB$15 -> 0 | CH81: =+T81*KeyAssumptionsPriceControl_FO!AC$15 -> 0 | CI81: =+U81*KeyAssumptionsPriceControl_FO!AD$15 -> 0 | CJ81: =+V81*KeyAssumptionsPriceControl_FO!AE$15 -> 0 | CK81: =+W81*KeyAssumptionsPriceControl_FO!AF$15 -> 0 | CL81: =+X81*KeyAssumptionsPriceControl_FO!AG$15 -> 0 | CN81: 0 | CO81: 0 | CP81: 0 | CQ81: 0 | CR81: 0 | CS81: 0 | CT81: 0 | CU81: 0 | CV81: 0 | CW81: 0
C82: Rehabilitation of Sewers | D82: 0 | E82: Sewerage | F82: Renewals | G82: Pipelines/network | H82: Significant Projects | J82: Straight line | K82: 2014-15 | L82: 45 | M82: 22.22222222 | O82: 0 | P82: 0 | Q82: 0 | R82: 0 | S82: 0 | T82: 0 | U82: 0 | V82: 0 | W82: 0 | X82: 0 | AV82: 0 | AW82: =+P82-AA82-AL82 -> 0 | AX82: 0 | AY82: 0 | AZ82: 0 | BA82: 0 | BB82: 0 | BC82: 0 | BD82: 0 | BE82: 0 | BG82: 0 | BH82: 0 | BI82: 0 | BJ82: 0 | BK82: 0 | BL82: 0 | BM82: 0 | BN82: 0 | BO82: 0 | BP82: 0 | BR82: =+IF($K82="Ongoing",AV82,IF(RIGHT($K82,2)=RIGHT(BR$39,2),SUM($AV82:AV82),0)+IF(RIGHT(BR$39,2)>RIGHT($K82,2),AV82,0)) -> 0 | BS82: =+IF($K82="Ongoing",AW82,IF(RIGHT($K82,2)=RIGHT(BS$39,2),SUM($AV82:AW82),0)+IF(RIGHT(BS$39,2)>RIGHT($K82,2),AW82,0)) -> 0 | BT82: =+IF($K82="Ongoing",AX82,IF(RIGHT($K82,2)=RIGHT(BT$39,2),SUM($AV82:AX82),0)+IF(RIGHT(BT$39,2)>RIGHT($K82,2),AX82,0)) -> 0 | BU82: =+IF($K82="Ongoing",AY82,IF(RIGHT($K82,2)=RIGHT(BU$39,2),SUM($AV82:AY82),0)+IF(RIGHT(BU$39,2)>RIGHT($K82,2),AY82,0)) -> 0 | BV82: =+IF($K82="Ongoing",AZ82,IF(RIGHT($K82,2)=RIGHT(BV$39,2),SUM($AV82:AZ82),0)+IF(RIGHT(BV$39,2)>RIGHT($K82,2),AZ82,0)) -> 0 | BW82: =+IF($K82="Ongoing",BA82,IF(RIGHT($K82,2)=RIGHT(BW$39,2),SUM($AV82:BA82),0)+IF(RIGHT(BW$39,2)>RIGHT($K82,2),BA82,0)) -> 0 | BX82: =+IF($K82="Ongoing",BB82,IF(RIGHT($K82,2)=RIGHT(BX$39,2),SUM($AV82:BB82),0)+IF(RIGHT(BX$39,2)>RIGHT($K82,2),BB82,0)) -> 0 | BY82: =+IF($K82="Ongoing",BC82,IF(RIGHT($K82,2)=RIGHT(BY$39,2),SUM($AV82:BC82),0)+IF(RIGHT(BY$39,2)>RIGHT($K82,2),BC82,0)) -> 0 | BZ82: =+IF($K82="Ongoing",BD82,IF(RIGHT($K82,2)=RIGHT(BZ$39,2),SUM($AV82:BD82),0)+IF(RIGHT(BZ$39,2)>RIGHT($K82,2),BD82,0)) -> 0 | CA82: =+IF($K82="Ongoing",BE82,IF(RIGHT($K82,2)=RIGHT(CA$39,2),SUM($AV82:BE82),0)+IF(RIGHT(CA$39,2)>RIGHT($K82,2),BE82,0)) -> 0 | CC82: =+O82*KeyAssumptionsPriceControl_FO!X$15 -> 0 | CD82: =+P82*KeyAssumptionsPriceControl_FO!Y$15 -> 0 | CE82: =+Q82*KeyAssumptionsPriceControl_FO!Z$15 -> 0 | CF82: =+R82*KeyAssumptionsPriceControl_FO!AA$15 -> 0 | CG82: =+S82*KeyAssumptionsPriceControl_FO!AB$15 -> 0 | CH82: =+T82*KeyAssumptionsPriceControl_FO!AC$15 -> 0 | CI82: =+U82*KeyAssumptionsPriceControl_FO!AD$15 -> 0 | CJ82: =+V82*KeyAssumptionsPriceControl_FO!AE$15 -> 0 | CK82: =+W82*KeyAssumptionsPriceControl_FO!AF$15 -> 0 | CL82: =+X82*KeyAssumptionsPriceControl_FO!AG$15 -> 0 | CN82: 0 | CO82: 0 | CP82: 0 | CQ82: 0 | CR82: 0 | CS82: 0 | CT82: 0 | CU82: 0 | CV82: 0 | CW82: 0
C83: Northern - Sewer Rehab Program 2018-19 | D83: 0 | E83: Sewerage | F83: Renewals | G83: Pipelines/network | H83: Significant Projects | J83: Straight line | K83: 2018-19 | L83: 45 | M83: 22.22222222 | O83: 0.95 | P83: 0 | Q83: 0 | R83: 0 | S83: 0 | T83: 0 | U83: 0 | V83: 0 | W83: 0 | X83: 0 | AV83: =+O83-Z83-AK83 -> 0.95 | AW83: 0 | AX83: 0 | AY83: 0 | AZ83: 0 | BA83: 0 | BB83: 0 | BC83: 0 | BD83: 0 | BE83: 0 | BG83: 0.01055555556 | BH83: 0.02111111111 | BI83: 0.02111111111 | BJ83: 0.02111111111 | BK83: 0.02111111111 | BL83: 0.02111111111 | BM83: 0.02111111111 | BN83: 0.02111111111 | BO83: 0.02111111111 | BP83: 0.02111111111 | BR83: =+IF($K83="Ongoing",AV83,IF(RIGHT($K83,2)=RIGHT(BR$39,2),SUM($AV83:AV83),0)+IF(RIGHT(BR$39,2)>RIGHT($K83,2),AV83,0)) -> 0.95 | BS83: =+IF($K83="Ongoing",AW83,IF(RIGHT($K83,2)=RIGHT(BS$39,2),SUM($AV83:AW83),0)+IF(RIGHT(BS$39,2)>RIGHT($K83,2),AW83,0)) -> 0 | BT83: =+IF($K83="Ongoing",AX83,IF(RIGHT($K83,2)=RIGHT(BT$39,2),SUM($AV83:AX83),0)+IF(RIGHT(BT$39,2)>RIGHT($K83,2),AX83,0)) -> 0 | BU83: =+IF($K83="Ongoing",AY83,IF(RIGHT($K83,2)=RIGHT(BU$39,2),SUM($AV83:AY83),0)+IF(RIGHT(BU$39,2)>RIGHT($K83,2),AY83,0)) -> 0 | BV83: =+IF($K83="Ongoing",AZ83,IF(RIGHT($K83,2)=RIGHT(BV$39,2),SUM($AV83:AZ83),0)+IF(RIGHT(BV$39,2)>RIGHT($K83,2),AZ83,0)) -> 0 | BW83: =+IF($K83="Ongoing",BA83,IF(RIGHT($K83,2)=RIGHT(BW$39,2),SUM($AV83:BA83),0)+IF(RIGHT(BW$39,2)>RIGHT($K83,2),BA83,0)) -> 0 | BX83: =+IF($K83="Ongoing",BB83,IF(RIGHT($K83,2)=RIGHT(BX$39,2),SUM($AV83:BB83),0)+IF(RIGHT(BX$39,2)>RIGHT($K83,2),BB83,0)) -> 0 | BY83: =+IF($K83="Ongoing",BC83,IF(RIGHT($K83,2)=RIGHT(BY$39,2),SUM($AV83:BC83),0)+IF(RIGHT(BY$39,2)>RIGHT($K83,2),BC83,0)) -> 0 | BZ83: =+IF($K83="Ongoing",BD83,IF(RIGHT($K83,2)=RIGHT(BZ$39,2),SUM($AV83:BD83),0)+IF(RIGHT(BZ$39,2)>RIGHT($K83,2),BD83,0)) -> 0 | CA83: =+IF($K83="Ongoing",BE83,IF(RIGHT($K83,2)=RIGHT(CA$39,2),SUM($AV83:BE83),0)+IF(RIGHT(CA$39,2)>RIGHT($K83,2),BE83,0)) -> 0 | CC83: =+O83*KeyAssumptionsPriceControl_FO!X$15 -> 0.97185 | CD83: =+P83*KeyAssumptionsPriceControl_FO!Y$15 -> 0 | CE83: =+Q83*KeyAssumptionsPriceControl_FO!Z$15 -> 0 | CF83: =+R83*KeyAssumptionsPriceControl_FO!AA$15 -> 0 | CG83: =+S83*KeyAssumptionsPriceControl_FO!AB$15 -> 0 | CH83: =+T83*KeyAssumptionsPriceControl_FO!AC$15 -> 0 | CI83: =+U83*KeyAssumptionsPriceControl_FO!AD$15 -> 0 | CJ83: =+V83*KeyAssumptionsPriceControl_FO!AE$15 -> 0 | CK83: =+W83*KeyAssumptionsPriceControl_FO!AF$15 -> 0 | CL83: =+X83*KeyAssumptionsPriceControl_FO!AG$15 -> 0 | CN83: 0.021866625 | CO83: 0.04373325 | CP83: 0.04373325 | CQ83: 0.04373325 | CR83: 0.04373325 | CS83: 0.04373325 | CT83: 0.04373325 | CU83: 0.04373325 | CV83: 0.04373325 | CW83: 0.04373325
C84: Northern - Sewer Rehab Program 2019-20 | D84: 0 | E84: Sewerage | F84: Renewals | G84: Pipelines/network | H84: Significant Projects | J84: Straight line | K84: 2019-20 | L84: 45 | M84: 22.22222222 | O84: 0 | P84: 1 | Q84: 0 | R84: 0 | S84: 0 | T84: 0 | U84: 0 | V84: 0 | W84: 0 | X84: 0 | AV84: 0 | AW84: 1 | AX84: 0 | AY84: 0 | AZ84: 0 | BA84: 0 | BB84: 0 | BC84: 0 | BD84: 0 | BE84: 0 | BG84: 0 | BH84: 0.01111111111 | BI84: 0.02222222222 | BJ84: 0.02222222222 | BK84: 0.02222222222 | BL84: 0.02222222222 | BM84: 0.02222222222 | BN84: 0.02222222222 | BO84: =IF($L84=0,0, IF($L84<=0.5,BZ84, IF(AND($J84="straight line",$L84<1.51),(BY84-((BY84/$L84)*0.5))+BZ84/$L84*0.5, IF($J84="straight line", IF((LEFT(BO$39,4)*1)-INT($L84)<LEFT($BG$39,4)*1,0,((OFFSET(BZ84,0,-INT($L84+0.5),1,1))/$L84)*(IF($L84-INT($L84)>0.5,$L84-0.5-INT($L84),IF($L84-INT($L84)<=0.5,$L84-0.5-INT($L84)+1,0)))) +BZ84/$L84*0.5 +SUM(OFFSET(BZ84,0,MAX(-INT($L84+(0.5-(10^-12))),-BO$40)+1,1,MIN(INT($L84+(0.5-(10^-12))),BO$40)-1))*1/$L84, IF($J84="Declining Balance",-$BG$38,0))))) -> 0.02222222222 | BP84: 0.02222222222 | BR84: =+IF($K84="Ongoing",AV84,IF(RIGHT($K84,2)=RIGHT(BR$39,2),SUM($AV84:AV84),0)+IF(RIGHT(BR$39,2)>RIGHT($K84,2),AV84,0)) -> 0 | BS84: =+IF($K84="Ongoing",AW84,IF(RIGHT($K84,2)=RIGHT(BS$39,2),SUM($AV84:AW84),0)+IF(RIGHT(BS$39,2)>RIGHT($K84,2),AW84,0)) -> 1 | BT84: =+IF($K84="Ongoing",AX84,IF(RIGHT($K84,2)=RIGHT(BT$39,2),SUM($AV84:AX84),0)+IF(RIGHT(BT$39,2)>RIGHT($K84,2),AX84,0)) -> 0 | BU84: =+IF($K84="Ongoing",AY84,IF(RIGHT($K84,2)=RIGHT(BU$39,2),SUM($AV84:AY84),0)+IF(RIGHT(BU$39,2)>RIGHT($K84,2),AY84,0)) -> 0 | BV84: =+IF($K84="Ongoing",AZ84,IF(RIGHT($K84,2)=RIGHT(BV$39,2),SUM($AV84:AZ84),0)+IF(RIGHT(BV$39,2)>RIGHT($K84,2),AZ84,0)) -> 0 | BW84: =+IF($K84="Ongoing",BA84,IF(RIGHT($K84,2)=RIGHT(BW$39,2),SUM($AV84:BA84),0)+IF(RIGHT(BW$39,2)>RIGHT($K84,2),BA84,0)) -> 0 | BX84: =+IF($K84="Ongoing",BB84,IF(RIGHT($K84,2)=RIGHT(BX$39,2),SUM($AV84:BB84),0)+IF(RIGHT(BX$39,2)>RIGHT($K84,2),BB84,0)) -> 0 | BY84: =+IF($K84="Ongoing",BC84,IF(RIGHT($K84,2)=RIGHT(BY$39,2),SUM($AV84:BC84),0)+IF(RIGHT(BY$39,2)>RIGHT($K84,2),BC84,0)) -> 0 | BZ84: =+IF($K84="Ongoing",BD84,IF(RIGHT($K84,2)=RIGHT(BZ$39,2),SUM($AV84:BD84),0)+IF(RIGHT(BZ$39,2)>RIGHT($K84,2),BD84,0)) -> 0 | CA84: =+IF($K84="Ongoing",BE84,IF(RIGHT($K84,2)=RIGHT(CA$39,2),SUM($AV84:BE84),0)+IF(RIGHT(CA$39,2)>RIGHT($K84,2),BE84,0)) -> 0 | CC84: =+O84*KeyAssumptionsPriceControl_FO!X$15 -> 0 | CD84: =+P84*KeyAssumptionsPriceControl_FO!Y$15 -> 1.046529 | CE84: =+Q84*KeyAssumptionsPriceControl_FO!Z$15 -> 0 | CF84: =+R84*KeyAssumptionsPriceControl_FO!AA$15 -> 0 | CG84: =+S84*KeyAssumptionsPriceControl_FO!AB$15 -> 0 | CH84: =+T84*KeyAssumptionsPriceControl_FO!AC$15 -> 0 | CI84: =+U84*KeyAssumptionsPriceControl_FO!AD$15 -> 0 | CJ84: =+V84*KeyAssumptionsPriceControl_FO!AE$15 -> 0 | CK84: =+W84*KeyAssumptionsPriceControl_FO!AF$15 -> 0 | CL84: =+X84*KeyAssumptionsPriceControl_FO!AG$15 -> 0 | CN84: 0 | CO84: 0.0235469025 | CP84: 0.047093805 | CQ84: 0.047093805 | CR84: 0.047093805 | CS84: 0.047093805 | CT84: 0.047093805 | CU84: 0.047093805 | CV84: =IF($M84=0,0, IF($M84<=0.5,CK84, IF(AND($J84="straight line",$M84<1.51),(CJ84-((CJ84/$M84)*0.5))+CK84/$M84*0.5, IF($J84="straight line", IF((LEFT(CV$39,4)*1)-INT($M84)<LEFT($CN$39,4)*1,0,((OFFSET(CK84,0,-INT($M84+0.5),1,1))/$M84)*(IF($M84-INT($M84)>0.5,$M84-0.5-INT($M84),IF($M84-INT($M84)<=0.5,$M84-0.5-INT($M84)+1,0)))) +CK84/$M84*0.5 +SUM(OFFSET(CK84,0,MAX(-INT($M84+(0.5-(10^-12))),-CV$40)+1,1,MIN(INT($M84+(0.5-(10^-12))),CV$40)-1))*1/$M84, IF($J84="Declining Balance",-$CN$38,0))))) -> 0.047093805 | CW84: 0.047093805
C85: Northern - Sewer Rehab Program 2020-21 | D85: 0 | E85: Sewerage | F85: Renewals | G85: Pipelines/network | H85: Significant Projects | J85: Straight line | K85: 2020-21 | L85: 45 | M85: 22.22222222 | O85: 0 | P85: 0 | Q85: 1.05 | R85: 0 | S85: 0 | T85: 0 | U85: 0 | V85: 0 | W85: 0 | X85: 0 | AV85: 0 | AW85: 0 | AX85: 1.05 | AY85: 0 | AZ85: 0 | BA85: 0 | BB85: 0 | BC85: 0 | BD85: 0 | BE85: 0 | BG85: 0 | BH85: =IF($L85=0,0, IF($L85<=0.5,BS85, IF(AND($J85="straight line",$L85<1.51),(BR85-((BR85/$L85)*0.5))+BS85/$L85*0.5, IF($J85="straight line", IF((LEFT(BH$39,4)*1)-INT($L85)<LEFT($BG$39,4)*1,0,((OFFSET(BS85,0,-INT($L85+0.5),1,1))/$L85)*(IF($L85-INT($L85)>0.5,$L85-0.5-INT($L85),IF($L85-INT($L85)<=0.5,$L85-0.5-INT($L85)+1,0)))) +BS85/$L85*0.5 +SUM(OFFSET(BS85,0,MAX(-INT($L85+(0.5-(10^-12))),-BH$40)+1,1,MIN(INT($L85+(0.5-(10^-12))),BH$40)-1))*1/$L85, IF($J85="Declining Balance",-$BG$38,0))))) -> 0 | BI85: 0.01166666667 | BJ85: 0.02333333333 | BK85: 0.02333333333 | BL85: 0.02333333333 | BM85: 0.02333333333 | BN85: 0.02333333333 | BO85: 0.02333333333 | BP85: 0.02333333333 | BR85: =+IF($K85="Ongoing",AV85,IF(RIGHT($K85,2)=RIGHT(BR$39,2),SUM($AV85:AV85),0)+IF(RIGHT(BR$39,2)>RIGHT($K85,2),AV85,0)) -> 0 | BS85: =+IF($K85="Ongoing",AW85,IF(RIGHT($K85,2)=RIGHT(BS$39,2),SUM($AV85:AW85),0)+IF(RIGHT(BS$39,2)>RIGHT($K85,2),AW85,0)) -> 0 | BT85: =+IF($K85="Ongoing",AX85,IF(RIGHT($K85,2)=RIGHT(BT$39,2),SUM($AV85:AX85),0)+IF(RIGHT(BT$39,2)>RIGHT($K85,2),AX85,0)) -> 1.05 | BU85: =+IF($K85="Ongoing",AY85,IF(RIGHT($K85,2)=RIGHT(BU$39,2),SUM($AV85:AY85),0)+IF(RIGHT(BU$39,2)>RIGHT($K85,2),AY85,0)) -> 0 | BV85: =+IF($K85="Ongoing",AZ85,IF(RIGHT($K85,2)=RIGHT(BV$39,2),SUM($AV85:AZ85),0)+IF(RIGHT(BV$39,2)>RIGHT($K85,2),AZ85,0)) -> 0 | BW85: =+IF($K85="Ongoing",BA85,IF(RIGHT($K85,2)=RIGHT(BW$39,2),SUM($AV85:BA85),0)+IF(RIGHT(BW$39,2)>RIGHT($K85,2),BA85,0)) -> 0 | BX85: =+IF($K85="Ongoing",BB85,IF(RIGHT($K85,2)=RIGHT(BX$39,2),SUM($AV85:BB85),0)+IF(RIGHT(BX$39,2)>RIGHT($K85,2),BB85,0)) -> 0 | BY85: =+IF($K85="Ongoing",BC85,IF(RIGHT($K85,2)=RIGHT(BY$39,2),SUM($AV85:BC85),0)+IF(RIGHT(BY$39,2)>RIGHT($K85,2),BC85,0)) -> 0 | BZ85: =+IF($K85="Ongoing",BD85,IF(RIGHT($K85,2)=RIGHT(BZ$39,2),SUM($AV85:BD85),0)+IF(RIGHT(BZ$39,2)>RIGHT($K85,2),BD85,0)) -> 0 | CA85: =+IF($K85="Ongoing",BE85,IF(RIGHT($K85,2)=RIGHT(CA$39,2),SUM($AV85:BE85),0)+IF(RIGHT(CA$39,2)>RIGHT($K85,2),BE85,0)) -> 0 | CC85: =+O85*KeyAssumptionsPriceControl_FO!X$15 -> 0 | CD85: =+P85*KeyAssumptionsPriceControl_FO!Y$15 -> 0 | CE85: =+Q85*KeyAssumptionsPriceControl_FO!Z$15 -> 1.124129125 | CF85: =+R85*KeyAssumptionsPriceControl_FO!AA$15 -> 0 | CG85: =+S85*KeyAssumptionsPriceControl_FO!AB$15 -> 0 | CH85: =+T85*KeyAssumptionsPriceControl_FO!AC$15 -> 0 | CI85: =+U85*KeyAssumptionsPriceControl_FO!AD$15 -> 0 | CJ85: =+V85*KeyAssumptionsPriceControl_FO!AE$15 -> 0 | CK85: =+W85*KeyAssumptionsPriceControl_FO!AF$15 -> 0 | CL85: =+X85*KeyAssumptionsPriceControl_FO!AG$15 -> 0 | CN85: 0 | CO85: =IF($M85=0,0, IF($M85<=0.5,CD85, IF(AND($J85="straight line",$M85<1.51),(CC85-((CC85/$M85)*0.5))+CD85/$M85*0.5, IF($J85="straight line", IF((LEFT(CO$39,4)*1)-INT($M85)<LEFT($CN$39,4)*1,0,((OFFSET(CD85,0,-INT($M85+0.5),1,1))/$M85)*(IF($M85-INT($M85)>0.5,$M85-0.5-INT($M85),IF($M85-INT($M85)<=0.5,$M85-0.5-INT($M85)+1,0)))) +CD85/$M85*0.5 +SUM(OFFSET(CD85,0,MAX(-INT($M85+(0.5-(10^-12))),-CO$40)+1,1,MIN(INT($M85+(0.5-(10^-12))),CO$40)-1))*1/$M85, IF($J85="Declining Balance",-$CN$38,0))))) -> 0 | CP85: 0.02529290532 | CQ85: 0.05058581064 | CR85: 0.05058581064 | CS85: 0.05058581064 | CT85: 0.05058581064 | CU85: 0.05058581064 | CV85: 0.05058581064 | CW85: 0.05058581064
C86: Northern - Sewer Rehab Program 2021-22 | D86: 0 | E86: Sewerage | F86: Renewals | G86: Pipelines/network | H86: Significant Projects | J86: Straight line | K86: 2021-22 | L86: 45 | M86: 22.22222222 | O86: 0 | P86: 0 | Q86: 0 | R86: 1.1 | S86: 0 | T86: 0 | U86: 0 | V86: 0 | W86: 0 | X86: 0 | AV86: 0 | AW86: 0 | AX86: 0 | AY86: 1.1 | AZ86: 0 | BA86: 0 | BB86: 0 | BC86: 0 | BD86: 0 | BE86: 0 | BG86: 0 | BH86: 0 | BI86: 0 | BJ86: 0.01222222222 | BK86: 0.02444444444 | BL86: 0.02444444444 | BM86: 0.02444444444 | BN86: 0.02444444444 | BO86: 0.02444444444 | BP86: 0.02444444444 | BR86: =+IF($K86="Ongoing",AV86,IF(RIGHT($K86,2)=RIGHT(BR$39,2),SUM($AV86:AV86),0)+IF(RIGHT(BR$39,2)>RIGHT($K86,2),AV86,0)) -> 0 | BS86: =+IF($K86="Ongoing",AW86,IF(RIGHT($K86,2)=RIGHT(BS$39,2),SUM($AV86:AW86),0)+IF(RIGHT(BS$39,2)>RIGHT($K86,2),AW86,0)) -> 0 | BT86: =+IF($K86="Ongoing",AX86,IF(RIGHT($K86,2)=RIGHT(BT$39,2),SUM($AV86:AX86),0)+IF(RIGHT(BT$39,2)>RIGHT($K86,2),AX86,0)) -> 0 | BU86: =+IF($K86="Ongoing",AY86,IF(RIGHT($K86,2)=RIGHT(BU$39,2),SUM($AV86:AY86),0)+IF(RIGHT(BU$39,2)>RIGHT($K86,2),AY86,0)) -> 1.1 | BV86: =+IF($K86="Ongoing",AZ86,IF(RIGHT($K86,2)=RIGHT(BV$39,2),SUM($AV86:AZ86),0)+IF(RIGHT(BV$39,2)>RIGHT($K86,2),AZ86,0)) -> 0 | BW86: =+IF($K86="Ongoing",BA86,IF(RIGHT($K86,2)=RIGHT(BW$39,2),SUM($AV86:BA86),0)+IF(RIGHT(BW$39,2)>RIGHT($K86,2),BA86,0)) -> 0 | BX86: =+IF($K86="Ongoing",BB86,IF(RIGHT($K86,2)=RIGHT(BX$39,2),SUM($AV86:BB86),0)+IF(RIGHT(BX$39,2)>RIGHT($K86,2),BB86,0)) -> 0 | BY86: =+IF($K86="Ongoing",BC86,IF(RIGHT($K86,2)=RIGHT(BY$39,2),SUM($AV86:BC86),0)+IF(RIGHT(BY$39,2)>RIGHT($K86,2),BC86,0)) -> 0 | BZ86: =+IF($K86="Ongoing",BD86,IF(RIGHT($K86,2)=RIGHT(BZ$39,2),SUM($AV86:BD86),0)+IF(RIGHT(BZ$39,2)>RIGHT($K86,2),BD86,0)) -> 0 | CA86: =+IF($K86="Ongoing",BE86,IF(RIGHT($K86,2)=RIGHT(CA$39,2),SUM($AV86:BE86),0)+IF(RIGHT(CA$39,2)>RIGHT($K86,2),BE86,0)) -> 0 | CC86: =+O86*KeyAssumptionsPriceControl_FO!X$15 -> 0 | CD86: =+P86*KeyAssumptionsPriceControl_FO!Y$15 -> 0 | CE86: =+Q86*KeyAssumptionsPriceControl_FO!Z$15 -> 0 | CF86: =+R86*KeyAssumptionsPriceControl_FO!AA$15 -> 1.204745243 | CG86: =+S86*KeyAssumptionsPriceControl_FO!AB$15 -> 0 | CH86: =+T86*KeyAssumptionsPriceControl_FO!AC$15 -> 0 | CI86: =+U86*KeyAssumptionsPriceControl_FO!AD$15 -> 0 | CJ86: =+V86*KeyAssumptionsPriceControl_FO!AE$15 -> 0 | CK86: =+W86*KeyAssumptionsPriceControl_FO!AF$15 -> 0 | CL86: =+X86*KeyAssumptionsPriceControl_FO!AG$15 -> 0 | CN86: 0 | CO86: 0 | CP86: 0 | CQ86: 0.02710676796 | CR86: 0.05421353592 | CS86: 0.05421353592 | CT86: 0.05421353592 | CU86: 0.05421353592 | CV86: 0.05421353592 | CW86: 0.05421353592
C87: Northern - Sewer Rehab Program 2022-23 | D87: 0 | E87: Sewerage | F87: Renewals | G87: Pipelines/network | H87: Significant Projects | J87: Straight line | K87: Ongoing | L87: 45 | M87: 22.22222222 | O87: 0 | P87: 0 | Q87: 0 | R87: 0 | S87: 1.15 | T87: 1.2 | U87: 1.25 | V87: 1.3 | W87: 1.35 | X87: 1.4 | AV87: 0 | AW87: 0 | AX87: 0 | AY87: 0 | AZ87: 1.15 | BA87: 1.2 | BB87: 1.25 | BC87: 1.3 | BD87: 1.35 | BE87: 1.4 | BG87: 0 | BH87: 0 | BI87: 0 | BJ87: 0 | BK87: 0.01277777778 | BL87: 0.03888888889 | BM87: 0.06611111111 | BN87: 0.09444444444 | BO87: 0.1238888889 | BP87: 0.1544444444 | BR87: =+IF($K87="Ongoing",AV87,IF(RIGHT($K87,2)=RIGHT(BR$39,2),SUM($AV87:AV87),0)+IF(RIGHT(BR$39,2)>RIGHT($K87,2),AV87,0)) -> 0 | BS87: =+IF($K87="Ongoing",AW87,IF(RIGHT($K87,2)=RIGHT(BS$39,2),SUM($AV87:AW87),0)+IF(RIGHT(BS$39,2)>RIGHT($K87,2),AW87,0)) -> 0 | BT87: =+IF($K87="Ongoing",AX87,IF(RIGHT($K87,2)=RIGHT(BT$39,2),SUM($AV87:AX87),0)+IF(RIGHT(BT$39,2)>RIGHT($K87,2),AX87,0)) -> 0 | BU87: =+IF($K87="Ongoing",AY87,IF(RIGHT($K87,2)=RIGHT(BU$39,2),SUM($AV87:AY87),0)+IF(RIGHT(BU$39,2)>RIGHT($K87,2),AY87,0)) -> 0 | BV87: =+IF($K87="Ongoing",AZ87,IF(RIGHT($K87,2)=RIGHT(BV$39,2),SUM($AV87:AZ87),0)+IF(RIGHT(BV$39,2)>RIGHT($K87,2),AZ87,0)) -> 1.15 | BW87: =+IF($K87="Ongoing",BA87,IF(RIGHT($K87,2)=RIGHT(BW$39,2),SUM($AV87:BA87),0)+IF(RIGHT(BW$39,2)>RIGHT($K87,2),BA87,0)) -> 1.2 | BX87: =+IF($K87="Ongoing",BB87,IF(RIGHT($K87,2)=RIGHT(BX$39,2),SUM($AV87:BB87),0)+IF(RIGHT(BX$39,2)>RIGHT($K87,2),BB87,0)) -> 1.25 | BY87: =+IF($K87="Ongoing",BC87,IF(RIGHT($K87,2)=RIGHT(BY$39,2),SUM($AV87:BC87),0)+IF(RIGHT(BY$39,2)>RIGHT($K87,2),BC87,0)) -> 1.3 | BZ87: =+IF($K87="Ongoing",BD87,IF(RIGHT($K87,2)=RIGHT(BZ$39,2),SUM($AV87:BD87),0)+IF(RIGHT(BZ$39,2)>RIGHT($K87,2),BD87,0)) -> 1.35 | CA87: =+IF($K87="Ongoing",BE87,IF(RIGHT($K87,2)=RIGHT(CA$39,2),SUM($AV87:BE87),0)+IF(RIGHT(CA$39,2)>RIGHT($K87,2),BE87,0)) -> 1.4 | CC87: =+O87*KeyAssumptionsPriceControl_FO!X$15 -> 0 | CD87: =+P87*KeyAssumptionsPriceControl_FO!Y$15 -> 0 | CE87: =+Q87*KeyAssumptionsPriceControl_FO!Z$15 -> 0 | CF87: =+R87*KeyAssumptionsPriceControl_FO!AA$15 -> 0 | CG87: =+S87*KeyAssumptionsPriceControl_FO!AB$15 -> 1.288475037 | CH87: =+T87*KeyAssumptionsPriceControl_FO!AC$15 -> 1.375419092 | CI87: =+U87*KeyAssumptionsPriceControl_FO!AD$15 -> 1.46568097 | CJ87: =+V87*KeyAssumptionsPriceControl_FO!AE$15 -> 1.559367297 | CK87: =+W87*KeyAssumptionsPriceControl_FO!AF$15 -> 1.656587851 | CL87: =+X87*KeyAssumptionsPriceControl_FO!AG$15 -> 1.757455644 | CN87: 0 | CO87: 0 | CP87: 0 | CQ87: 0 | CR87: 0.02899068833 | CS87: 0.08892830623 | CT87: 0.1528530576 | CU87: 0.2209166436 | CV87: 0.2932756344 | CW87: 0.3700916131
C88: MDA - Catchment Development | D88: 0 | E88: Sewerage | F88: Growth | G88: Pipelines/network | H88: Significant Projects | J88: Straight line | K88: 2004-5 | L88: 45 | M88: 22.22222222 | O88: 0 | P88: 0 | Q88: 0 | R88: 0 | S88: 0 | T88: 0 | U88: 0 | V88: 0 | W88: 0 | X88: 0 | AV88: 0 | AW88: 0 | AX88: 0 | AY88: 0 | AZ88: 0 | BA88: 0 | BB88: 0 | BC88: 0 | BD88: 0 | BE88: 0 | BG88: 0 | BH88: 0 | BI88: 0 | BJ88: 0 | BK88: 0 | BL88: 0 | BM88: 0 | BN88: 0 | BO88: 0 | BP88: 0 | BR88: =+IF($K88="Ongoing",AV88,IF(RIGHT($K88,2)=RIGHT(BR$39,2),SUM($AV88:AV88),0)+IF(RIGHT(BR$39,2)>RIGHT($K88,2),AV88,0)) -> 0 | BS88: =+IF($K88="Ongoing",AW88,IF(RIGHT($K88,2)=RIGHT(BS$39,2),SUM($AV88:AW88),0)+IF(RIGHT(BS$39,2)>RIGHT($K88,2),AW88,0)) -> 0 | BT88: =+IF($K88="Ongoing",AX88,IF(RIGHT($K88,2)=RIGHT(BT$39,2),SUM($AV88:AX88),0)+IF(RIGHT(BT$39,2)>RIGHT($K88,2),AX88,0)) -> 0 | BU88: =+IF($K88="Ongoing",AY88,IF(RIGHT($K88,2)=RIGHT(BU$39,2),SUM($AV88:AY88),0)+IF(RIGHT(BU$39,2)>RIGHT($K88,2),AY88,0)) -> 0 | BV88: =+IF($K88="Ongoing",AZ88,IF(RIGHT($K88,2)=RIGHT(BV$39,2),SUM($AV88:AZ88),0)+IF(RIGHT(BV$39,2)>RIGHT($K88,2),AZ88,0)) -> 0 | BW88: =+IF($K88="Ongoing",BA88,IF(RIGHT($K88,2)=RIGHT(BW$39,2),SUM($AV88:BA88),0)+IF(RIGHT(BW$39,2)>RIGHT($K88,2),BA88,0)) -> 0 | BX88: =+IF($K88="Ongoing",BB88,IF(RIGHT($K88,2)=RIGHT(BX$39,2),SUM($AV88:BB88),0)+IF(RIGHT(BX$39,2)>RIGHT($K88,2),BB88,0)) -> 0 | BY88: =+IF($K88="Ongoing",BC88,IF(RIGHT($K88,2)=RIGHT(BY$39,2),SUM($AV88:BC88),0)+IF(RIGHT(BY$39,2)>RIGHT($K88,2),BC88,0)) -> 0 | BZ88: =+IF($K88="Ongoing",BD88,IF(RIGHT($K88,2)=RIGHT(BZ$39,2),SUM($AV88:BD88),0)+IF(RIGHT(BZ$39,2)>RIGHT($K88,2),BD88,0)) -> 0 | CA88: =+IF($K88="Ongoing",BE88,IF(RIGHT($K88,2)=RIGHT(CA$39,2),SUM($AV88:BE88),0)+IF(RIGHT(CA$39,2)>RIGHT($K88,2),BE88,0)) -> 0 | CC88: =+O88*KeyAssumptionsPriceControl_FO!X$15 -> 0 | CD88: =+P88*KeyAssumptionsPriceControl_FO!Y$15 -> 0 | CE88: =+Q88*KeyAssumptionsPriceControl_FO!Z$15 -> 0 | CF88: =+R88*KeyAssumptionsPriceControl_FO!AA$15 -> 0 | CG88: =+S88*KeyAssumptionsPriceControl_FO!AB$15 -> 0 | CH88: =+T88*KeyAssumptionsPriceControl_FO!AC$15 -> 0 | CI88: =+U88*KeyAssumptionsPriceControl_FO!AD$15 -> 0 | CJ88: =+V88*KeyAssumptionsPriceControl_FO!AE$15 -> 0 | CK88: =+W88*KeyAssumptionsPriceControl_FO!AF$15 -> 0 | CL88: =+X88*KeyAssumptionsPriceControl_FO!AG$15 -> 0 | CN88: 0 | CO88: 0 | CP88: 0 | CQ88: 0 | CR88: 0 | CS88: 0 | CT88: 0 | CU88: 0 | CV88: 0 | CW88: 0
C89: NPT - Sewerage Scheme | D89: 0 | E89: Sewerage | F89: Growth | G89: Pipelines/network | H89: Significant Projects | J89: Straight line | K89: 2010-11 | L89: 45 | M89: 22.22222222 | O89: 0 | P89: 0 | Q89: 0 | R89: 0 | S89: 0 | T89: 0 | U89: 0 | V89: 0 | W89: 0 | X89: 0 | AV89: 0 | AW89: 0 | AX89: 0 | AY89: 0 | AZ89: 0 | BA89: 0 | BB89: 0 | BC89: 0 | BD89: 0 | BE89: 0 | BG89: 0 | BH89: 0 | BI89: 0 | BJ89: 0 | BK89: 0 | BL89: 0 | BM89: 0 | BN89: 0 | BO89: 0 | BP89: 0 | BR89: =+IF($K89="Ongoing",AV89,IF(RIGHT($K89,2)=RIGHT(BR$39,2),SUM($AV89:AV89),0)+IF(RIGHT(BR$39,2)>RIGHT($K89,2),AV89,0)) -> 0 | BS89: =+IF($K89="Ongoing",AW89,IF(RIGHT($K89,2)=RIGHT(BS$39,2),SUM($AV89:AW89),0)+IF(RIGHT(BS$39,2)>RIGHT($K89,2),AW89,0)) -> 0 | BT89: =+IF($K89="Ongoing",AX89,IF(RIGHT($K89,2)=RIGHT(BT$39,2),SUM($AV89:AX89),0)+IF(RIGHT(BT$39,2)>RIGHT($K89,2),AX89,0)) -> 0 | BU89: =+IF($K89="Ongoing",AY89,IF(RIGHT($K89,2)=RIGHT(BU$39,2),SUM($AV89:AY89),0)+IF(RIGHT(BU$39,2)>RIGHT($K89,2),AY89,0)) -> 0 | BV89: =+IF($K89="Ongoing",AZ89,IF(RIGHT($K89,2)=RIGHT(BV$39,2),SUM($AV89:AZ89),0)+IF(RIGHT(BV$39,2)>RIGHT($K89,2),AZ89,0)) -> 0 | BW89: =+IF($K89="Ongoing",BA89,IF(RIGHT($K89,2)=RIGHT(BW$39,2),SUM($AV89:BA89),0)+IF(RIGHT(BW$39,2)>RIGHT($K89,2),BA89,0)) -> 0 | BX89: =+IF($K89="Ongoing",BB89,IF(RIGHT($K89,2)=RIGHT(BX$39,2),SUM($AV89:BB89),0)+IF(RIGHT(BX$39,2)>RIGHT($K89,2),BB89,0)) -> 0 | BY89: =+IF($K89="Ongoing",BC89,IF(RIGHT($K89,2)=RIGHT(BY$39,2),SUM($AV89:BC89),0)+IF(RIGHT(BY$39,2)>RIGHT($K89,2),BC89,0)) -> 0 | BZ89: =+IF($K89="Ongoing",BD89,IF(RIGHT($K89,2)=RIGHT(BZ$39,2),SUM($AV89:BD89),0)+IF(RIGHT(BZ$39,2)>RIGHT($K89,2),BD89,0)) -> 0 | CA89: =+IF($K89="Ongoing",BE89,IF(RIGHT($K89,2)=RIGHT(CA$39,2),SUM($AV89:BE89),0)+IF(RIGHT(CA$39,2)>RIGHT($K89,2),BE89,0)) -> 0 | CC89: =+O89*KeyAssumptionsPriceControl_FO!X$15 -> 0 | CD89: =+P89*KeyAssumptionsPriceControl_FO!Y$15 -> 0 | CE89: =+Q89*KeyAssumptionsPriceControl_FO!Z$15 -> 0 | CF89: =+R89*KeyAssumptionsPriceControl_FO!AA$15 -> 0 | CG89: =+S89*KeyAssumptionsPriceControl_FO!AB$15 -> 0 | CH89: =+T89*KeyAssumptionsPriceControl_FO!AC$15 -> 0 | CI89: =+U89*KeyAssumptionsPriceControl_FO!AD$15 -> 0 | CJ89: =+V89*KeyAssumptionsPriceControl_FO!AE$15 -> 0 | CK89: =+W89*KeyAssumptionsPriceControl_FO!AF$15 -> 0 | CL89: =+X89*KeyAssumptionsPriceControl_FO!AG$15 -> 0 | CN89: 0 | CO89: 0 | CP89: 0 | CQ89: 0 | CR89: 0 | CS89: 0 | CT89: 0 | CU89: 0 | CV89: 0 | CW89: 0
C90: SH - Swan Hill Region SCADA | D90: 0 | E90: Sewerage | F90: Renewals | G90: Pipelines/network | H90: Significant Projects | J90: Straight line | K90: 0 | L90: 45 | M90: 22.22222222 | O90: 0 | P90: 0 | Q90: 0 | R90: 0 | S90: 0 | T90: 0 | U90: 0 | V90: 0 | W90: 0 | X90: 0 | AV90: 0 | AW90: 0 | AX90: 0 | AY90: 0 | AZ90: 0 | BA90: 0 | BB90: 0 | BC90: 0 | BD90: 0 | BE90: 0 | BG90: 0 | BH90: 0 | BI90: 0 | BJ90: 0 | BK90: 0 | BL90: 0 | BM90: 0 | BN90: 0 | BO90: 0 | BP90: 0 | BR90: =+IF($K90="Ongoing",AV90,IF(RIGHT($K90,2)=RIGHT(BR$39,2),SUM($AV90:AV90),0)+IF(RIGHT(BR$39,2)>RIGHT($K90,2),AV90,0)) -> 0 | BS90: =+IF($K90="Ongoing",AW90,IF(RIGHT($K90,2)=RIGHT(BS$39,2),SUM($AV90:AW90),0)+IF(RIGHT(BS$39,2)>RIGHT($K90,2),AW90,0)) -> 0 | BT90: =+IF($K90="Ongoing",AX90,IF(RIGHT($K90,2)=RIGHT(BT$39,2),SUM($AV90:AX90),0)+IF(RIGHT(BT$39,2)>RIGHT($K90,2),AX90,0)) -> 0 | BU90: =+IF($K90="Ongoing",AY90,IF(RIGHT($K90,2)=RIGHT(BU$39,2),SUM($AV90:AY90),0)+IF(RIGHT(BU$39,2)>RIGHT($K90,2),AY90,0)) -> 0 | BV90: =+IF($K90="Ongoing",AZ90,IF(RIGHT($K90,2)=RIGHT(BV$39,2),SUM($AV90:AZ90),0)+IF(RIGHT(BV$39,2)>RIGHT($K90,2),AZ90,0)) -> 0 | BW90: =+IF($K90="Ongoing",BA90,IF(RIGHT($K90,2)=RIGHT(BW$39,2),SUM($AV90:BA90),0)+IF(RIGHT(BW$39,2)>RIGHT($K90,2),BA90,0)) -> 0 | BX90: =+IF($K90="Ongoing",BB90,IF(RIGHT($K90,2)=RIGHT(BX$39,2),SUM($AV90:BB90),0)+IF(RIGHT(BX$39,2)>RIGHT($K90,2),BB90,0)) -> 0 | BY90: =+IF($K90="Ongoing",BC90,IF(RIGHT($K90,2)=RIGHT(BY$39,2),SUM($AV90:BC90),0)+IF(RIGHT(BY$39,2)>RIGHT($K90,2),BC90,0)) -> 0 | BZ90: =+IF($K90="Ongoing",BD90,IF(RIGHT($K90,2)=RIGHT(BZ$39,2),SUM($AV90:BD90),0)+IF(RIGHT(BZ$39,2)>RIGHT($K90,2),BD90,0)) -> 0 | CA90: =+IF($K90="Ongoing",BE90,IF(RIGHT($K90,2)=RIGHT(CA$39,2),SUM($AV90:BE90),0)+IF(RIGHT(CA$39,2)>RIGHT($K90,2),BE90,0)) -> 0 | CC90: =+O90*KeyAssumptionsPriceControl_FO!X$15 -> 0 | CD90: =+P90*KeyAssumptionsPriceControl_FO!Y$15 -> 0 | CE90: =+Q90*KeyAssumptionsPriceControl_FO!Z$15 -> 0 | CF90: =+R90*KeyAssumptionsPriceControl_FO!AA$15 -> 0 | CG90: =+S90*KeyAssumptionsPriceControl_FO!AB$15 -> 0 | CH90: =+T90*KeyAssumptionsPriceControl_FO!AC$15 -> 0 | CI90: =+U90*KeyAssumptionsPriceControl_FO!AD$15 -> 0 | CJ90: =+V90*KeyAssumptionsPriceControl_FO!AE$15 -> 0 | CK90: =+W90*KeyAssumptionsPriceControl_FO!AF$15 -> 0 | CL90: =+X90*KeyAssumptionsPriceControl_FO!AG$15 -> 0 | CN90: 0 | CO90: 0 | CP90: 0 | CQ90: 0 | CR90: 0 | CS90: 0 | CT90: 0 | CU90: 0 | CV90: 0 | CW90: 0
C91: MBT - Sewerage Scheme | D91: 0 | E91: Sewerage | F91: Growth | G91: Pipelines/network | H91: Significant Projects | J91: Straight line | K91: 2010-11 | L91: 45 | M91: 22.22222222 | O91: 0 | P91: 0 | Q91: 0 | R91: 0 | S91: 0 | T91: 0 | U91: 0 | V91: 0 | W91: 0 | X91: 0 | AV91: 0 | AW91: 0 | AX91: 0 | AY91: 0 | AZ91: 0 | BA91: 0 | BB91: 0 | BC91: 0 | BD91: 0 | BE91: 0 | BG91: 0 | BH91: 0 | BI91: 0 | BJ91: 0 | BK91: 0 | BL91: 0 | BM91: 0 | BN91: 0 | BO91: 0 | BP91: 0 | BR91: =+IF($K91="Ongoing",AV91,IF(RIGHT($K91,2)=RIGHT(BR$39,2),SUM($AV91:AV91),0)+IF(RIGHT(BR$39,2)>RIGHT($K91,2),AV91,0)) -> 0 | BS91: =+IF($K91="Ongoing",AW91,IF(RIGHT($K91,2)=RIGHT(BS$39,2),SUM($AV91:AW91),0)+IF(RIGHT(BS$39,2)>RIGHT($K91,2),AW91,0)) -> 0 | BT91: =+IF($K91="Ongoing",AX91,IF(RIGHT($K91,2)=RIGHT(BT$39,2),SUM($AV91:AX91),0)+IF(RIGHT(BT$39,2)>RIGHT($K91,2),AX91,0)) -> 0 | BU91: =+IF($K91="Ongoing",AY91,IF(RIGHT($K91,2)=RIGHT(BU$39,2),SUM($AV91:AY91),0)+IF(RIGHT(BU$39,2)>RIGHT($K91,2),AY91,0)) -> 0 | BV91: =+IF($K91="Ongoing",AZ91,IF(RIGHT($K91,2)=RIGHT(BV$39,2),SUM($AV91:AZ91),0)+IF(RIGHT(BV$39,2)>RIGHT($K91,2),AZ91,0)) -> 0 | BW91: =+IF($K91="Ongoing",BA91,IF(RIGHT($K91,2)=RIGHT(BW$39,2),SUM($AV91:BA91),0)+IF(RIGHT(BW$39,2)>RIGHT($K91,2),BA91,0)) -> 0 | BX91: =+IF($K91="Ongoing",BB91,IF(RIGHT($K91,2)=RIGHT(BX$39,2),SUM($AV91:BB91),0)+IF(RIGHT(BX$39,2)>RIGHT($K91,2),BB91,0)) -> 0 | BY91: =+IF($K91="Ongoing",BC91,IF(RIGHT($K91,2)=RIGHT(BY$39,2),SUM($AV91:BC91),0)+IF(RIGHT(BY$39,2)>RIGHT($K91,2),BC91,0)) -> 0 | BZ91: =+IF($K91="Ongoing",BD91,IF(RIGHT($K91,2)=RIGHT(BZ$39,2),SUM($AV91:BD91),0)+IF(RIGHT(BZ$39,2)>RIGHT($K91,2),BD91,0)) -> 0 | CA91: =+IF($K91="Ongoing",BE91,IF(RIGHT($K91,2)=RIGHT(CA$39,2),SUM($AV91:BE91),0)+IF(RIGHT(CA$39,2)>RIGHT($K91,2),BE91,0)) -> 0 | CC91: =+O91*KeyAssumptionsPriceControl_FO!X$15 -> 0 | CD91: =+P91*KeyAssumptionsPriceControl_FO!Y$15 -> 0 | CE91: =+Q91*KeyAssumptionsPriceControl_FO!Z$15 -> 0 | CF91: =+R91*KeyAssumptionsPriceControl_FO!AA$15 -> 0 | CG91: =+S91*KeyAssumptionsPriceControl_FO!AB$15 -> 0 | CH91: =+T91*KeyAssumptionsPriceControl_FO!AC$15 -> 0 | CI91: =+U91*KeyAssumptionsPriceControl_FO!AD$15 -> 0 | CJ91: =+V91*KeyAssumptionsPriceControl_FO!AE$15 -> 0 | CK91: =+W91*KeyAssumptionsPriceControl_FO!AF$15 -> 0 | CL91: =+X91*KeyAssumptionsPriceControl_FO!AG$15 -> 0 | CN91: 0 | CO91: 0 | CP91: 0 | CQ91: 0 | CR91: 0 | CS91: 0 | CT91: 0 | CU91: 0 | CV91: 0 | CW91: 0
C92: S/H - South West Development | D92: 0 | E92: Sewerage | F92: Growth | G92: Pipelines/network | H92: Significant Projects | J92: Straight line | K92: 2023-24 | L92: 45 | M92: 22.22222222 | O92: 0 | P92: 0 | Q92: 0 | R92: 0 | S92: 0 | T92: 1.5 | U92: 0 | V92: 0 | W92: 0 | X92: 0 | AV92: 0 | AW92: 0 | AX92: 0 | AY92: 0 | AZ92: 0 | BA92: 1.5 | BB92: 0 | BC92: 0 | BD92: 0 | BE92: 0 | BG92: 0 | BH92: 0 | BI92: 0 | BJ92: 0 | BK92: 0 | BL92: 0.01666666667 | BM92: 0.03333333333 | BN92: 0.03333333333 | BO92: 0.03333333333 | BP92: 0.03333333333 | BR92: =+IF($K92="Ongoing",AV92,IF(RIGHT($K92,2)=RIGHT(BR$39,2),SUM($AV92:AV92),0)+IF(RIGHT(BR$39,2)>RIGHT($K92,2),AV92,0)) -> 0 | BS92: =+IF($K92="Ongoing",AW92,IF(RIGHT($K92,2)=RIGHT(BS$39,2),SUM($AV92:AW92),0)+IF(RIGHT(BS$39,2)>RIGHT($K92,2),AW92,0)) -> 0 | BT92: =+IF($K92="Ongoing",AX92,IF(RIGHT($K92,2)=RIGHT(BT$39,2),SUM($AV92:AX92),0)+IF(RIGHT(BT$39,2)>RIGHT($K92,2),AX92,0)) -> 0 | BU92: =+IF($K92="Ongoing",AY92,IF(RIGHT($K92,2)=RIGHT(BU$39,2),SUM($AV92:AY92),0)+IF(RIGHT(BU$39,2)>RIGHT($K92,2),AY92,0)) -> 0 | BV92: =+IF($K92="Ongoing",AZ92,IF(RIGHT($K92,2)=RIGHT(BV$39,2),SUM($AV92:AZ92),0)+IF(RIGHT(BV$39,2)>RIGHT($K92,2),AZ92,0)) -> 0 | BW92: =+IF($K92="Ongoing",BA92,IF(RIGHT($K92,2)=RIGHT(BW$39,2),SUM($AV92:BA92),0)+IF(RIGHT(BW$39,2)>RIGHT($K92,2),BA92,0)) -> 1.5 | BX92: =+IF($K92="Ongoing",BB92,IF(RIGHT($K92,2)=RIGHT(BX$39,2),SUM($AV92:BB92),0)+IF(RIGHT(BX$39,2)>RIGHT($K92,2),BB92,0)) -> 0 | BY92: =+IF($K92="Ongoing",BC92,IF(RIGHT($K92,2)=RIGHT(BY$39,2),SUM($AV92:BC92),0)+IF(RIGHT(BY$39,2)>RIGHT($K92,2),BC92,0)) -> 0 | BZ92: =+IF($K92="Ongoing",BD92,IF(RIGHT($K92,2)=RIGHT(BZ$39,2),SUM($AV92:BD92),0)+IF(RIGHT(BZ$39,2)>RIGHT($K92,2),BD92,0)) -> 0 | CA92: =+IF($K92="Ongoing",BE92,IF(RIGHT($K92,2)=RIGHT(CA$39,2),SUM($AV92:BE92),0)+IF(RIGHT(CA$39,2)>RIGHT($K92,2),BE92,0)) -> 0 | CC92: =+O92*KeyAssumptionsPriceControl_FO!X$15 -> 0 | CD92: =+P92*KeyAssumptionsPriceControl_FO!Y$15 -> 0 | CE92: =+Q92*KeyAssumptionsPriceControl_FO!Z$15 -> 0 | CF92: =+R92*KeyAssumptionsPriceControl_FO!AA$15 -> 0 | CG92: =+S92*KeyAssumptionsPriceControl_FO!AB$15 -> 0 | CH92: =+T92*KeyAssumptionsPriceControl_FO!AC$15 -> 1.719273865 | CI92: =+U92*KeyAssumptionsPriceControl_FO!AD$15 -> 0 | CJ92: =+V92*KeyAssumptionsPriceControl_FO!AE$15 -> 0 | CK92: =+W92*KeyAssumptionsPriceControl_FO!AF$15 -> 0 | CL92: =+X92*KeyAssumptionsPriceControl_FO!AG$15 -> 0 | CN92: 0 | CO92: 0 | CP92: 0 | CQ92: 0 | CR92: 0 | CS92: 0.03868366195 | CT92: 0.07736732391 | CU92: 0.07736732391 | CV92: 0.07736732391 | CW92: 0.07736732391
C93: [Capex Item - Significant Project / Capital Program / Other Capex] | AV93: 0 | AW93: 0 | AX93: 0 | AY93: 0 | AZ93: 0 | BA93: 0 | BB93: 0 | BC93: 0 | BD93: 0 | BE93: 0 | BG93: 0 | BH93: 0 | BI93: 0 | BJ93: 0 | BK93: 0 | BL93: 0 | BM93: 0 | BN93: 0 | BO93: 0 | BP93: 0 | BR93: =+IF($K93="Ongoing",AV93,IF(RIGHT($K93,2)=RIGHT(BR$39,2),SUM($AV93:AV93),0)+IF(RIGHT(BR$39,2)>RIGHT($K93,2),AV93,0)) -> 0 | BS93: =+IF($K93="Ongoing",AW93,IF(RIGHT($K93,2)=RIGHT(BS$39,2),SUM($AV93:AW93),0)+IF(RIGHT(BS$39,2)>RIGHT($K93,2),AW93,0)) -> 0 | BT93: =+IF($K93="Ongoing",AX93,IF(RIGHT($K93,2)=RIGHT(BT$39,2),SUM($AV93:AX93),0)+IF(RIGHT(BT$39,2)>RIGHT($K93,2),AX93,0)) -> 0 | BU93: =+IF($K93="Ongoing",AY93,IF(RIGHT($K93,2)=RIGHT(BU$39,2),SUM($AV93:AY93),0)+IF(RIGHT(BU$39,2)>RIGHT($K93,2),AY93,0)) -> 0 | BV93: =+IF($K93="Ongoing",AZ93,IF(RIGHT($K93,2)=RIGHT(BV$39,2),SUM($AV93:AZ93),0)+IF(RIGHT(BV$39,2)>RIGHT($K93,2),AZ93,0)) -> 0 | BW93: =+IF($K93="Ongoing",BA93,IF(RIGHT($K93,2)=RIGHT(BW$39,2),SUM($AV93:BA93),0)+IF(RIGHT(BW$39,2)>RIGHT($K93,2),BA93,0)) -> 0 | BX93: =+IF($K93="Ongoing",BB93,IF(RIGHT($K93,2)=RIGHT(BX$39,2),SUM($AV93:BB93),0)+IF(RIGHT(BX$39,2)>RIGHT($K93,2),BB93,0)) -> 0 | BY93: =+IF($K93="Ongoing",BC93,IF(RIGHT($K93,2)=RIGHT(BY$39,2),SUM($AV93:BC93),0)+IF(RIGHT(BY$39,2)>RIGHT($K93,2),BC93,0)) -> 0 | BZ93: =+IF($K93="Ongoing",BD93,IF(RIGHT($K93,2)=RIGHT(BZ$39,2),SUM($AV93:BD93),0)+IF(RIGHT(BZ$39,2)>RIGHT($K93,2),BD93,0)) -> 0 | CA93: =+IF($K93="Ongoing",BE93,IF(RIGHT($K93,2)=RIGHT(CA$39,2),SUM($AV93:BE93),0)+IF(RIGHT(CA$39,2)>RIGHT($K93,2),BE93,0)) -> 0 | CC93: =+O93*KeyAssumptionsPriceControl_FO!X$15 -> 0 | CD93: =+P93*KeyAssumptionsPriceControl_FO!Y$15 -> 0 | CE93: =+Q93*KeyAssumptionsPriceControl_FO!Z$15 -> 0 | CF93: =+R93*KeyAssumptionsPriceControl_FO!AA$15 -> 0 | CG93: =+S93*KeyAssumptionsPriceControl_FO!AB$15 -> 0 | CH93: =+T93*KeyAssumptionsPriceControl_FO!AC$15 -> 0 | CI93: =+U93*KeyAssumptionsPriceControl_FO!AD$15 -> 0 | CJ93: =+V93*KeyAssumptionsPriceControl_FO!AE$15 -> 0 | CK93: =+W93*KeyAssumptionsPriceControl_FO!AF$15 -> 0 | CL93: =+X93*KeyAssumptionsPriceControl_FO!AG$15 -> 0 | CN93: 0 | CO93: 0 | CP93: 0 | CQ93: 0 | CR93: 0 | CS93: 0 | CT93: 0 | CU93: 0 | CV93: 0 | CW93: 0
C94: MBN Booster PS Upgrade | D94: 0 | E94: Water | F94: Improvements / Compliance | G94: Headworks | H94: Significant Projects | J94: Straight line | K94: 2020-21 | L94: 45 | M94: 22.22222222 | O94: 0 | P94: 0.02 | Q94: 0.18 | R94: 0 | S94: 0 | T94: 0 | U94: 0 | V94: 0 | W94: 0 | X94: 0 | AV94: 0 | AW94: 0.02 | AX94: 0.18 | AY94: 0 | AZ94: 0 | BA94: 0 | BB94: 0 | BC94: 0 | BD94: 0 | BE94: 0 | BG94: 0 | BH94: 0 | BI94: 0.002222222222 | BJ94: 0.004444444444 | BK94: 0.004444444444 | BL94: 0.004444444444 | BM94: 0.004444444444 | BN94: 0.004444444444 | BO94: 0.004444444444 | BP94: 0.004444444444 | BR94: =+IF($K94="Ongoing",AV94,IF(RIGHT($K94,2)=RIGHT(BR$39,2),SUM($AV94:AV94),0)+IF(RIGHT(BR$39,2)>RIGHT($K94,2),AV94,0)) -> 0 | BS94: =+IF($K94="Ongoing",AW94,IF(RIGHT($K94,2)=RIGHT(BS$39,2),SUM($AV94:AW94),0)+IF(RIGHT(BS$39,2)>RIGHT($K94,2),AW94,0)) -> 0 | BT94: =+IF($K94="Ongoing",AX94,IF(RIGHT($K94,2)=RIGHT(BT$39,2),SUM($AV94:AX94),0)+IF(RIGHT(BT$39,2)>RIGHT($K94,2),AX94,0)) -> 0.2 | BU94: =+IF($K94="Ongoing",AY94,IF(RIGHT($K94,2)=RIGHT(BU$39,2),SUM($AV94:AY94),0)+IF(RIGHT(BU$39,2)>RIGHT($K94,2),AY94,0)) -> 0 | BV94: =+IF($K94="Ongoing",AZ94,IF(RIGHT($K94,2)=RIGHT(BV$39,2),SUM($AV94:AZ94),0)+IF(RIGHT(BV$39,2)>RIGHT($K94,2),AZ94,0)) -> 0 | BW94: =+IF($K94="Ongoing",BA94,IF(RIGHT($K94,2)=RIGHT(BW$39,2),SUM($AV94:BA94),0)+IF(RIGHT(BW$39,2)>RIGHT($K94,2),BA94,0)) -> 0 | BX94: =+IF($K94="Ongoing",BB94,IF(RIGHT($K94,2)=RIGHT(BX$39,2),SUM($AV94:BB94),0)+IF(RIGHT(BX$39,2)>RIGHT($K94,2),BB94,0)) -> 0 | BY94: =+IF($K94="Ongoing",BC94,IF(RIGHT($K94,2)=RIGHT(BY$39,2),SUM($AV94:BC94),0)+IF(RIGHT(BY$39,2)>RIGHT($K94,2),BC94,0)) -> 0 | BZ94: =+IF($K94="Ongoing",BD94,IF(RIGHT($K94,2)=RIGHT(BZ$39,2),SUM($AV94:BD94),0)+IF(RIGHT(BZ$39,2)>RIGHT($K94,2),BD94,0)) -> 0 | CA94: =+IF($K94="Ongoing",BE94,IF(RIGHT($K94,2)=RIGHT(CA$39,2),SUM($AV94:BE94),0)+IF(RIGHT(CA$39,2)>RIGHT($K94,2),BE94,0)) -> 0 | CC94: =+O94*KeyAssumptionsPriceControl_FO!X$15 -> 0 | CD94: =+P94*KeyAssumptionsPriceControl_FO!Y$15 -> 0.02093058 | CE94: =+Q94*KeyAssumptionsPriceControl_FO!Z$15 -> 0.1927078501 | CF94: =+R94*KeyAssumptionsPriceControl_FO!AA$15 -> 0 | CG94: =+S94*KeyAssumptionsPriceControl_FO!AB$15 -> 0 | CH94: =+T94*KeyAssumptionsPriceControl_FO!AC$15 -> 0 | CI94: =+U94*KeyAssumptionsPriceControl_FO!AD$15 -> 0 | CJ94: =+V94*KeyAssumptionsPriceControl_FO!AE$15 -> 0 | CK94: =+W94*KeyAssumptionsPriceControl_FO!AF$15 -> 0 | CL94: =+X94*KeyAssumptionsPriceControl_FO!AG$15 -> 0 | CN94: 0 | CO94: 0.00047093805 | CP94: 0.005277802726 | CQ94: 0.009613729353 | CR94: 0.009613729353 | CS94: 0.009613729353 | CT94: 0.009613729353 | CU94: 0.009613729353 | CV94: 0.009613729353 | CW94: 0.009613729353
C95: PIA RWPS - Replace Switchboard | D95: 0 | E95: Water | F95: Renewals | G95: Treatment | H95: Significant Projects | J95: Straight line | K95: 2013-14 | L95: 45 | M95: 22.22222222 | O95: 0 | P95: 0 | Q95: 0 | R95: 0 | S95: 0 | T95: 0 | U95: 0 | V95: 0 | W95: 0 | X95: 0 | AV95: 0 | AW95: 0 | AX95: 0 | AY95: 0 | AZ95: 0 | BA95: 0 | BB95: 0 | BC95: 0 | BD95: 0 | BE95: 0 | BG95: 0 | BH95: 0 | BI95: 0 | BJ95: 0 | BK95: 0 | BL95: 0 | BM95: 0 | BN95: 0 | BO95: 0 | BP95: 0 | BR95: =+IF($K95="Ongoing",AV95,IF(RIGHT($K95,2)=RIGHT(BR$39,2),SUM($AV95:AV95),0)+IF(RIGHT(BR$39,2)>RIGHT($K95,2),AV95,0)) -> 0 | BS95: =+IF($K95="Ongoing",AW95,IF(RIGHT($K95,2)=RIGHT(BS$39,2),SUM($AV95:AW95),0)+IF(RIGHT(BS$39,2)>RIGHT($K95,2),AW95,0)) -> 0 | BT95: =+IF($K95="Ongoing",AX95,IF(RIGHT($K95,2)=RIGHT(BT$39,2),SUM($AV95:AX95),0)+IF(RIGHT(BT$39,2)>RIGHT($K95,2),AX95,0)) -> 0 | BU95: =+IF($K95="Ongoing",AY95,IF(RIGHT($K95,2)=RIGHT(BU$39,2),SUM($AV95:AY95),0)+IF(RIGHT(BU$39,2)>RIGHT($K95,2),AY95,0)) -> 0 | BV95: =+IF($K95="Ongoing",AZ95,IF(RIGHT($K95,2)=RIGHT(BV$39,2),SUM($AV95:AZ95),0)+IF(RIGHT(BV$39,2)>RIGHT($K95,2),AZ95,0)) -> 0 | BW95: =+IF($K95="Ongoing",BA95,IF(RIGHT($K95,2)=RIGHT(BW$39,2),SUM($AV95:BA95),0)+IF(RIGHT(BW$39,2)>RIGHT($K95,2),BA95,0)) -> 0 | BX95: =+IF($K95="Ongoing",BB95,IF(RIGHT($K95,2)=RIGHT(BX$39,2),SUM($AV95:BB95),0)+IF(RIGHT(BX$39,2)>RIGHT($K95,2),BB95,0)) -> 0 | BY95: =+IF($K95="Ongoing",BC95,IF(RIGHT($K95,2)=RIGHT(BY$39,2),SUM($AV95:BC95),0)+IF(RIGHT(BY$39,2)>RIGHT($K95,2),BC95,0)) -> 0 | BZ95: =+IF($K95="Ongoing",BD95,IF(RIGHT($K95,2)=RIGHT(BZ$39,2),SUM($AV95:BD95),0)+IF(RIGHT(BZ$39,2)>RIGHT($K95,2),BD95,0)) -> 0 | CA95: =+IF($K95="Ongoing",BE95,IF(RIGHT($K95,2)=RIGHT(CA$39,2),SUM($AV95:BE95),0)+IF(RIGHT(CA$39,2)>RIGHT($K95,2),BE95,0)) -> 0 | CC95: =+O95*KeyAssumptionsPriceControl_FO!X$15 -> 0 | CD95: =+P95*KeyAssumptionsPriceControl_FO!Y$15 -> 0 | CE95: =+Q95*KeyAssumptionsPriceControl_FO!Z$15 -> 0 | CF95: =+R95*KeyAssumptionsPriceControl_FO!AA$15 -> 0 | CG95: =+S95*KeyAssumptionsPriceControl_FO!AB$15 -> 0 | CH95: =+T95*KeyAssumptionsPriceControl_FO!AC$15 -> 0 | CI95: =+U95*KeyAssumptionsPriceControl_FO!AD$15 -> 0 | CJ95: =+V95*KeyAssumptionsPriceControl_FO!AE$15 -> 0 | CK95: =+W95*KeyAssumptionsPriceControl_FO!AF$15 -> 0 | CL95: =+X95*KeyAssumptionsPriceControl_FO!AG$15 -> 0 | CN95: 0 | CO95: 0 | CP95: 0 | CQ95: 0 | CR95: 0 | CS95: 0 | CT95: 0 | CU95: 0 | CV95: 0 | CW95: 0
C96: RC - Relift Pump Station (Beevers Lane) | D96: 0 | E96: Water | F96: Growth | G96: Pipelines/network | H96: Significant Projects | J96: Straight line | K96: 2026-27 | L96: 45 | M96: 22.22222222 | O96: 0 | P96: 0 | Q96: 0 | R96: 0 | S96: 0 | T96: 0 | U96: 0 | V96: 0.6 | W96: 0.6 | X96: 0 | AV96: 0 | AW96: 0 | AX96: 0 | AY96: 0 | AZ96: 0 | BA96: 0 | BB96: 0 | BC96: 0.6 | BD96: 0.6 | BE96: 0 | BG96: 0 | BH96: 0 | BI96: 0 | BJ96: 0 | BK96: 0 | BL96: 0 | BM96: 0 | BN96: 0 | BO96: 0.01333333333 | BP96: 0.02666666667 | BR96: =+IF($K96="Ongoing",AV96,IF(RIGHT($K96,2)=RIGHT(BR$39,2),SUM($AV96:AV96),0)+IF(RIGHT(BR$39,2)>RIGHT($K96,2),AV96,0)) -> 0 | BS96: =+IF($K96="Ongoing",AW96,IF(RIGHT($K96,2)=RIGHT(BS$39,2),SUM($AV96:AW96),0)+IF(RIGHT(BS$39,2)>RIGHT($K96,2),AW96,0)) -> 0 | BT96: =+IF($K96="Ongoing",AX96,IF(RIGHT($K96,2)=RIGHT(BT$39,2),SUM($AV96:AX96),0)+IF(RIGHT(BT$39,2)>RIGHT($K96,2),AX96,0)) -> 0 | BU96: =+IF($K96="Ongoing",AY96,IF(RIGHT($K96,2)=RIGHT(BU$39,2),SUM($AV96:AY96),0)+IF(RIGHT(BU$39,2)>RIGHT($K96,2),AY96,0)) -> 0 | BV96: =+IF($K96="Ongoing",AZ96,IF(RIGHT($K96,2)=RIGHT(BV$39,2),SUM($AV96:AZ96),0)+IF(RIGHT(BV$39,2)>RIGHT($K96,2),AZ96,0)) -> 0 | BW96: =+IF($K96="Ongoing",BA96,IF(RIGHT($K96,2)=RIGHT(BW$39,2),SUM($AV96:BA96),0)+IF(RIGHT(BW$39,2)>RIGHT($K96,2),BA96,0)) -> 0 | BX96: =+IF($K96="Ongoing",BB96,IF(RIGHT($K96,2)=RIGHT(BX$39,2),SUM($AV96:BB96),0)+IF(RIGHT(BX$39,2)>RIGHT($K96,2),BB96,0)) -> 0 | BY96: =+IF($K96="Ongoing",BC96,IF(RIGHT($K96,2)=RIGHT(BY$39,2),SUM($AV96:BC96),0)+IF(RIGHT(BY$39,2)>RIGHT($K96,2),BC96,0)) -> 0 | BZ96: =+IF($K96="Ongoing",BD96,IF(RIGHT($K96,2)=RIGHT(BZ$39,2),SUM($AV96:BD96),0)+IF(RIGHT(BZ$39,2)>RIGHT($K96,2),BD96,0)) -> 1.2 | CA96: =+IF($K96="Ongoing",BE96,IF(RIGHT($K96,2)=RIGHT(CA$39,2),SUM($AV96:BE96),0)+IF(RIGHT(CA$39,2)>RIGHT($K96,2),BE96,0)) -> 0 | CC96: =+O96*KeyAssumptionsPriceControl_FO!X$15 -> 0 | CD96: =+P96*KeyAssumptionsPriceControl_FO!Y$15 -> 0 | CE96: =+Q96*KeyAssumptionsPriceControl_FO!Z$15 -> 0 | CF96: =+R96*KeyAssumptionsPriceControl_FO!AA$15 -> 0 | CG96: =+S96*KeyAssumptionsPriceControl_FO!AB$15 -> 0 | CH96: =+T96*KeyAssumptionsPriceControl_FO!AC$15 -> 0 | CI96: =+U96*KeyAssumptionsPriceControl_FO!AD$15 -> 0 | CJ96: =+V96*KeyAssumptionsPriceControl_FO!AE$15 -> 0.7197079833 | CK96: =+W96*KeyAssumptionsPriceControl_FO!AF$15 -> 0.7362612669 | CL96: =+X96*KeyAssumptionsPriceControl_FO!AG$15 -> 0 | CN96: 0 | CO96: 0 | CP96: 0 | CQ96: 0 | CR96: 0 | CS96: 0 | CT96: 0 | CU96: 0.01619342962 | CV96: 0.04895273775 | CW96: 0.06551861626
C97: ROB RW Replace Suction | D97: 0 | E97: Water | F97: Renewals | G97: Pipelines/network | H97: Significant Projects | J97: Straight line | K97: 2014-15 | L97: 45 | M97: 22.22222222 | O97: 0 | P97: 0 | Q97: 0 | R97: 0 | S97: 0 | T97: 0 | U97: 0 | V97: 0 | W97: 0 | X97: 0 | AV97: 0 | AW97: 0 | AX97: 0 | AY97: 0 | AZ97: 0 | BA97: 0 | BB97: 0 | BC97: 0 | BD97: 0 | BE97: 0 | BG97: 0 | BH97: 0 | BI97: 0 | BJ97: 0 | BK97: 0 | BL97: 0 | BM97: 0 | BN97: 0 | BO97: 0 | BP97: 0 | BR97: =+IF($K97="Ongoing",AV97,IF(RIGHT($K97,2)=RIGHT(BR$39,2),SUM($AV97:AV97),0)+IF(RIGHT(BR$39,2)>RIGHT($K97,2),AV97,0)) -> 0 | BS97: =+IF($K97="Ongoing",AW97,IF(RIGHT($K97,2)=RIGHT(BS$39,2),SUM($AV97:AW97),0)+IF(RIGHT(BS$39,2)>RIGHT($K97,2),AW97,0)) -> 0 | BT97: =+IF($K97="Ongoing",AX97,IF(RIGHT($K97,2)=RIGHT(BT$39,2),SUM($AV97:AX97),0)+IF(RIGHT(BT$39,2)>RIGHT($K97,2),AX97,0)) -> 0 | BU97: =+IF($K97="Ongoing",AY97,IF(RIGHT($K97,2)=RIGHT(BU$39,2),SUM($AV97:AY97),0)+IF(RIGHT(BU$39,2)>RIGHT($K97,2),AY97,0)) -> 0 | BV97: =+IF($K97="Ongoing",AZ97,IF(RIGHT($K97,2)=RIGHT(BV$39,2),SUM($AV97:AZ97),0)+IF(RIGHT(BV$39,2)>RIGHT($K97,2),AZ97,0)) -> 0 | BW97: =+IF($K97="Ongoing",BA97,IF(RIGHT($K97,2)=RIGHT(BW$39,2),SUM($AV97:BA97),0)+IF(RIGHT(BW$39,2)>RIGHT($K97,2),BA97,0)) -> 0 | BX97: =+IF($K97="Ongoing",BB97,IF(RIGHT($K97,2)=RIGHT(BX$39,2),SUM($AV97:BB97),0)+IF(RIGHT(BX$39,2)>RIGHT($K97,2),BB97,0)) -> 0 | BY97: =+IF($K97="Ongoing",BC97,IF(RIGHT($K97,2)=RIGHT(BY$39,2),SUM($AV97:BC97),0)+IF(RIGHT(BY$39,2)>RIGHT($K97,2),BC97,0)) -> 0 | BZ97: =+IF($K97="Ongoing",BD97,IF(RIGHT($K97,2)=RIGHT(BZ$39,2),SUM($AV97:BD97),0)+IF(RIGHT(BZ$39,2)>RIGHT($K97,2),BD97,0)) -> 0 | CA97: =+IF($K97="Ongoing",BE97,IF(RIGHT($K97,2)=RIGHT(CA$39,2),SUM($AV97:BE97),0)+IF(RIGHT(CA$39,2)>RIGHT($K97,2),BE97,0)) -> 0 | CC97: =+O97*KeyAssumptionsPriceControl_FO!X$15 -> 0 | CD97: =+P97*KeyAssumptionsPriceControl_FO!Y$15 -> 0 | CE97: =+Q97*KeyAssumptionsPriceControl_FO!Z$15 -> 0 | CF97: =+R97*KeyAssumptionsPriceControl_FO!AA$15 -> 0 | CG97: =+S97*KeyAssumptionsPriceControl_FO!AB$15 -> 0 | CH97: =+T97*KeyAssumptionsPriceControl_FO!AC$15 -> 0 | CI97: =+U97*KeyAssumptionsPriceControl_FO!AD$15 -> 0 | CJ97: =+V97*KeyAssumptionsPriceControl_FO!AE$15 -> 0 | CK97: =+W97*KeyAssumptionsPriceControl_FO!AF$15 -> 0 | CL97: =+X97*KeyAssumptionsPriceControl_FO!AG$15 -> 0 | CN97: 0 | CO97: 0 | CP97: 0 | CQ97: 0 | CR97: 0 | CS97: 0 | CT97: 0 | CU97: 0 | CV97: 0 | CW97: 0
C98: ROB TW Treated Water Diesel and adjacent motor guarding | D98: 0 | E98: Water | F98: Growth | G98: Pipelines/network | H98: Significant Projects | J98: Straight line | K98: 2013-14 | L98: 45 | M98: 22.22222222 | O98: 0 | P98: 0 | Q98: 0 | R98: 0 | S98: 0 | T98: 0 | U98: 0 | V98: 0 | W98: 0 | X98: 0 | AV98: 0 | AW98: 0 | AX98: 0 | AY98: 0 | AZ98: 0 | BA98: 0 | BB98: 0 | BC98: 0 | BD98: 0 | BE98: 0 | BG98: 0 | BH98: 0 | BI98: 0 | BJ98: 0 | BK98: 0 | BL98: 0 | BM98: 0 | BN98: 0 | BO98: 0 | BP98: 0 | BR98: =+IF($K98="Ongoing",AV98,IF(RIGHT($K98,2)=RIGHT(BR$39,2),SUM($AV98:AV98),0)+IF(RIGHT(BR$39,2)>RIGHT($K98,2),AV98,0)) -> 0 | BS98: =+IF($K98="Ongoing",AW98,IF(RIGHT($K98,2)=RIGHT(BS$39,2),SUM($AV98:AW98),0)+IF(RIGHT(BS$39,2)>RIGHT($K98,2),AW98,0)) -> 0 | BT98: =+IF($K98="Ongoing",AX98,IF(RIGHT($K98,2)=RIGHT(BT$39,2),SUM($AV98:AX98),0)+IF(RIGHT(BT$39,2)>RIGHT($K98,2),AX98,0)) -> 0 | BU98: =+IF($K98="Ongoing",AY98,IF(RIGHT($K98,2)=RIGHT(BU$39,2),SUM($AV98:AY98),0)+IF(RIGHT(BU$39,2)>RIGHT($K98,2),AY98,0)) -> 0 | BV98: =+IF($K98="Ongoing",AZ98,IF(RIGHT($K98,2)=RIGHT(BV$39,2),SUM($AV98:AZ98),0)+IF(RIGHT(BV$39,2)>RIGHT($K98,2),AZ98,0)) -> 0 | BW98: =+IF($K98="Ongoing",BA98,IF(RIGHT($K98,2)=RIGHT(BW$39,2),SUM($AV98:BA98),0)+IF(RIGHT(BW$39,2)>RIGHT($K98,2),BA98,0)) -> 0 | BX98: =+IF($K98="Ongoing",BB98,IF(RIGHT($K98,2)=RIGHT(BX$39,2),SUM($AV98:BB98),0)+IF(RIGHT(BX$39,2)>RIGHT($K98,2),BB98,0)) -> 0 | BY98: =+IF($K98="Ongoing",BC98,IF(RIGHT($K98,2)=RIGHT(BY$39,2),SUM($AV98:BC98),0)+IF(RIGHT(BY$39,2)>RIGHT($K98,2),BC98,0)) -> 0 | BZ98: =+IF($K98="Ongoing",BD98,IF(RIGHT($K98,2)=RIGHT(BZ$39,2),SUM($AV98:BD98),0)+IF(RIGHT(BZ$39,2)>RIGHT($K98,2),BD98,0)) -> 0 | CA98: =+IF($K98="Ongoing",BE98,IF(RIGHT($K98,2)=RIGHT(CA$39,2),SUM($AV98:BE98),0)+IF(RIGHT(CA$39,2)>RIGHT($K98,2),BE98,0)) -> 0 | CC98: =+O98*KeyAssumptionsPriceControl_FO!X$15 -> 0 | CD98: =+P98*KeyAssumptionsPriceControl_FO!Y$15 -> 0 | CE98: =+Q98*KeyAssumptionsPriceControl_FO!Z$15 -> 0 | CF98: =+R98*KeyAssumptionsPriceControl_FO!AA$15 -> 0 | CG98: =+S98*KeyAssumptionsPriceControl_FO!AB$15 -> 0 | CH98: =+T98*KeyAssumptionsPriceControl_FO!AC$15 -> 0 | CI98: =+U98*KeyAssumptionsPriceControl_FO!AD$15 -> 0 | CJ98: =+V98*KeyAssumptionsPriceControl_FO!AE$15 -> 0 | CK98: =+W98*KeyAssumptionsPriceControl_FO!AF$15 -> 0 | CL98: =+X98*KeyAssumptionsPriceControl_FO!AG$15 -> 0 | CN98: 0 | CO98: 0 | CP98: 0 | CQ98: 0 | CR98: 0 | CS98: 0 | CT98: 0 | CU98: 0 | CV98: 0 | CW98: 0
C99: S/H Cathodic Protection Splatt St & McRae St | D99: 0 | E99: Water | F99: Renewals | G99: Pipelines/network | H99: Significant Projects | J99: Straight line | K99: 2013-14 | L99: 45 | M99: 22.22222222 | O99: 0 | P99: 0 | Q99: 0 | R99: 0 | S99: 0 | T99: 0 | U99: 0 | V99: 0 | W99: 0 | X99: 0 | AV99: 0 | AW99: 0 | AX99: 0 | AY99: 0 | AZ99: 0 | BA99: 0 | BB99: 0 | BC99: 0 | BD99: 0 | BE99: 0 | BG99: 0 | BH99: 0 | BI99: 0 | BJ99: 0 | BK99: 0 | BL99: 0 | BM99: 0 | BN99: 0 | BO99: 0 | BP99: 0 | BR99: =+IF($K99="Ongoing",AV99,IF(RIGHT($K99,2)=RIGHT(BR$39,2),SUM($AV99:AV99),0)+IF(RIGHT(BR$39,2)>RIGHT($K99,2),AV99,0)) -> 0 | BS99: =+IF($K99="Ongoing",AW99,IF(RIGHT($K99,2)=RIGHT(BS$39,2),SUM($AV99:AW99),0)+IF(RIGHT(BS$39,2)>RIGHT($K99,2),AW99,0)) -> 0 | BT99: =+IF($K99="Ongoing",AX99,IF(RIGHT($K99,2)=RIGHT(BT$39,2),SUM($AV99:AX99),0)+IF(RIGHT(BT$39,2)>RIGHT($K99,2),AX99,0)) -> 0 | BU99: =+IF($K99="Ongoing",AY99,IF(RIGHT($K99,2)=RIGHT(BU$39,2),SUM($AV99:AY99),0)+IF(RIGHT(BU$39,2)>RIGHT($K99,2),AY99,0)) -> 0 | BV99: =+IF($K99="Ongoing",AZ99,IF(RIGHT($K99,2)=RIGHT(BV$39,2),SUM($AV99:AZ99),0)+IF(RIGHT(BV$39,2)>RIGHT($K99,2),AZ99,0)) -> 0 | BW99: =+IF($K99="Ongoing",BA99,IF(RIGHT($K99,2)=RIGHT(BW$39,2),SUM($AV99:BA99),0)+IF(RIGHT(BW$39,2)>RIGHT($K99,2),BA99,0)) -> 0 | BX99: =+IF($K99="Ongoing",BB99,IF(RIGHT($K99,2)=RIGHT(BX$39,2),SUM($AV99:BB99),0)+IF(RIGHT(BX$39,2)>RIGHT($K99,2),BB99,0)) -> 0 | BY99: =+IF($K99="Ongoing",BC99,IF(RIGHT($K99,2)=RIGHT(BY$39,2),SUM($AV99:BC99),0)+IF(RIGHT(BY$39,2)>RIGHT($K99,2),BC99,0)) -> 0 | BZ99: =+IF($K99="Ongoing",BD99,IF(RIGHT($K99,2)=RIGHT(BZ$39,2),SUM($AV99:BD99),0)+IF(RIGHT(BZ$39,2)>RIGHT($K99,2),BD99,0)) -> 0 | CA99: =+IF($K99="Ongoing",BE99,IF(RIGHT($K99,2)=RIGHT(CA$39,2),SUM($AV99:BE99),0)+IF(RIGHT(CA$39,2)>RIGHT($K99,2),BE99,0)) -> 0 | CC99: =+O99*KeyAssumptionsPriceControl_FO!X$15 -> 0 | CD99: =+P99*KeyAssumptionsPriceControl_FO!Y$15 -> 0 | CE99: =+Q99*KeyAssumptionsPriceControl_FO!Z$15 -> 0 | CF99: =+R99*KeyAssumptionsPriceControl_FO!AA$15 -> 0 | CG99: =+S99*KeyAssumptionsPriceControl_FO!AB$15 -> 0 | CH99: =+T99*KeyAssumptionsPriceControl_FO!AC$15 -> 0 | CI99: =+U99*KeyAssumptionsPriceControl_FO!AD$15 -> 0 | CJ99: =+V99*KeyAssumptionsPriceControl_FO!AE$15 -> 0 | CK99: =+W99*KeyAssumptionsPriceControl_FO!AF$15 -> 0 | CL99: =+X99*KeyAssumptionsPriceControl_FO!AG$15 -> 0 | CN99: 0 | CO99: 0 | CP99: 0 | CQ99: 0 | CR99: 0 | CS99: 0 | CT99: 0 | CU99: 0 | CV99: 0 | CW99: 0
C100: S/H Replace Treated Wtr PS | D100: 0 | E100: Water | F100: Renewals | G100: Pipelines/network | H100: Significant Projects | J100: Straight line | K100: 2006-7 | L100: 45 | M100: 22.22222222 | O100: 0 | P100: 0 | Q100: 0 | R100: 0 | S100: 0 | T100: 0 | U100: 0 | V100: 0 | W100: 0 | X100: 0 | AV100: 0 | AW100: 0 | AX100: 0 | AY100: 0 | AZ100: 0 | BA100: 0 | BB100: 0 | BC100: 0 | BD100: 0 | BE100: 0 | BG100: 0 | BH100: 0 | BI100: 0 | BJ100: 0 | BK100: 0 | BL100: 0 | BM100: 0 | BN100: 0 | BO100: 0 | BP100: 0 | BR100: =+IF($K100="Ongoing",AV100,IF(RIGHT($K100,2)=RIGHT(BR$39,2),SUM($AV100:AV100),0)+IF(RIGHT(BR$39,2)>RIGHT($K100,2),AV100,0)) -> 0 | BS100: =+IF($K100="Ongoing",AW100,IF(RIGHT($K100,2)=RIGHT(BS$39,2),SUM($AV100:AW100),0)+IF(RIGHT(BS$39,2)>RIGHT($K100,2),AW100,0)) -> 0 | BT100: =+IF($K100="Ongoing",AX100,IF(RIGHT($K100,2)=RIGHT(BT$39,2),SUM($AV100:AX100),0)+IF(RIGHT(BT$39,2)>RIGHT($K100,2),AX100,0)) -> 0 | BU100: =+IF($K100="Ongoing",AY100,IF(RIGHT($K100,2)=RIGHT(BU$39,2),SUM($AV100:AY100),0)+IF(RIGHT(BU$39,2)>RIGHT($K100,2),AY100,0)) -> 0 | BV100: =+IF($K100="Ongoing",AZ100,IF(RIGHT($K100,2)=RIGHT(BV$39,2),SUM($AV100:AZ100),0)+IF(RIGHT(BV$39,2)>RIGHT($K100,2),AZ100,0)) -> 0 | BW100: =+IF($K100="Ongoing",BA100,IF(RIGHT($K100,2)=RIGHT(BW$39,2),SUM($AV100:BA100),0)+IF(RIGHT(BW$39,2)>RIGHT($K100,2),BA100,0)) -> 0 | BX100: =+IF($K100="Ongoing",BB100,IF(RIGHT($K100,2)=RIGHT(BX$39,2),SUM($AV100:BB100),0)+IF(RIGHT(BX$39,2)>RIGHT($K100,2),BB100,0)) -> 0 | BY100: =+IF($K100="Ongoing",BC100,IF(RIGHT($K100,2)=RIGHT(BY$39,2),SUM($AV100:BC100),0)+IF(RIGHT(BY$39,2)>RIGHT($K100,2),BC100,0)) -> 0 | BZ100: =+IF($K100="Ongoing",BD100,IF(RIGHT($K100,2)=RIGHT(BZ$39,2),SUM($AV100:BD100),0)+IF(RIGHT(BZ$39,2)>RIGHT($K100,2),BD100,0)) -> 0 | CA100: =+IF($K100="Ongoing",BE100,IF(RIGHT($K100,2)=RIGHT(CA$39,2),SUM($AV100:BE100),0)+IF(RIGHT(CA$39,2)>RIGHT($K100,2),BE100,0)) -> 0 | CC100: =+O100*KeyAssumptionsPriceControl_FO!X$15 -> 0 | CD100: =+P100*KeyAssumptionsPriceControl_FO!Y$15 -> 0 | CE100: =+Q100*KeyAssumptionsPriceControl_FO!Z$15 -> 0 | CF100: =+R100*KeyAssumptionsPriceControl_FO!AA$15 -> 0 | CG100: =+S100*KeyAssumptionsPriceControl_FO!AB$15 -> 0 | CH100: =+T100*KeyAssumptionsPriceControl_FO!AC$15 -> 0 | CI100: =+U100*KeyAssumptionsPriceControl_FO!AD$15 -> 0 | CJ100: =+V100*KeyAssumptionsPriceControl_FO!AE$15 -> 0 | CK100: =+W100*KeyAssumptionsPriceControl_FO!AF$15 -> 0 | CL100: =+X100*KeyAssumptionsPriceControl_FO!AG$15 -> 0 | CN100: 0 | CO100: 0 | CP100: 0 | CQ100: 0 | CR100: 0 | CS100: 0 | CT100: 0 | CU100: 0 | CV100: 0 | CW100: 0
C101: SH - Swan Hill Raw Water Pumping Station Replace 3 No. VSDs | D101: 0 | E101: Water | F101: Renewals | G101: Pipelines/network | H101: Significant Projects | J101: Straight line | K101: 2022-23 | L101: 45 | M101: 22.22222222 | O101: 0 | P101: 0 | Q101: 0 | R101: 0 | S101: 0.15 | T101: 0 | U101: 0 | V101: 0 | W101: 0 | X101: 0 | AV101: 0 | AW101: 0 | AX101: 0 | AY101: 0 | AZ101: 0.15 | BA101: 0 | BB101: 0 | BC101: 0 | BD101: 0 | BE101: 0 | BG101: 0 | BH101: 0 | BI101: 0 | BJ101: 0 | BK101: 0.001666666667 | BL101: 0.003333333333 | BM101: 0.003333333333 | BN101: 0.003333333333 | BO101: 0.003333333333 | BP101: 0.003333333333 | BR101: =+IF($K101="Ongoing",AV101,IF(RIGHT($K101,2)=RIGHT(BR$39,2),SUM($AV101:AV101),0)+IF(RIGHT(BR$39,2)>RIGHT($K101,2),AV101,0)) -> 0 | BS101: =+IF($K101="Ongoing",AW101,IF(RIGHT($K101,2)=RIGHT(BS$39,2),SUM($AV101:AW101),0)+IF(RIGHT(BS$39,2)>RIGHT($K101,2),AW101,0)) -> 0 | BT101: =+IF($K101="Ongoing",AX101,IF(RIGHT($K101,2)=RIGHT(BT$39,2),SUM($AV101:AX101),0)+IF(RIGHT(BT$39,2)>RIGHT($K101,2),AX101,0)) -> 0 | BU101: =+IF($K101="Ongoing",AY101,IF(RIGHT($K101,2)=RIGHT(BU$39,2),SUM($AV101:AY101),0)+IF(RIGHT(BU$39,2)>RIGHT($K101,2),AY101,0)) -> 0 | BV101: =+IF($K101="Ongoing",AZ101,IF(RIGHT($K101,2)=RIGHT(BV$39,2),SUM($AV101:AZ101),0)+IF(RIGHT(BV$39,2)>RIGHT($K101,2),AZ101,0)) -> 0.15 | BW101: =+IF($K101="Ongoing",BA101,IF(RIGHT($K101,2)=RIGHT(BW$39,2),SUM($AV101:BA101),0)+IF(RIGHT(BW$39,2)>RIGHT($K101,2),BA101,0)) -> 0 | BX101: =+IF($K101="Ongoing",BB101,IF(RIGHT($K101,2)=RIGHT(BX$39,2),SUM($AV101:BB101),0)+IF(RIGHT(BX$39,2)>RIGHT($K101,2),BB101,0)) -> 0 | BY101: =+IF($K101="Ongoing",BC101,IF(RIGHT($K101,2)=RIGHT(BY$39,2),SUM($AV101:BC101),0)+IF(RIGHT(BY$39,2)>RIGHT($K101,2),BC101,0)) -> 0 | BZ101: =+IF($K101="Ongoing",BD101,IF(RIGHT($K101,2)=RIGHT(BZ$39,2),SUM($AV101:BD101),0)+IF(RIGHT(BZ$39,2)>RIGHT($K101,2),BD101,0)) -> 0 | CA101: =+IF($K101="Ongoing",BE101,IF(RIGHT($K101,2)=RIGHT(CA$39,2),SUM($AV101:BE101),0)+IF(RIGHT(CA$39,2)>RIGHT($K101,2),BE101,0)) -> 0 | CC101: =+O101*KeyAssumptionsPriceControl_FO!X$15 -> 0 | CD101: =+P101*KeyAssumptionsPriceControl_FO!Y$15 -> 0 | CE101: =+Q101*KeyAssumptionsPriceControl_FO!Z$15 -> 0 | CF101: =+R101*KeyAssumptionsPriceControl_FO!AA$15 -> 0 | CG101: =+S101*KeyAssumptionsPriceControl_FO!AB$15 -> 0.1680619613 | CH101: =+T101*KeyAssumptionsPriceControl_FO!AC$15 -> 0 | CI101: =+U101*KeyAssumptionsPriceControl_FO!AD$15 -> 0 | CJ101: =+V101*KeyAssumptionsPriceControl_FO!AE$15 -> 0 | CK101: =+W101*KeyAssumptionsPriceControl_FO!AF$15 -> 0 | CL101: =+X101*KeyAssumptionsPriceControl_FO!AG$15 -> 0 | CN101: 0 | CO101: 0 | CP101: 0 | CQ101: 0 | CR101: 0.00378139413 | CS101: 0.007562788261 | CT101: 0.007562788261 | CU101: 0.007562788261 | CV101: 0.007562788261 | CW101: 0.007562788261
C102: MDA Raw Water 100 kW Solar PV Pilot | D102: 0 | E102: Water | F102: Growth | G102: Pipelines/network | H102: Significant Projects | J102: Straight line | K102: 2018-19 | L102: 45 | M102: 22.22222222 | O102: 0.18 | P102: 0 | Q102: 0 | R102: 0 | S102: 0 | T102: 0 | U102: 0 | V102: 0 | W102: 0 | X102: 0 | AV102: 0.18 | AW102: 0 | AX102: 0 | AY102: 0 | AZ102: 0 | BA102: 0 | BB102: 0 | BC102: 0 | BD102: 0 | BE102: 0 | BG102: 0.002 | BH102: 0.004 | BI102: 0.004 | BJ102: 0.004 | BK102: 0.004 | BL102: 0.004 | BM102: 0.004 | BN102: 0.004 | BO102: 0.004 | BP102: 0.004 | BR102: =+IF($K102="Ongoing",AV102,IF(RIGHT($K102,2)=RIGHT(BR$39,2),SUM($AV102:AV102),0)+IF(RIGHT(BR$39,2)>RIGHT($K102,2),AV102,0)) -> 0.18 | BS102: =+IF($K102="Ongoing",AW102,IF(RIGHT($K102,2)=RIGHT(BS$39,2),SUM($AV102:AW102),0)+IF(RIGHT(BS$39,2)>RIGHT($K102,2),AW102,0)) -> 0 | BT102: =+IF($K102="Ongoing",AX102,IF(RIGHT($K102,2)=RIGHT(BT$39,2),SUM($AV102:AX102),0)+IF(RIGHT(BT$39,2)>RIGHT($K102,2),AX102,0)) -> 0 | BU102: =+IF($K102="Ongoing",AY102,IF(RIGHT($K102,2)=RIGHT(BU$39,2),SUM($AV102:AY102),0)+IF(RIGHT(BU$39,2)>RIGHT($K102,2),AY102,0)) -> 0 | BV102: =+IF($K102="Ongoing",AZ102,IF(RIGHT($K102,2)=RIGHT(BV$39,2),SUM($AV102:AZ102),0)+IF(RIGHT(BV$39,2)>RIGHT($K102,2),AZ102,0)) -> 0 | BW102: =+IF($K102="Ongoing",BA102,IF(RIGHT($K102,2)=RIGHT(BW$39,2),SUM($AV102:BA102),0)+IF(RIGHT(BW$39,2)>RIGHT($K102,2),BA102,0)) -> 0 | BX102: =+IF($K102="Ongoing",BB102,IF(RIGHT($K102,2)=RIGHT(BX$39,2),SUM($AV102:BB102),0)+IF(RIGHT(BX$39,2)>RIGHT($K102,2),BB102,0)) -> 0 | BY102: =+IF($K102="Ongoing",BC102,IF(RIGHT($K102,2)=RIGHT(BY$39,2),SUM($AV102:BC102),0)+IF(RIGHT(BY$39,2)>RIGHT($K102,2),BC102,0)) -> 0 | BZ102: =+IF($K102="Ongoing",BD102,IF(RIGHT($K102,2)=RIGHT(BZ$39,2),SUM($AV102:BD102),0)+IF(RIGHT(BZ$39,2)>RIGHT($K102,2),BD102,0)) -> 0 | CA102: =+IF($K102="Ongoing",BE102,IF(RIGHT($K102,2)=RIGHT(CA$39,2),SUM($AV102:BE102),0)+IF(RIGHT(CA$39,2)>RIGHT($K102,2),BE102,0)) -> 0 | CC102: =+O102*KeyAssumptionsPriceControl_FO!X$15 -> 0.18414 | CD102: =+P102*KeyAssumptionsPriceControl_FO!Y$15 -> 0 | CE102: =+Q102*KeyAssumptionsPriceControl_FO!Z$15 -> 0 | CF102: =+R102*KeyAssumptionsPriceControl_FO!AA$15 -> 0 | CG102: =+S102*KeyAssumptionsPriceControl_FO!AB$15 -> 0 | CH102: =+T102*KeyAssumptionsPriceControl_FO!AC$15 -> 0 | CI102: =+U102*KeyAssumptionsPriceControl_FO!AD$15 -> 0 | CJ102: =+V102*KeyAssumptionsPriceControl_FO!AE$15 -> 0 | CK102: =+W102*KeyAssumptionsPriceControl_FO!AF$15 -> 0 | CL102: =+X102*KeyAssumptionsPriceControl_FO!AG$15 -> 0 | CN102: 0.00414315 | CO102: 0.0082863 | CP102: 0.0082863 | CQ102: 0.0082863 | CR102: 0.0082863 | CS102: 0.0082863 | CT102: 0.0082863 | CU102: 0.0082863 | CV102: 0.0082863 | CW102: 0.0082863
C103: RC - Red Cliffs Raw Water Pumping Station Extend Suctions | D103: 0 | E103: Water | F103: Growth | G103: Pipelines/network | H103: Significant Projects | J103: Straight line | K103: 2024-25 | L103: 45 | M103: 22.22222222 | O103: 0 | P103: 0 | Q103: 0 | R103: 0 | S103: 0 | T103: 0 | U103: 1 | V103: 0 | W103: 0 | X103: 0 | AV103: 0 | AW103: 0 | AX103: 0 | AY103: 0 | AZ103: 0 | BA103: 0 | BB103: 1 | BC103: 0 | BD103: 0 | BE103: 0 | BG103: 0 | BH103: 0 | BI103: 0 | BJ103: 0 | BK103: 0 | BL103: 0 | BM103: 0.01111111111 | BN103: 0.02222222222 | BO103: 0.02222222222 | BP103: 0.02222222222 | BR103: =+IF($K103="Ongoing",AV103,IF(RIGHT($K103,2)=RIGHT(BR$39,2),SUM($AV103:AV103),0)+IF(RIGHT(BR$39,2)>RIGHT($K103,2),AV103,0)) -> 0 | BS103: =+IF($K103="Ongoing",AW103,IF(RIGHT($K103,2)=RIGHT(BS$39,2),SUM($AV103:AW103),0)+IF(RIGHT(BS$39,2)>RIGHT($K103,2),AW103,0)) -> 0 | BT103: =+IF($K103="Ongoing",AX103,IF(RIGHT($K103,2)=RIGHT(BT$39,2),SUM($AV103:AX103),0)+IF(RIGHT(BT$39,2)>RIGHT($K103,2),AX103,0)) -> 0 | BU103: =+IF($K103="Ongoing",AY103,IF(RIGHT($K103,2)=RIGHT(BU$39,2),SUM($AV103:AY103),0)+IF(RIGHT(BU$39,2)>RIGHT($K103,2),AY103,0)) -> 0 | BV103: =+IF($K103="Ongoing",AZ103,IF(RIGHT($K103,2)=RIGHT(BV$39,2),SUM($AV103:AZ103),0)+IF(RIGHT(BV$39,2)>RIGHT($K103,2),AZ103,0)) -> 0 | BW103: =+IF($K103="Ongoing",BA103,IF(RIGHT($K103,2)=RIGHT(BW$39,2),SUM($AV103:BA103),0)+IF(RIGHT(BW$39,2)>RIGHT($K103,2),BA103,0)) -> 0 | BX103: =+IF($K103="Ongoing",BB103,IF(RIGHT($K103,2)=RIGHT(BX$39,2),SUM($AV103:BB103),0)+IF(RIGHT(BX$39,2)>RIGHT($K103,2),BB103,0)) -> 1 | BY103: =+IF($K103="Ongoing",BC103,IF(RIGHT($K103,2)=RIGHT(BY$39,2),SUM($AV103:BC103),0)+IF(RIGHT(BY$39,2)>RIGHT($K103,2),BC103,0)) -> 0 | BZ103: =+IF($K103="Ongoing",BD103,IF(RIGHT($K103,2)=RIGHT(BZ$39,2),SUM($AV103:BD103),0)+IF(RIGHT(BZ$39,2)>RIGHT($K103,2),BD103,0)) -> 0 | CA103: =+IF($K103="Ongoing",BE103,IF(RIGHT($K103,2)=RIGHT(CA$39,2),SUM($AV103:BE103),0)+IF(RIGHT(CA$39,2)>RIGHT($K103,2),BE103,0)) -> 0 | CC103: =+O103*KeyAssumptionsPriceControl_FO!X$15 -> 0 | CD103: =+P103*KeyAssumptionsPriceControl_FO!Y$15 -> 0 | CE103: =+Q103*KeyAssumptionsPriceControl_FO!Z$15 -> 0 | CF103: =+R103*KeyAssumptionsPriceControl_FO!AA$15 -> 0 | CG103: =+S103*KeyAssumptionsPriceControl_FO!AB$15 -> 0 | CH103: =+T103*KeyAssumptionsPriceControl_FO!AC$15 -> 0 | CI103: =+U103*KeyAssumptionsPriceControl_FO!AD$15 -> 1.172544776 | CJ103: =+V103*KeyAssumptionsPriceControl_FO!AE$15 -> 0 | CK103: =+W103*KeyAssumptionsPriceControl_FO!AF$15 -> 0 | CL103: =+X103*KeyAssumptionsPriceControl_FO!AG$15 -> 0 | CN103: 0 | CO103: 0 | CP103: 0 | CQ103: 0 | CR103: 0 | CS103: 0 | CT103: 0.02638225745 | CU103: 0.0527645149 | CV103: 0.0527645149 | CW103: 0.0527645149
C104: S/H Refurbish RWPS | D104: 0 | E104: Water | F104: Renewals | G104: Pipelines/network | H104: Significant Projects | J104: Straight line | K104: 2008-9 | L104: 45 | M104: 22.22222222 | O104: 0 | P104: 0 | Q104: 0 | R104: 0 | S104: 0 | T104: 0 | U104: 0 | V104: 0 | W104: 0 | X104: 0 | AV104: 0 | AW104: 0 | AX104: 0 | AY104: 0 | AZ104: 0 | BA104: 0 | BB104: 0 | BC104: 0 | BD104: 0 | BE104: 0 | BG104: 0 | BH104: 0 | BI104: 0 | BJ104: 0 | BK104: 0 | BL104: 0 | BM104: 0 | BN104: 0 | BO104: 0 | BP104: 0 | BR104: =+IF($K104="Ongoing",AV104,IF(RIGHT($K104,2)=RIGHT(BR$39,2),SUM($AV104:AV104),0)+IF(RIGHT(BR$39,2)>RIGHT($K104,2),AV104,0)) -> 0 | BS104: =+IF($K104="Ongoing",AW104,IF(RIGHT($K104,2)=RIGHT(BS$39,2),SUM($AV104:AW104),0)+IF(RIGHT(BS$39,2)>RIGHT($K104,2),AW104,0)) -> 0 | BT104: =+IF($K104="Ongoing",AX104,IF(RIGHT($K104,2)=RIGHT(BT$39,2),SUM($AV104:AX104),0)+IF(RIGHT(BT$39,2)>RIGHT($K104,2),AX104,0)) -> 0 | BU104: =+IF($K104="Ongoing",AY104,IF(RIGHT($K104,2)=RIGHT(BU$39,2),SUM($AV104:AY104),0)+IF(RIGHT(BU$39,2)>RIGHT($K104,2),AY104,0)) -> 0 | BV104: =+IF($K104="Ongoing",AZ104,IF(RIGHT($K104,2)=RIGHT(BV$39,2),SUM($AV104:AZ104),0)+IF(RIGHT(BV$39,2)>RIGHT($K104,2),AZ104,0)) -> 0 | BW104: =+IF($K104="Ongoing",BA104,IF(RIGHT($K104,2)=RIGHT(BW$39,2),SUM($AV104:BA104),0)+IF(RIGHT(BW$39,2)>RIGHT($K104,2),BA104,0)) -> 0 | BX104: =+IF($K104="Ongoing",BB104,IF(RIGHT($K104,2)=RIGHT(BX$39,2),SUM($AV104:BB104),0)+IF(RIGHT(BX$39,2)>RIGHT($K104,2),BB104,0)) -> 0 | BY104: =+IF($K104="Ongoing",BC104,IF(RIGHT($K104,2)=RIGHT(BY$39,2),SUM($AV104:BC104),0)+IF(RIGHT(BY$39,2)>RIGHT($K104,2),BC104,0)) -> 0 | BZ104: =+IF($K104="Ongoing",BD104,IF(RIGHT($K104,2)=RIGHT(BZ$39,2),SUM($AV104:BD104),0)+IF(RIGHT(BZ$39,2)>RIGHT($K104,2),BD104,0)) -> 0 | CA104: =+IF($K104="Ongoing",BE104,IF(RIGHT($K104,2)=RIGHT(CA$39,2),SUM($AV104:BE104),0)+IF(RIGHT(CA$39,2)>RIGHT($K104,2),BE104,0)) -> 0 | CC104: =+O104*KeyAssumptionsPriceControl_FO!X$15 -> 0 | CD104: =+P104*KeyAssumptionsPriceControl_FO!Y$15 -> 0 | CE104: =+Q104*KeyAssumptionsPriceControl_FO!Z$15 -> 0 | CF104: =+R104*KeyAssumptionsPriceControl_FO!AA$15 -> 0 | CG104: =+S104*KeyAssumptionsPriceControl_FO!AB$15 -> 0 | CH104: =+T104*KeyAssumptionsPriceControl_FO!AC$15 -> 0 | CI104: =+U104*KeyAssumptionsPriceControl_FO!AD$15 -> 0 | CJ104: =+V104*KeyAssumptionsPriceControl_FO!AE$15 -> 0 | CK104: =+W104*KeyAssumptionsPriceControl_FO!AF$15 -> 0 | CL104: =+X104*KeyAssumptionsPriceControl_FO!AG$15 -> 0 | CN104: 0 | CO104: 0 | CP104: 0 | CQ104: 0 | CR104: 0 | CS104: 0 | CT104: 0 | CU104: 0 | CV104: 0 | CW104: 0
C105: SH - Swan Hill Western Relift Replace 2 No. VSDs | D105: 0 | E105: Water | F105: Renewals | G105: Pipelines/network | H105: Significant Projects | J105: Straight line | K105: 0 | L105: 45 | M105: 22.22222222 | O105: 0 | P105: 0 | Q105: 0 | R105: 0 | S105: 0 | T105: 0 | U105: 0 | V105: 0 | W105: 0 | X105: 0 | AV105: 0 | AW105: 0 | AX105: 0 | AY105: 0 | AZ105: 0 | BA105: 0 | BB105: 0 | BC105: 0 | BD105: 0 | BE105: 0 | BG105: 0 | BH105: 0 | BI105: 0 | BJ105: 0 | BK105: 0 | BL105: 0 | BM105: 0 | BN105: 0 | BO105: 0 | BP105: 0 | BR105: =+IF($K105="Ongoing",AV105,IF(RIGHT($K105,2)=RIGHT(BR$39,2),SUM($AV105:AV105),0)+IF(RIGHT(BR$39,2)>RIGHT($K105,2),AV105,0)) -> 0 | BS105: =+IF($K105="Ongoing",AW105,IF(RIGHT($K105,2)=RIGHT(BS$39,2),SUM($AV105:AW105),0)+IF(RIGHT(BS$39,2)>RIGHT($K105,2),AW105,0)) -> 0 | BT105: =+IF($K105="Ongoing",AX105,IF(RIGHT($K105,2)=RIGHT(BT$39,2),SUM($AV105:AX105),0)+IF(RIGHT(BT$39,2)>RIGHT($K105,2),AX105,0)) -> 0 | BU105: =+IF($K105="Ongoing",AY105,IF(RIGHT($K105,2)=RIGHT(BU$39,2),SUM($AV105:AY105),0)+IF(RIGHT(BU$39,2)>RIGHT($K105,2),AY105,0)) -> 0 | BV105: =+IF($K105="Ongoing",AZ105,IF(RIGHT($K105,2)=RIGHT(BV$39,2),SUM($AV105:AZ105),0)+IF(RIGHT(BV$39,2)>RIGHT($K105,2),AZ105,0)) -> 0 | BW105: =+IF($K105="Ongoing",BA105,IF(RIGHT($K105,2)=RIGHT(BW$39,2),SUM($AV105:BA105),0)+IF(RIGHT(BW$39,2)>RIGHT($K105,2),BA105,0)) -> 0 | BX105: =+IF($K105="Ongoing",BB105,IF(RIGHT($K105,2)=RIGHT(BX$39,2),SUM($AV105:BB105),0)+IF(RIGHT(BX$39,2)>RIGHT($K105,2),BB105,0)) -> 0 | BY105: =+IF($K105="Ongoing",BC105,IF(RIGHT($K105,2)=RIGHT(BY$39,2),SUM($AV105:BC105),0)+IF(RIGHT(BY$39,2)>RIGHT($K105,2),BC105,0)) -> 0 | BZ105: =+IF($K105="Ongoing",BD105,IF(RIGHT($K105,2)=RIGHT(BZ$39,2),SUM($AV105:BD105),0)+IF(RIGHT(BZ$39,2)>RIGHT($K105,2),BD105,0)) -> 0 | CA105: =+IF($K105="Ongoing",BE105,IF(RIGHT($K105,2)=RIGHT(CA$39,2),SUM($AV105:BE105),0)+IF(RIGHT(CA$39,2)>RIGHT($K105,2),BE105,0)) -> 0 | CC105: =+O105*KeyAssumptionsPriceControl_FO!X$15 -> 0 | CD105: =+P105*KeyAssumptionsPriceControl_FO!Y$15 -> 0 | CE105: =+Q105*KeyAssumptionsPriceControl_FO!Z$15 -> 0 | CF105: =+R105*KeyAssumptionsPriceControl_FO!AA$15 -> 0 | CG105: =+S105*KeyAssumptionsPriceControl_FO!AB$15 -> 0 | CH105: =+T105*KeyAssumptionsPriceControl_FO!AC$15 -> 0 | CI105: =+U105*KeyAssumptionsPriceControl_FO!AD$15 -> 0 | CJ105: =+V105*KeyAssumptionsPriceControl_FO!AE$15 -> 0 | CK105: =+W105*KeyAssumptionsPriceControl_FO!AF$15 -> 0 | CL105: =+X105*KeyAssumptionsPriceControl_FO!AG$15 -> 0 | CN105: 0 | CO105: 0 | CP105: 0 | CQ105: 0 | CR105: 0 | CS105: 0 | CT105: 0 | CU105: 0 | CV105: 0 | CW105: 0
C106: MDA Raw Water PS Upgrade Controls | D106: 0 | E106: Water | F106: Growth | G106: Pipelines/network | H106: Significant Projects | J106: Straight line | K106: 2019-20 | L106: 45 | M106: 22.22222222 | O106: 0 | P106: 0.15 | Q106: 0 | R106: 0 | S106: 0 | T106: 0 | U106: 0 | V106: 0 | W106: 0 | X106: 0 | AV106: 0 | AW106: 0.15 | AX106: 0 | AY106: 0 | AZ106: 0 | BA106: 0 | BB106: 0 | BC106: 0 | BD106: 0 | BE106: 0 | BG106: 0 | BH106: 0.001666666667 | BI106: 0.003333333333 | BJ106: 0.003333333333 | BK106: 0.003333333333 | BL106: 0.003333333333 | BM106: 0.003333333333 | BN106: 0.003333333333 | BO106: 0.003333333333 | BP106: 0.003333333333 | BR106: =+IF($K106="Ongoing",AV106,IF(RIGHT($K106,2)=RIGHT(BR$39,2),SUM($AV106:AV106),0)+IF(RIGHT(BR$39,2)>RIGHT($K106,2),AV106,0)) -> 0 | BS106: =+IF($K106="Ongoing",AW106,IF(RIGHT($K106,2)=RIGHT(BS$39,2),SUM($AV106:AW106),0)+IF(RIGHT(BS$39,2)>RIGHT($K106,2),AW106,0)) -> 0.15 | BT106: =+IF($K106="Ongoing",AX106,IF(RIGHT($K106,2)=RIGHT(BT$39,2),SUM($AV106:AX106),0)+IF(RIGHT(BT$39,2)>RIGHT($K106,2),AX106,0)) -> 0 | BU106: =+IF($K106="Ongoing",AY106,IF(RIGHT($K106,2)=RIGHT(BU$39,2),SUM($AV106:AY106),0)+IF(RIGHT(BU$39,2)>RIGHT($K106,2),AY106,0)) -> 0 | BV106: =+IF($K106="Ongoing",AZ106,IF(RIGHT($K106,2)=RIGHT(BV$39,2),SUM($AV106:AZ106),0)+IF(RIGHT(BV$39,2)>RIGHT($K106,2),AZ106,0)) -> 0 | BW106: =+IF($K106="Ongoing",BA106,IF(RIGHT($K106,2)=RIGHT(BW$39,2),SUM($AV106:BA106),0)+IF(RIGHT(BW$39,2)>RIGHT($K106,2),BA106,0)) -> 0 | BX106: =+IF($K106="Ongoing",BB106,IF(RIGHT($K106,2)=RIGHT(BX$39,2),SUM($AV106:BB106),0)+IF(RIGHT(BX$39,2)>RIGHT($K106,2),BB106,0)) -> 0 | BY106: =+IF($K106="Ongoing",BC106,IF(RIGHT($K106,2)=RIGHT(BY$39,2),SUM($AV106:BC106),0)+IF(RIGHT(BY$39,2)>RIGHT($K106,2),BC106,0)) -> 0 | BZ106: =+IF($K106="Ongoing",BD106,IF(RIGHT($K106,2)=RIGHT(BZ$39,2),SUM($AV106:BD106),0)+IF(RIGHT(BZ$39,2)>RIGHT($K106,2),BD106,0)) -> 0 | CA106: =+IF($K106="Ongoing",BE106,IF(RIGHT($K106,2)=RIGHT(CA$39,2),SUM($AV106:BE106),0)+IF(RIGHT(CA$39,2)>RIGHT($K106,2),BE106,0)) -> 0 | CC106: =+O106*KeyAssumptionsPriceControl_FO!X$15 -> 0 | CD106: =+P106*KeyAssumptionsPriceControl_FO!Y$15 -> 0.15697935 | CE106: =+Q106*KeyAssumptionsPriceControl_FO!Z$15 -> 0 | CF106: =+R106*KeyAssumptionsPriceControl_FO!AA$15 -> 0 | CG106: =+S106*KeyAssumptionsPriceControl_FO!AB$15 -> 0 | CH106: =+T106*KeyAssumptionsPriceControl_FO!AC$15 -> 0 | CI106: =+U106*KeyAssumptionsPriceControl_FO!AD$15 -> 0 | CJ106: =+V106*KeyAssumptionsPriceControl_FO!AE$15 -> 0 | CK106: =+W106*KeyAssumptionsPriceControl_FO!AF$15 -> 0 | CL106: =+X106*KeyAssumptionsPriceControl_FO!AG$15 -> 0 | CN106: 0 | CO106: 0.003532035375 | CP106: 0.00706407075 | CQ106: 0.00706407075 | CR106: 0.00706407075 | CS106: 0.00706407075 | CT106: 0.00706407075 | CU106: 0.00706407075 | CV106: 0.00706407075 | CW106: 0.00706407075
C107: SH - North WTP Treated Water Pump Station (Stage 2) | D107: 0 | E107: Water | F107: Growth | G107: Pipelines/network | H107: Significant Projects | J107: Straight line | K107: 2025-26 | L107: 45 | M107: 22.22222222 | O107: 0 | P107: 0 | Q107: 0 | R107: 0 | S107: 0 | T107: 0 | U107: 0 | V107: 1.3 | W107: 0 | X107: 0 | AV107: 0 | AW107: 0 | AX107: 0 | AY107: 0 | AZ107: 0 | BA107: 0 | BB107: 0 | BC107: 1.3 | BD107: 0 | BE107: 0 | BG107: =IF($L107=0,0, IF($L107<=0.5,BR107, IF($J107="straight line", IF((LEFT(BG$39,4)*1)-INT($L107)<LEFT($BG$39,4)*1,0,((OFFSET(BR107,0,-INT($L107+0.5),1,1))/$L107)*(IF($L107-INT($L107)>0.5,$L107-0.5-INT($L107),IF($L107-INT($L107)<=0.5,$L107-0.5-INT($L107)+1,0)))) +BR107/$L107*0.5, IF($J107="Declining Balance",-$BG$38,0)))) -> 0 | BH107: 0 | BI107: 0 | BJ107: 0 | BK107: 0 | BL107: 0 | BM107: 0 | BN107: 0.01444444444 | BO107: 0.02888888889 | BP107: 0.02888888889 | BR107: =+IF($K107="Ongoing",AV107,IF(RIGHT($K107,2)=RIGHT(BR$39,2),SUM($AV107:AV107),0)+IF(RIGHT(BR$39,2)>RIGHT($K107,2),AV107,0)) -> 0 | BS107: =+IF($K107="Ongoing",AW107,IF(RIGHT($K107,2)=RIGHT(BS$39,2),SUM($AV107:AW107),0)+IF(RIGHT(BS$39,2)>RIGHT($K107,2),AW107,0)) -> 0 | BT107: =+IF($K107="Ongoing",AX107,IF(RIGHT($K107,2)=RIGHT(BT$39,2),SUM($AV107:AX107),0)+IF(RIGHT(BT$39,2)>RIGHT($K107,2),AX107,0)) -> 0 | BU107: =+IF($K107="Ongoing",AY107,IF(RIGHT($K107,2)=RIGHT(BU$39,2),SUM($AV107:AY107),0)+IF(RIGHT(BU$39,2)>RIGHT($K107,2),AY107,0)) -> 0 | BV107: =+IF($K107="Ongoing",AZ107,IF(RIGHT($K107,2)=RIGHT(BV$39,2),SUM($AV107:AZ107),0)+IF(RIGHT(BV$39,2)>RIGHT($K107,2),AZ107,0)) -> 0 | BW107: =+IF($K107="Ongoing",BA107,IF(RIGHT($K107,2)=RIGHT(BW$39,2),SUM($AV107:BA107),0)+IF(RIGHT(BW$39,2)>RIGHT($K107,2),BA107,0)) -> 0 | BX107: =+IF($K107="Ongoing",BB107,IF(RIGHT($K107,2)=RIGHT(BX$39,2),SUM($AV107:BB107),0)+IF(RIGHT(BX$39,2)>RIGHT($K107,2),BB107,0)) -> 0 | BY107: =+IF($K107="Ongoing",BC107,IF(RIGHT($K107,2)=RIGHT(BY$39,2),SUM($AV107:BC107),0)+IF(RIGHT(BY$39,2)>RIGHT($K107,2),BC107,0)) -> 1.3 | BZ107: =+IF($K107="Ongoing",BD107,IF(RIGHT($K107,2)=RIGHT(BZ$39,2),SUM($AV107:BD107),0)+IF(RIGHT(BZ$39,2)>RIGHT($K107,2),BD107,0)) -> 0 | CA107: =+IF($K107="Ongoing",BE107,IF(RIGHT($K107,2)=RIGHT(CA$39,2),SUM($AV107:BE107),0)+IF(RIGHT(CA$39,2)>RIGHT($K107,2),BE107,0)) -> 0 | CC107: =+O107*KeyAssumptionsPriceControl_FO!X$15 -> 0 | CD107: =+P107*KeyAssumptionsPriceControl_FO!Y$15 -> 0 | CE107: =+Q107*KeyAssumptionsPriceControl_FO!Z$15 -> 0 | CF107: =+R107*KeyAssumptionsPriceControl_FO!AA$15 -> 0 | CG107: =+S107*KeyAssumptionsPriceControl_FO!AB$15 -> 0 | CH107: =+T107*KeyAssumptionsPriceControl_FO!AC$15 -> 0 | CI107: =+U107*KeyAssumptionsPriceControl_FO!AD$15 -> 0 | CJ107: =+V107*KeyAssumptionsPriceControl_FO!AE$15 -> 1.559367297 | CK107: =+W107*KeyAssumptionsPriceControl_FO!AF$15 -> 0 | CL107: =+X107*KeyAssumptionsPriceControl_FO!AG$15 -> 0 | CN107: =IF($M107=0,0, IF($M107<=0.5,CC107, IF($J107="straight line", IF((LEFT(CN$39,4)*1)-INT($M107)<LEFT($CN$39,4)*1,0,((OFFSET(CC107,0,-INT($M107+0.5),1,1))/$M107)*(IF($M107-INT($M107)>0.5,$M107-0.5-INT($M107),IF($M107-INT($M107)<=0.5,$M107-0.5-INT($M107)+1,0)))) +CC107/$M107*0.5, IF($J107="Declining Balance",-$CN$38,0)))) -> 0 | CO107: 0 | CP107: 0 | CQ107: 0 | CR107: 0 | CS107: 0 | CT107: 0 | CU107: 0.03508576419 | CV107: 0.07017152837 | CW107: 0.07017152837
C108: RC - Treated Water PS Refurbishment | D108: 0 | E108: Water | F108: Growth | G108: Pipelines/network | H108: Significant Projects | J108: Straight line | K108: 2021-22 | L108: 45 | M108: 22.22222222 | O108: 0 | P108: 0 | Q108: 0 | R108: 0.2 | S108: 0 | T108: 0 | U108: 0 | V108: 0 | W108: 0 | X108: 0 | AV108: 0 | AW108: 0 | AX108: 0 | AY108: 0.2 | AZ108: 0 | BA108: 0 | BB108: 0 | BC108: 0 | BD108: 0 | BE108: 0 | BG108: 0 | BH108: 0 | BI108: 0 | BJ108: 0.002222222222 | BK108: 0.004444444444 | BL108: 0.004444444444 | BM108: 0.004444444444 | BN108: 0.004444444444 | BO108: 0.004444444444 | BP108: 0.004444444444 | BR108: =+IF($K108="Ongoing",AV108,IF(RIGHT($K108,2)=RIGHT(BR$39,2),SUM($AV108:AV108),0)+IF(RIGHT(BR$39,2)>RIGHT($K108,2),AV108,0)) -> 0 | BS108: =+IF($K108="Ongoing",AW108,IF(RIGHT($K108,2)=RIGHT(BS$39,2),SUM($AV108:AW108),0)+IF(RIGHT(BS$39,2)>RIGHT($K108,2),AW108,0)) -> 0 | BT108: =+IF($K108="Ongoing",AX108,IF(RIGHT($K108,2)=RIGHT(BT$39,2),SUM($AV108:AX108),0)+IF(RIGHT(BT$39,2)>RIGHT($K108,2),AX108,0)) -> 0 | BU108: =+IF($K108="Ongoing",AY108,IF(RIGHT($K108,2)=RIGHT(BU$39,2),SUM($AV108:AY108),0)+IF(RIGHT(BU$39,2)>RIGHT($K108,2),AY108,0)) -> 0.2 | BV108: =+IF($K108="Ongoing",AZ108,IF(RIGHT($K108,2)=RIGHT(BV$39,2),SUM($AV108:AZ108),0)+IF(RIGHT(BV$39,2)>RIGHT($K108,2),AZ108,0)) -> 0 | BW108: =+IF($K108="Ongoing",BA108,IF(RIGHT($K108,2)=RIGHT(BW$39,2),SUM($AV108:BA108),0)+IF(RIGHT(BW$39,2)>RIGHT($K108,2),BA108,0)) -> 0 | BX108: =+IF($K108="Ongoing",BB108,IF(RIGHT($K108,2)=RIGHT(BX$39,2),SUM($AV108:BB108),0)+IF(RIGHT(BX$39,2)>RIGHT($K108,2),BB108,0)) -> 0 | BY108: =+IF($K108="Ongoing",BC108,IF(RIGHT($K108,2)=RIGHT(BY$39,2),SUM($AV108:BC108),0)+IF(RIGHT(BY$39,2)>RIGHT($K108,2),BC108,0)) -> 0 | BZ108: =+IF($K108="Ongoing",BD108,IF(RIGHT($K108,2)=RIGHT(BZ$39,2),SUM($AV108:BD108),0)+IF(RIGHT(BZ$39,2)>RIGHT($K108,2),BD108,0)) -> 0 | CA108: =+IF($K108="Ongoing",BE108,IF(RIGHT($K108,2)=RIGHT(CA$39,2),SUM($AV108:BE108),0)+IF(RIGHT(CA$39,2)>RIGHT($K108,2),BE108,0)) -> 0 | CC108: =+O108*KeyAssumptionsPriceControl_FO!X$15 -> 0 | CD108: =+P108*KeyAssumptionsPriceControl_FO!Y$15 -> 0 | CE108: =+Q108*KeyAssumptionsPriceControl_FO!Z$15 -> 0 | CF108: =+R108*KeyAssumptionsPriceControl_FO!AA$15 -> 0.2190445896 | CG108: =+S108*KeyAssumptionsPriceControl_FO!AB$15 -> 0 | CH108: =+T108*KeyAssumptionsPriceControl_FO!AC$15 -> 0 | CI108: =+U108*KeyAssumptionsPriceControl_FO!AD$15 -> 0 | CJ108: =+V108*KeyAssumptionsPriceControl_FO!AE$15 -> 0 | CK108: =+W108*KeyAssumptionsPriceControl_FO!AF$15 -> 0 | CL108: =+X108*KeyAssumptionsPriceControl_FO!AG$15 -> 0 | CN108: 0 | CO108: 0 | CP108: 0 | CQ108: 0.004928503265 | CR108: 0.009857006531 | CS108: 0.009857006531 | CT108: 0.009857006531 | CU108: 0.009857006531 | CV108: 0.009857006531 | CW108: 0.009857006531
C109: LB - Lake Boga Booster Pump Station | D109: 0 | E109: Water | F109: Renewals | G109: Treatment | H109: Significant Projects | J109: Straight line | K109: 2023-24 | L109: 45 | M109: 22.22222222 | O109: 0 | P109: 0 | Q109: 0 | R109: 0 | S109: 0 | T109: 0.45 | U109: 0 | V109: 0 | W109: 0 | X109: 0 | AV109: 0 | AW109: 0 | AX109: 0 | AY109: 0 | AZ109: 0 | BA109: 0.45 | BB109: 0 | BC109: 0 | BD109: 0 | BE109: 0 | BG109: 0 | BH109: 0 | BI109: 0 | BJ109: 0 | BK109: 0 | BL109: 0.005 | BM109: 0.01 | BN109: 0.01 | BO109: 0.01 | BP109: 0.01 | BR109: =+IF($K109="Ongoing",AV109,IF(RIGHT($K109,2)=RIGHT(BR$39,2),SUM($AV109:AV109),0)+IF(RIGHT(BR$39,2)>RIGHT($K109,2),AV109,0)) -> 0 | BS109: =+IF($K109="Ongoing",AW109,IF(RIGHT($K109,2)=RIGHT(BS$39,2),SUM($AV109:AW109),0)+IF(RIGHT(BS$39,2)>RIGHT($K109,2),AW109,0)) -> 0 | BT109: =+IF($K109="Ongoing",AX109,IF(RIGHT($K109,2)=RIGHT(BT$39,2),SUM($AV109:AX109),0)+IF(RIGHT(BT$39,2)>RIGHT($K109,2),AX109,0)) -> 0 | BU109: =+IF($K109="Ongoing",AY109,IF(RIGHT($K109,2)=RIGHT(BU$39,2),SUM($AV109:AY109),0)+IF(RIGHT(BU$39,2)>RIGHT($K109,2),AY109,0)) -> 0 | BV109: =+IF($K109="Ongoing",AZ109,IF(RIGHT($K109,2)=RIGHT(BV$39,2),SUM($AV109:AZ109),0)+IF(RIGHT(BV$39,2)>RIGHT($K109,2),AZ109,0)) -> 0 | BW109: =+IF($K109="Ongoing",BA109,IF(RIGHT($K109,2)=RIGHT(BW$39,2),SUM($AV109:BA109),0)+IF(RIGHT(BW$39,2)>RIGHT($K109,2),BA109,0)) -> 0.45 | BX109: =+IF($K109="Ongoing",BB109,IF(RIGHT($K109,2)=RIGHT(BX$39,2),SUM($AV109:BB109),0)+IF(RIGHT(BX$39,2)>RIGHT($K109,2),BB109,0)) -> 0 | BY109: =+IF($K109="Ongoing",BC109,IF(RIGHT($K109,2)=RIGHT(BY$39,2),SUM($AV109:BC109),0)+IF(RIGHT(BY$39,2)>RIGHT($K109,2),BC109,0)) -> 0 | BZ109: =+IF($K109="Ongoing",BD109,IF(RIGHT($K109,2)=RIGHT(BZ$39,2),SUM($AV109:BD109),0)+IF(RIGHT(BZ$39,2)>RIGHT($K109,2),BD109,0)) -> 0 | CA109: =+IF($K109="Ongoing",BE109,IF(RIGHT($K109,2)=RIGHT(CA$39,2),SUM($AV109:BE109),0)+IF(RIGHT(CA$39,2)>RIGHT($K109,2),BE109,0)) -> 0 | CC109: =+O109*KeyAssumptionsPriceControl_FO!X$15 -> 0 | CD109: =+P109*KeyAssumptionsPriceControl_FO!Y$15 -> 0 | CE109: =+Q109*KeyAssumptionsPriceControl_FO!Z$15 -> 0 | CF109: =+R109*KeyAssumptionsPriceControl_FO!AA$15 -> 0 | CG109: =+S109*KeyAssumptionsPriceControl_FO!AB$15 -> 0 | CH109: =+T109*KeyAssumptionsPriceControl_FO!AC$15 -> 0.5157821594 | CI109: =+U109*KeyAssumptionsPriceControl_FO!AD$15 -> 0 | CJ109: =+V109*KeyAssumptionsPriceControl_FO!AE$15 -> 0 | CK109: =+W109*KeyAssumptionsPriceControl_FO!AF$15 -> 0 | CL109: =+X109*KeyAssumptionsPriceControl_FO!AG$15 -> 0 | CN109: 0 | CO109: 0 | CP109: 0 | CQ109: 0 | CR109: 0 | CS109: 0.01160509859 | CT109: 0.02321019717 | CU109: 0.02321019717 | CV109: 0.02321019717 | CW109: 0.02321019717
C110: SH - Swan Hill Treatment Water Pumping Station | D110: 0 | E110: Water | F110: Renewals | G110: Pipelines/network | H110: Significant Projects | J110: Straight line | K110: 0 | L110: 45 | M110: 22.22222222 | O110: 0 | P110: 0 | Q110: 0 | R110: 0 | S110: 0 | T110: 0 | U110: 0 | V110: 0 | W110: 0 | X110: 0 | AV110: 0 | AW110: 0 | AX110: 0 | AY110: 0 | AZ110: =+S110-AD110-AO110 -> 0 | BA110: 0 | BB110: 0 | BC110: 0 | BD110: 0 | BE110: 0 | BG110: 0 | BH110: 0 | BI110: 0 | BJ110: 0 | BK110: 0 | BL110: 0 | BM110: 0 | BN110: 0 | BO110: 0 | BP110: 0 | BR110: =+IF($K110="Ongoing",AV110,IF(RIGHT($K110,2)=RIGHT(BR$39,2),SUM($AV110:AV110),0)+IF(RIGHT(BR$39,2)>RIGHT($K110,2),AV110,0)) -> 0 | BS110: =+IF($K110="Ongoing",AW110,IF(RIGHT($K110,2)=RIGHT(BS$39,2),SUM($AV110:AW110),0)+IF(RIGHT(BS$39,2)>RIGHT($K110,2),AW110,0)) -> 0 | BT110: =+IF($K110="Ongoing",AX110,IF(RIGHT($K110,2)=RIGHT(BT$39,2),SUM($AV110:AX110),0)+IF(RIGHT(BT$39,2)>RIGHT($K110,2),AX110,0)) -> 0 | BU110: =+IF($K110="Ongoing",AY110,IF(RIGHT($K110,2)=RIGHT(BU$39,2),SUM($AV110:AY110),0)+IF(RIGHT(BU$39,2)>RIGHT($K110,2),AY110,0)) -> 0 | BV110: =+IF($K110="Ongoing",AZ110,IF(RIGHT($K110,2)=RIGHT(BV$39,2),SUM($AV110:AZ110),0)+IF(RIGHT(BV$39,2)>RIGHT($K110,2),AZ110,0)) -> 0 | BW110: =+IF($K110="Ongoing",BA110,IF(RIGHT($K110,2)=RIGHT(BW$39,2),SUM($AV110:BA110),0)+IF(RIGHT(BW$39,2)>RIGHT($K110,2),BA110,0)) -> 0 | BX110: =+IF($K110="Ongoing",BB110,IF(RIGHT($K110,2)=RIGHT(BX$39,2),SUM($AV110:BB110),0)+IF(RIGHT(BX$39,2)>RIGHT($K110,2),BB110,0)) -> 0 | BY110: =+IF($K110="Ongoing",BC110,IF(RIGHT($K110,2)=RIGHT(BY$39,2),SUM($AV110:BC110),0)+IF(RIGHT(BY$39,2)>RIGHT($K110,2),BC110,0)) -> 0 | BZ110: =+IF($K110="Ongoing",BD110,IF(RIGHT($K110,2)=RIGHT(BZ$39,2),SUM($AV110:BD110),0)+IF(RIGHT(BZ$39,2)>RIGHT($K110,2),BD110,0)) -> 0 | CA110: =+IF($K110="Ongoing",BE110,IF(RIGHT($K110,2)=RIGHT(CA$39,2),SUM($AV110:BE110),0)+IF(RIGHT(CA$39,2)>RIGHT($K110,2),BE110,0)) -> 0 | CC110: =+O110*KeyAssumptionsPriceControl_FO!X$15 -> 0 | CD110: =+P110*KeyAssumptionsPriceControl_FO!Y$15 -> 0 | CE110: =+Q110*KeyAssumptionsPriceControl_FO!Z$15 -> 0 | CF110: =+R110*KeyAssumptionsPriceControl_FO!AA$15 -> 0 | CG110: =+S110*KeyAssumptionsPriceControl_FO!AB$15 -> 0 | CH110: =+T110*KeyAssumptionsPriceControl_FO!AC$15 -> 0 | CI110: =+U110*KeyAssumptionsPriceControl_FO!AD$15 -> 0 | CJ110: =+V110*KeyAssumptionsPriceControl_FO!AE$15 -> 0 | CK110: =+W110*KeyAssumptionsPriceControl_FO!AF$15 -> 0 | CL110: =+X110*KeyAssumptionsPriceControl_FO!AG$15 -> 0 | CN110: 0 | CO110: 0 | CP110: 0 | CQ110: 0 | CR110: 0 | CS110: 0 | CT110: 0 | CU110: 0 | CV110: 0 | CW110: 0
C111: S/H Nyah Relift PS Replace VSDs & Scada Upgrade | D111: 0 | E111: Water | F111: Renewals | G111: Pipelines/network | H111: Significant Projects | J111: Straight line | K111: 2018-19 | L111: 45 | M111: 22.22222222 | O111: 0.45 | P111: 0 | Q111: 0 | R111: 0 | S111: 0 | T111: 0 | U111: 0 | V111: 0 | W111: 0 | X111: 0 | AV111: 0.45 | AW111: 0 | AX111: 0 | AY111: 0 | AZ111: 0 | BA111: 0 | BB111: 0 | BC111: 0 | BD111: 0 | BE111: 0 | BG111: 0.005 | BH111: 0.01 | BI111: 0.01 | BJ111: 0.01 | BK111: 0.01 | BL111: 0.01 | BM111: 0.01 | BN111: 0.01 | BO111: 0.01 | BP111: 0.01 | BR111: =+IF($K111="Ongoing",AV111,IF(RIGHT($K111,2)=RIGHT(BR$39,2),SUM($AV111:AV111),0)+IF(RIGHT(BR$39,2)>RIGHT($K111,2),AV111,0)) -> 0.45 | BS111: =+IF($K111="Ongoing",AW111,IF(RIGHT($K111,2)=RIGHT(BS$39,2),SUM($AV111:AW111),0)+IF(RIGHT(BS$39,2)>RIGHT($K111,2),AW111,0)) -> 0 | BT111: =+IF($K111="Ongoing",AX111,IF(RIGHT($K111,2)=RIGHT(BT$39,2),SUM($AV111:AX111),0)+IF(RIGHT(BT$39,2)>RIGHT($K111,2),AX111,0)) -> 0 | BU111: =+IF($K111="Ongoing",AY111,IF(RIGHT($K111,2)=RIGHT(BU$39,2),SUM($AV111:AY111),0)+IF(RIGHT(BU$39,2)>RIGHT($K111,2),AY111,0)) -> 0 | BV111: =+IF($K111="Ongoing",AZ111,IF(RIGHT($K111,2)=RIGHT(BV$39,2),SUM($AV111:AZ111),0)+IF(RIGHT(BV$39,2)>RIGHT($K111,2),AZ111,0)) -> 0 | BW111: =+IF($K111="Ongoing",BA111,IF(RIGHT($K111,2)=RIGHT(BW$39,2),SUM($AV111:BA111),0)+IF(RIGHT(BW$39,2)>RIGHT($K111,2),BA111,0)) -> 0 | BX111: =+IF($K111="Ongoing",BB111,IF(RIGHT($K111,2)=RIGHT(BX$39,2),SUM($AV111:BB111),0)+IF(RIGHT(BX$39,2)>RIGHT($K111,2),BB111,0)) -> 0 | BY111: =+IF($K111="Ongoing",BC111,IF(RIGHT($K111,2)=RIGHT(BY$39,2),SUM($AV111:BC111),0)+IF(RIGHT(BY$39,2)>RIGHT($K111,2),BC111,0)) -> 0 | BZ111: =+IF($K111="Ongoing",BD111,IF(RIGHT($K111,2)=RIGHT(BZ$39,2),SUM($AV111:BD111),0)+IF(RIGHT(BZ$39,2)>RIGHT($K111,2),BD111,0)) -> 0 | CA111: =+IF($K111="Ongoing",BE111,IF(RIGHT($K111,2)=RIGHT(CA$39,2),SUM($AV111:BE111),0)+IF(RIGHT(CA$39,2)>RIGHT($K111,2),BE111,0)) -> 0 | CC111: =+O111*KeyAssumptionsPriceControl_FO!X$15 -> 0.46035 | CD111: =+P111*KeyAssumptionsPriceControl_FO!Y$15 -> 0 | CE111: =+Q111*KeyAssumptionsPriceControl_FO!Z$15 -> 0 | CF111: =+R111*KeyAssumptionsPriceControl_FO!AA$15 -> 0 | CG111: =+S111*KeyAssumptionsPriceControl_FO!AB$15 -> 0 | CH111: =+T111*KeyAssumptionsPriceControl_FO!AC$15 -> 0 | CI111: =+U111*KeyAssumptionsPriceControl_FO!AD$15 -> 0 | CJ111: =+V111*KeyAssumptionsPriceControl_FO!AE$15 -> 0 | CK111: =+W111*KeyAssumptionsPriceControl_FO!AF$15 -> 0 | CL111: =+X111*KeyAssumptionsPriceControl_FO!AG$15 -> 0 | CN111: 0.010357875 | CO111: 0.02071575 | CP111: 0.02071575 | CQ111: 0.02071575 | CR111: 0.02071575 | CS111: 0.02071575 | CT111: 0.02071575 | CU111: 0.02071575 | CV111: 0.02071575 | CW111: 0.02071575
C112: [Capex Item - Significant Project / Capital Program / Other Capex] | AV112: 0 | AW112: 0 | AX112: 0 | AY112: 0 | AZ112: 0 | BA112: 0 | BB112: 0 | BC112: 0 | BD112: 0 | BE112: 0 | BG112: 0 | BH112: 0 | BI112: 0 | BJ112: 0 | BK112: 0 | BL112: 0 | BM112: 0 | BN112: 0 | BO112: 0 | BP112: 0 | BR112: =+IF($K112="Ongoing",AV112,IF(RIGHT($K112,2)=RIGHT(BR$39,2),SUM($AV112:AV112),0)+IF(RIGHT(BR$39,2)>RIGHT($K112,2),AV112,0)) -> 0 | BS112: =+IF($K112="Ongoing",AW112,IF(RIGHT($K112,2)=RIGHT(BS$39,2),SUM($AV112:AW112),0)+IF(RIGHT(BS$39,2)>RIGHT($K112,2),AW112,0)) -> 0 | BT112: =+IF($K112="Ongoing",AX112,IF(RIGHT($K112,2)=RIGHT(BT$39,2),SUM($AV112:AX112),0)+IF(RIGHT(BT$39,2)>RIGHT($K112,2),AX112,0)) -> 0 | BU112: =+IF($K112="Ongoing",AY112,IF(RIGHT($K112,2)=RIGHT(BU$39,2),SUM($AV112:AY112),0)+IF(RIGHT(BU$39,2)>RIGHT($K112,2),AY112,0)) -> 0 | BV112: =+IF($K112="Ongoing",AZ112,IF(RIGHT($K112,2)=RIGHT(BV$39,2),SUM($AV112:AZ112),0)+IF(RIGHT(BV$39,2)>RIGHT($K112,2),AZ112,0)) -> 0 | BW112: =+IF($K112="Ongoing",BA112,IF(RIGHT($K112,2)=RIGHT(BW$39,2),SUM($AV112:BA112),0)+IF(RIGHT(BW$39,2)>RIGHT($K112,2),BA112,0)) -> 0 | BX112: =+IF($K112="Ongoing",BB112,IF(RIGHT($K112,2)=RIGHT(BX$39,2),SUM($AV112:BB112),0)+IF(RIGHT(BX$39,2)>RIGHT($K112,2),BB112,0)) -> 0 | BY112: =+IF($K112="Ongoing",BC112,IF(RIGHT($K112,2)=RIGHT(BY$39,2),SUM($AV112:BC112),0)+IF(RIGHT(BY$39,2)>RIGHT($K112,2),BC112,0)) -> 0 | BZ112: =+IF($K112="Ongoing",BD112,IF(RIGHT($K112,2)=RIGHT(BZ$39,2),SUM($AV112:BD112),0)+IF(RIGHT(BZ$39,2)>RIGHT($K112,2),BD112,0)) -> 0 | CA112: =+IF($K112="Ongoing",BE112,IF(RIGHT($K112,2)=RIGHT(CA$39,2),SUM($AV112:BE112),0)+IF(RIGHT(CA$39,2)>RIGHT($K112,2),BE112,0)) -> 0 | CC112: =+O112*KeyAssumptionsPriceControl_FO!X$15 -> 0 | CD112: =+P112*KeyAssumptionsPriceControl_FO!Y$15 -> 0 | CE112: =+Q112*KeyAssumptionsPriceControl_FO!Z$15 -> 0 | CF112: =+R112*KeyAssumptionsPriceControl_FO!AA$15 -> 0 | CG112: =+S112*KeyAssumptionsPriceControl_FO!AB$15 -> 0 | CH112: =+T112*KeyAssumptionsPriceControl_FO!AC$15 -> 0 | CI112: =+U112*KeyAssumptionsPriceControl_FO!AD$15 -> 0 | CJ112: =+V112*KeyAssumptionsPriceControl_FO!AE$15 -> 0 | CK112: =+W112*KeyAssumptionsPriceControl_FO!AF$15 -> 0 | CL112: =+X112*KeyAssumptionsPriceControl_FO!AG$15 -> 0 | CN112: 0 | CO112: 0 | CP112: 0 | CQ112: 0 | CR112: 0 | CS112: 0 | CT112: 0 | CU112: 0 | CV112: 0 | CW112: 0
C113: MDA - SPS 18 Lindon Close Refurbishment | D113: 0 | E113: Sewerage | F113: Renewals | G113: Pipelines/network | H113: Significant Projects | J113: Straight line | K113: 2019-20 | L113: 45 | M113: 22.22222222 | O113: 0 | P113: 0.22 | Q113: 0 | R113: 0 | S113: 0 | T113: 0 | U113: 0 | V113: 0 | W113: 0 | X113: 0 | AV113: 0 | AW113: 0.22 | AX113: 0 | AY113: 0 | AZ113: 0 | BA113: 0 | BB113: 0 | BC113: 0 | BD113: 0 | BE113: 0 | BG113: 0 | BH113: 0.002444444444 | BI113: 0.004888888889 | BJ113: 0.004888888889 | BK113: 0.004888888889 | BL113: 0.004888888889 | BM113: 0.004888888889 | BN113: 0.004888888889 | BO113: 0.004888888889 | BP113: 0.004888888889 | BR113: =+IF($K113="Ongoing",AV113,IF(RIGHT($K113,2)=RIGHT(BR$39,2),SUM($AV113:AV113),0)+IF(RIGHT(BR$39,2)>RIGHT($K113,2),AV113,0)) -> 0 | BS113: =+IF($K113="Ongoing",AW113,IF(RIGHT($K113,2)=RIGHT(BS$39,2),SUM($AV113:AW113),0)+IF(RIGHT(BS$39,2)>RIGHT($K113,2),AW113,0)) -> 0.22 | BT113: =+IF($K113="Ongoing",AX113,IF(RIGHT($K113,2)=RIGHT(BT$39,2),SUM($AV113:AX113),0)+IF(RIGHT(BT$39,2)>RIGHT($K113,2),AX113,0)) -> 0 | BU113: =+IF($K113="Ongoing",AY113,IF(RIGHT($K113,2)=RIGHT(BU$39,2),SUM($AV113:AY113),0)+IF(RIGHT(BU$39,2)>RIGHT($K113,2),AY113,0)) -> 0 | BV113: =+IF($K113="Ongoing",AZ113,IF(RIGHT($K113,2)=RIGHT(BV$39,2),SUM($AV113:AZ113),0)+IF(RIGHT(BV$39,2)>RIGHT($K113,2),AZ113,0)) -> 0 | BW113: =+IF($K113="Ongoing",BA113,IF(RIGHT($K113,2)=RIGHT(BW$39,2),SUM($AV113:BA113),0)+IF(RIGHT(BW$39,2)>RIGHT($K113,2),BA113,0)) -> 0 | BX113: =+IF($K113="Ongoing",BB113,IF(RIGHT($K113,2)=RIGHT(BX$39,2),SUM($AV113:BB113),0)+IF(RIGHT(BX$39,2)>RIGHT($K113,2),BB113,0)) -> 0 | BY113: =+IF($K113="Ongoing",BC113,IF(RIGHT($K113,2)=RIGHT(BY$39,2),SUM($AV113:BC113),0)+IF(RIGHT(BY$39,2)>RIGHT($K113,2),BC113,0)) -> 0 | BZ113: =+IF($K113="Ongoing",BD113,IF(RIGHT($K113,2)=RIGHT(BZ$39,2),SUM($AV113:BD113),0)+IF(RIGHT(BZ$39,2)>RIGHT($K113,2),BD113,0)) -> 0 | CA113: =+IF($K113="Ongoing",BE113,IF(RIGHT($K113,2)=RIGHT(CA$39,2),SUM($AV113:BE113),0)+IF(RIGHT(CA$39,2)>RIGHT($K113,2),BE113,0)) -> 0 | CC113: =+O113*KeyAssumptionsPriceControl_FO!X$15 -> 0 | CD113: =+P113*KeyAssumptionsPriceControl_FO!Y$15 -> 0.23023638 | CE113: =+Q113*KeyAssumptionsPriceControl_FO!Z$15 -> 0 | CF113: =+R113*KeyAssumptionsPriceControl_FO!AA$15 -> 0 | CG113: =+S113*KeyAssumptionsPriceControl_FO!AB$15 -> 0 | CH113: =+T113*KeyAssumptionsPriceControl_FO!AC$15 -> 0 | CI113: =+U113*KeyAssumptionsPriceControl_FO!AD$15 -> 0 | CJ113: =+V113*KeyAssumptionsPriceControl_FO!AE$15 -> 0 | CK113: =+W113*KeyAssumptionsPriceControl_FO!AF$15 -> 0 | CL113: =+X113*KeyAssumptionsPriceControl_FO!AG$15 -> 0 | CN113: 0 | CO113: 0.00518031855 | CP113: 0.0103606371 | CQ113: 0.0103606371 | CR113: 0.0103606371 | CS113: 0.0103606371 | CT113: 0.0103606371 | CU113: 0.0103606371 | CV113: 0.0103606371 | CW113: 0.0103606371
C114: KER - SPS Switchboard Replacement/Upgrade | D114: 0 | E114: Sewerage | F114: Renewals | G114: Pipelines/network | H114: Significant Projects | J114: Straight line | K114: 2021-22 | L114: 45 | M114: 22.22222222 | O114: 0.05 | P114: 0.05 | Q114: 0.05 | R114: 0.05 | S114: 0 | T114: 0 | U114: 0 | V114: 0 | W114: 0 | X114: 0 | AV114: 0.05 | AW114: 0.05 | AX114: 0.05 | AY114: 0.05 | AZ114: 0 | BA114: 0 | BB114: 0 | BC114: 0 | BD114: 0 | BE114: 0 | BG114: 0 | BH114: 0 | BI114: 0 | BJ114: 0.002222222222 | BK114: 0.004444444444 | BL114: 0.004444444444 | BM114: 0.004444444444 | BN114: 0.004444444444 | BO114: 0.004444444444 | BP114: 0.004444444444 | BR114: =+IF($K114="Ongoing",AV114,IF(RIGHT($K114,2)=RIGHT(BR$39,2),SUM($AV114:AV114),0)+IF(RIGHT(BR$39,2)>RIGHT($K114,2),AV114,0)) -> 0 | BS114: =+IF($K114="Ongoing",AW114,IF(RIGHT($K114,2)=RIGHT(BS$39,2),SUM($AV114:AW114),0)+IF(RIGHT(BS$39,2)>RIGHT($K114,2),AW114,0)) -> 0 | BT114: =+IF($K114="Ongoing",AX114,IF(RIGHT($K114,2)=RIGHT(BT$39,2),SUM($AV114:AX114),0)+IF(RIGHT(BT$39,2)>RIGHT($K114,2),AX114,0)) -> 0 | BU114: =+IF($K114="Ongoing",AY114,IF(RIGHT($K114,2)=RIGHT(BU$39,2),SUM($AV114:AY114),0)+IF(RIGHT(BU$39,2)>RIGHT($K114,2),AY114,0)) -> 0.2 | BV114: =+IF($K114="Ongoing",AZ114,IF(RIGHT($K114,2)=RIGHT(BV$39,2),SUM($AV114:AZ114),0)+IF(RIGHT(BV$39,2)>RIGHT($K114,2),AZ114,0)) -> 0 | BW114: =+IF($K114="Ongoing",BA114,IF(RIGHT($K114,2)=RIGHT(BW$39,2),SUM($AV114:BA114),0)+IF(RIGHT(BW$39,2)>RIGHT($K114,2),BA114,0)) -> 0 | BX114: =+IF($K114="Ongoing",BB114,IF(RIGHT($K114,2)=RIGHT(BX$39,2),SUM($AV114:BB114),0)+IF(RIGHT(BX$39,2)>RIGHT($K114,2),BB114,0)) -> 0 | BY114: =+IF($K114="Ongoing",BC114,IF(RIGHT($K114,2)=RIGHT(BY$39,2),SUM($AV114:BC114),0)+IF(RIGHT(BY$39,2)>RIGHT($K114,2),BC114,0)) -> 0 | BZ114: =+IF($K114="Ongoing",BD114,IF(RIGHT($K114,2)=RIGHT(BZ$39,2),SUM($AV114:BD114),0)+IF(RIGHT(BZ$39,2)>RIGHT($K114,2),BD114,0)) -> 0 | CA114: =+IF($K114="Ongoing",BE114,IF(RIGHT($K114,2)=RIGHT(CA$39,2),SUM($AV114:BE114),0)+IF(RIGHT(CA$39,2)>RIGHT($K114,2),BE114,0)) -> 0 | CC114: =+O114*KeyAssumptionsPriceControl_FO!X$15 -> 0.05115 | CD114: =+P114*KeyAssumptionsPriceControl_FO!Y$15 -> 0.05232645 | CE114: =+Q114*KeyAssumptionsPriceControl_FO!Z$15 -> 0.05352995835 | CF114: =+R114*KeyAssumptionsPriceControl_FO!AA$15 -> 0.05476114739 | CG114: =+S114*KeyAssumptionsPriceControl_FO!AB$15 -> 0 | CH114: =+T114*KeyAssumptionsPriceControl_FO!AC$15 -> 0 | CI114: =+U114*KeyAssumptionsPriceControl_FO!AD$15 -> 0 | CJ114: =+V114*KeyAssumptionsPriceControl_FO!AE$15 -> 0 | CK114: =+W114*KeyAssumptionsPriceControl_FO!AF$15 -> 0 | CL114: =+X114*KeyAssumptionsPriceControl_FO!AG$15 -> 0 | CN114: 0.001150875 | CO114: 0.003479095125 | CP114: 0.005860864313 | CQ114: 0.008297414192 | CR114: 0.009529540008 | CS114: 0.009529540008 | CT114: 0.009529540008 | CU114: 0.009529540008 | CV114: 0.009529540008 | CW114: 0.009529540008
C115: MDA - SPS Lid Replacement Program | D115: 0 | E115: Sewerage | F115: Renewals | G115: Pipelines/network | H115: Significant Projects | J115: Straight line | K115: 2020-21 | L115: 45 | M115: 22.22222222 | O115: 0.1 | P115: 0.05 | Q115: 0.05 | R115: 0 | S115: 0 | T115: 0 | U115: 0 | V115: 0 | W115: 0 | X115: 0 | AV115: 0.1 | AW115: 0.05 | AX115: 0.05 | AY115: 0 | AZ115: 0 | BA115: 0 | BB115: 0 | BC115: 0 | BD115: 0 | BE115: 0 | BG115: 0 | BH115: 0 | BI115: 0.002222222222 | BJ115: 0.004444444444 | BK115: 0.004444444444 | BL115: 0.004444444444 | BM115: 0.004444444444 | BN115: 0.004444444444 | BO115: 0.004444444444 | BP115: 0.004444444444 | BR115: =+IF($K115="Ongoing",AV115,IF(RIGHT($K115,2)=RIGHT(BR$39,2),SUM($AV115:AV115),0)+IF(RIGHT(BR$39,2)>RIGHT($K115,2),AV115,0)) -> 0 | BS115: =+IF($K115="Ongoing",AW115,IF(RIGHT($K115,2)=RIGHT(BS$39,2),SUM($AV115:AW115),0)+IF(RIGHT(BS$39,2)>RIGHT($K115,2),AW115,0)) -> 0 | BT115: =+IF($K115="Ongoing",AX115,IF(RIGHT($K115,2)=RIGHT(BT$39,2),SUM($AV115:AX115),0)+IF(RIGHT(BT$39,2)>RIGHT($K115,2),AX115,0)) -> 0.2 | BU115: =+IF($K115="Ongoing",AY115,IF(RIGHT($K115,2)=RIGHT(BU$39,2),SUM($AV115:AY115),0)+IF(RIGHT(BU$39,2)>RIGHT($K115,2),AY115,0)) -> 0 | BV115: =+IF($K115="Ongoing",AZ115,IF(RIGHT($K115,2)=RIGHT(BV$39,2),SUM($AV115:AZ115),0)+IF(RIGHT(BV$39,2)>RIGHT($K115,2),AZ115,0)) -> 0 | BW115: =+IF($K115="Ongoing",BA115,IF(RIGHT($K115,2)=RIGHT(BW$39,2),SUM($AV115:BA115),0)+IF(RIGHT(BW$39,2)>RIGHT($K115,2),BA115,0)) -> 0 | BX115: =+IF($K115="Ongoing",BB115,IF(RIGHT($K115,2)=RIGHT(BX$39,2),SUM($AV115:BB115),0)+IF(RIGHT(BX$39,2)>RIGHT($K115,2),BB115,0)) -> 0 | BY115: =+IF($K115="Ongoing",BC115,IF(RIGHT($K115,2)=RIGHT(BY$39,2),SUM($AV115:BC115),0)+IF(RIGHT(BY$39,2)>RIGHT($K115,2),BC115,0)) -> 0 | BZ115: =+IF($K115="Ongoing",BD115,IF(RIGHT($K115,2)=RIGHT(BZ$39,2),SUM($AV115:BD115),0)+IF(RIGHT(BZ$39,2)>RIGHT($K115,2),BD115,0)) -> 0 | CA115: =+IF($K115="Ongoing",BE115,IF(RIGHT($K115,2)=RIGHT(CA$39,2),SUM($AV115:BE115),0)+IF(RIGHT(CA$39,2)>RIGHT($K115,2),BE115,0)) -> 0 | CC115: =+O115*KeyAssumptionsPriceControl_FO!X$15 -> 0.1023 | CD115: =+P115*KeyAssumptionsPriceControl_FO!Y$15 -> 0.05232645 | CE115: =+Q115*KeyAssumptionsPriceControl_FO!Z$15 -> 0.05352995835 | CF115: =+R115*KeyAssumptionsPriceControl_FO!AA$15 -> 0 | CG115: =+S115*KeyAssumptionsPriceControl_FO!AB$15 -> 0 | CH115: =+T115*KeyAssumptionsPriceControl_FO!AC$15 -> 0 | CI115: =+U115*KeyAssumptionsPriceControl_FO!AD$15 -> 0 | CJ115: =+V115*KeyAssumptionsPriceControl_FO!AE$15 -> 0 | CK115: =+W115*KeyAssumptionsPriceControl_FO!AF$15 -> 0 | CL115: =+X115*KeyAssumptionsPriceControl_FO!AG$15 -> 0 | CN115: 0.00230175 | CO115: 0.005780845125 | CP115: 0.008162614313 | CQ115: 0.009367038376 | CR115: 0.009367038376 | CS115: 0.009367038376 | CT115: 0.009367038376 | CU115: 0.009367038376 | CV115: 0.009367038376 | CW115: 0.009367038376
C116: S/H - South West SPS Stage 1 | D116: 0 | E116: Sewerage | F116: Growth | G116: Pipelines/network | H116: Significant Projects | J116: Straight line | K116: 2017-18 | L116: 45 | M116: 22.22222222 | O116: 0 | P116: 0 | Q116: 0 | R116: 0 | S116: 0 | T116: 0 | U116: 0 | V116: 0 | W116: 0 | X116: 0 | AV116: 0 | AW116: 0 | AX116: 0 | AY116: 0 | AZ116: 0 | BA116: 0 | BB116: 0 | BC116: 0 | BD116: 0 | BE116: 0 | BG116: 0 | BH116: 0 | BI116: 0 | BJ116: 0 | BK116: 0 | BL116: 0 | BM116: 0 | BN116: 0 | BO116: 0 | BP116: 0 | BR116: =+IF($K116="Ongoing",AV116,IF(RIGHT($K116,2)=RIGHT(BR$39,2),SUM($AV116:AV116),0)+IF(RIGHT(BR$39,2)>RIGHT($K116,2),AV116,0)) -> 0 | BS116: =+IF($K116="Ongoing",AW116,IF(RIGHT($K116,2)=RIGHT(BS$39,2),SUM($AV116:AW116),0)+IF(RIGHT(BS$39,2)>RIGHT($K116,2),AW116,0)) -> 0 | BT116: =+IF($K116="Ongoing",AX116,IF(RIGHT($K116,2)=RIGHT(BT$39,2),SUM($AV116:AX116),0)+IF(RIGHT(BT$39,2)>RIGHT($K116,2),AX116,0)) -> 0 | BU116: =+IF($K116="Ongoing",AY116,IF(RIGHT($K116,2)=RIGHT(BU$39,2),SUM($AV116:AY116),0)+IF(RIGHT(BU$39,2)>RIGHT($K116,2),AY116,0)) -> 0 | BV116: =+IF($K116="Ongoing",AZ116,IF(RIGHT($K116,2)=RIGHT(BV$39,2),SUM($AV116:AZ116),0)+IF(RIGHT(BV$39,2)>RIGHT($K116,2),AZ116,0)) -> 0 | BW116: =+IF($K116="Ongoing",BA116,IF(RIGHT($K116,2)=RIGHT(BW$39,2),SUM($AV116:BA116),0)+IF(RIGHT(BW$39,2)>RIGHT($K116,2),BA116,0)) -> 0 | BX116: =+IF($K116="Ongoing",BB116,IF(RIGHT($K116,2)=RIGHT(BX$39,2),SUM($AV116:BB116),0)+IF(RIGHT(BX$39,2)>RIGHT($K116,2),BB116,0)) -> 0 | BY116: =+IF($K116="Ongoing",BC116,IF(RIGHT($K116,2)=RIGHT(BY$39,2),SUM($AV116:BC116),0)+IF(RIGHT(BY$39,2)>RIGHT($K116,2),BC116,0)) -> 0 | BZ116: =+IF($K116="Ongoing",BD116,IF(RIGHT($K116,2)=RIGHT(BZ$39,2),SUM($AV116:BD116),0)+IF(RIGHT(BZ$39,2)>RIGHT($K116,2),BD116,0)) -> 0 | CA116: =+IF($K116="Ongoing",BE116,IF(RIGHT($K116,2)=RIGHT(CA$39,2),SUM($AV116:BE116),0)+IF(RIGHT(CA$39,2)>RIGHT($K116,2),BE116,0)) -> 0 | CC116: =+O116*KeyAssumptionsPriceControl_FO!X$15 -> 0 | CD116: =+P116*KeyAssumptionsPriceControl_FO!Y$15 -> 0 | CE116: =+Q116*KeyAssumptionsPriceControl_FO!Z$15 -> 0 | CF116: =+R116*KeyAssumptionsPriceControl_FO!AA$15 -> 0 | CG116: =+S116*KeyAssumptionsPriceControl_FO!AB$15 -> 0 | CH116: =+T116*KeyAssumptionsPriceControl_FO!AC$15 -> 0 | CI116: =+U116*KeyAssumptionsPriceControl_FO!AD$15 -> 0 | CJ116: =+V116*KeyAssumptionsPriceControl_FO!AE$15 -> 0 | CK116: =+W116*KeyAssumptionsPriceControl_FO!AF$15 -> 0 | CL116: =+X116*KeyAssumptionsPriceControl_FO!AG$15 -> 0 | CN116: 0 | CO116: 0 | CP116: 0 | CQ116: 0 | CR116: 0 | CS116: 0 | CT116: 0 | CU116: 0 | CV116: 0 | CW116: 0
C117: [Capex Item - Significant Project / Capital Program / Other Capex] | AV117: 0 | AW117: 0 | AX117: 0 | AY117: 0 | AZ117: 0 | BA117: 0 | BB117: 0 | BC117: 0 | BD117: 0 | BE117: 0 | BG117: 0 | BH117: 0 | BI117: 0 | BJ117: 0 | BK117: 0 | BL117: 0 | BM117: 0 | BN117: 0 | BO117: 0 | BP117: 0 | BR117: =+IF($K117="Ongoing",AV117,IF(RIGHT($K117,2)=RIGHT(BR$39,2),SUM($AV117:AV117),0)+IF(RIGHT(BR$39,2)>RIGHT($K117,2),AV117,0)) -> 0 | BS117: =+IF($K117="Ongoing",AW117,IF(RIGHT($K117,2)=RIGHT(BS$39,2),SUM($AV117:AW117),0)+IF(RIGHT(BS$39,2)>RIGHT($K117,2),AW117,0)) -> 0 | BT117: =+IF($K117="Ongoing",AX117,IF(RIGHT($K117,2)=RIGHT(BT$39,2),SUM($AV117:AX117),0)+IF(RIGHT(BT$39,2)>RIGHT($K117,2),AX117,0)) -> 0 | BU117: =+IF($K117="Ongoing",AY117,IF(RIGHT($K117,2)=RIGHT(BU$39,2),SUM($AV117:AY117),0)+IF(RIGHT(BU$39,2)>RIGHT($K117,2),AY117,0)) -> 0 | BV117: =+IF($K117="Ongoing",AZ117,IF(RIGHT($K117,2)=RIGHT(BV$39,2),SUM($AV117:AZ117),0)+IF(RIGHT(BV$39,2)>RIGHT($K117,2),AZ117,0)) -> 0 | BW117: =+IF($K117="Ongoing",BA117,IF(RIGHT($K117,2)=RIGHT(BW$39,2),SUM($AV117:BA117),0)+IF(RIGHT(BW$39,2)>RIGHT($K117,2),BA117,0)) -> 0 | BX117: =+IF($K117="Ongoing",BB117,IF(RIGHT($K117,2)=RIGHT(BX$39,2),SUM($AV117:BB117),0)+IF(RIGHT(BX$39,2)>RIGHT($K117,2),BB117,0)) -> 0 | BY117: =+IF($K117="Ongoing",BC117,IF(RIGHT($K117,2)=RIGHT(BY$39,2),SUM($AV117:BC117),0)+IF(RIGHT(BY$39,2)>RIGHT($K117,2),BC117,0)) -> 0 | BZ117: =+IF($K117="Ongoing",BD117,IF(RIGHT($K117,2)=RIGHT(BZ$39,2),SUM($AV117:BD117),0)+IF(RIGHT(BZ$39,2)>RIGHT($K117,2),BD117,0)) -> 0 | CA117: =+IF($K117="Ongoing",BE117,IF(RIGHT($K117,2)=RIGHT(CA$39,2),SUM($AV117:BE117),0)+IF(RIGHT(CA$39,2)>RIGHT($K117,2),BE117,0)) -> 0 | CC117: =+O117*KeyAssumptionsPriceControl_FO!X$15 -> 0 | CD117: =+P117*KeyAssumptionsPriceControl_FO!Y$15 -> 0 | CE117: =+Q117*KeyAssumptionsPriceControl_FO!Z$15 -> 0 | CF117: =+R117*KeyAssumptionsPriceControl_FO!AA$15 -> 0 | CG117: =+S117*KeyAssumptionsPriceControl_FO!AB$15 -> 0 | CH117: =+T117*KeyAssumptionsPriceControl_FO!AC$15 -> 0 | CI117: =+U117*KeyAssumptionsPriceControl_FO!AD$15 -> 0 | CJ117: =+V117*KeyAssumptionsPriceControl_FO!AE$15 -> 0 | CK117: =+W117*KeyAssumptionsPriceControl_FO!AF$15 -> 0 | CL117: =+X117*KeyAssumptionsPriceControl_FO!AG$15 -> 0 | CN117: 0 | CO117: 0 | CP117: 0 | CQ117: 0 | CR117: 0 | CS117: 0 | CT117: 0 | CU117: 0 | CV117: 0 | CW117: 0
C118: ALL SITES Asset Performance & Condition Monitoring Equipment | D118: 0 | E118: Water | F118: Renewals | G118: Treatment | H118: Significant Projects | J118: Straight line | K118: Ongoing | L118: 45 | M118: 22.22222222 | O118: 0.25 | P118: 0.25 | Q118: 0.1 | R118: 0.1 | S118: 0.1 | T118: 0.15 | U118: 0.15 | V118: 0.15 | W118: 0.15 | X118: 0.15 | AV118: 0.25 | AW118: 0.25 | AX118: 0.1 | AY118: 0.1 | AZ118: 0.1 | BA118: 0.15 | BB118: 0.15 | BC118: 0.15 | BD118: 0.15 | BE118: 0.15 | BG118: 0.002777777778 | BH118: 0.008333333333 | BI118: 0.01222222222 | BJ118: 0.01444444444 | BK118: 0.01666666667 | BL118: 0.01944444444 | BM118: 0.02277777778 | BN118: 0.02611111111 | BO118: 0.02944444444 | BP118: 0.03277777778 | BR118: =+IF($K118="Ongoing",AV118,IF(RIGHT($K118,2)=RIGHT(BR$39,2),SUM($AV118:AV118),0)+IF(RIGHT(BR$39,2)>RIGHT($K118,2),AV118,0)) -> 0.25 | BS118: =+IF($K118="Ongoing",AW118,IF(RIGHT($K118,2)=RIGHT(BS$39,2),SUM($AV118:AW118),0)+IF(RIGHT(BS$39,2)>RIGHT($K118,2),AW118,0)) -> 0.25 | BT118: =+IF($K118="Ongoing",AX118,IF(RIGHT($K118,2)=RIGHT(BT$39,2),SUM($AV118:AX118),0)+IF(RIGHT(BT$39,2)>RIGHT($K118,2),AX118,0)) -> 0.1 | BU118: =+IF($K118="Ongoing",AY118,IF(RIGHT($K118,2)=RIGHT(BU$39,2),SUM($AV118:AY118),0)+IF(RIGHT(BU$39,2)>RIGHT($K118,2),AY118,0)) -> 0.1 | BV118: =+IF($K118="Ongoing",AZ118,IF(RIGHT($K118,2)=RIGHT(BV$39,2),SUM($AV118:AZ118),0)+IF(RIGHT(BV$39,2)>RIGHT($K118,2),AZ118,0)) -> 0.1 | BW118: =+IF($K118="Ongoing",BA118,IF(RIGHT($K118,2)=RIGHT(BW$39,2),SUM($AV118:BA118),0)+IF(RIGHT(BW$39,2)>RIGHT($K118,2),BA118,0)) -> 0.15 | BX118: =+IF($K118="Ongoing",BB118,IF(RIGHT($K118,2)=RIGHT(BX$39,2),SUM($AV118:BB118),0)+IF(RIGHT(BX$39,2)>RIGHT($K118,2),BB118,0)) -> 0.15 | BY118: =+IF($K118="Ongoing",BC118,IF(RIGHT($K118,2)=RIGHT(BY$39,2),SUM($AV118:BC118),0)+IF(RIGHT(BY$39,2)>RIGHT($K118,2),BC118,0)) -> 0.15 | BZ118: =+IF($K118="Ongoing",BD118,IF(RIGHT($K118,2)=RIGHT(BZ$39,2),SUM($AV118:BD118),0)+IF(RIGHT(BZ$39,2)>RIGHT($K118,2),BD118,0)) -> 0.15 | CA118: =+IF($K118="Ongoing",BE118,IF(RIGHT($K118,2)=RIGHT(CA$39,2),SUM($AV118:BE118),0)+IF(RIGHT(CA$39,2)>RIGHT($K118,2),BE118,0)) -> 0.15 | CC118: =+O118*KeyAssumptionsPriceControl_FO!X$15 -> 0.25575 | CD118: =+P118*KeyAssumptionsPriceControl_FO!Y$15 -> 0.26163225 | CE118: =+Q118*KeyAssumptionsPriceControl_FO!Z$15 -> 0.1070599167 | CF118: =+R118*KeyAssumptionsPriceControl_FO!AA$15 -> 0.1095222948 | CG118: =+S118*KeyAssumptionsPriceControl_FO!AB$15 -> 0.1120413076 | CH118: =+T118*KeyAssumptionsPriceControl_FO!AC$15 -> 0.1719273865 | CI118: =+U118*KeyAssumptionsPriceControl_FO!AD$15 -> 0.1758817163 | CJ118: =+V118*KeyAssumptionsPriceControl_FO!AE$15 -> 0.1799269958 | CK118: =+W118*KeyAssumptionsPriceControl_FO!AF$15 -> 0.1840653167 | CL118: =+X118*KeyAssumptionsPriceControl_FO!AG$15 -> 0.188298819 | CN118: 0.005754375 | CO118: 0.01739547563 | CP118: 0.02569104938 | CQ118: 0.03056414913 | CR118: 0.03554933019 | CS118: 0.0419386258 | CT118: 0.04976433062 | CU118: 0.05777002664 | CV118: 0.06595985367 | CW118: 0.07433804673
C119: MDA WTP Replace Filter Media | D119: 0 | E119: Water | F119: Renewals | G119: Treatment | H119: Significant Projects | J119: Straight line | K119: 2021-22 | L119: 45 | M119: 22.22222222 | O119: 0 | P119: 0 | Q119: 0.1 | R119: 0.1 | S119: 0 | T119: 0 | U119: 0 | V119: 0 | W119: 0 | X119: 0 | AV119: 0 | AW119: 0 | AX119: 0.1 | AY119: 0.1 | AZ119: 0 | BA119: 0 | BB119: 0 | BC119: 0 | BD119: 0 | BE119: 0 | BG119: 0 | BH119: 0 | BI119: 0 | BJ119: 0.002222222222 | BK119: 0.004444444444 | BL119: 0.004444444444 | BM119: 0.004444444444 | BN119: 0.004444444444 | BO119: 0.004444444444 | BP119: 0.004444444444 | BR119: =+IF($K119="Ongoing",AV119,IF(RIGHT($K119,2)=RIGHT(BR$39,2),SUM($AV119:AV119),0)+IF(RIGHT(BR$39,2)>RIGHT($K119,2),AV119,0)) -> 0 | BS119: =+IF($K119="Ongoing",AW119,IF(RIGHT($K119,2)=RIGHT(BS$39,2),SUM($AV119:AW119),0)+IF(RIGHT(BS$39,2)>RIGHT($K119,2),AW119,0)) -> 0 | BT119: =+IF($K119="Ongoing",AX119,IF(RIGHT($K119,2)=RIGHT(BT$39,2),SUM($AV119:AX119),0)+IF(RIGHT(BT$39,2)>RIGHT($K119,2),AX119,0)) -> 0 | BU119: =+IF($K119="Ongoing",AY119,IF(RIGHT($K119,2)=RIGHT(BU$39,2),SUM($AV119:AY119),0)+IF(RIGHT(BU$39,2)>RIGHT($K119,2),AY119,0)) -> 0.2 | BV119: =+IF($K119="Ongoing",AZ119,IF(RIGHT($K119,2)=RIGHT(BV$39,2),SUM($AV119:AZ119),0)+IF(RIGHT(BV$39,2)>RIGHT($K119,2),AZ119,0)) -> 0 | BW119: =+IF($K119="Ongoing",BA119,IF(RIGHT($K119,2)=RIGHT(BW$39,2),SUM($AV119:BA119),0)+IF(RIGHT(BW$39,2)>RIGHT($K119,2),BA119,0)) -> 0 | BX119: =+IF($K119="Ongoing",BB119,IF(RIGHT($K119,2)=RIGHT(BX$39,2),SUM($AV119:BB119),0)+IF(RIGHT(BX$39,2)>RIGHT($K119,2),BB119,0)) -> 0 | BY119: =+IF($K119="Ongoing",BC119,IF(RIGHT($K119,2)=RIGHT(BY$39,2),SUM($AV119:BC119),0)+IF(RIGHT(BY$39,2)>RIGHT($K119,2),BC119,0)) -> 0 | BZ119: =+IF($K119="Ongoing",BD119,IF(RIGHT($K119,2)=RIGHT(BZ$39,2),SUM($AV119:BD119),0)+IF(RIGHT(BZ$39,2)>RIGHT($K119,2),BD119,0)) -> 0 | CA119: =+IF($K119="Ongoing",BE119,IF(RIGHT($K119,2)=RIGHT(CA$39,2),SUM($AV119:BE119),0)+IF(RIGHT(CA$39,2)>RIGHT($K119,2),BE119,0)) -> 0 | CC119: =+O119*KeyAssumptionsPriceControl_FO!X$15 -> 0 | CD119: =+P119*KeyAssumptionsPriceControl_FO!Y$15 -> 0 | CE119: =+Q119*KeyAssumptionsPriceControl_FO!Z$15 -> 0.1070599167 | CF119: =+R119*KeyAssumptionsPriceControl_FO!AA$15 -> 0.1095222948 | CG119: =+S119*KeyAssumptionsPriceControl_FO!AB$15 -> 0 | CH119: =+T119*KeyAssumptionsPriceControl_FO!AC$15 -> 0 | CI119: =+U119*KeyAssumptionsPriceControl_FO!AD$15 -> 0 | CJ119: =+V119*KeyAssumptionsPriceControl_FO!AE$15 -> 0 | CK119: =+W119*KeyAssumptionsPriceControl_FO!AF$15 -> 0 | CL119: =+X119*KeyAssumptionsPriceControl_FO!AG$15 -> 0 | CN119: 0 | CO119: 0 | CP119: 0.002408848126 | CQ119: 0.007281947884 | CR119: 0.009746199517 | CS119: 0.009746199517 | CT119: 0.009746199517 | CU119: 0.009746199517 | CV119: 0.009746199517 | CW119: 0.009746199517
C120: MDA - Mildura West WTP Upgrade to ClearSCADA | D120: 0 | E120: Water | F120: Growth | G120: Treatment | H120: Significant Projects | J120: Straight line | K120: 2019-20 | L120: 45 | M120: 22.22222222 | O120: 0.4 | P120: 0.6 | Q120: 0 | R120: 0 | S120: 0 | T120: 0 | U120: 0 | V120: 0 | W120: 0 | X120: 0 | AV120: 0.4 | AW120: 0.6 | AX120: 0 | AY120: 0 | AZ120: 0 | BA120: 0 | BB120: 0 | BC120: 0 | BD120: 0 | BE120: 0 | BG120: 0 | BH120: 0.01111111111 | BI120: 0.02222222222 | BJ120: 0.02222222222 | BK120: 0.02222222222 | BL120: 0.02222222222 | BM120: 0.02222222222 | BN120: 0.02222222222 | BO120: 0.02222222222 | BP120: 0.02222222222 | BR120: =+IF($K120="Ongoing",AV120,IF(RIGHT($K120,2)=RIGHT(BR$39,2),SUM($AV120:AV120),0)+IF(RIGHT(BR$39,2)>RIGHT($K120,2),AV120,0)) -> 0 | BS120: =+IF($K120="Ongoing",AW120,IF(RIGHT($K120,2)=RIGHT(BS$39,2),SUM($AV120:AW120),0)+IF(RIGHT(BS$39,2)>RIGHT($K120,2),AW120,0)) -> 1 | BT120: =+IF($K120="Ongoing",AX120,IF(RIGHT($K120,2)=RIGHT(BT$39,2),SUM($AV120:AX120),0)+IF(RIGHT(BT$39,2)>RIGHT($K120,2),AX120,0)) -> 0 | BU120: =+IF($K120="Ongoing",AY120,IF(RIGHT($K120,2)=RIGHT(BU$39,2),SUM($AV120:AY120),0)+IF(RIGHT(BU$39,2)>RIGHT($K120,2),AY120,0)) -> 0 | BV120: =+IF($K120="Ongoing",AZ120,IF(RIGHT($K120,2)=RIGHT(BV$39,2),SUM($AV120:AZ120),0)+IF(RIGHT(BV$39,2)>RIGHT($K120,2),AZ120,0)) -> 0 | BW120: =+IF($K120="Ongoing",BA120,IF(RIGHT($K120,2)=RIGHT(BW$39,2),SUM($AV120:BA120),0)+IF(RIGHT(BW$39,2)>RIGHT($K120,2),BA120,0)) -> 0 | BX120: =+IF($K120="Ongoing",BB120,IF(RIGHT($K120,2)=RIGHT(BX$39,2),SUM($AV120:BB120),0)+IF(RIGHT(BX$39,2)>RIGHT($K120,2),BB120,0)) -> 0 | BY120: =+IF($K120="Ongoing",BC120,IF(RIGHT($K120,2)=RIGHT(BY$39,2),SUM($AV120:BC120),0)+IF(RIGHT(BY$39,2)>RIGHT($K120,2),BC120,0)) -> 0 | BZ120: =+IF($K120="Ongoing",BD120,IF(RIGHT($K120,2)=RIGHT(BZ$39,2),SUM($AV120:BD120),0)+IF(RIGHT(BZ$39,2)>RIGHT($K120,2),BD120,0)) -> 0 | CA120: =+IF($K120="Ongoing",BE120,IF(RIGHT($K120,2)=RIGHT(CA$39,2),SUM($AV120:BE120),0)+IF(RIGHT(CA$39,2)>RIGHT($K120,2),BE120,0)) -> 0 | CC120: =+O120*KeyAssumptionsPriceControl_FO!X$15 -> 0.4092 | CD120: =+P120*KeyAssumptionsPriceControl_FO!Y$15 -> 0.6279174 | CE120: =+Q120*KeyAssumptionsPriceControl_FO!Z$15 -> 0 | CF120: =+R120*KeyAssumptionsPriceControl_FO!AA$15 -> 0 | CG120: =+S120*KeyAssumptionsPriceControl_FO!AB$15 -> 0 | CH120: =+T120*KeyAssumptionsPriceControl_FO!AC$15 -> 0 | CI120: =+U120*KeyAssumptionsPriceControl_FO!AD$15 -> 0 | CJ120: =+V120*KeyAssumptionsPriceControl_FO!AE$15 -> 0 | CK120: =+W120*KeyAssumptionsPriceControl_FO!AF$15 -> 0 | CL120: =+X120*KeyAssumptionsPriceControl_FO!AG$15 -> 0 | CN120: 0.009207 | CO120: 0.0325421415 | CP120: 0.046670283 | CQ120: 0.046670283 | CR120: 0.046670283 | CS120: 0.046670283 | CT120: 0.046670283 | CU120: 0.046670283 | CV120: 0.046670283 | CW120: 0.046670283
C121: ROB - Robinvale Waster Treatment Plant Upgrade to ClearSCADA | D121: 0 | E121: Water | F121: Renewals | G121: Treatment | H121: Significant Projects | J121: Straight line | K121: 2022-23 | L121: 45 | M121: 22.22222222 | O121: 0 | P121: 0 | Q121: 0 | R121: 0.25 | S121: 0.25 | T121: 0 | U121: 0 | V121: 0 | W121: 0 | X121: 0 | AV121: 0 | AW121: 0 | AX121: 0 | AY121: 0.25 | AZ121: 0.25 | BA121: 0 | BB121: 0 | BC121: 0 | BD121: 0 | BE121: 0 | BG121: 0 | BH121: 0 | BI121: 0 | BJ121: 0 | BK121: =IF($L121=0,0, IF($L121<=0.5,BV121, IF(AND($J121="straight line",$L121<1.51),(BU121-((BU121/$L121)*0.5))+BV121/$L121*0.5, IF($J121="straight line", IF((LEFT(BK$39,4)*1)-INT($L121)<LEFT($BG$39,4)*1,0,((OFFSET(BV121,0,-INT($L121+0.5),1,1))/$L121)*(IF($L121-INT($L121)>0.5,$L121-0.5-INT($L121),IF($L121-INT($L121)<=0.5,$L121-0.5-INT($L121)+1,0)))) +BV121/$L121*0.5 +SUM(OFFSET(BV121,0,MAX(-INT($L121+(0.5-(10^-12))),-BK$40)+1,1,MIN(INT($L121+(0.5-(10^-12))),BK$40)-1))*1/$L121, IF($J121="Declining Balance",-$BG$38,0))))) -> 0.005555555556 | BL121: 0.01111111111 | BM121: 0.01111111111 | BN121: 0.01111111111 | BO121: 0.01111111111 | BP121: 0.01111111111 | BR121: =+IF($K121="Ongoing",AV121,IF(RIGHT($K121,2)=RIGHT(BR$39,2),SUM($AV121:AV121),0)+IF(RIGHT(BR$39,2)>RIGHT($K121,2),AV121,0)) -> 0 | BS121: =+IF($K121="Ongoing",AW121,IF(RIGHT($K121,2)=RIGHT(BS$39,2),SUM($AV121:AW121),0)+IF(RIGHT(BS$39,2)>RIGHT($K121,2),AW121,0)) -> 0 | BT121: =+IF($K121="Ongoing",AX121,IF(RIGHT($K121,2)=RIGHT(BT$39,2),SUM($AV121:AX121),0)+IF(RIGHT(BT$39,2)>RIGHT($K121,2),AX121,0)) -> 0 | BU121: =+IF($K121="Ongoing",AY121,IF(RIGHT($K121,2)=RIGHT(BU$39,2),SUM($AV121:AY121),0)+IF(RIGHT(BU$39,2)>RIGHT($K121,2),AY121,0)) -> 0 | BV121: =+IF($K121="Ongoing",AZ121,IF(RIGHT($K121,2)=RIGHT(BV$39,2),SUM($AV121:AZ121),0)+IF(RIGHT(BV$39,2)>RIGHT($K121,2),AZ121,0)) -> 0.5 | BW121: =+IF($K121="Ongoing",BA121,IF(RIGHT($K121,2)=RIGHT(BW$39,2),SUM($AV121:BA121),0)+IF(RIGHT(BW$39,2)>RIGHT($K121,2),BA121,0)) -> 0 | BX121: =+IF($K121="Ongoing",BB121,IF(RIGHT($K121,2)=RIGHT(BX$39,2),SUM($AV121:BB121),0)+IF(RIGHT(BX$39,2)>RIGHT($K121,2),BB121,0)) -> 0 | BY121: =+IF($K121="Ongoing",BC121,IF(RIGHT($K121,2)=RIGHT(BY$39,2),SUM($AV121:BC121),0)+IF(RIGHT(BY$39,2)>RIGHT($K121,2),BC121,0)) -> 0 | BZ121: =+IF($K121="Ongoing",BD121,IF(RIGHT($K121,2)=RIGHT(BZ$39,2),SUM($AV121:BD121),0)+IF(RIGHT(BZ$39,2)>RIGHT($K121,2),BD121,0)) -> 0 | CA121: =+IF($K121="Ongoing",BE121,IF(RIGHT($K121,2)=RIGHT(CA$39,2),SUM($AV121:BE121),0)+IF(RIGHT(CA$39,2)>RIGHT($K121,2),BE121,0)) -> 0 | CC121: =+O121*KeyAssumptionsPriceControl_FO!X$15 -> 0 | CD121: =+P121*KeyAssumptionsPriceControl_FO!Y$15 -> 0 | CE121: =+Q121*KeyAssumptionsPriceControl_FO!Z$15 -> 0 | CF121: =+R121*KeyAssumptionsPriceControl_FO!AA$15 -> 0.273805737 | CG121: =+S121*KeyAssumptionsPriceControl_FO!AB$15 -> 0.2801032689 | CH121: =+T121*KeyAssumptionsPriceControl_FO!AC$15 -> 0 | CI121: =+U121*KeyAssumptionsPriceControl_FO!AD$15 -> 0 | CJ121: =+V121*KeyAssumptionsPriceControl_FO!AE$15 -> 0 | CK121: =+W121*KeyAssumptionsPriceControl_FO!AF$15 -> 0 | CL121: =+X121*KeyAssumptionsPriceControl_FO!AG$15 -> 0 | CN121: 0 | CO121: 0 | CP121: 0 | CQ121: 0.006160629082 | CR121: =IF($M121=0,0, IF($M121<=0.5,CG121, IF(AND($J121="straight line",$M121<1.51),(CF121-((CF121/$M121)*0.5))+CG121/$M121*0.5, IF($J121="straight line", IF((LEFT(CR$39,4)*1)-INT($M121)<LEFT($CN$39,4)*1,0,((OFFSET(CG121,0,-INT($M121+0.5),1,1))/$M121)*(IF($M121-INT($M121)>0.5,$M121-0.5-INT($M121),IF($M121-INT($M121)<=0.5,$M121-0.5-INT($M121)+1,0)))) +CG121/$M121*0.5 +SUM(OFFSET(CG121,0,MAX(-INT($M121+(0.5-(10^-12))),-CR$40)+1,1,MIN(INT($M121+(0.5-(10^-12))),CR$40)-1))*1/$M121, IF($J121="Declining Balance",-$CN$38,0))))) -> 0.01862358171 | CS121: 0.02492590526 | CT121: 0.02492590526 | CU121: 0.02492590526 | CV121: 0.02492590526 | CW121: 0.02492590526
C122: MDA West WTP Replace Filter Media | D122: 0 | E122: Water | F122: Growth | G122: Pipelines/network | H122: Significant Projects | J122: Straight line | K122: 2022-23 | L122: 45 | M122: 22.22222222 | O122: 0 | P122: 0 | Q122: 0 | R122: 0 | S122: 0.08 | T122: 0 | U122: 0 | V122: 0 | W122: 0 | X122: 0 | AV122: 0 | AW122: 0 | AX122: 0 | AY122: 0 | AZ122: 0.08 | BA122: 0 | BB122: 0 | BC122: 0 | BD122: 0 | BE122: 0 | BG122: 0 | BH122: =IF($L122=0,0, IF($L122<=0.5,BS122, IF(AND($J122="straight line",$L122<1.51),(BR122-((BR122/$L122)*0.5))+BS122/$L122*0.5, IF($J122="straight line", IF((LEFT(BH$39,4)*1)-INT($L122)<LEFT($BG$39,4)*1,0,((OFFSET(BS122,0,-INT($L122+0.5),1,1))/$L122)*(IF($L122-INT($L122)>0.5,$L122-0.5-INT($L122),IF($L122-INT($L122)<=0.5,$L122-0.5-INT($L122)+1,0)))) +BS122/$L122*0.5 +SUM(OFFSET(BS122,0,MAX(-INT($L122+(0.5-(10^-12))),-BH$40)+1,1,MIN(INT($L122+(0.5-(10^-12))),BH$40)-1))*1/$L122, IF($J122="Declining Balance",-$BG$38,0))))) -> 0 | BI122: 0 | BJ122: 0 | BK122: 0.0008888888889 | BL122: 0.001777777778 | BM122: 0.001777777778 | BN122: 0.001777777778 | BO122: 0.001777777778 | BP122: 0.001777777778 | BR122: =+IF($K122="Ongoing",AV122,IF(RIGHT($K122,2)=RIGHT(BR$39,2),SUM($AV122:AV122),0)+IF(RIGHT(BR$39,2)>RIGHT($K122,2),AV122,0)) -> 0 | BS122: =+IF($K122="Ongoing",AW122,IF(RIGHT($K122,2)=RIGHT(BS$39,2),SUM($AV122:AW122),0)+IF(RIGHT(BS$39,2)>RIGHT($K122,2),AW122,0)) -> 0 | BT122: =+IF($K122="Ongoing",AX122,IF(RIGHT($K122,2)=RIGHT(BT$39,2),SUM($AV122:AX122),0)+IF(RIGHT(BT$39,2)>RIGHT($K122,2),AX122,0)) -> 0 | BU122: =+IF($K122="Ongoing",AY122,IF(RIGHT($K122,2)=RIGHT(BU$39,2),SUM($AV122:AY122),0)+IF(RIGHT(BU$39,2)>RIGHT($K122,2),AY122,0)) -> 0 | BV122: =+IF($K122="Ongoing",AZ122,IF(RIGHT($K122,2)=RIGHT(BV$39,2),SUM($AV122:AZ122),0)+IF(RIGHT(BV$39,2)>RIGHT($K122,2),AZ122,0)) -> 0.08 | BW122: =+IF($K122="Ongoing",BA122,IF(RIGHT($K122,2)=RIGHT(BW$39,2),SUM($AV122:BA122),0)+IF(RIGHT(BW$39,2)>RIGHT($K122,2),BA122,0)) -> 0 | BX122: =+IF($K122="Ongoing",BB122,IF(RIGHT($K122,2)=RIGHT(BX$39,2),SUM($AV122:BB122),0)+IF(RIGHT(BX$39,2)>RIGHT($K122,2),BB122,0)) -> 0 | BY122: =+IF($K122="Ongoing",BC122,IF(RIGHT($K122,2)=RIGHT(BY$39,2),SUM($AV122:BC122),0)+IF(RIGHT(BY$39,2)>RIGHT($K122,2),BC122,0)) -> 0 | BZ122: =+IF($K122="Ongoing",BD122,IF(RIGHT($K122,2)=RIGHT(BZ$39,2),SUM($AV122:BD122),0)+IF(RIGHT(BZ$39,2)>RIGHT($K122,2),BD122,0)) -> 0 | CA122: =+IF($K122="Ongoing",BE122,IF(RIGHT($K122,2)=RIGHT(CA$39,2),SUM($AV122:BE122),0)+IF(RIGHT(CA$39,2)>RIGHT($K122,2),BE122,0)) -> 0 | CC122: =+O122*KeyAssumptionsPriceControl_FO!X$15 -> 0 | CD122: =+P122*KeyAssumptionsPriceControl_FO!Y$15 -> 0 | CE122: =+Q122*KeyAssumptionsPriceControl_FO!Z$15 -> 0 | CF122: =+R122*KeyAssumptionsPriceControl_FO!AA$15 -> 0 | CG122: =+S122*KeyAssumptionsPriceControl_FO!AB$15 -> 0.08963304605 | CH122: =+T122*KeyAssumptionsPriceControl_FO!AC$15 -> 0 | CI122: =+U122*KeyAssumptionsPriceControl_FO!AD$15 -> 0 | CJ122: =+V122*KeyAssumptionsPriceControl_FO!AE$15 -> 0 | CK122: =+W122*KeyAssumptionsPriceControl_FO!AF$15 -> 0 | CL122: =+X122*KeyAssumptionsPriceControl_FO!AG$15 -> 0 | CN122: 0 | CO122: =IF($M122=0,0, IF($M122<=0.5,CD122, IF(AND($J122="straight line",$M122<1.51),(CC122-((CC122/$M122)*0.5))+CD122/$M122*0.5, IF($J122="straight line", IF((LEFT(CO$39,4)*1)-INT($M122)<LEFT($CN$39,4)*1,0,((OFFSET(CD122,0,-INT($M122+0.5),1,1))/$M122)*(IF($M122-INT($M122)>0.5,$M122-0.5-INT($M122),IF($M122-INT($M122)<=0.5,$M122-0.5-INT($M122)+1,0)))) +CD122/$M122*0.5 +SUM(OFFSET(CD122,0,MAX(-INT($M122+(0.5-(10^-12))),-CO$40)+1,1,MIN(INT($M122+(0.5-(10^-12))),CO$40)-1))*1/$M122, IF($J122="Declining Balance",-$CN$38,0))))) -> 0 | CP122: 0 | CQ122: 0 | CR122: 0.002016743536 | CS122: 0.004033487072 | CT122: 0.004033487072 | CU122: 0.004033487072 | CV122: 0.004033487072 | CW122: 0.004033487072
